Workbook

Sheet FB nach BerT
A1: =IF(Rücklaufquoten!E10<>"",Rücklaufquoten!E10,"Schule")&" ("&Rücklaufquoten!H10&")" -> Schule Rungwisch (5274) | I1: =RIGHT(A1,6) -> (5274)
A2: Fragebogenergebnisse nach BerT | I2: Makro vor dem Schließen: | J2: aus | L2: RLQ | M2: RLQ | N2: Rück
L3: gelb | M3: rot | N3: rot
L4: =IF(AND(G8<0.5,G8>0.2),"der Pädagoginnen und Pädagogen","") ->  | M4: =IF(G8<=0.2,"der Pädagoginnen und Pädagogen","") ->  | N4: =IF(G8="-","der Pädagoginnen und Pädagogen","") ->  | O4: PFB
A5: Rücklaufquoten der Fragebögen | L5: =IF(AND(G9<0.5,G9>0.2),"des pädagogisch therapeutischen Fachpersonals","") ->  | M5: =IF(G9<=0.2,"des pädagogisch therapeutischen Fachpersonals","") ->  | N5: =IF(G9="-","des pädagogisch therapeutischen Fachpersonals","") -> des pädagogisch therapeutischen Fachpersonals | O5: PTF
L6: =IF(AND(G10<0.5,G10>0.2),"der Schülerinnen und Schüler","") -> der Schülerinnen und Schüler | M6: =IF(G10<=0.2,"der Schülerinnen und Schüler","") ->  | N6: =IF(G10="-","der Schülerinnen und Schüler","") ->  | O6: SFB
B7: Insgesamt | D7: Beantwortet | G7: Rücklaufquote | L7: =IF(AND(G11<0.5,G11>0.2),"der Eltern und Erziehungsberechtigten","") -> der Eltern und Erziehungsberechtigten | M7: =IF(G11<=0.2,"der Eltern und Erziehungsberechtigten","") ->  | N7: =IF(G11="-","der Eltern und Erziehungsberechtigten","") ->  | O7: EFB
A8: PFB (gesamt) | B8: =IF(Rücklaufquoten!F4=0,"-",Rücklaufquoten!F4) -> 35 | D8: =IF(Rücklaufquoten!G4<=10,"<=10",Rücklaufquoten!G4) -> 23 | G8: =IF(D8="<=10","-",D8/B8) -> 0.6571428571 | L8: =IF(COUNTIF(L4:L7,"?*")=0,0,1) -> 1 | M8: =IF(COUNTIF(M4:M7,"?*")=0,0,1) -> 0 | N8: 1
A9: PFB (nur PTF) | B9: =IF(Rücklaufquoten!F7=0,"-",Rücklaufquoten!F7) -> 12 | D9: =IF(Rücklaufquoten!G7<=10,"<=10",Rücklaufquoten!G7) -> <=10 | G9: =IF(D9="<=10","-",D9/B9) -> - | L9: =IF(COUNTIF(L4:L7,"?*")=0,"", IF(COUNTIF(L4:L7,"?*")=1,CONCATENATE( "Die Rücklaufquote der Befragung ", L4 & L5 & L6 & L7, " an Ihrer Schule lag zwischen 20 und 50 Prozent. Die Daten sind bei einer solchen Rücklaufquote in der Regel systematisch verzerrt und können nicht als repräsentativ für die Meinung aller Befragten der Gruppe betrachtet werden."), IF(COUNTIF(L4:L7,"?*")=2,CONCATENATE( "Die Rücklaufquoten der Befragungen ", IF(L4<>"",L4 & ", sowie " & L5 & L6 & L7, IF(L5<>"",L5 & ", sowie " & L6 & L7, L6 & ", sowie " & L7))," an Ihrer Schule lagen zwischen 20 und 50 Prozent. Die Daten sind bei einer solchen Rücklaufquote in der Regel systematisch verzerrt und können nicht als repräsentativ für die Meinung aller Befragten der jeweiligen Gruppe betrachtet werden."), IF(COUNTIF(L4:L7,"?*")=3,CONCATENATE( "Die Rücklaufquoten der Befragungen ", IF(L4<>"", L4 & ", " & IF(L5<>"", L5 & ", sowie " & IF(L6<>"", L6, L7), L6 & ", sowie " & L7), L5 & ", " & L6 & ", sowie " & L7), " an Ihrer Schule lagen zwischen 20 und 50 Prozent. Die Daten sind bei einer solchen Rücklaufquote in der Regel systematisch verzerrt und können nicht als repräsentativ für die Meinung aller Befragten der jeweiligen Gruppe betrachtet werden."), IF(COUNTIF(L4:L7,"?*")=4,CONCATENATE( "Die Rücklaufquoten der Befragungen ", L4, ", ", L5, ", ", L6, ", sowie ", L7, " an Ihrer Schule lagen zwischen 20 und 50 Prozent. Die Daten sind bei einer solchen Rücklaufquote in der Regel systematisch verzerrt und können nicht als repräsentativ für die Meinung aller Befragten der jeweiligen Gruppe betrachtet werden."),"")))) & " Aus diesem Grund werden die Ergebnisse grafisch nicht dargestellt. Zu Ihrer Information sind die Daten dennoch in den Tabellen einsehbar, jedoch sind sie mit einer gelben Markierung hinterlegt." & IF(SUM(M8,N8)>0," ","")) -> Die Rücklaufquoten der Befragungen der Schülerinnen und Schüler, sowie der Eltern und Erziehungsberechtigten an Ihrer Schule lagen zwischen 20 und 50 Prozent. Die Daten sind bei einer solchen Rücklaufquote in der Regel systematisch verzerrt und können nicht als repräsentativ für die Meinung aller Befragten der jeweiligen Gruppe betrachtet werden. Aus diesem Grund werden die Ergebnisse grafisch nicht dargestellt. Zu Ihrer Information sind die Daten dennoch in den Tabellen einsehbar, jedoch sind sie mit einer gelben Markierung hinterlegt. | M9: =IF(COUNTIF(M4:M7,"?*")=0,"", IF(COUNTIF(M4:M7,"?*")=1,CONCATENATE( "Die Rücklaufquote der Befragung ", M4 & M5 & M6 & M7, " an Ihrer Schule lag unter 20 Prozent. Die Daten sind bei einer solchen Rücklaufquote in der Regel nicht aussagekräftig."), IF(COUNTIF(M4:M7,"?*")=2,CONCATENATE( "Die Rücklaufquoten der Befragungen ", IF(M4<>"",M4 & ", sowie " & M5 & M6 & M7, IF(M5<>"",M5 & ", sowie " & M6 & M7, M6 & ", sowie " & M7))," an Ihrer Schule lagen unter 20 Prozent. Die Daten sind bei einer solchen Rücklaufquote in der Regel nicht aussagekräftig."), IF(COUNTIF(M4:M7,"?*")=3,CONCATENATE( "Die Rücklaufquoten der Befragungen ", IF(M4<>"", M4 & ", " & IF(M5<>"", M5 & ", sowie " & IF(M6<>"", M6, M7), M6 & ", sowie " & M7), M5 & ", " & M6 & ", sowie " & M7), " an Ihrer Schule lagen unter 20 Prozent. Die Daten sind bei einer solchen Rücklaufquote in der Regel nicht aussagekräftig."), IF(COUNTIF(M4:M7,"?*")=4,CONCATENATE( "Die Rücklaufquoten der Befragungen ", M4, ", ", M5, ", ", M6, ", sowie ", M7, " an Ihrer Schule lagen unter 20 Prozent. Die Daten sind bei einer solchen Rücklaufquote in der Regel nicht aussagekräftig."),"")))) & " " & IF(N8=1,"","Aus diesem Grund werden die Ergebnisse weder in grafischer, noch in tabellarischer Form zurückgemeldet." & IF(AND(M5<>"",M4:N4=""),"In die Berechnungen zu Items und Konstrukten, die sich an alle Pädagoginnen und Pädagogen der Schule richten, fließen die Daten der PTF jedoch mit ein.",""))) ->  | N9: =IF(COUNTIF(N4:N7,"?*")=0,"", IF(COUNTIF(N4:N7,"?*")=1,CONCATENATE( "Der Rücklauf der Befragung ", N4 & N5 & N6 & N7, " betrug an Ihrer Schule 10 oder weniger Fragebögen."), IF(COUNTIF(N4:N7,"?*")=2,CONCATENATE( "Die Rückläufe der Befragungen ", IF(N4<>"",N4 & ", sowie " & N5 & N6 & N7, IF(N5<>"",N5 & ", sowie " & N6 & N7, N6 & ", sowie " & N7))," betrugen an Ihrer Schule 10 oder weniger Fragebögen."), IF(COUNTIF(N4:N7,"?*")=3,CONCATENATE( "Die Rückläufe der Befragungen ", IF(N4<>"", N4 & ", " & IF(N5<>"", N5 & ", sowie " & IF(N6<>"", N6, N7), N6 & ", sowie " & N7), N5 & ", " & N6 & ", sowie " & N7), " betrugen an Ihrer Schule 10 oder weniger Fragebögen."), IF(COUNTIF(N4:N7,"?*")=4,CONCATENATE( "Die Rückläufe der Befragungen ", N4, ", ", N5, ", ", N6, ", sowie ", N7, " betrugen an Ihrer Schule 10 oder weniger Fragebögen."),"")))) & " Um die Anonymität der Befragten zu gewährleisten, werden die entsprechenden Ergebnisse weder in grafischer, noch in tabellarischer Form zurückgemeldet." & IF(AND(N5<>"",M4:N4="")," In die Berechnungen zu Items und Konstrukten, die sich an alle Pädagoginnen und Pädagogen der Schule richten, fließen die Daten der PTF jedoch mit ein.","")) -> Der Rücklauf der Befragung des pädagogisch therapeutischen Fachpersonals betrug an Ihrer Schule 10 oder weniger Fragebögen. Um die Anonymität der Befragten zu gewährleisten, werden die entsprechenden Ergebnisse weder in grafischer, noch in tabellarischer Form zurückgemeldet. In die Berechnungen zu Items und Konstrukten, die sich an alle Pädagoginnen und Pädagogen der Schule richten, fließen die Daten der PTF jedoch mit ein. | O9: Beginn
A10: SFB | B10: =IF(Rücklaufquoten!F5=0,"-",Rücklaufquoten!F5) -> 132 | D10: =IF(Rücklaufquoten!G5<=10,"<=10",Rücklaufquoten!G5) -> 53 | G10: 0.4015151515 | M10: =IF(COUNTIF(M4:M7,"?*")=0,"", IF(COUNTIF(M4:M7,"?*")=1,CONCATENATE( "Darüber hinaus lag die Rücklaufquote der Befragung ", M4 & M5 & M6 & M7, " an Ihrer Schule unter 20 Prozent. Die Daten sind bei einer solchen Rücklaufquote in der Regel nicht aussagekräftig."), IF(COUNTIF(M4:M7,"?*")=2,CONCATENATE( "Darüber hinaus lagen die Rücklaufquoten der Befragungen ", IF(M4<>"",M4 & ", sowie " & M5 & M6 & M7, IF(M5<>"",M5 & ", sowie " & M6 & M7, M6 & ", sowie " & M7))," an Ihrer Schule unter 20 Prozent. Die Daten sind bei einer solchen Rücklaufquote in der Regel nicht aussagekräftig."), IF(COUNTIF(M4:M7,"?*")=3,CONCATENATE( "Darüber hinaus lagen die Rücklaufquoten der Befragungen ", IF(M4<>"", M4 & ", " & IF(M5<>"", M5 & ", sowie " & IF(M6<>"", M6, M7), M6 & ", sowie " & M7), M5 & ", " & M6 & ", sowie " & M7), " an Ihrer Schule unter 20 Prozent. Die Daten sind bei einer solchen Rücklaufquote in der Regel nicht aussagekräftig."), IF(COUNTIF(M4:M7,"?*")=4,CONCATENATE( "Darüber hinaus lagen die Rücklaufquoten der Befragungen ", M4, ", ", M5, ", ", M6, ", sowie ", M7, " an Ihrer Schule unter 20 Prozent. Die Daten sind bei einer solchen Rücklaufquote in der Regel nicht aussagekräftig."),"")))) & " " & IF(N8=1,"","Daher werden diese Ergebnisse weder in grafischer, noch in tabellarischer Form zurückgemeldet." & IF(AND(M5<>"",M4:N4=""),"In die Berechnungen zu Items und Konstrukten, die sich an alle Pädagoginnen und Pädagogen der Schule richten, fließen die Daten der PTF jedoch mit ein.",""))) ->  | N10: =IF(COUNTIF(N4:N7,"?*")=0,"", IF(COUNTIF(N4:N7,"?*")=1,CONCATENATE( "Darüber hinaus betrug der Rücklauf der Befragung ", N4 & N5 & N6 & N7, " an Ihrer Schule 10 oder weniger Fragebögen."), IF(COUNTIF(N4:N7,"?*")=2,CONCATENATE( "Darüber hinaus betrugen die Rückläufe der Befragungen ", IF(N4<>"",N4 & ", sowie " & N5 & N6 & N7, IF(N5<>"",N5 & ", sowie " & N6 & N7, N6 & ", sowie " & N7))," an Ihrer Schule 10 oder weniger Fragebögen."), IF(COUNTIF(N4:N7,"?*")=3,CONCATENATE( "Darüber hinaus betrugen die Rückläufe der Befragungen ", IF(N4<>"", N4 & ", " & IF(N5<>"", N5 & ", sowie " & IF(N6<>"", N6, N7), N6 & ", sowie " & N7), N5 & ", " & N6 & ", sowie " & N7), " an Ihrer Schule 10 oder weniger Fragebögen."), IF(COUNTIF(N4:N7,"?*")=4,CONCATENATE( "Darüber hinaus betrugen die Rückläufe der Befragungen ", N4, ", ", N5, ", ", N6, ", sowie ", N7, " an Ihrer Schule 10 oder weniger Fragebögen."),"")))) & " " & IF(M8=1,"Aufgrund der geringen Aussagekraft der Daten, bzw. um bei 10 oder weniger Rückläufen die Anonymität der Befragten zu gewährleisten, ","Um die Anonymität der Befragten zu gewährleisten, ") & "werden die entsprechenden Ergebnisse weder in grafischer, noch in tabellarischer Form zurückgemeldet." & IF(AND(N5<>"",M4:N4="")," In die Berechnungen zu Items und Konstrukten, die sich an alle Pädagoginnen und Pädagogen der Schule richten, fließen die Daten der PTF jedoch mit ein.","")) -> Darüber hinaus betrug der Rücklauf der Befragung des pädagogisch therapeutischen Fachpersonals an Ihrer Schule 10 oder weniger Fragebögen. Um die Anonymität der Befragten zu gewährleisten, werden die entsprechenden Ergebnisse weder in grafischer, noch in tabellarischer Form zurückgemeldet. In die Berechnungen zu Items und Konstrukten, die sich an alle Pädagoginnen und Pädagogen der Schule richten, fließen die Daten der PTF jedoch mit ein. | O10: Fortf. bei 2
A11: EFB | B11: =IF(Rücklaufquoten!F6=0,"-",Rücklaufquoten!F6) -> 244 | D11: =IF(Rücklaufquoten!G6<=10,"<=10",Rücklaufquoten!G6) -> 89 | G11: 0.3647540984 | N11: =IF(COUNTIF(N4:N7,"?*")=0,"", IF(COUNTIF(N4:N7,"?*")=1,CONCATENATE( "Zudem betrug der Rücklauf der Befragung ", N4 & N5 & N6 & N7, " an Ihrer Schule 10 oder weniger Fragebögen."), IF(COUNTIF(N4:N7,"?*")=2,CONCATENATE( "Zudem betrugen die Rückläufe der Befragungen ", IF(N4<>"",N4 & ", sowie " & N5 & N6 & N7, IF(N5<>"",N5 & ", sowie " & N6 & N7, N6 & ", sowie " & N7))," an Ihrer Schule 10 oder weniger Fragebögen."), IF(COUNTIF(N4:N7,"?*")=3,CONCATENATE( "Zudem betrugen die Rückläufe der Befragungen ", IF(N4<>"", N4 & ", " & IF(N5<>"", N5 & ", sowie " & IF(N6<>"", N6, N7), N6 & ", sowie " & N7), N5 & ", " & N6 & ", sowie " & N7), " an Ihrer Schule 10 oder weniger Fragebögen."), IF(COUNTIF(N4:N7,"?*")=4,CONCATENATE( "Zudem betrugen die Rückläufe der Befragungen ", N4, ", ", N5, ", ", N6, ", sowie ", N7, " an Ihrer Schule 10 oder weniger Fragebögen."),"")))) & " Aufgrund der geringen Aussagekraft der Daten, bzw. um bei 10 oder weniger Rückläufen die Anonymität der Befragten zu gewährleisten, werden die entsprechenden Ergebnisse weder in grafischer, noch in tabellarischer Form zurückgemeldet." & IF(AND(N5<>"",M4:N4="")," In die Berechnungen zu Items und Konstrukten, die sich an alle Pädagoginnen und Pädagogen der Schule richten, fließen die Daten der PTF jedoch mit ein.","")) -> Zudem betrug der Rücklauf der Befragung des pädagogisch therapeutischen Fachpersonals an Ihrer Schule 10 oder weniger Fragebögen. Aufgrund der geringen Aussagekraft der Daten, bzw. um bei 10 oder weniger Rückläufen die Anonymität der Befragten zu gewährleisten, werden die entsprechenden Ergebnisse weder in grafischer, noch in tabellarischer Form zurückgemeldet. In die Berechnungen zu Items und Konstrukten, die sich an alle Pädagoginnen und Pädagogen der Schule richten, fließen die Daten der PTF jedoch mit ein. | O11: Fortf. bei 3
L12: 12 | M12: 13 | N12: 14 | O12: 15 | P12: 16 | Q12: 17 | R12: 18
A13: =IF(SUM(L8:N8)=3, L9 & M10 & N11, IF(SUM(L8:N8)=2, IF(L8=1, L9 & IF(M8=1, M10, N10), M9 & N10), IF(SUM(L8:N8)=1, IF(L8=1, L9, IF(M8=1, M9, N9)), "Alle Rücklaufquoten sind ausreichend hoch, sodass alle Daten dargestellt werden."))) -> Die Rücklaufquoten der Befragungen der Schülerinnen und Schüler, sowie der Eltern und Erziehungsberechtigten an Ihrer Schule lagen zwischen 20 und 50 Prozent. Die Daten sind bei einer solchen Rücklaufquote in der Regel systematisch verzerrt und können nicht als repräsentativ für die Meinung aller Befragten der jeweiligen Gruppe betrachtet werden. Aus diesem Grund werden die Ergebnisse grafisch nicht dargestellt. Zu Ihrer Information sind die Daten dennoch in den Tabellen einsehbar, jedoch sind sie mit einer gelben Markierung hinterlegt. Darüber hinaus betrug der Rücklauf der Befragung des pädagogisch therapeutischen Fachpersonals an Ihrer Schule 10 oder weniger Fragebögen. Um die Anonymität der Befragten zu gewährleisten, werden die entsprechenden Ergebnisse weder in grafischer, noch in tabellarischer Form zurückgemeldet. In die Berechnungen zu Items und Konstrukten, die sich an alle Pädagoginnen und Pädagogen der Schule richten, fließen die Daten der PTF jedoch mit ein.
A14: Wenn dieser Schriftzug sichtbar ist, ist die Einfärbung basierend auf den Rücklaufquoten ggf. fehlerhaft! | S14: PFB: Transformationale Führung, Motivation durch begeisternde Visionen | T14: PFB (gesamt)
S15: PFB: Transformationale Führung, Einfluss durch Vorbildlichkeit und Glaubwürdigkeit | T15: PFB (gesamt)
A16: STEUERUNGSHANDELN | L16: =IF(A16="","", IF(A16="PFB: Konstrukt",1,IF(A16="SFB: Konstrukt",2,IF(A16="EFB: Konstrukt",3, IF(OR(A15="PFB: Konstrukt",A15="SFB: Konstrukt",A15="EFB: Konstrukt"),"K", IF(LEFT(A16,3)="PFB",5,IF(LEFT(A16,3)="SFB",6,IF(LEFT(A16,3)="EFB",7, IF(OR(LEFT(A16,1)="0", LEFT(A16,1)="1", LEFT(A16,1)="2", LEFT(A16,1)="3", LEFT(A16,1)="4", LEFT(A16,1)="5", LEFT(A16,1)="6", LEFT(A16,1)="7", LEFT(A16,1)="8", LEFT(A16,1)="9"),"I",IF(A15="","","B")))))))))) ->  | M16: =IF(L16="K",L15,IF(L16="I",IF(L15="B",L14,IF(AND(L15>=1,L15<=8),L15,M15)),"")) ->  | N16: =IF(M16="","", IF(OR(M16=1,M16=5),IF(M15=5,N15,IF(L16="K",VLOOKUP(A16,$S$14:$T$43,2,0),IF(L16="I",IF(L15="B",VLOOKUP(A12,$S$14:$T$43,2,0),VLOOKUP(A13,$S$14:$T$43,2,0)),"Fehler"))), IF(OR(M16=2,M16=6),"SFB", IF(OR(M16=3,M16=7),"EFB","")))) ->  | O16: =IF(OR(N16=0,N16=""),"", IF(ISERROR(VLOOKUP(N16,$A$8:$H$11,7,0)),"Fehler", IF(OR(VLOOKUP(N16,$A$8:$H$11,7,0)<=0.2,VLOOKUP(N16,$A$8:$H$11,4,0)="<=10"),4,IF(VLOOKUP(N16,$A$8:$H$11,7,0)>=0.5,1,IF(AND(VLOOKUP(N16,$A$8:$H$11,7,0)>0.2,VLOOKUP(N16,$A$8:$H$11,7,0)<0.5),2,"Fehler"))))) ->  | P16: =IF(OR(LEFT(A16,1)="0",LEFT(A16,1)="1",LEFT(A16,1)="2",LEFT(A16,1)="3",LEFT(A16,1)="4",LEFT(A16,1)="5",LEFT(A16,1)="6",LEFT(A16,1)="7",LEFT(A16,1)="8",LEFT(A16,1)="9"), A16 &" ",IF(OR(L16=5,L16=6,L16=7,L16=8,L16="B"),A16,"")) ->  | Q16: =IF(AND(L16="",A16<>""),IF(RIGHT(A16,1)=".","grau",IF(RIGHT(A16,1)=")","rot","blau")),"") -> blau | R16: =IF(Q16<>"",A16,"") -> STEUERUNGSHANDELN | S16: PFB: Transformationale Führung, Individuelle Unterstützung und Förderung | T16: PFB (gesamt)
L17: =IF(A17="","", IF(A17="PFB: Konstrukt",1,IF(A17="SFB: Konstrukt",2,IF(A17="EFB: Konstrukt",3, IF(OR(A16="PFB: Konstrukt",A16="SFB: Konstrukt",A16="EFB: Konstrukt"),"K", IF(LEFT(A17,3)="PFB",5,IF(LEFT(A17,3)="SFB",6,IF(LEFT(A17,3)="EFB",7, IF(OR(LEFT(A17,1)="0", LEFT(A17,1)="1", LEFT(A17,1)="2", LEFT(A17,1)="3", LEFT(A17,1)="4", LEFT(A17,1)="5", LEFT(A17,1)="6", LEFT(A17,1)="7", LEFT(A17,1)="8", LEFT(A17,1)="9"),"I",IF(A16="","","B")))))))))) ->  | M17: =IF(L17="K",L16,IF(L17="I",IF(L16="B",L15,IF(AND(L16>=1,L16<=8),L16,M16)),"")) ->  | N17: =IF(M17="","", IF(OR(M17=1,M17=5),IF(M16=5,N16,IF(L17="K",VLOOKUP(A17,$S$14:$T$43,2,0),IF(L17="I",IF(L16="B",VLOOKUP(A13,$S$14:$T$43,2,0),VLOOKUP(A14,$S$14:$T$43,2,0)),"Fehler"))), IF(OR(M17=2,M17=6),"SFB", IF(OR(M17=3,M17=7),"EFB","")))) ->  | O17: =IF(OR(N17=0,N17=""),"", IF(ISERROR(VLOOKUP(N17,$A$8:$H$11,7,0)),"Fehler", IF(OR(VLOOKUP(N17,$A$8:$H$11,7,0)<=0.2,VLOOKUP(N17,$A$8:$H$11,4,0)="<=10"),4,IF(VLOOKUP(N17,$A$8:$H$11,7,0)>=0.5,1,IF(AND(VLOOKUP(N17,$A$8:$H$11,7,0)>0.2,VLOOKUP(N17,$A$8:$H$11,7,0)<0.5),2,"Fehler"))))) ->  | P17: =IF(OR(LEFT(A17,1)="0",LEFT(A17,1)="1",LEFT(A17,1)="2",LEFT(A17,1)="3",LEFT(A17,1)="4",LEFT(A17,1)="5",LEFT(A17,1)="6",LEFT(A17,1)="7",LEFT(A17,1)="8",LEFT(A17,1)="9"), A17 &" ",IF(OR(L17=5,L17=6,L17=7,L17=8,L17="B"),A17,"")) ->  | Q17: =IF(AND(L17="",A17<>""),IF(RIGHT(A17,1)=".","grau",IF(RIGHT(A17,1)=")","rot","blau")),"") ->  | R17: =IF(Q17<>"",A17,"") ->  | S17: PFB: Transaktionale Führung | T17: PFB (gesamt)
A18: Führung wahrnehmen (QB 1.1) | Q18: rot | R18: Führung wahrnehmen (QB 1.1) | S18: PFB: Aktive Führung | T18: PFB (gesamt)
S19: PFB: Instruktionale Führung, Supervision | T19: PFB (gesamt)
A20: Die Schulleitung hat eine überzeugende pädagogische Vision. | Q20: grau | R20: Die Schulleitung hat eine überzeugende pädagogische Vision. | S20: PFB: Instruktionale Führung, Schulziel-Management | T20: PFB (gesamt)
S21: PFB: Instruktionale Führung, Anleitungsmanagement | T21: PFB (gesamt)
C22: =CONCATENATE("Inspizierte Schule ",$I$1,"") -> Inspizierte Schule (5274) | F22: Referenzwert | I22: Effektstärke | S22: PFB: Partizipative Führung, Delegation von Führung | T22: PFB (gesamt)
A23: PFB: Konstrukt | C23: N | D23: MW | E23: SD | F23: N | G23: MW | H23: SD | I23: D | J23: Effekt | L23: 1 | S23: PFB: Partizipative Führung, Distribution von Führung | T23: PFB (gesamt)
A24: ="PFB: " & 'Effektstärken PuP'!A10 & ", " & 'Effektstärken PuP'!B11 -> PFB: Transformationale Führung, Motivation durch begeisternde Visionen | C24: ='Effektstärken PuP'!C11 -> 20 | D24: ='Effektstärken PuP'!D11 -> 3.133333333 | E24: ='Effektstärken PuP'!E11 -> 0.7445709939 | F24: ='Effektstärken PuP'!F11 -> 349 | G24: ='Effektstärken PuP'!G11 -> 3.306467 | H24: ='Effektstärken PuP'!H11 -> 0.6583172 | I24: ='Effektstärken PuP'!I11 -> -0.2463594115 | J24: ='Effektstärken PuP'!J11 -> - | L24: K | M24: 1 | N24: PFB (gesamt) | O24: 1 | S24: PFB: Positives Innovationsklima | T24: PFB (gesamt)
S25: PFB: Schülerbezogener Austausch | T25: PFB (gesamt)
A26: =A24 -> PFB: Transformationale Führung, Motivation durch begeisternde Visionen | C26: N | D26: MW | E26: SE | F26: SD | G26: trifft nicht zu | H26: trifft eher nicht zu | I26: trifft eher zu | J26: trifft voll zu | L26: 5 | P26: PFB: Transformationale Führung, Motivation durch begeisternde Visionen | S26: PFB: Synchronisation | T26: PFB (gesamt)
A27: ='PFB-Items'!A125 -> 87. Die Schulleitung formuliert eine überzeugende Zukunftsvision. | C27: ='PFB-Items'!B125 -> 19 | D27: ='PFB-Items'!C125 -> 3.157894737 | E27: ='PFB-Items'!D125 -> 0.1578947368 | F27: ='PFB-Items'!E125 -> 0.6882472016 | G27: ='PFB-Items'!F125 -> 0 | H27: ='PFB-Items'!G125 -> 0.1578947368 | I27: ='PFB-Items'!H125 -> 0.5263157895 | J27: ='PFB-Items'!I125 -> 0.3157894737 | L27: I | M27: 5 | N27: PFB (gesamt) | O27: 1 | P27: 87. Die Schulleitung formuliert eine überzeugende Zukunftsvision. | S27: PFB: Ko-Konstruktion | T27: PFB (gesamt)
A28: ='PFB-Items'!A132 -> 94. Die Schulleitung äußert sich optimistisch über die Zukunft. | C28: ='PFB-Items'!B132 -> 17 | D28: ='PFB-Items'!C132 -> 3.235294118 | E28: ='PFB-Items'!D132 -> 0.1824952007 | F28: ='PFB-Items'!E132 -> 0.7524469886 | G28: ='PFB-Items'!F132 -> 0 | H28: ='PFB-Items'!G132 -> 0.1764705882 | I28: ='PFB-Items'!H132 -> 0.4117647059 | J28: ='PFB-Items'!I132 -> 0.4117647059 | L28: I | M28: 5 | N28: PFB (gesamt) | O28: 1 | P28: 94. Die Schulleitung äußert sich optimistisch über die Zukunft. | S28: PFB: Kooperationsklima | T28: PFB (gesamt)
A29: ='PFB-Items'!A134 -> 96. Die Schulleitung spricht mit Begeisterung über das, was erreicht werden soll. | C29: ='PFB-Items'!B134 -> 19 | D29: ='PFB-Items'!C134 -> 3.105263158 | E29: ='PFB-Items'!D134 -> 0.2280701754 | F29: ='PFB-Items'!E134 -> 0.9941348468 | G29: ='PFB-Items'!F134 -> 0.05263157895 | H29: ='PFB-Items'!G134 -> 0.2631578947 | I29: ='PFB-Items'!H134 -> 0.2105263158 | J29: ='PFB-Items'!I134 -> 0.4736842105 | L29: I | M29: 5 | N29: PFB (gesamt) | O29: 1 | P29: 96. Die Schulleitung spricht mit Begeisterung über das, was erreicht werden soll. | S29: PFB: Rahmenbedingungen der Kooperation | T29: PFB (gesamt)
S30: PFB: Fachliche und jahrgangsspezifische Kooperation unter Lehrpersonen | T30: PFB (gesamt)
A31: Die Schulleitung übernimmt Verantwortung für die Entwicklung der Schule. | Q31: grau | R31: Die Schulleitung übernimmt Verantwortung für die Entwicklung der Schule. | S31: PFB: Kollektive Selbstwirksamkeit | T31: PFB (gesamt)
S32: PFB: Systematische Schul- und Unterrichtsentwicklung | T32: PFB (gesamt)
C33: =CONCATENATE("Inspizierte Schule ",$I$1,"") -> Inspizierte Schule (5274) | F33: Referenzwert | I33: Effektstärke | S33: PFB: Klassenführung | T33: PFB (gesamt)
A34: PFB: Konstrukt | C34: N | D34: MW | E34: SD | F34: N | G34: MW | H34: SD | I34: D | J34: Effekt | L34: 1 | S34: PFB: Konstruktive Unterstützung | T34: PFB (gesamt)
A35: ="PFB: " & 'Effektstärken PuP'!A15 -> PFB: Aktive Führung | C35: ='Effektstärken PuP'!C15 -> 23 | D35: ='Effektstärken PuP'!D15 -> 3.268115942 | E35: ='Effektstärken PuP'!E15 -> 0.4043298809 | F35: ='Effektstärken PuP'!F15 -> 349 | G35: ='Effektstärken PuP'!G15 -> 3.410438 | H35: ='Effektstärken PuP'!H15 -> 0.5304029 | I35: ='Effektstärken PuP'!I15 -> -0.3017866304 | J35: ='Effektstärken PuP'!J15 -> - | L35: K | M35: 1 | N35: PFB (gesamt) | O35: 1 | S35: PFB: Potenzial zur kognitiven Aktivierung | T35: PFB (gesamt)
S36: PFB: Unterstützung bei beruflicher Orientierung | T36: PFB (gesamt)
A37: =A35 -> PFB: Aktive Führung | C37: N | D37: MW | E37: SE | F37: SD | G37: trifft nicht zu | H37: trifft eher nicht zu | I37: trifft eher zu | J37: trifft voll zu | L37: 5 | P37: PFB: Aktive Führung | S37: PFB: Arbeitszufriedenheit | T37: PFB (gesamt)
A38: ='PFB-Items'!A126 -> 88. Die Schulleitung trifft schnell und ohne zu zögern Entscheidungen. | C38: ='PFB-Items'!B126 -> 20 | D38: ='PFB-Items'!C126 -> 3.2 | E38: ='PFB-Items'!D126 -> 0.1376494403 | F38: ='PFB-Items'!E126 -> 0.6155870113 | G38: ='PFB-Items'!F126 -> 0 | H38: ='PFB-Items'!G126 -> 0.1 | I38: ='PFB-Items'!H126 -> 0.6 | J38: ='PFB-Items'!I126 -> 0.3 | L38: I | M38: 5 | N38: PFB (gesamt) | O38: 1 | P38: 88. Die Schulleitung trifft schnell und ohne zu zögern Entscheidungen. | S38: PFB: Arbeitszufriedenheit (Nur Lehrpersonen) | T38: PFB (nur PTF)
A39: ='PFB-Items'!A129 -> 91. Die Schulleitung klärt wichtige Fragen sofort. | C39: ='PFB-Items'!B129 -> 23 | D39: ='PFB-Items'!C129 -> 3.47826087 | E39: ='PFB-Items'!D129 -> 0.1236718407 | F39: ='PFB-Items'!E129 -> 0.5931093121 | G39: ='PFB-Items'!F129 -> 0 | H39: ='PFB-Items'!G129 -> 0.04347826087 | I39: ='PFB-Items'!H129 -> 0.4347826087 | J39: ='PFB-Items'!I129 -> 0.5217391304 | L39: I | M39: 5 | N39: PFB (gesamt) | O39: 1 | P39: 91. Die Schulleitung klärt wichtige Fragen sofort. | S39: PFB: Arbeitszufriedenheit (Nur PTF) | T39: PFB (nur PTF)
A40: ='PFB-Items'!A131 -> 93. Die Schulleitung ist immer da, wenn sie gebraucht wird. | C40: ='PFB-Items'!B131 -> 22 | D40: ='PFB-Items'!C131 -> 3.136363636 | E40: ='PFB-Items'!D131 -> 0.1194405165 | F40: ='PFB-Items'!E131 -> 0.5602256812 | G40: ='PFB-Items'!F131 -> 0 | H40: ='PFB-Items'!G131 -> 0.09090909091 | I40: ='PFB-Items'!H131 -> 0.6818181818 | J40: ='PFB-Items'!I131 -> 0.2272727273 | L40: I | M40: 5 | N40: PFB (gesamt) | O40: 1 | P40: 93. Die Schulleitung ist immer da, wenn sie gebraucht wird. | S40: PFB: Mitarbeiterbindung | T40: PFB (gesamt)
S41: PFB: Mitarbeiterbindung (Nur Lehrpersonen) | T41: PFB (nur PTF)
C42: =CONCATENATE("Inspizierte Schule ",$I$1,"") -> Inspizierte Schule (5274) | F42: Referenzwert | I42: Effektstärke | S42: PFB: Mitarbeiterbindung (Nur PTF) | T42: PFB (nur PTF)
A43: PFB: Konstrukt | C43: N | D43: MW | E43: SD | F43: N | G43: MW | H43: SD | I43: D | J43: Effekt | L43: 1 | S43: PFB: Eingebundenheit in die Schulgemeinschaft - PTF der Schule | T43: PFB (nur PTF)
A44: ="PFB: " & 'Effektstärken PuP'!A16 & ", " & 'Effektstärken PuP'!B17 -> PFB: Instruktionale Führung, Supervision | C44: ='Effektstärken PuP'!C17 -> 21 | D44: ='Effektstärken PuP'!D17 -> 2.023809524 | E44: ='Effektstärken PuP'!E17 -> 0.5356349148 | F44: ='Effektstärken PuP'!F17 -> 349 | G44: ='Effektstärken PuP'!G17 -> 2.460622 | H44: ='Effektstärken PuP'!H17 -> 0.757856 | I44: ='Effektstärken PuP'!I17 -> -0.6656490152 | J44: ='Effektstärken PuP'!J17 -> -- | L44: K | M44: 1 | N44: PFB (gesamt) | O44: 1
A46: =A44 -> PFB: Instruktionale Führung, Supervision | C46: N | D46: MW | E46: SE | F46: SD | G46: trifft nicht zu | H46: trifft eher nicht zu | I46: trifft eher zu | J46: trifft voll zu | L46: 5 | P46: PFB: Instruktionale Führung, Supervision
A47: ='PFB-Items'!A118 -> 82. Die Schulleitung gibt den Pädagoginnen und Pädagogen Anregungen, wie sie ihren Unterricht oder ihre pädagogische Arbeit verbessern können. | C47: ='PFB-Items'!B118 -> 21 | D47: ='PFB-Items'!C118 -> 2.428571429 | E47: ='PFB-Items'!D118 -> 0.1475422227 | F47: ='PFB-Items'!E118 -> 0.6761234038 | G47: ='PFB-Items'!F118 -> 0.04761904762 | H47: ='PFB-Items'!G118 -> 0.5238095238 | I47: ='PFB-Items'!H118 -> 0.380952381 | J47: ='PFB-Items'!I118 -> 0.04761904762 | L47: I | M47: 5 | N47: PFB (gesamt) | O47: 1 | P47: 82. Die Schulleitung gibt den Pädagoginnen und Pädagogen Anregungen, wie sie ihren Unterricht oder ihre pädagogische Arbeit verbessern können.
A48: ='PFB-Items'!A119 -> 83. Die Schulleitung hospitiert im Unterricht. | C48: ='PFB-Items'!B119 -> 18 | D48: ='PFB-Items'!C119 -> 1.5 | E48: ='PFB-Items'!D119 -> 0.145745772 | F48: ='PFB-Items'!E119 -> 0.6183469424 | G48: ='PFB-Items'!F119 -> 0.5555555556 | H48: ='PFB-Items'!G119 -> 0.3888888889 | I48: ='PFB-Items'!H119 -> 0.05555555556 | J48: ='PFB-Items'!I119 -> 0 | L48: I | M48: 5 | N48: PFB (gesamt) | O48: 1 | P48: 83. Die Schulleitung hospitiert im Unterricht.
A50: Die Schulleitung sorgt für eine zielführende Aufgabenverteilung von Leitungs- und Funktionsaufgaben. | Q50: grau | R50: Die Schulleitung sorgt für eine zielführende Aufgabenverteilung von Leitungs- und Funktionsaufgaben.
C52: =CONCATENATE("Inspizierte Schule ",$I$1,"") -> Inspizierte Schule (5274) | F52: Referenzwert | I52: Effektstärke
A53: PFB: Konstrukt | C53: N | D53: MW | E53: SD | F53: N | G53: MW | H53: SD | I53: D | J53: Effekt | L53: 1
A54: ="PFB: " & 'Effektstärken PuP'!A20 & ", " & 'Effektstärken PuP'!B21 -> PFB: Partizipative Führung, Delegation von Führung | C54: ='Effektstärken PuP'!C21 -> 23 | D54: ='Effektstärken PuP'!D21 -> 3.27173913 | E54: ='Effektstärken PuP'!E21 -> 0.577469112 | F54: ='Effektstärken PuP'!F21 -> 349 | G54: ='Effektstärken PuP'!G21 -> 3.43699 | H54: ='Effektstärken PuP'!H21 -> 0.5914277 | I54: ='Effektstärken PuP'!I21 -> -0.2827265614 | J54: ='Effektstärken PuP'!J21 -> - | L54: K | M54: 1 | N54: PFB (gesamt) | O54: 1
A56: =A54 -> PFB: Partizipative Führung, Delegation von Führung | C56: N | D56: MW | E56: SE | F56: SD | G56: trifft nicht zu | H56: trifft eher nicht zu | I56: trifft eher zu | J56: trifft voll zu | L56: 5 | P56: PFB: Partizipative Führung, Delegation von Führung
A57: ='PFB-Items'!A107 -> 73. Die Schulleitung behält den Überblick über die Arbeit der verschiedenen Funktionsgruppen. | C57: ='PFB-Items'!B107 -> 21 | D57: ='PFB-Items'!C107 -> 3.428571429 | E57: ='PFB-Items'!D107 -> 0.1304101327 | F57: ='PFB-Items'!E107 -> 0.5976143047 | G57: ='PFB-Items'!F107 -> 0 | H57: ='PFB-Items'!G107 -> 0.04761904762 | I57: ='PFB-Items'!H107 -> 0.4761904762 | J57: ='PFB-Items'!I107 -> 0.4761904762 | L57: I | M57: 5 | N57: PFB (gesamt) | O57: 1 | P57: 73. Die Schulleitung behält den Überblick über die Arbeit der verschiedenen Funktionsgruppen.
A58: ='PFB-Items'!A108 -> 74. Der Schulleitung gelingt es, die Arbeit von Funktionsgruppen oder Mitgliedern des Kollegiums strukturiert zusammenzuführen. | C58: ='PFB-Items'!B108 -> 22 | D58: ='PFB-Items'!C108 -> 3.272727273 | E58: ='PFB-Items'!D108 -> 0.1345477945 | F58: ='PFB-Items'!E108 -> 0.6310850959 | G58: ='PFB-Items'!F108 -> 0 | H58: ='PFB-Items'!G108 -> 0.09090909091 | I58: ='PFB-Items'!H108 -> 0.5454545455 | J58: ='PFB-Items'!I108 -> 0.3636363636 | L58: I | M58: 5 | N58: PFB (gesamt) | O58: 1 | P58: 74. Der Schulleitung gelingt es, die Arbeit von Funktionsgruppen oder Mitgliedern des Kollegiums strukturiert zusammenzuführen.
A59: ='PFB-Items'!A109 -> 75. Die Schulleitung beteiligt das Kollegium an der Erarbeitung der Fortbildungsplanung für das Schuljahr. | C59: ='PFB-Items'!B109 -> 20 | D59: ='PFB-Items'!C109 -> 3.25 | E59: ='PFB-Items'!D109 -> 0.1758438302 | F59: ='PFB-Items'!E109 -> 0.7863975157 | G59: ='PFB-Items'!F109 -> 0.05 | H59: ='PFB-Items'!G109 -> 0.05 | I59: ='PFB-Items'!H109 -> 0.5 | J59: ='PFB-Items'!I109 -> 0.4 | L59: I | M59: 5 | N59: PFB (gesamt) | O59: 1 | P59: 75. Die Schulleitung beteiligt das Kollegium an der Erarbeitung der Fortbildungsplanung für das Schuljahr.
A60: ='PFB-Items'!A110 -> 76. Die Schulleitung macht die Zuständigkeiten im Kollegium transparent. | C60: ='PFB-Items'!B110 -> 23 | D60: ='PFB-Items'!C110 -> 3.217391304 | E60: ='PFB-Items'!D110 -> 0.1250536919 | F60: ='PFB-Items'!E110 -> 0.5997364375 | G60: ='PFB-Items'!F110 -> 0 | H60: ='PFB-Items'!G110 -> 0.08695652174 | I60: ='PFB-Items'!H110 -> 0.6086956522 | J60: ='PFB-Items'!I110 -> 0.3043478261 | L60: I | M60: 5 | N60: PFB (gesamt) | O60: 1 | P60: 76. Die Schulleitung macht die Zuständigkeiten im Kollegium transparent.
C62: =CONCATENATE("Inspizierte Schule ",$I$1,"") -> Inspizierte Schule (5274) | F62: Referenzwert | I62: Effektstärke
A63: PFB: Konstrukt | C63: N | D63: MW | E63: SD | F63: N | G63: MW | H63: SD | I63: D | J63: Effekt | L63: 1
A64: ="PFB: " & 'Effektstärken PuP'!A14 -> PFB: Transaktionale Führung | C64: ='Effektstärken PuP'!C14 -> 21 | D64: ='Effektstärken PuP'!D14 -> 3.150793651 | E64: ='Effektstärken PuP'!E14 -> 0.6747525512 | F64: ='Effektstärken PuP'!F14 -> 349 | G64: ='Effektstärken PuP'!G14 -> 3.22557 | H64: ='Effektstärken PuP'!H14 -> 0.6193193 | I64: ='Effektstärken PuP'!I14 -> -0.1154616539 | J64: ='Effektstärken PuP'!J14 -> Ø | L64: K | M64: 1 | N64: PFB (gesamt) | O64: 1
A66: =A64 -> PFB: Transaktionale Führung | C66: N | D66: MW | E66: SE | F66: SD | G66: trifft nicht zu | H66: trifft eher nicht zu | I66: trifft eher zu | J66: trifft voll zu | L66: 5 | P66: PFB: Transaktionale Führung
A67: ='PFB-Items'!A130 -> 92. Die Schulleitung zeigt Zufriedenheit, wenn andere die Erwartungen erfüllen. | C67: ='PFB-Items'!B130 -> 18 | D67: ='PFB-Items'!C130 -> 3.388888889 | E67: ='PFB-Items'!D130 -> 0.2003084042 | F67: ='PFB-Items'!E130 -> 0.8498365856 | G67: ='PFB-Items'!F130 -> 0.05555555556 | H67: ='PFB-Items'!G130 -> 0.05555555556 | I67: ='PFB-Items'!H130 -> 0.3333333333 | J67: ='PFB-Items'!I130 -> 0.5555555556 | L67: I | M67: 5 | N67: PFB (gesamt) | O67: 1 | P67: 92. Die Schulleitung zeigt Zufriedenheit, wenn andere die Erwartungen erfüllen.
A68: ='PFB-Items'!A133 -> 95. Die Schulleitung macht deutlich, wer für bestimmte Leistungen verantwortlich ist. | C68: ='PFB-Items'!B133 -> 19 | D68: ='PFB-Items'!C133 -> 2.842105263 | E68: ='PFB-Items'!D133 -> 0.1578947368 | F68: ='PFB-Items'!E133 -> 0.6882472016 | G68: ='PFB-Items'!F133 -> 0 | H68: ='PFB-Items'!G133 -> 0.3157894737 | I68: ='PFB-Items'!H133 -> 0.5263157895 | J68: ='PFB-Items'!I133 -> 0.1578947368 | L68: I | M68: 5 | N68: PFB (gesamt) | O68: 1 | P68: 95. Die Schulleitung macht deutlich, wer für bestimmte Leistungen verantwortlich ist.
A69: ='PFB-Items'!A135 -> 97. Die Schulleitung spricht klar aus, was man erwarten kann, wenn die gesteckten Ziele erreicht worden sind. | C69: ='PFB-Items'!B135 -> 18 | D69: ='PFB-Items'!C135 -> 3.055555556 | E69: ='PFB-Items'!D135 -> 0.1891194287 | F69: ='PFB-Items'!E135 -> 0.802365783 | G69: ='PFB-Items'!F135 -> 0.05555555556 | H69: ='PFB-Items'!G135 -> 0.1111111111 | I69: ='PFB-Items'!H135 -> 0.5555555556 | J69: ='PFB-Items'!I135 -> 0.2777777778 | L69: I | M69: 5 | N69: PFB (gesamt) | O69: 1 | P69: 97. Die Schulleitung spricht klar aus, was man erwarten kann, wenn die gesteckten Ziele erreicht worden sind.
C71: =CONCATENATE("Inspizierte Schule ",$I$1,"") -> Inspizierte Schule (5274) | F71: Referenzwert | I71: Effektstärke
A72: PFB: Konstrukt | C72: N | D72: MW | E72: SD | F72: N | G72: MW | H72: SD | I72: D | J72: Effekt | L72: 1
A73: ="PFB: " & 'Effektstärken PuP'!A20 & ", " & 'Effektstärken PuP'!B22 -> PFB: Partizipative Führung, Distribution von Führung | C73: ='Effektstärken PuP'!C22 -> 23 | D73: ='Effektstärken PuP'!D22 -> 3.31884058 | E73: ='Effektstärken PuP'!E22 -> 0.5700058556 | F73: ='Effektstärken PuP'!F22 -> 349 | G73: ='Effektstärken PuP'!G22 -> 3.47851 | H73: ='Effektstärken PuP'!H22 -> 0.5633077 | I73: ='Effektstärken PuP'!I22 -> -0.2817695612 | J73: ='Effektstärken PuP'!J22 -> - | L73: K | M73: 1 | N73: PFB (gesamt) | O73: 1
A75: =A73 -> PFB: Partizipative Führung, Distribution von Führung | C75: N | D75: MW | E75: SE | F75: SD | G75: trifft nicht zu | H75: trifft eher nicht zu | I75: trifft eher zu | J75: trifft voll zu | L75: 5 | P75: PFB: Partizipative Führung, Distribution von Führung
A76: ='PFB-Items'!A103 -> 69. Unsere Schulleitung agiert als gut funktionierendes Leitungsteam. | C76: ='PFB-Items'!B103 -> 23 | D76: ='PFB-Items'!C103 -> 3.304347826 | E76: ='PFB-Items'!D103 -> 0.132396318 | F76: ='PFB-Items'!E103 -> 0.6349504353 | G76: ='PFB-Items'!F103 -> 0 | H76: ='PFB-Items'!G103 -> 0.08695652174 | I76: ='PFB-Items'!H103 -> 0.5217391304 | J76: ='PFB-Items'!I103 -> 0.3913043478 | L76: I | M76: 5 | N76: PFB (gesamt) | O76: 1 | P76: 69. Unsere Schulleitung agiert als gut funktionierendes Leitungsteam.
A77: ='PFB-Items'!A104 -> 70. Bei der Weiterentwicklung unserer Schule ziehen alle Mitglieder der Schulleitung an einem Strang. | C77: ='PFB-Items'!B104 -> 21 | D77: ='PFB-Items'!C104 -> 3.476190476 | E77: ='PFB-Items'!D104 -> 0.1312766548 | F77: ='PFB-Items'!E104 -> 0.6015852075 | G77: ='PFB-Items'!F104 -> 0 | H77: ='PFB-Items'!G104 -> 0.04761904762 | I77: ='PFB-Items'!H104 -> 0.4285714286 | J77: ='PFB-Items'!I104 -> 0.5238095238 | L77: I | M77: 5 | N77: PFB (gesamt) | O77: 1 | P77: 70. Bei der Weiterentwicklung unserer Schule ziehen alle Mitglieder der Schulleitung an einem Strang.
A78: ='PFB-Items'!A105 -> 71. Es ist klar, wie die Aufgaben innerhalb der Schulleitung an unserer Schule verteilt sind. | C78: ='PFB-Items'!B105 -> 22 | D78: ='PFB-Items'!C105 -> 3.227272727 | E78: ='PFB-Items'!D105 -> 0.1461159206 | F78: ='PFB-Items'!E105 -> 0.6853444168 | G78: ='PFB-Items'!F105 -> 0 | H78: ='PFB-Items'!G105 -> 0.1363636364 | I78: ='PFB-Items'!H105 -> 0.5 | J78: ='PFB-Items'!I105 -> 0.3636363636 | L78: I | M78: 5 | N78: PFB (gesamt) | O78: 1 | P78: 71. Es ist klar, wie die Aufgaben innerhalb der Schulleitung an unserer Schule verteilt sind.
A79: ='PFB-Items'!A106 -> 72. Es ist klar, welche Entscheidungsspielräume die Mitglieder der Schulleitung an unserer Schule haben. | C79: ='PFB-Items'!B106 -> 20 | D79: ='PFB-Items'!C106 -> 3.35 | E79: ='PFB-Items'!D106 -> 0.1666228012 | F79: ='PFB-Items'!E106 -> 0.7451598204 | G79: ='PFB-Items'!F106 -> 0 | H79: ='PFB-Items'!G106 -> 0.15 | I79: ='PFB-Items'!H106 -> 0.35 | J79: ='PFB-Items'!I106 -> 0.5 | L79: I | M79: 5 | N79: PFB (gesamt) | O79: 1 | P79: 72. Es ist klar, welche Entscheidungsspielräume die Mitglieder der Schulleitung an unserer Schule haben.
A81: Die Schulleitung sorgt für ein positives Schulklima. | L81: =IF(A81="","", IF(A81="PFB: Konstrukt",1,IF(A81="SFB: Konstrukt",2,IF(A81="EFB: Konstrukt",3, IF(OR(A80="PFB: Konstrukt",A80="SFB: Konstrukt",A80="EFB: Konstrukt"),"K", IF(LEFT(A81,3)="PFB",5,IF(LEFT(A81,3)="SFB",6,IF(LEFT(A81,3)="EFB",7, IF(OR(LEFT(A81,1)="0", LEFT(A81,1)="1", LEFT(A81,1)="2", LEFT(A81,1)="3", LEFT(A81,1)="4", LEFT(A81,1)="5", LEFT(A81,1)="6", LEFT(A81,1)="7", LEFT(A81,1)="8", LEFT(A81,1)="9"),"I",IF(A80="","","B")))))))))) ->  | M81: =IF(L81="K",L80,IF(L81="I",IF(L80="B",L79,IF(AND(L80>=1,L80<=8),L80,M80)),"")) ->  | N81: =IF(M81="","", IF(OR(M81=1,M81=5),IF(M80=5,N80,IF(L81="K",VLOOKUP(A81,$S$14:$T$43,2,0),IF(L81="I",IF(L80="B",VLOOKUP(A77,$S$14:$T$43,2,0),VLOOKUP(A78,$S$14:$T$43,2,0)),"Fehler"))), IF(OR(M81=2,M81=6),"SFB", IF(OR(M81=3,M81=7),"EFB","")))) ->  | O81: =IF(OR(N81=0,N81=""),"", IF(ISERROR(VLOOKUP(N81,$A$8:$H$11,7,0)),"Fehler", IF(OR(VLOOKUP(N81,$A$8:$H$11,7,0)<=0.2,VLOOKUP(N81,$A$8:$H$11,4,0)="<=10"),4,IF(VLOOKUP(N81,$A$8:$H$11,7,0)>=0.5,1,IF(AND(VLOOKUP(N81,$A$8:$H$11,7,0)>0.2,VLOOKUP(N81,$A$8:$H$11,7,0)<0.5),2,"Fehler"))))) ->  | P81: =IF(OR(LEFT(A81,1)="0",LEFT(A81,1)="1",LEFT(A81,1)="2",LEFT(A81,1)="3",LEFT(A81,1)="4",LEFT(A81,1)="5",LEFT(A81,1)="6",LEFT(A81,1)="7",LEFT(A81,1)="8",LEFT(A81,1)="9"), A81 &" ",IF(OR(L81=5,L81=6,L81=7,L81=8,L81="B"),A81,"")) ->  | Q81: =IF(AND(L81="",A81<>""),IF(RIGHT(A81,1)=".","grau",IF(RIGHT(A81,1)=")","rot","blau")),"") -> grau | R81: =IF(Q81<>"",A81,"") -> Die Schulleitung sorgt für ein positives Schulklima.
C83: =CONCATENATE("Inspizierte Schule ",$I$1,"") -> Inspizierte Schule (5274) | F83: Referenzwert | I83: Effektstärke
A84: PFB: Konstrukt | C84: N | D84: MW | E84: SD | F84: N | G84: MW | H84: SD | I84: D | J84: Effekt | L84: 1
A85: ="PFB: " & 'Effektstärken PuP'!A10 & ", " & 'Effektstärken PuP'!B12 -> PFB: Transformationale Führung, Einfluss durch Vorbildlichkeit und Glaubwürdigkeit | C85: ='Effektstärken PuP'!C12 -> 23 | D85: ='Effektstärken PuP'!D12 -> 3.463768116 | E85: ='Effektstärken PuP'!E12 -> 0.5662131022 | F85: ='Effektstärken PuP'!F12 -> 349 | G85: ='Effektstärken PuP'!G12 -> 3.371701 | H85: ='Effektstärken PuP'!H12 -> 0.6393527 | I85: ='Effektstärken PuP'!I12 -> 0.1524564634 | J85: ='Effektstärken PuP'!J12 -> Ø | L85: K | M85: 1 | N85: PFB (gesamt) | O85: 1
A87: =A85 -> PFB: Transformationale Führung, Einfluss durch Vorbildlichkeit und Glaubwürdigkeit | C87: N | D87: MW | E87: SE | F87: SD | G87: trifft nicht zu | H87: trifft eher nicht zu | I87: trifft eher zu | J87: trifft voll zu | L87: 5 | P87: PFB: Transformationale Führung, Einfluss durch Vorbildlichkeit und Glaubwürdigkeit
A88: ='PFB-Items'!A123 -> 85. Auf mich strahlt die Schulleitung Stärke und Vertrauen aus. | C88: ='PFB-Items'!B123 -> 23 | D88: ='PFB-Items'!C123 -> 3.434782609 | E88: ='PFB-Items'!D123 -> 0.1229750924 | F88: ='PFB-Items'!E123 -> 0.5897678246 | G88: ='PFB-Items'!F123 -> 0 | H88: ='PFB-Items'!G123 -> 0.04347826087 | I88: ='PFB-Items'!H123 -> 0.4782608696 | J88: ='PFB-Items'!I123 -> 0.4782608696 | L88: I | M88: 5 | N88: PFB (gesamt) | O88: 1 | P88: 85. Auf mich strahlt die Schulleitung Stärke und Vertrauen aus.
A89: ='PFB-Items'!A124 -> 86. Ich schätze die Weise, in der die Schulleitung handelt. | C89: ='PFB-Items'!B124 -> 23 | D89: ='PFB-Items'!C124 -> 3.391304348 | E89: ='PFB-Items'!D124 -> 0.1368639501 | F89: ='PFB-Items'!E124 -> 0.6563764465 | G89: ='PFB-Items'!F124 -> 0 | H89: ='PFB-Items'!G124 -> 0.08695652174 | I89: ='PFB-Items'!H124 -> 0.4347826087 | J89: ='PFB-Items'!I124 -> 0.4782608696 | L89: I | M89: 5 | N89: PFB (gesamt) | O89: 1 | P89: 86. Ich schätze die Weise, in der die Schulleitung handelt.
A90: ='PFB-Items'!A137 -> 99. Ich bin froh, mit der Schulleitung zu tun zu haben. | C90: ='PFB-Items'!B137 -> 22 | D90: ='PFB-Items'!C137 -> 3.636363636 | E90: ='PFB-Items'!D137 -> 0.1049727762 | F90: ='PFB-Items'!E137 -> 0.4923659639 | G90: ='PFB-Items'!F137 -> 0 | H90: ='PFB-Items'!G137 -> 0 | I90: ='PFB-Items'!H137 -> 0.3636363636 | J90: ='PFB-Items'!I137 -> 0.6363636364 | L90: I | M90: 5 | N90: PFB (gesamt) | O90: 1 | P90: 99. Ich bin froh, mit der Schulleitung zu tun zu haben.
A92: Die Entwicklung der Schule und des Lernens steuern (QB 1.2) | Q92: rot | R92: Die Entwicklung der Schule und des Lernens steuern (QB 1.2)
A94: Die Schulentwicklung ist nachhaltig im Alltagshandeln der Schule präsent. | Q94: grau | R94: Die Schulentwicklung ist nachhaltig im Alltagshandeln der Schule präsent.
C96: =CONCATENATE("Inspizierte Schule ",$I$1,"") -> Inspizierte Schule (5274) | F96: Referenzwert | I96: Effektstärke
A97: PFB: Konstrukt | C97: N | D97: MW | E97: SD | F97: N | G97: MW | H97: SD | I97: D | J97: Effekt | L97: 1
A98: ="PFB: " & 'Effektstärken PuP'!A16 & ", " & 'Effektstärken PuP'!B18 -> PFB: Instruktionale Führung, Schulziel-Management | C98: ='Effektstärken PuP'!C18 -> 19 | D98: ='Effektstärken PuP'!D18 -> 3.026315789 | E98: ='Effektstärken PuP'!E18 -> 0.6989038108 | F98: ='Effektstärken PuP'!F18 -> 349 | G98: ='Effektstärken PuP'!G18 -> 3.16638 | H98: ='Effektstärken PuP'!H18 -> 0.6178959 | I98: ='Effektstärken PuP'!I18 -> -0.212332853 | J98: ='Effektstärken PuP'!J18 -> - | L98: K | M98: 1 | N98: PFB (gesamt) | O98: 1
A100: =A98 -> PFB: Instruktionale Führung, Schulziel-Management | C100: N | D100: MW | E100: SE | F100: SD | G100: trifft nicht zu | H100: trifft eher nicht zu | I100: trifft eher zu | J100: trifft voll zu | L100: 5 | P100: PFB: Instruktionale Führung, Schulziel-Management
A101: ='PFB-Items'!A113 -> 77. Die Schulleitung stellt sicher, dass die Fortbildungsaktivitäten der Pädagoginnen und Pädagogen auf die curricularen und pädagogischen Ziele der Schule abgestimmt sind. | C101: ='PFB-Items'!B113 -> 16 | D101: ='PFB-Items'!C113 -> 3.0625 | E101: ='PFB-Items'!D113 -> 0.1929756029 | F101: ='PFB-Items'!E113 -> 0.7719024118 | G101: ='PFB-Items'!F113 -> 0.0625 | H101: ='PFB-Items'!G113 -> 0.0625 | I101: ='PFB-Items'!H113 -> 0.625 | J101: ='PFB-Items'!I113 -> 0.25 | L101: I | M101: 5 | N101: PFB (gesamt) | O101: 1 | P101: 77. Die Schulleitung stellt sicher, dass die Fortbildungsaktivitäten der Pädagoginnen und Pädagogen auf die curricularen und pädagogischen Ziele der Schule abgestimmt sind.
A102: ='PFB-Items'!A114 -> 78. Die Schulleitung sorgt für Klarheit bezüglich der internen Verantwortung für die Entwicklung des schulinternen Curriculums. | C102: ='PFB-Items'!B114 -> 17 | D102: ='PFB-Items'!C114 -> 3.176470588 | E102: ='PFB-Items'!D114 -> 0.1962009421 | F102: ='PFB-Items'!E114 -> 0.8089572082 | G102: ='PFB-Items'!F114 -> 0.05882352941 | H102: ='PFB-Items'!G114 -> 0.05882352941 | I102: ='PFB-Items'!H114 -> 0.5294117647 | J102: ='PFB-Items'!I114 -> 0.3529411765 | L102: I | M102: 5 | N102: PFB (gesamt) | O102: 1 | P102: 78. Die Schulleitung sorgt für Klarheit bezüglich der internen Verantwortung für die Entwicklung des schulinternen Curriculums.
A103: ='PFB-Items'!A117 -> 81. Die Schulleitung stellt sicher, dass die Arbeit der Pädagoginnen und Pädagogen mit den curricularen und pädagogischen Zielen der Schule übereinstimmt. | C103: ='PFB-Items'!B117 -> 19 | D103: ='PFB-Items'!C117 -> 3 | E103: ='PFB-Items'!D117 -> 0.1529438226 | F103: ='PFB-Items'!E117 -> 0.6666666667 | G103: ='PFB-Items'!F117 -> 0 | H103: ='PFB-Items'!G117 -> 0.2105263158 | I103: ='PFB-Items'!H117 -> 0.5789473684 | J103: ='PFB-Items'!I117 -> 0.2105263158 | L103: I | M103: 5 | N103: PFB (gesamt) | O103: 1 | P103: 81. Die Schulleitung stellt sicher, dass die Arbeit der Pädagoginnen und Pädagogen mit den curricularen und pädagogischen Zielen der Schule übereinstimmt.
C105: =CONCATENATE("Inspizierte Schule ",$I$1,"") -> Inspizierte Schule (5274) | F105: Referenzwert | I105: Effektstärke
A106: PFB: Konstrukt | C106: N | D106: MW | E106: SD | F106: N | G106: MW | H106: SD | I106: D | J106: Effekt | L106: 1
A107: ="PFB: " & 'Effektstärken PuP'!A23 -> PFB: Positives Innovationsklima | C107: ='Effektstärken PuP'!C23 -> 22 | D107: ='Effektstärken PuP'!D23 -> 3.09469697 | E107: ='Effektstärken PuP'!E23 -> 0.3603124145 | F107: ='Effektstärken PuP'!F23 -> 349 | G107: ='Effektstärken PuP'!G23 -> 3.154196 | H107: ='Effektstärken PuP'!H23 -> 0.5710708 | I107: ='Effektstärken PuP'!I23 -> -0.1246142633 | J107: ='Effektstärken PuP'!J23 -> Ø | L107: K | M107: 1 | N107: PFB (gesamt) | O107: 1
A109: =A107 -> PFB: Positives Innovationsklima | C109: N | D109: MW | E109: SE | F109: SD | G109: trifft nicht zu | H109: trifft eher nicht zu | I109: trifft eher zu | J109: trifft voll zu | L109: 5 | P109: PFB: Positives Innovationsklima
A110: ='PFB-Items'!A89 -> 59. Gemeinsam denken wir regelmäßig über Veränderungen unserer Schule nach. | C110: ='PFB-Items'!B89 -> 22 | D110: ='PFB-Items'!C89 -> 3.227272727 | E110: ='PFB-Items'!D89 -> 0.1304640101 | F110: ='PFB-Items'!E89 -> 0.611930449 | G110: ='PFB-Items'!F89 -> 0 | H110: ='PFB-Items'!G89 -> 0.09090909091 | I110: ='PFB-Items'!H89 -> 0.5909090909 | J110: ='PFB-Items'!I89 -> 0.3181818182 | L110: I | M110: 5 | N110: PFB (gesamt) | O110: 1 | P110: 59. Gemeinsam denken wir regelmäßig über Veränderungen unserer Schule nach.
A111: ='PFB-Items'!A90 -> 60. Meine Kolleginnen und Kollegen unterstützen mich, wenn ich Innovationen umsetzen möchte. | C111: ='PFB-Items'!B90 -> 20 | D111: ='PFB-Items'!C90 -> 3.2 | E111: ='PFB-Items'!D90 -> 0.09176629355 | F111: ='PFB-Items'!E90 -> 0.4103913408 | G111: ='PFB-Items'!F90 -> 0 | H111: ='PFB-Items'!G90 -> 0 | I111: ='PFB-Items'!H90 -> 0.8 | J111: ='PFB-Items'!I90 -> 0.2 | L111: I | M111: 5 | N111: PFB (gesamt) | O111: 1 | P111: 60. Meine Kolleginnen und Kollegen unterstützen mich, wenn ich Innovationen umsetzen möchte.
A112: ='PFB-Items'!A91 -> 61. Im Allgemeinen herrscht ein innovationsfreudiges Klima innerhalb des Kollegiums. | C112: ='PFB-Items'!B91 -> 22 | D112: ='PFB-Items'!C91 -> 3.136363636 | E112: ='PFB-Items'!D91 -> 0.0748867701 | F112: ='PFB-Items'!E91 -> 0.3512500867 | G112: ='PFB-Items'!F91 -> 0 | H112: ='PFB-Items'!G91 -> 0 | I112: ='PFB-Items'!H91 -> 0.8636363636 | J112: ='PFB-Items'!I91 -> 0.1363636364 | L112: I | M112: 5 | N112: PFB (gesamt) | O112: 1 | P112: 61. Im Allgemeinen herrscht ein innovationsfreudiges Klima innerhalb des Kollegiums.
A113: ='PFB-Items'!A92 -> 62. In die Weiterentwicklung unserer Schule bringen sich alle Kolleginnen und Kollegen ein. | C113: ='PFB-Items'!B92 -> 20 | D113: ='PFB-Items'!C92 -> 2.8 | E113: ='PFB-Items'!D92 -> 0.1716790151 | F113: ='PFB-Items'!E92 -> 0.7677718959 | G113: ='PFB-Items'!F92 -> 0.05 | H113: ='PFB-Items'!G92 -> 0.25 | I113: ='PFB-Items'!H92 -> 0.55 | J113: ='PFB-Items'!I92 -> 0.15 | L113: I | M113: 5 | N113: PFB (gesamt) | O113: 1 | P113: 62. In die Weiterentwicklung unserer Schule bringen sich alle Kolleginnen und Kollegen ein.
A115: Personalentwicklung (QB 1.3) | Q115: rot | R115: Personalentwicklung (QB 1.3)
A117: Die Schulleitung zeigt der einzelnen Pädagogin bzw. dem einzelnen Pädagogen gegenüber Fürsorge. | Q117: grau | R117: Die Schulleitung zeigt der einzelnen Pädagogin bzw. dem einzelnen Pädagogen gegenüber Fürsorge.
C119: =CONCATENATE("Inspizierte Schule ",$I$1,"") -> Inspizierte Schule (5274) | F119: Referenzwert | I119: Effektstärke
A120: PFB: Konstrukt | C120: N | D120: MW | E120: SD | F120: N | G120: MW | H120: SD | I120: D | J120: Effekt | L120: 1
A121: ="PFB: " & 'Effektstärken PuP'!A10 & ", " & 'Effektstärken PuP'!B13 -> PFB: Transformationale Führung, Individuelle Unterstützung und Förderung | C121: ='Effektstärken PuP'!C13 -> 23 | D121: ='Effektstärken PuP'!D13 -> 3.253623188 | E121: ='Effektstärken PuP'!E13 -> 0.6739555429 | F121: ='Effektstärken PuP'!F13 -> 349 | G121: ='Effektstärken PuP'!G13 -> 3.282099 | H121: ='Effektstärken PuP'!H13 -> 0.7157614 | I121: ='Effektstärken PuP'!I13 -> -0.04096220597 | J121: ='Effektstärken PuP'!J13 -> Ø | L121: K | M121: 1 | N121: PFB (gesamt) | O121: 1
A123: =A121 -> PFB: Transformationale Führung, Individuelle Unterstützung und Förderung | C123: N | D123: MW | E123: SE | F123: SD | G123: trifft nicht zu | H123: trifft eher nicht zu | I123: trifft eher zu | J123: trifft voll zu | L123: 5 | P123: PFB: Transformationale Führung, Individuelle Unterstützung und Förderung
A124: ='PFB-Items'!A127 -> 89. Die Schulleitung erkennt meine individuellen Bedürfnisse, Fähigkeiten und Ziele. | C124: ='PFB-Items'!B127 -> 22 | D124: ='PFB-Items'!C127 -> 3.181818182 | E124: ='PFB-Items'!D127 -> 0.169495861 | F124: ='PFB-Items'!E127 -> 0.7950060579 | G124: ='PFB-Items'!F127 -> 0 | H124: ='PFB-Items'!G127 -> 0.2272727273 | I124: ='PFB-Items'!H127 -> 0.3636363636 | J124: ='PFB-Items'!I127 -> 0.4090909091 | L124: I | M124: 5 | N124: PFB (gesamt) | O124: 1 | P124: 89. Die Schulleitung erkennt meine individuellen Bedürfnisse, Fähigkeiten und Ziele.
A125: ='PFB-Items'!A128 -> 90. Die Schulleitung hilft mir, meine Stärken auszubauen. | C125: ='PFB-Items'!B128 -> 23 | D125: ='PFB-Items'!C128 -> 3.130434783 | E125: ='PFB-Items'!D128 -> 0.144795724 | F125: ='PFB-Items'!E128 -> 0.6944158975 | G125: ='PFB-Items'!F128 -> 0 | H125: ='PFB-Items'!G128 -> 0.1739130435 | I125: ='PFB-Items'!H128 -> 0.5217391304 | J125: ='PFB-Items'!I128 -> 0.3043478261 | L125: I | M125: 5 | N125: PFB (gesamt) | O125: 1 | P125: 90. Die Schulleitung hilft mir, meine Stärken auszubauen.
A126: ='PFB-Items'!A136 -> 98. Die Schulleitung berücksichtigt meine Individualität und behandelt mich nicht nur als irgendeine Mitarbeiterin/irgendeinen Mitarbeiter. | C126: ='PFB-Items'!B136 -> 23 | D126: ='PFB-Items'!C136 -> 3.47826087 | E126: ='PFB-Items'!D136 -> 0.1523150108 | F126: ='PFB-Items'!E136 -> 0.7304771303 | G126: ='PFB-Items'!F136 -> 0.04347826087 | H126: ='PFB-Items'!G136 -> 0 | I126: ='PFB-Items'!H136 -> 0.3913043478 | J126: ='PFB-Items'!I136 -> 0.5652173913 | L126: I | M126: 5 | N126: PFB (gesamt) | O126: 1 | P126: 98. Die Schulleitung berücksichtigt meine Individualität und behandelt mich nicht nur als irgendeine Mitarbeiterin/irgendeinen Mitarbeiter.
A128: Die Schulleitung schafft Strukturen für eine gezielte Professionalisierung der einzelnen Pädagoginnen und Pädagogen. | Q128: grau | R128: Die Schulleitung schafft Strukturen für eine gezielte Professionalisierung der einzelnen Pädagoginnen und Pädagogen.
C130: =CONCATENATE("Inspizierte Schule ",$I$1,"") -> Inspizierte Schule (5274) | F130: Referenzwert | I130: Effektstärke
A131: PFB: Konstrukt | C131: N | D131: MW | E131: SD | F131: N | G131: MW | H131: SD | I131: D | J131: Effekt | L131: 1
A132: ="PFB: " & 'Effektstärken PuP'!A16 & ", " & 'Effektstärken PuP'!B19 -> PFB: Instruktionale Führung, Anleitungsmanagement | C132: ='Effektstärken PuP'!C19 -> 23 | D132: ='Effektstärken PuP'!D19 -> 3.166666667 | E132: ='Effektstärken PuP'!E19 -> 0.5527707984 | F132: ='Effektstärken PuP'!F19 -> 349 | G132: ='Effektstärken PuP'!G19 -> 3.15264 | H132: ='Effektstärken PuP'!H19 -> 0.6639345 | I132: ='Effektstärken PuP'!I19 -> 0.02296116741 | J132: ='Effektstärken PuP'!J19 -> Ø | L132: K | M132: 1 | N132: PFB (gesamt) | O132: 1
A134: =A132 -> PFB: Instruktionale Führung, Anleitungsmanagement | C134: N | D134: MW | E134: SE | F134: SD | G134: trifft nicht zu | H134: trifft eher nicht zu | I134: trifft eher zu | J134: trifft voll zu | L134: 5 | P134: PFB: Instruktionale Führung, Anleitungsmanagement
A135: ='PFB-Items'!A115 -> 79. Die Schulleitung stellt sicher, dass Pädagoginnen und Pädagogen über die Möglichkeiten informiert sind, ihr Wissen und ihre Fähigkeiten auf den neuesten Stand zu bringen. | C135: ='PFB-Items'!B115 -> 22 | D135: ='PFB-Items'!C115 -> 3.045454545 | E135: ='PFB-Items'!D115 -> 0.1539842114 | F135: ='PFB-Items'!E115 -> 0.7222499717 | G135: ='PFB-Items'!F115 -> 0.04545454545 | H135: ='PFB-Items'!G115 -> 0.09090909091 | I135: ='PFB-Items'!H115 -> 0.6363636364 | J135: ='PFB-Items'!I115 -> 0.2272727273 | L135: I | M135: 5 | N135: PFB (gesamt) | O135: 1 | P135: 79. Die Schulleitung stellt sicher, dass Pädagoginnen und Pädagogen über die Möglichkeiten informiert sind, ihr Wissen und ihre Fähigkeiten auf den neuesten Stand zu bringen.
A136: ='PFB-Items'!A116 -> 80. Wenn eine Pädagogin/ein Pädagoge Probleme in einer Klasse hat, ergreift die Schulleitung die Initiative, um darüber zu sprechen. | C136: ='PFB-Items'!B116 -> 20 | D136: ='PFB-Items'!C116 -> 3.15 | E136: ='PFB-Items'!D116 -> 0.1817314386 | F136: ='PFB-Items'!E116 -> 0.8127277009 | G136: ='PFB-Items'!F116 -> 0 | H136: ='PFB-Items'!G116 -> 0.25 | I136: ='PFB-Items'!H116 -> 0.35 | J136: ='PFB-Items'!I116 -> 0.4 | L136: I | M136: 5 | N136: PFB (gesamt) | O136: 1 | P136: 80. Wenn eine Pädagogin/ein Pädagoge Probleme in einer Klasse hat, ergreift die Schulleitung die Initiative, um darüber zu sprechen.
A137: ='PFB-Items'!A120 -> 84. Die Schulleitung kümmert sich um Probleme in Bezug auf störendes Verhalten in den Klassen. | C137: ='PFB-Items'!B120 -> 21 | D137: ='PFB-Items'!C120 -> 3.333333333 | E137: ='PFB-Items'!D120 -> 0.1259881577 | F137: ='PFB-Items'!E120 -> 0.5773502692 | G137: ='PFB-Items'!F120 -> 0 | H137: ='PFB-Items'!G120 -> 0.04761904762 | I137: ='PFB-Items'!H120 -> 0.5714285714 | J137: ='PFB-Items'!I120 -> 0.380952381 | L137: I | M137: 5 | N137: PFB (gesamt) | O137: 1 | P137: 84. Die Schulleitung kümmert sich um Probleme in Bezug auf störendes Verhalten in den Klassen.
A139: Konzeptionelle Rahmenbedingungen des Ganztags sichern (QB 1.6) | Q139: rot | R139: Konzeptionelle Rahmenbedingungen des Ganztags sichern (QB 1.6)
A141: Der Ganztag ist konzeptionell gut strukturiert. | Q141: grau | R141: Der Ganztag ist konzeptionell gut strukturiert.
C143: =CONCATENATE("Inspizierte Schule ",$I$1,"") -> Inspizierte Schule (5274) | F143: Referenzwert | I143: Effektstärke
A144: SFB: Konstrukt | C144: N | D144: MW | E144: SD | F144: N | G144: MW | H144: SD | I144: D | J144: Effekt | L144: 2
A145: ="SFB: " & 'Effektstärken SuS'!A10 -> SFB: Gelungene Gestaltung des Ganztags | C145: ='Effektstärken SuS'!C10 -> 39 | D145: ='Effektstärken SuS'!D10 -> 3.433760684 | E145: ='Effektstärken SuS'!E10 -> 0.4467963804 | F145: ='Effektstärken SuS'!F10 -> 1719 | G145: ='Effektstärken SuS'!G10 -> 3.122038 | H145: ='Effektstärken SuS'!H10 -> 0.6051939 | I145: ='Effektstärken SuS'!I10 -> 0.5860284166 | J145: ='Effektstärken SuS'!J10 -> ++ | L145: =IF(A145="","", IF(A145="PFB: Konstrukt",1,IF(A145="SFB: Konstrukt",2,IF(A145="EFB: Konstrukt",3, IF(OR(A144="PFB: Konstrukt",A144="SFB: Konstrukt",A144="EFB: Konstrukt"),"K", IF(LEFT(A145,3)="PFB",5,IF(LEFT(A145,3)="SFB",6,IF(LEFT(A145,3)="EFB",7, IF(OR(LEFT(A145,1)="0", LEFT(A145,1)="1", LEFT(A145,1)="2", LEFT(A145,1)="3", LEFT(A145,1)="4", LEFT(A145,1)="5", LEFT(A145,1)="6", LEFT(A145,1)="7", LEFT(A145,1)="8", LEFT(A145,1)="9"),"I",IF(A144="","","B")))))))))) -> K | M145: =IF(L145="K",L144,IF(L145="I",IF(L144="B",L143,IF(AND(L144>=1,L144<=8),L144,M144)),"")) -> 2 | N145: =IF(M145="","", IF(OR(M145=1,M145=5),IF(M144=5,N144,IF(L145="K",VLOOKUP(A145,$S$14:$T$43,2,0),IF(L145="I",IF(L144="B",VLOOKUP(A141,$S$14:$T$43,2,0),VLOOKUP(A142,$S$14:$T$43,2,0)),"Fehler"))), IF(OR(M145=2,M145=6),"SFB", IF(OR(M145=3,M145=7),"EFB","")))) -> SFB | O145: =IF(OR(N145=0,N145=""),"", IF(ISERROR(VLOOKUP(N145,$A$8:$H$11,7,0)),"Fehler", IF(OR(VLOOKUP(N145,$A$8:$H$11,7,0)<=0.2,VLOOKUP(N145,$A$8:$H$11,4,0)="<=10"),4,IF(VLOOKUP(N145,$A$8:$H$11,7,0)>=0.5,1,IF(AND(VLOOKUP(N145,$A$8:$H$11,7,0)>0.2,VLOOKUP(N145,$A$8:$H$11,7,0)<0.5),2,"Fehler"))))) -> 2 | P145: =IF(OR(LEFT(A145,1)="0",LEFT(A145,1)="1",LEFT(A145,1)="2",LEFT(A145,1)="3",LEFT(A145,1)="4",LEFT(A145,1)="5",LEFT(A145,1)="6",LEFT(A145,1)="7",LEFT(A145,1)="8",LEFT(A145,1)="9"), A145 &" ",IF(OR(L145=5,L145=6,L145=7,L145=8,L145="B"),A145,"")) ->  | Q145: =IF(AND(L145="",A145<>""),IF(RIGHT(A145,1)=".","grau",IF(RIGHT(A145,1)=")","rot","blau")),"") ->  | R145: =IF(Q145<>"",A145,"") -> 
A147: =A145 -> SFB: Gelungene Gestaltung des Ganztags | C147: N | D147: MW | E147: SE | F147: SD | G147: trifft nicht zu | H147: trifft eher nicht zu | I147: trifft eher zu | J147: trifft voll zu | L147: 6 | P147: SFB: Gelungene Gestaltung des Ganztags
A148: ='SFB-Items'!A84 -> 46. Der Ganztag macht mir Spaß. | C148: ='SFB-Items'!B84 -> 39 | D148: ='SFB-Items'!C84 -> 3.820512821 | E148: ='SFB-Items'!D84 -> 0.06225404909 | F148: ='SFB-Items'!E84 -> 0.388776412 | G148: ='SFB-Items'!F84 -> 0 | H148: ='SFB-Items'!G84 -> 0 | I148: ='SFB-Items'!H84 -> 0.1794871795 | J148: ='SFB-Items'!I84 -> 0.8205128205 | L148: I | M148: 6 | N148: SFB | O148: 2 | P148: 46. Der Ganztag macht mir Spaß.
A149: ='SFB-Items'!A85 -> 47. Ich lerne im Ganztag Dinge, die mir im Unterricht helfen. | C149: ='SFB-Items'!B85 -> 38 | D149: ='SFB-Items'!C85 -> 2.526315789 | E149: ='SFB-Items'!D85 -> 0.1837527333 | F149: ='SFB-Items'!E85 -> 1.132727922 | G149: ='SFB-Items'!F85 -> 0.2368421053 | H149: ='SFB-Items'!G85 -> 0.2631578947 | I149: ='SFB-Items'!H85 -> 0.2368421053 | J149: ='SFB-Items'!I85 -> 0.2631578947 | L149: I | M149: 6 | N149: SFB | O149: 2 | P149: 47. Ich lerne im Ganztag Dinge, die mir im Unterricht helfen.
A150: ='SFB-Items'!A86 -> 48. Kinder und Erwachsene gehen im Ganztag freundlich miteinander um. | C150: ='SFB-Items'!B86 -> 38 | D150: ='SFB-Items'!C86 -> 3.710526316 | E150: ='SFB-Items'!D86 -> 0.07455791697 | F150: ='SFB-Items'!E86 -> 0.4596058674 | G150: ='SFB-Items'!F86 -> 0 | H150: ='SFB-Items'!G86 -> 0 | I150: ='SFB-Items'!H86 -> 0.2894736842 | J150: ='SFB-Items'!I86 -> 0.7105263158 | L150: I | M150: 6 | N150: SFB | O150: 2 | P150: 48. Kinder und Erwachsene gehen im Ganztag freundlich miteinander um.
A151: ='SFB-Items'!A87 -> 49. An unserer Schule haben wir am Vormittag und am Nachmittag dieselben Regeln. | C151: ='SFB-Items'!B87 -> 37 | D151: ='SFB-Items'!C87 -> 3.648648649 | E151: ='SFB-Items'!D87 -> 0.1040920721 | F151: ='SFB-Items'!E87 -> 0.6331673562 | G151: ='SFB-Items'!F87 -> 0 | H151: ='SFB-Items'!G87 -> 0.08108108108 | I151: ='SFB-Items'!H87 -> 0.1891891892 | J151: ='SFB-Items'!I87 -> 0.7297297297 | L151: I | M151: 6 | N151: SFB | O151: 2 | P151: 49. An unserer Schule haben wir am Vormittag und am Nachmittag dieselben Regeln.
C153: =CONCATENATE("Inspizierte Schule ",$I$1,"") -> Inspizierte Schule (5274) | F153: Referenzwert | I153: Effektstärke
A154: EFB: Konstrukt | C154: N | D154: MW | E154: SD | F154: N | G154: MW | H154: SD | I154: D | J154: Effekt | L154: 3
A155: ="EFB: " & 'Effektstärken Eltern'!A10 -> EFB: Gelungene Konzeption des Ganztags | C155: ='Effektstärken Eltern'!C10 -> 75 | D155: ='Effektstärken Eltern'!D10 -> 3.085777778 | E155: ='Effektstärken Eltern'!E10 -> 0.7280609678 | F155: ='Effektstärken Eltern'!F10 -> 3347 | G155: ='Effektstärken Eltern'!G10 -> 3.180755 | H155: ='Effektstärken Eltern'!H10 -> 0.6015727 | I155: ='Effektstärken Eltern'!I10 -> -0.1422201613 | J155: ='Effektstärken Eltern'!J10 -> Ø | L155: K | M155: 3 | N155: EFB | O155: 2
A157: =A155 -> EFB: Gelungene Konzeption des Ganztags | C157: N | D157: MW | E157: SE | F157: SD | G157: trifft nicht zu | H157: trifft eher nicht zu | I157: trifft eher zu | J157: trifft voll zu | L157: 7 | P157: EFB: Gelungene Konzeption des Ganztags
A158: ='EFB-Items'!A32 -> 16. Der Ganztagsbetrieb an der Schule ist gut organisiert. | C158: ='EFB-Items'!B32 -> 74 | D158: ='EFB-Items'!C32 -> 3.067567568 | E158: ='EFB-Items'!D32 -> 0.1059696873 | F158: ='EFB-Items'!E32 -> 0.9115857188 | G158: ='EFB-Items'!F32 -> 0.09459459459 | H158: ='EFB-Items'!G32 -> 0.09459459459 | I158: ='EFB-Items'!H32 -> 0.4594594595 | J158: ='EFB-Items'!I32 -> 0.3513513514 | L158: I | M158: 7 | N158: EFB | O158: 2 | P158: 16. Der Ganztagsbetrieb an der Schule ist gut organisiert.
A159: ='EFB-Items'!A33 -> 17. Der Tagesablauf im Ganztagsbetrieb ist abwechslungsreich. | C159: ='EFB-Items'!B33 -> 73 | D159: ='EFB-Items'!C33 -> 3.04109589 | E159: ='EFB-Items'!D33 -> 0.1058386026 | F159: ='EFB-Items'!E33 -> 0.9042854172 | G159: ='EFB-Items'!F33 -> 0.06849315068 | H159: ='EFB-Items'!G33 -> 0.1780821918 | I159: ='EFB-Items'!H33 -> 0.397260274 | J159: ='EFB-Items'!I33 -> 0.3561643836 | L159: I | M159: 7 | N159: EFB | O159: 2 | P159: 17. Der Tagesablauf im Ganztagsbetrieb ist abwechslungsreich.
A160: ='EFB-Items'!A34 -> 18. Der Tagesablauf im Ganztagsbetrieb ist zeitlich sinnvoll gestaltet. | C160: ='EFB-Items'!B34 -> 70 | D160: ='EFB-Items'!C34 -> 3.114285714 | E160: ='EFB-Items'!D34 -> 0.1048371648 | F160: ='EFB-Items'!E34 -> 0.8771306505 | G160: ='EFB-Items'!F34 -> 0.05714285714 | H160: ='EFB-Items'!G34 -> 0.1571428571 | I160: ='EFB-Items'!H34 -> 0.4 | J160: ='EFB-Items'!I34 -> 0.3857142857 | L160: I | M160: 7 | N160: EFB | O160: 2 | P160: 18. Der Tagesablauf im Ganztagsbetrieb ist zeitlich sinnvoll gestaltet.
A161: ='EFB-Items'!A35 -> 19. Über das Angebot des Ganztags wurden wir als Eltern vorab gut informiert. | C161: ='EFB-Items'!B35 -> 71 | D161: ='EFB-Items'!C35 -> 2.873239437 | E161: ='EFB-Items'!D35 -> 0.1219056888 | F161: ='EFB-Items'!E35 -> 1.027195592 | G161: ='EFB-Items'!F35 -> 0.08450704225 | H161: ='EFB-Items'!G35 -> 0.338028169 | I161: ='EFB-Items'!H35 -> 0.1971830986 | J161: ='EFB-Items'!I35 -> 0.3802816901 | L161: I | M161: 7 | N161: EFB | O161: 2 | P161: 19. Über das Angebot des Ganztags wurden wir als Eltern vorab gut informiert.
A162: ='EFB-Items'!A36 -> 20. Es gibt einheitliche Regeln für das soziale Miteinander am Vormittag und Nachmittag. | C162: ='EFB-Items'!B36 -> 65 | D162: ='EFB-Items'!C36 -> 3.261538462 | E162: ='EFB-Items'!D36 -> 0.08846153846 | F162: ='EFB-Items'!E36 -> 0.7131997239 | G162: ='EFB-Items'!F36 -> 0.03076923077 | H162: ='EFB-Items'!G36 -> 0.06153846154 | I162: ='EFB-Items'!H36 -> 0.5230769231 | J162: ='EFB-Items'!I36 -> 0.3846153846 | L162: I | M162: 7 | N162: EFB | O162: 2 | P162: 20. Es gibt einheitliche Regeln für das soziale Miteinander am Vormittag und Nachmittag.
A163: ='EFB-Items'!A37 -> 21. Es findet ein Austausch zwischen den Pädagoginnen und Pädagogen des Ganztagsangebots und des Unterrichts statt. | C163: ='EFB-Items'!B37 -> 51 | D163: ='EFB-Items'!C37 -> 3.37254902 | E163: ='EFB-Items'!D37 -> 0.09685560028 | F163: ='EFB-Items'!E37 -> 0.6916873373 | G163: ='EFB-Items'!F37 -> 0.01960784314 | H163: ='EFB-Items'!G37 -> 0.05882352941 | I163: ='EFB-Items'!H37 -> 0.4509803922 | J163: ='EFB-Items'!I37 -> 0.4705882353 | L163: I | M163: 7 | N163: EFB | O163: 2 | P163: 21. Es findet ein Austausch zwischen den Pädagoginnen und Pädagogen des Ganztagsangebots und des Unterrichts statt.
A165: Die Schulgemeinschaft beteiligen (QB 2.8) | Q165: rot | R165: Die Schulgemeinschaft beteiligen (QB 2.8)
A167: Die Schule beteiligt Schülerinnen und Schüler weitreichend am Schulgeschehen. | Q167: grau | R167: Die Schule beteiligt Schülerinnen und Schüler weitreichend am Schulgeschehen.
A169: ="SFB: " & 'SFB-Konstrukte'!A22 -> SFB: Beteiligungsmöglichkeit an der Schule (Einzelitems) | C169: N | D169: MW | E169: SE | F169: SD | G169: trifft nicht zu | H169: trifft eher nicht zu | I169: trifft eher zu | J169: trifft voll zu | L169: 6 | P169: SFB: Beteiligungsmöglichkeit an der Schule (Einzelitems)
A170: ='SFB-Items'!A20 -> 08. Ich werde nach meiner Meinung gefragt, wenn es etwas zu entscheiden gibt. | B170: An der Schule meines Kindes fühle ich mich willkommen. | C170: ='SFB-Items'!B20 -> 48 | D170: ='SFB-Items'!C20 -> 3.479166667 | E170: ='SFB-Items'!D20 -> 0.111364774 | F170: ='SFB-Items'!E20 -> 0.7715577868 | G170: ='SFB-Items'!F20 -> 0.04166666667 | H170: ='SFB-Items'!G20 -> 0.04166666667 | I170: ='SFB-Items'!H20 -> 0.3125 | J170: ='SFB-Items'!I20 -> 0.6041666667 | L170: I | M170: 6 | N170: SFB | O170: 2 | P170: 08. Ich werde nach meiner Meinung gefragt, wenn es etwas zu entscheiden gibt.
A171: ='SFB-Items'!A21 -> 09. An unserer Schule kann ich vorschlagen, was man besser machen könnte. | B171: An der Schule meines Kindes fühle ich mich willkommen. | C171: ='SFB-Items'!B21 -> 49 | D171: ='SFB-Items'!C21 -> 3.571428571 | E171: ='SFB-Items'!D21 -> 0.1051400103 | F171: ='SFB-Items'!E21 -> 0.7359800722 | G171: ='SFB-Items'!F21 -> 0.02040816327 | H171: ='SFB-Items'!G21 -> 0.08163265306 | I171: ='SFB-Items'!H21 -> 0.2040816327 | J171: ='SFB-Items'!I21 -> 0.693877551 | L171: I | M171: 6 | N171: SFB | O171: 2 | P171: 09. An unserer Schule kann ich vorschlagen, was man besser machen könnte.
A173: Die Schule beteiligt die Erziehungsberechtigten angemessen am Schulgeschehen. | Q173: grau | R173: Die Schule beteiligt die Erziehungsberechtigten angemessen am Schulgeschehen.
C175: =CONCATENATE("Inspizierte Schule ",$I$1,"") -> Inspizierte Schule (5274) | F175: Referenzwert | I175: Effektstärke
A176: EFB: Konstrukt | C176: N | D176: MW | E176: SD | F176: N | G176: MW | H176: SD | I176: D | J176: Effekt | L176: 3
A177: ="EFB: " & 'Effektstärken Eltern'!A11 -> EFB: Beteiligungsmöglichkeit an der Schule | C177: ='Effektstärken Eltern'!C11 -> 88 | D177: ='Effektstärken Eltern'!D11 -> 3.317884199 | E177: ='Effektstärken Eltern'!E11 -> 0.5258808308 | F177: ='Effektstärken Eltern'!F11 -> 3347 | G177: ='Effektstärken Eltern'!G11 -> 3.269575 | H177: ='Effektstärken Eltern'!H11 -> 0.5286926 | I177: ='Effektstärken Eltern'!I11 -> 0.09161813869 | J177: ='Effektstärken Eltern'!J11 -> Ø | L177: K | M177: 3 | N177: EFB | O177: 2
A179: =A177 -> EFB: Beteiligungsmöglichkeit an der Schule | C179: N | D179: MW | E179: SE | F179: SD | G179: trifft nicht zu | H179: trifft eher nicht zu | I179: trifft eher zu | J179: trifft voll zu | L179: 7 | P179: EFB: Beteiligungsmöglichkeit an der Schule
A180: ='EFB-Items'!A40 -> 22. An der Schule meines Kindes fühle ich mich willkommen. | B180: An der Schule meines Kindes fühle ich mich willkommen. | C180: ='EFB-Items'!B40 -> 86 | D180: ='EFB-Items'!C40 -> 3.476744186 | E180: ='EFB-Items'!D40 -> 0.07346559761 | F180: ='EFB-Items'!E40 -> 0.6812919248 | G180: ='EFB-Items'!F40 -> 0.02325581395 | H180: ='EFB-Items'!G40 -> 0.03488372093 | I180: ='EFB-Items'!H40 -> 0.3837209302 | J180: ='EFB-Items'!I40 -> 0.5581395349 | L180: I | M180: 7 | N180: EFB | O180: 2 | P180: 22. An der Schule meines Kindes fühle ich mich willkommen.
A181: ='EFB-Items'!A41 -> 23. Es gibt an der Schule viele Bereiche, in denen sich Eltern aktiv beteiligen können. | B181: An der Schule meines Kindes fühle ich mich willkommen. | C181: ='EFB-Items'!B41 -> 82 | D181: ='EFB-Items'!C41 -> 3.195121951 | E181: ='EFB-Items'!D41 -> 0.08401084011 | F181: ='EFB-Items'!E41 -> 0.760750513 | G181: ='EFB-Items'!F41 -> 0.0243902439 | H181: ='EFB-Items'!G41 -> 0.1341463415 | I181: ='EFB-Items'!H41 -> 0.4634146341 | J181: ='EFB-Items'!I41 -> 0.3780487805 | L181: I | M181: 7 | N181: EFB | O181: 2 | P181: 23. Es gibt an der Schule viele Bereiche, in denen sich Eltern aktiv beteiligen können.
A182: ='EFB-Items'!A42 -> 24. Wir Eltern werden regelmäßig nach Verbesserungsvorschlägen für die Schule gefragt. | B182: An der Schule meines Kindes fühle ich mich willkommen. | C182: ='EFB-Items'!B42 -> 78 | D182: ='EFB-Items'!C42 -> 2.730769231 | E182: ='EFB-Items'!D42 -> 0.1010650525 | F182: ='EFB-Items'!E42 -> 0.8925823753 | G182: ='EFB-Items'!F42 -> 0.1025641026 | H182: ='EFB-Items'!G42 -> 0.2564102564 | I182: ='EFB-Items'!H42 -> 0.4487179487 | J182: ='EFB-Items'!I42 -> 0.1923076923 | L182: I | M182: 7 | N182: EFB | O182: 2 | P182: 24. Wir Eltern werden regelmäßig nach Verbesserungsvorschlägen für die Schule gefragt.
A183: ='EFB-Items'!A43 -> 25. Ich habe den Eindruck, dass Eltern gewürdigt werden, wenn sie sich engagieren. | B183: An der Schule meines Kindes fühle ich mich willkommen. | C183: ='EFB-Items'!B43 -> 77 | D183: ='EFB-Items'!C43 -> 3.233766234 | E183: ='EFB-Items'!D43 -> 0.09407626212 | F183: ='EFB-Items'!E43 -> 0.8255158498 | G183: ='EFB-Items'!F43 -> 0.05194805195 | H183: ='EFB-Items'!G43 -> 0.09090909091 | I183: ='EFB-Items'!H43 -> 0.4285714286 | J183: ='EFB-Items'!I43 -> 0.4285714286 | L183: I | M183: 7 | N183: EFB | O183: 2 | P183: 25. Ich habe den Eindruck, dass Eltern gewürdigt werden, wenn sie sich engagieren.
A184: ='EFB-Items'!A44 -> 26. Die Schule bemüht sich, möglichst viele organisatorische Fragen mit den Eltern abzustimmen. | B184: An der Schule meines Kindes fühle ich mich willkommen. | C184: ='EFB-Items'!B44 -> 83 | D184: ='EFB-Items'!C44 -> 2.903614458 | E184: ='EFB-Items'!D44 -> 0.09484890289 | F184: ='EFB-Items'!E44 -> 0.8641146298 | G184: ='EFB-Items'!F44 -> 0.03614457831 | H184: ='EFB-Items'!G44 -> 0.313253012 | I184: ='EFB-Items'!H44 -> 0.3614457831 | J184: ='EFB-Items'!I44 -> 0.2891566265 | L184: I | M184: 7 | N184: EFB | O184: 2 | P184: 26. Die Schule bemüht sich, möglichst viele organisatorische Fragen mit den Eltern abzustimmen.
A185: ='EFB-Items'!A45 -> 27. Ich kann mit der Klassenleitung sprechen, wenn ich ein Anliegen oder Fragen habe. | B185: An der Schule meines Kindes fühle ich mich willkommen. | C185: ='EFB-Items'!B45 -> 88 | D185: ='EFB-Items'!C45 -> 3.840909091 | E185: ='EFB-Items'!D45 -> 0.04241397846 | F185: ='EFB-Items'!E45 -> 0.397878386 | G185: ='EFB-Items'!F45 -> 0 | H185: ='EFB-Items'!G45 -> 0.01136363636 | I185: ='EFB-Items'!H45 -> 0.1363636364 | J185: ='EFB-Items'!I45 -> 0.8522727273 | L185: I | M185: 7 | N185: EFB | O185: 2 | P185: 27. Ich kann mit der Klassenleitung sprechen, wenn ich ein Anliegen oder Fragen habe.
A186: ='EFB-Items'!A46 -> 28. Ich kann mich an die Schulleitung wenden, wenn ich ein Anliegen oder Fragen habe. | B186: An der Schule meines Kindes fühle ich mich willkommen. | C186: ='EFB-Items'!B46 -> 75 | D186: ='EFB-Items'!C46 -> 3.4 | E186: ='EFB-Items'!D46 -> 0.103975049 | F186: ='EFB-Items'!E46 -> 0.9004503378 | G186: ='EFB-Items'!F46 -> 0.06666666667 | H186: ='EFB-Items'!G46 -> 0.08 | I186: ='EFB-Items'!H46 -> 0.24 | J186: ='EFB-Items'!I46 -> 0.6133333333 | L186: I | M186: 7 | N186: EFB | O186: 2 | P186: 28. Ich kann mich an die Schulleitung wenden, wenn ich ein Anliegen oder Fragen habe.
A187: ='EFB-Items'!A47 -> 29. An der Schule weiß ich, an wen ich mich wenden kann, wenn ich ein Anliegen oder Fragen habe. | B187: An der Schule meines Kindes fühle ich mich willkommen. | C187: ='EFB-Items'!B47 -> 86 | D187: ='EFB-Items'!C47 -> 3.662790698 | E187: ='EFB-Items'!D47 -> 0.0674135513 | F187: ='EFB-Items'!E47 -> 0.6251675562 | G187: ='EFB-Items'!F47 -> 0.01162790698 | H187: ='EFB-Items'!G47 -> 0.04651162791 | I187: ='EFB-Items'!H47 -> 0.2093023256 | J187: ='EFB-Items'!I47 -> 0.7325581395 | L187: I | M187: 7 | N187: EFB | O187: 2 | P187: 29. An der Schule weiß ich, an wen ich mich wenden kann, wenn ich ein Anliegen oder Fragen habe.
C189: =CONCATENATE("Inspizierte Schule ",$I$1,"") -> Inspizierte Schule (5274) | F189: Referenzwert | I189: Effektstärke
A190: EFB: Konstrukt | C190: N | D190: MW | E190: SD | F190: N | G190: MW | H190: SD | I190: D | J190: Effekt | L190: 3
A191: ="EFB: " & 'Effektstärken Eltern'!A12 -> EFB: Informationen über die Schulentwicklung | C191: ='Effektstärken Eltern'!C12 -> 87 | D191: ='Effektstärken Eltern'!D12 -> 3.262452107 | E191: ='Effektstärken Eltern'!E12 -> 0.7464957687 | F191: ='Effektstärken Eltern'!F12 -> 3347 | G191: ='Effektstärken Eltern'!G12 -> 3.115109 | H191: ='Effektstärken Eltern'!H12 -> 0.7071534 | I191: ='Effektstärken Eltern'!I12 -> 0.2026474838 | J191: ='Effektstärken Eltern'!J12 -> Ø | L191: K | M191: 3 | N191: EFB | O191: 2
A193: =A191 -> EFB: Informationen über die Schulentwicklung | C193: N | D193: MW | E193: SE | F193: SD | G193: trifft nicht zu | H193: trifft eher nicht zu | I193: trifft eher zu | J193: trifft voll zu | L193: 7 | P193: EFB: Informationen über die Schulentwicklung
A194: Ich fühle mich durch die Schule gut informiert... | L194: B | P194: Ich fühle mich durch die Schule gut informiert...
A195: ='EFB-Items'!A50 -> 30. ...über die schulische Arbeit (bspw. Projekte, Schwerpunkte der schulischen Arbeit, besondere Bildungsangebote). | B195: Die Schule informiert mich regelmäßig über die schulische Arbeit (bspw. Projekte, Schwerpunkte der schulischen Arbeit, besondere Bildungsangebote). | C195: ='EFB-Items'!B50 -> 86 | D195: ='EFB-Items'!C50 -> 3.302325581 | E195: ='EFB-Items'!D50 -> 0.09070293576 | F195: ='EFB-Items'!E50 -> 0.8411444227 | G195: ='EFB-Items'!F50 -> 0.04651162791 | H195: ='EFB-Items'!G50 -> 0.1046511628 | I195: ='EFB-Items'!H50 -> 0.3488372093 | J195: ='EFB-Items'!I50 -> 0.5 | L195: I | M195: 7 | N195: EFB | O195: 2 | P195: 30. ...über die schulische Arbeit (bspw. Projekte, Schwerpunkte der schulischen Arbeit, besondere Bildungsangebote).
A196: ='EFB-Items'!A51 -> 31. ...über aktuelle Entwicklungen und Pläne der Schule. | B196: Die Schule informiert mich regelmäßig über die schulische Arbeit (bspw. Projekte, Schwerpunkte der schulischen Arbeit, besondere Bildungsangebote). | C196: ='EFB-Items'!B51 -> 85 | D196: ='EFB-Items'!C51 -> 3.4 | E196: ='EFB-Items'!D51 -> 0.08566758765 | F196: ='EFB-Items'!E51 -> 0.7898161329 | G196: ='EFB-Items'!F51 -> 0.04705882353 | H196: ='EFB-Items'!G51 -> 0.04705882353 | I196: ='EFB-Items'!H51 -> 0.3647058824 | J196: ='EFB-Items'!I51 -> 0.5411764706 | L196: I | M196: 7 | N196: EFB | O196: 2 | P196: 31. ...über aktuelle Entwicklungen und Pläne der Schule.
A197: ='EFB-Items'!A52 -> 32. ...über meine Möglichkeiten, mich an der Schulentwicklung zu beteiligen. | B197: Die Schule informiert mich regelmäßig über die schulische Arbeit (bspw. Projekte, Schwerpunkte der schulischen Arbeit, besondere Bildungsangebote). | C197: ='EFB-Items'!B52 -> 81 | D197: ='EFB-Items'!C52 -> 3.172839506 | E197: ='EFB-Items'!D52 -> 0.08921835376 | F197: ='EFB-Items'!E52 -> 0.8029651838 | G197: ='EFB-Items'!F52 -> 0.02469135802 | H197: ='EFB-Items'!G52 -> 0.1728395062 | I197: ='EFB-Items'!H52 -> 0.4074074074 | J197: ='EFB-Items'!I52 -> 0.3950617284 | L197: I | M197: 7 | N197: EFB | O197: 2 | P197: 32. ...über meine Möglichkeiten, mich an der Schulentwicklung zu beteiligen.
A199: UNTERRICHTSENTWICKLUNG | Q199: blau | R199: UNTERRICHTSENTWICKLUNG
A201: Systematische und verbindliche Zusammenarbeit (QB 2.5) | Q201: rot | R201: Systematische und verbindliche Zusammenarbeit (QB 2.5)
A203: Das Kollegium gestaltet die Entwicklung der Lehr- und Lernprozesse gemeinsam. | Q203: grau | R203: Das Kollegium gestaltet die Entwicklung der Lehr- und Lernprozesse gemeinsam.
C205: =CONCATENATE("Inspizierte Schule ",$I$1,"") -> Inspizierte Schule (5274) | F205: Referenzwert | I205: Effektstärke
A206: PFB: Konstrukt | C206: N | D206: MW | E206: SD | F206: N | G206: MW | H206: SD | I206: D | J206: Effekt | L206: 1
A207: ="PFB: " & 'Effektstärken PuP'!A24 -> PFB: Schülerbezogener Austausch | C207: ='Effektstärken PuP'!C24 -> 22 | D207: ='Effektstärken PuP'!D24 -> 3.621212121 | E207: ='Effektstärken PuP'!E24 -> 0.4965005 | F207: ='Effektstärken PuP'!F24 -> 349 | G207: ='Effektstärken PuP'!G24 -> 3.610602 | H207: ='Effektstärken PuP'!H24 -> 0.4783221 | I207: ='Effektstärken PuP'!I24 -> 0.021764528 | J207: ='Effektstärken PuP'!J24 -> Ø | L207: K | M207: 1 | N207: PFB (gesamt) | O207: 1
A209: =A207 -> PFB: Schülerbezogener Austausch | C209: N | D209: MW | E209: SE | F209: SD | G209: trifft nicht zu | H209: trifft eher nicht zu | I209: trifft eher zu | J209: trifft voll zu | L209: =IF(A209="","", IF(A209="PFB: Konstrukt",1,IF(A209="SFB: Konstrukt",2,IF(A209="EFB: Konstrukt",3, IF(OR(A208="PFB: Konstrukt",A208="SFB: Konstrukt",A208="EFB: Konstrukt"),"K", IF(LEFT(A209,3)="PFB",5,IF(LEFT(A209,3)="SFB",6,IF(LEFT(A209,3)="EFB",7, IF(OR(LEFT(A209,1)="0", LEFT(A209,1)="1", LEFT(A209,1)="2", LEFT(A209,1)="3", LEFT(A209,1)="4", LEFT(A209,1)="5", LEFT(A209,1)="6", LEFT(A209,1)="7", LEFT(A209,1)="8", LEFT(A209,1)="9"),"I",IF(A208="","","B")))))))))) -> 5 | M209: =IF(L209="K",L208,IF(L209="I",IF(L208="B",L207,IF(AND(L208>=1,L208<=8),L208,M208)),"")) ->  | N209: =IF(M209="","", IF(OR(M209=1,M209=5),IF(M208=5,N208,IF(L209="K",VLOOKUP(A209,$S$14:$T$43,2,0),IF(L209="I",IF(L208="B",VLOOKUP(A205,$S$14:$T$43,2,0),VLOOKUP(A206,$S$14:$T$43,2,0)),"Fehler"))), IF(OR(M209=2,M209=6),"SFB", IF(OR(M209=3,M209=7),"EFB","")))) ->  | O209: =IF(OR(N209=0,N209=""),"", IF(ISERROR(VLOOKUP(N209,$A$8:$H$11,7,0)),"Fehler", IF(OR(VLOOKUP(N209,$A$8:$H$11,7,0)<=0.2,VLOOKUP(N209,$A$8:$H$11,4,0)="<=10"),4,IF(VLOOKUP(N209,$A$8:$H$11,7,0)>=0.5,1,IF(AND(VLOOKUP(N209,$A$8:$H$11,7,0)>0.2,VLOOKUP(N209,$A$8:$H$11,7,0)<0.5),2,"Fehler"))))) ->  | P209: =IF(OR(LEFT(A209,1)="0",LEFT(A209,1)="1",LEFT(A209,1)="2",LEFT(A209,1)="3",LEFT(A209,1)="4",LEFT(A209,1)="5",LEFT(A209,1)="6",LEFT(A209,1)="7",LEFT(A209,1)="8",LEFT(A209,1)="9"), A209 &" ",IF(OR(L209=5,L209=6,L209=7,L209=8,L209="B"),A209,"")) -> PFB: Schülerbezogener Austausch | Q209: =IF(AND(L209="",A209<>""),IF(RIGHT(A209,1)=".","grau",IF(RIGHT(A209,1)=")","rot","blau")),"") ->  | R209: =IF(Q209<>"",A209,"") -> 
A210: ='PFB-Items'!A9 -> 01. Ich entwickle mit meinen Kolleginnen und Kollegen bei Schwierigkeiten einzelner Schülerinnen und Schüler eine gemeinsame Lösungsstrategie. | C210: ='PFB-Items'!B9 -> 22 | D210: ='PFB-Items'!C9 -> 3.727272727 | E210: ='PFB-Items'!D9 -> 0.1173631317 | F210: ='PFB-Items'!E9 -> 0.5504818826 | G210: ='PFB-Items'!F9 -> 0 | H210: ='PFB-Items'!G9 -> 0.04545454545 | I210: ='PFB-Items'!H9 -> 0.1818181818 | J210: ='PFB-Items'!I9 -> 0.7727272727 | L210: I | M210: 5 | N210: PFB (gesamt) | O210: 1 | P210: 01. Ich entwickle mit meinen Kolleginnen und Kollegen bei Schwierigkeiten einzelner Schülerinnen und Schüler eine gemeinsame Lösungsstrategie.
A211: ='PFB-Items'!A10 -> 02. Ich reflektiere mit meinen Kolleginnen und Kollegen regelmäßig unsere Erfahrungen bei der Unterstützung einzelner Schülerinnen und Schüler. | C211: ='PFB-Items'!B10 -> 22 | D211: ='PFB-Items'!C10 -> 3.590909091 | E211: ='PFB-Items'!D10 -> 0.1072903353 | F211: ='PFB-Items'!E10 -> 0.5032362797 | G211: ='PFB-Items'!F10 -> 0 | H211: ='PFB-Items'!G10 -> 0 | I211: ='PFB-Items'!H10 -> 0.4090909091 | J211: ='PFB-Items'!I10 -> 0.5909090909 | L211: I | M211: 5 | N211: PFB (gesamt) | O211: 1 | P211: 02. Ich reflektiere mit meinen Kolleginnen und Kollegen regelmäßig unsere Erfahrungen bei der Unterstützung einzelner Schülerinnen und Schüler.
A212: ='PFB-Items'!A11 -> 03. Ich spreche mit Kolleginnen und Kollegen ab, wie wir gemeinsam einzelne Schülerinnen und Schüler fördern können | C212: ='PFB-Items'!B11 -> 22 | D212: ='PFB-Items'!C11 -> 3.545454545 | E212: ='PFB-Items'!D11 -> 0.1270251147 | F212: ='PFB-Items'!E11 -> 0.5958006 | G212: ='PFB-Items'!F11 -> 0 | H212: ='PFB-Items'!G11 -> 0.04545454545 | I212: ='PFB-Items'!H11 -> 0.3636363636 | J212: ='PFB-Items'!I11 -> 0.5909090909 | L212: I | M212: 5 | N212: PFB (gesamt) | O212: 1 | P212: 03. Ich spreche mit Kolleginnen und Kollegen ab, wie wir gemeinsam einzelne Schülerinnen und Schüler fördern können
C214: =CONCATENATE("Inspizierte Schule ",$I$1,"") -> Inspizierte Schule (5274) | F214: Referenzwert | I214: Effektstärke
A215: PFB: Konstrukt | C215: N | D215: MW | E215: SD | F215: N | G215: MW | H215: SD | I215: D | J215: Effekt | L215: 1
A216: ="PFB: " & 'Effektstärken PuP'!A25 -> PFB: Synchronisation | C216: ='Effektstärken PuP'!C25 -> 16 | D216: ='Effektstärken PuP'!D25 -> 2.901041667 | E216: ='Effektstärken PuP'!E25 -> 0.67783612 | F216: ='Effektstärken PuP'!F25 -> 349 | G216: ='Effektstärken PuP'!G25 -> 3.272227 | H216: ='Effektstärken PuP'!H25 -> 0.7081244 | I216: ='Effektstärken PuP'!I25 -> -0.53550837 | J216: ='Effektstärken PuP'!J25 -> -- | L216: K | M216: 1 | N216: PFB (gesamt) | O216: 1
A218: =A216 -> PFB: Synchronisation | C218: N | D218: MW | E218: SE | F218: SD | G218: trifft nicht zu | H218: trifft eher nicht zu | I218: trifft eher zu | J218: trifft voll zu | L218: 5 | P218: PFB: Synchronisation
A219: ='PFB-Items'!A14 -> 04. Ich spreche mich mit meinen Kolleginnen und Kollegen regelmäßig über Aufgaben im Unterricht ab. | C219: ='PFB-Items'!B14 -> 16 | D219: ='PFB-Items'!C14 -> 3.1875 | E219: ='PFB-Items'!D14 -> 0.1875 | F219: ='PFB-Items'!E14 -> 0.75 | G219: ='PFB-Items'!F14 -> 0 | H219: ='PFB-Items'!G14 -> 0.1875 | I219: ='PFB-Items'!H14 -> 0.4375 | J219: ='PFB-Items'!I14 -> 0.375 | L219: I | M219: 5 | N219: PFB (gesamt) | O219: 1 | P219: 04. Ich spreche mich mit meinen Kolleginnen und Kollegen regelmäßig über Aufgaben im Unterricht ab.
A220: ='PFB-Items'!A15 -> 05. Ich spreche mich regelmäßig mit meinen Kolleginnen und Kollegen über Inhalt und Anforderungen von Klassenarbeiten ab. | C220: ='PFB-Items'!B15 -> 16 | D220: ='PFB-Items'!C15 -> 3 | E220: ='PFB-Items'!D15 -> 0.1825741858 | F220: ='PFB-Items'!E15 -> 0.7302967433 | G220: ='PFB-Items'!F15 -> 0 | H220: ='PFB-Items'!G15 -> 0.25 | I220: ='PFB-Items'!H15 -> 0.5 | J220: ='PFB-Items'!I15 -> 0.25 | L220: I | M220: 5 | N220: PFB (gesamt) | O220: 1 | P220: 05. Ich spreche mich regelmäßig mit meinen Kolleginnen und Kollegen über Inhalt und Anforderungen von Klassenarbeiten ab.
A221: ='PFB-Items'!A16 -> 06. Ich spreche mich regelmäßig mit Kolleginnen und Kollegen, die dieselbe Jahrgangsstufe wie ich unterrichten, über Termine für Klassenarbeiten und Tests ab. | C221: ='PFB-Items'!B16 -> 15 | D221: ='PFB-Items'!C16 -> 2.533333333 | E221: ='PFB-Items'!D16 -> 0.2737163403 | F221: ='PFB-Items'!E16 -> 1.060098827 | G221: ='PFB-Items'!F16 -> 0.1333333333 | H221: ='PFB-Items'!G16 -> 0.4666666667 | I221: ='PFB-Items'!H16 -> 0.1333333333 | J221: ='PFB-Items'!I16 -> 0.2666666667 | L221: I | M221: 5 | N221: PFB (gesamt) | O221: 1 | P221: 06. Ich spreche mich regelmäßig mit Kolleginnen und Kollegen, die dieselbe Jahrgangsstufe wie ich unterrichten, über Termine für Klassenarbeiten und Tests ab.
A222: ='PFB-Items'!A17 -> 07. Ich gestalte regelmäßig mit Kolleginnen und Kollegen, die dieselbe Jahrgangsstufe wie ich unterrichten, die Themenfolge parallel. | C222: ='PFB-Items'!B17 -> 14 | D222: ='PFB-Items'!C17 -> 2.857142857 | E222: ='PFB-Items'!D17 -> 0.177192478 | F222: ='PFB-Items'!E17 -> 0.6629935441 | G222: ='PFB-Items'!F17 -> 0 | H222: ='PFB-Items'!G17 -> 0.2857142857 | I222: ='PFB-Items'!H17 -> 0.5714285714 | J222: ='PFB-Items'!I17 -> 0.1428571429 | L222: I | M222: 5 | N222: PFB (gesamt) | O222: 1 | P222: 07. Ich gestalte regelmäßig mit Kolleginnen und Kollegen, die dieselbe Jahrgangsstufe wie ich unterrichten, die Themenfolge parallel.
C224: =CONCATENATE("Inspizierte Schule ",$I$1,"") -> Inspizierte Schule (5274) | F224: Referenzwert | I224: Effektstärke
A225: PFB: Konstrukt | C225: N | D225: MW | E225: SD | F225: N | G225: MW | H225: SD | I225: D | J225: Effekt | L225: 1
A226: ="PFB: " & 'Effektstärken PuP'!A26 -> PFB: Ko-Konstruktion | C226: ='Effektstärken PuP'!C26 -> 15 | D226: ='Effektstärken PuP'!D26 -> 1.966666667 | E226: ='Effektstärken PuP'!E26 -> 0.4745925571 | F226: ='Effektstärken PuP'!F26 -> 349 | G226: ='Effektstärken PuP'!G26 -> 2.447073 | H226: ='Effektstärken PuP'!H26 -> 0.7508131 | I226: ='Effektstärken PuP'!I26 -> -0.7648859227 | J226: ='Effektstärken PuP'!J26 -> -- | L226: K | M226: 1 | N226: PFB (gesamt) | O226: 1
A228: =A226 -> PFB: Ko-Konstruktion | C228: N | D228: MW | E228: SE | F228: SD | G228: trifft nicht zu | H228: trifft eher nicht zu | I228: trifft eher zu | J228: trifft voll zu | L228: 5 | P228: PFB: Ko-Konstruktion
A229: ='PFB-Items'!A20 -> 08. Ich führe mit Kolleginnen und Kollegen regelmäßig gegenseitige Unterrichtshospitationen durch. | C229: ='PFB-Items'!B20 -> 14 | D229: ='PFB-Items'!C20 -> 1.142857143 | E229: ='PFB-Items'!D20 -> 0.09705231721 | F229: ='PFB-Items'!E20 -> 0.3631365196 | G229: ='PFB-Items'!F20 -> 0.8571428571 | H229: ='PFB-Items'!G20 -> 0.1428571429 | I229: ='PFB-Items'!H20 -> 0 | J229: ='PFB-Items'!I20 -> 0 | L229: I | M229: 5 | N229: PFB (gesamt) | O229: 1 | P229: 08. Ich führe mit Kolleginnen und Kollegen regelmäßig gegenseitige Unterrichtshospitationen durch.
A230: ='PFB-Items'!A21 -> 09. Ich bereite mit meinen Kolleginnen und Kollegen regelmäßig gemeinsam Unterricht vor. | C230: ='PFB-Items'!B21 -> 15 | D230: ='PFB-Items'!C21 -> 2.066666667 | E230: ='PFB-Items'!D21 -> 0.2062515031 | F230: ='PFB-Items'!E21 -> 0.7988086367 | G230: ='PFB-Items'!F21 -> 0.2666666667 | H230: ='PFB-Items'!G21 -> 0.4 | I230: ='PFB-Items'!H21 -> 0.3333333333 | J230: ='PFB-Items'!I21 -> 0 | L230: I | M230: 5 | N230: PFB (gesamt) | O230: 1 | P230: 09. Ich bereite mit meinen Kolleginnen und Kollegen regelmäßig gemeinsam Unterricht vor.
A231: ='PFB-Items'!A22 -> 10. Ich erprobe mit den Kolleginnen und Kollegen regelmäßig gemeinsam neue Unterrichtsmethoden. | C231: ='PFB-Items'!B22 -> 14 | D231: ='PFB-Items'!C22 -> 2.214285714 | E231: ='PFB-Items'!D22 -> 0.1868939709 | F231: ='PFB-Items'!E22 -> 0.6992932068 | G231: ='PFB-Items'!F22 -> 0.1428571429 | H231: ='PFB-Items'!G22 -> 0.5 | I231: ='PFB-Items'!H22 -> 0.3571428571 | J231: ='PFB-Items'!I22 -> 0 | L231: I | M231: 5 | N231: PFB (gesamt) | O231: 1 | P231: 10. Ich erprobe mit den Kolleginnen und Kollegen regelmäßig gemeinsam neue Unterrichtsmethoden.
A232: ='PFB-Items'!A23 -> 11. Ich erprobe mit den Kolleginnen und Kollegen regelmäßig gemeinsam neue Unterrichtsinhalte. | C232: ='PFB-Items'!B23 -> 14 | D232: ='PFB-Items'!C23 -> 2.214285714 | E232: ='PFB-Items'!D23 -> 0.1868939709 | F232: ='PFB-Items'!E23 -> 0.6992932068 | G232: ='PFB-Items'!F23 -> 0.1428571429 | H232: ='PFB-Items'!G23 -> 0.5 | I232: ='PFB-Items'!H23 -> 0.3571428571 | J232: ='PFB-Items'!I23 -> 0 | L232: I | M232: 5 | N232: PFB (gesamt) | O232: 1 | P232: 11. Ich erprobe mit den Kolleginnen und Kollegen regelmäßig gemeinsam neue Unterrichtsinhalte.
A233: ='PFB-Items'!A24 -> 12. Ich erarbeite mit meinen Kolleginnen und Kollegen regelmäßig Konzepte für den Unterricht oder Projekte. | C233: ='PFB-Items'!B24 -> 14 | D233: ='PFB-Items'!C24 -> 2.142857143 | E233: ='PFB-Items'!D24 -> 0.177192478 | F233: ='PFB-Items'!E24 -> 0.6629935441 | G233: ='PFB-Items'!F24 -> 0.1428571429 | H233: ='PFB-Items'!G24 -> 0.5714285714 | I233: ='PFB-Items'!H24 -> 0.2857142857 | J233: ='PFB-Items'!I24 -> 0 | L233: I | M233: 5 | N233: PFB (gesamt) | O233: 1 | P233: 12. Ich erarbeite mit meinen Kolleginnen und Kollegen regelmäßig Konzepte für den Unterricht oder Projekte.
C235: =CONCATENATE("Inspizierte Schule ",$I$1,"") -> Inspizierte Schule (5274) | F235: Referenzwert | I235: Effektstärke
A236: PFB: Konstrukt | C236: N | D236: MW | E236: SD | F236: N | G236: MW | H236: SD | I236: D | J236: Effekt | L236: 1
A237: ="PFB: " & 'Effektstärken PuP'!A27 -> PFB: Kooperationsklima | C237: ='Effektstärken PuP'!C27 -> 23 | D237: ='Effektstärken PuP'!D27 -> 3.311594203 | E237: ='Effektstärken PuP'!E27 -> 0.3428724025 | F237: ='Effektstärken PuP'!F27 -> 349 | G237: ='Effektstärken PuP'!G27 -> 3.476245 | H237: ='Effektstärken PuP'!H27 -> 0.4804051 | I237: ='Effektstärken PuP'!I27 -> -0.3945214208 | J237: ='Effektstärken PuP'!J27 -> - | L237: K | M237: 1 | N237: PFB (gesamt) | O237: 1
A239: =A237 -> PFB: Kooperationsklima | C239: N | D239: MW | E239: SE | F239: SD | G239: trifft nicht zu | H239: trifft eher nicht zu | I239: trifft eher zu | J239: trifft voll zu | L239: 5 | P239: PFB: Kooperationsklima
A240: ='PFB-Items'!A33 -> 17. Im Kollegium haben wir gemeinsame Ziele. | B240: Im Kollegium haben wir gemeinsame Ziele. | C240: ='PFB-Items'!B33 -> 22 | D240: ='PFB-Items'!C33 -> 3.227272727 | E240: ='PFB-Items'!D33 -> 0.1126581271 | F240: ='PFB-Items'!E33 -> 0.5284134548 | G240: ='PFB-Items'!F33 -> 0 | H240: ='PFB-Items'!G33 -> 0.04545454545 | I240: ='PFB-Items'!H33 -> 0.6818181818 | J240: ='PFB-Items'!I33 -> 0.2727272727 | L240: I | M240: 5 | N240: PFB (gesamt) | O240: 1 | P240: 17. Im Kollegium haben wir gemeinsame Ziele.
A241: ='PFB-Items'!A34 -> 18. Im Kollegium herrscht ein vertrauensvolles Klima. | B241: Im Kollegium haben wir gemeinsame Ziele. | C241: ='PFB-Items'!B34 -> 23 | D241: ='PFB-Items'!C34 -> 3.47826087 | E241: ='PFB-Items'!D34 -> 0.1236718407 | F241: ='PFB-Items'!E34 -> 0.5931093121 | G241: ='PFB-Items'!F34 -> 0 | H241: ='PFB-Items'!G34 -> 0.04347826087 | I241: ='PFB-Items'!H34 -> 0.4347826087 | J241: ='PFB-Items'!I34 -> 0.5217391304 | L241: I | M241: 5 | N241: PFB (gesamt) | O241: 1 | P241: 18. Im Kollegium herrscht ein vertrauensvolles Klima.
A242: ='PFB-Items'!A35 -> 19. Im Kollegium werden Absprachen verbindlich eingehalten. | B242: Im Kollegium haben wir gemeinsame Ziele. | C242: ='PFB-Items'!B35 -> 23 | D242: ='PFB-Items'!C35 -> 3 | E242: ='PFB-Items'!D35 -> 0.08891084489 | F242: ='PFB-Items'!E35 -> 0.4264014327 | G242: ='PFB-Items'!F35 -> 0 | H242: ='PFB-Items'!G35 -> 0.08695652174 | I242: ='PFB-Items'!H35 -> 0.8260869565 | J242: ='PFB-Items'!I35 -> 0.08695652174 | L242: I | M242: 5 | N242: PFB (gesamt) | O242: 1 | P242: 19. Im Kollegium werden Absprachen verbindlich eingehalten.
A243: ='PFB-Items'!A36 -> 20. Im Kollegium werden alle Professionen anerkannt und geschätzt. | B243: Im Kollegium haben wir gemeinsame Ziele. | C243: ='PFB-Items'!B36 -> 23 | D243: ='PFB-Items'!C36 -> 3.52173913 | E243: ='PFB-Items'!D36 -> 0.1236718407 | F243: ='PFB-Items'!E36 -> 0.5931093121 | G243: ='PFB-Items'!F36 -> 0 | H243: ='PFB-Items'!G36 -> 0.04347826087 | I243: ='PFB-Items'!H36 -> 0.3913043478 | J243: ='PFB-Items'!I36 -> 0.5652173913 | L243: I | M243: 5 | N243: PFB (gesamt) | O243: 1 | P243: 20. Im Kollegium werden alle Professionen anerkannt und geschätzt.
C245: =CONCATENATE("Inspizierte Schule ",$I$1,"") -> Inspizierte Schule (5274) | F245: Referenzwert | I245: Effektstärke
A246: PFB: Konstrukt | C246: N | D246: MW | E246: SD | F246: N | G246: MW | H246: SD | I246: D | J246: Effekt | L246: 1
A247: ="PFB: " & 'Effektstärken PuP'!A28 -> PFB: Rahmenbedingungen der Kooperation | C247: ='Effektstärken PuP'!C28 -> 23 | D247: ='Effektstärken PuP'!D28 -> 2.865217391 | E247: ='Effektstärken PuP'!E28 -> 0.625346632 | F247: ='Effektstärken PuP'!F28 -> 349 | G247: ='Effektstärken PuP'!G28 -> 3.348124 | H247: ='Effektstärken PuP'!H28 -> 0.683577 | I247: ='Effektstärken PuP'!I28 -> -0.737139191 | J247: ='Effektstärken PuP'!J28 -> -- | L247: K | M247: 1 | N247: PFB (gesamt) | O247: 1
A249: =A247 -> PFB: Rahmenbedingungen der Kooperation | C249: N | D249: MW | E249: SE | F249: SD | G249: trifft nicht zu | H249: trifft eher nicht zu | I249: trifft eher zu | J249: trifft voll zu | L249: 5 | P249: PFB: Rahmenbedingungen der Kooperation
A250: ='PFB-Items'!A39 -> 21. Es gibt feste Zeiten, um professionsspezifisch mit Kolleginnen und Kollegen zu kooperieren. | B250: Es gibt feste Zeiten, um professionsspezifisch mit Kolleginnen und Kollegen zu kooperieren. | C250: ='PFB-Items'!B39 -> 22 | D250: ='PFB-Items'!C39 -> 2.772727273 | E250: ='PFB-Items'!D39 -> 0.1853021188 | F250: ='PFB-Items'!E39 -> 0.8691439785 | G250: ='PFB-Items'!F39 -> 0.04545454545 | H250: ='PFB-Items'!G39 -> 0.3636363636 | I250: ='PFB-Items'!H39 -> 0.3636363636 | J250: ='PFB-Items'!I39 -> 0.2272727273 | L250: I | M250: 5 | N250: PFB (gesamt) | O250: 1 | P250: 21. Es gibt feste Zeiten, um professionsspezifisch mit Kolleginnen und Kollegen zu kooperieren.
A251: ='PFB-Items'!A40 -> 22. Es gibt feste Zeiten, um professionsübergreifend mit Kolleginnen und Kollegen zu kooperieren. | B251: Es gibt feste Zeiten, um professionsspezifisch mit Kolleginnen und Kollegen zu kooperieren. | C251: ='PFB-Items'!B40 -> 23 | D251: ='PFB-Items'!C40 -> 2.565217391 | E251: ='PFB-Items'!D40 -> 0.164257666 | F251: ='PFB-Items'!E40 -> 0.7877520928 | G251: ='PFB-Items'!F40 -> 0.04347826087 | H251: ='PFB-Items'!G40 -> 0.4782608696 | I251: ='PFB-Items'!H40 -> 0.347826087 | J251: ='PFB-Items'!I40 -> 0.1304347826 | L251: I | M251: 5 | N251: PFB (gesamt) | O251: 1 | P251: 22. Es gibt feste Zeiten, um professionsübergreifend mit Kolleginnen und Kollegen zu kooperieren.
... 277 more rows

Sheet Bedienfeld
B2: Grafiken ein- und ausblenden | I2: Datenblätter ein- und ausblenden

Sheet Rücklaufquoten (hidden)
A1: Befragtengruppe | B1: Insgesamt | C1: Beantwortet
A2: Pädagoginnen und Pädagogen mit Lehramtsabschluss | B2: 23 | C2: 16
A3: Pädagogisches und Therapeutisches Fachpersonal | B3: 12 | C3: 7 | F3: Insgesamt | G3: Beantwortet | H3: Rücklaufquote
A4: davon im Unterricht | C4: 6 | E4: PFB | F4: =$B$6 -> 35 | G4: =$C$6 -> 23 | H4: =IF(Tabelle1[[#This Row],[Insgesamt]]=0,"-",Tabelle1[[#This Row],[Beantwortet]]/Tabelle1[[#This Row],[Insgesamt]]) -> 0.6571428571 | I4: =IF(H4="-",0,IF(OR(G4<=10,H4<=0.2),0,IF(H4<0.5,0.5,1))) -> 1
A5: davon außerunterrichtlich | C5: 5 | E5: SFB | F5: =$B$8 -> 132 | G5: =$C$8 -> 53 | H5: =IF(Tabelle1[[#This Row],[Insgesamt]]=0,"-",Tabelle1[[#This Row],[Beantwortet]]/Tabelle1[[#This Row],[Insgesamt]]) -> 0.4015151515 | I5: =IF(H5="-",0,IF(OR(G5<=10,H5<=0.2),0,IF(H5<0.5,0.5,1))) -> 0.5
A6: Pädagog*innen Insgesamt | B6: =B2+B3 -> 35 | C6: 23 | E6: EFB | F6: =$B$13 -> 244 | G6: =$C$13 -> 89 | H6: =IF(Tabelle1[[#This Row],[Insgesamt]]=0,"-",Tabelle1[[#This Row],[Beantwortet]]/Tabelle1[[#This Row],[Insgesamt]]) -> 0.3647540984 | I6: 0.5
E7: PTF | F7: =$B$3 -> 12 | G7: =$C$3 -> 7 | H7: =IF(F7=0,"-",G7/F7) -> 0.5833333333 | I7: 0
A8: Schüler*innen Insgesamt | B8: =B19+B20 -> 132 | C8: 53
E9: Schulname: | H9: Schulnummer:
A10: Eltern mit zwei Kindern an der Schule | B10: 0 | E10: Schule Rungwisch | H10: 5274
A11: Eltern mit drei Kindern an der Schule | B11: 0
A12: Eltern mit vier oder mehr Kindern an der Schule | B12: 0
A13: Eltern Insgesamt | B13: =SUM(B16:B22)-B10-B11*2-B12*3 -> 244 | C13: 89
A15: Nach Klassenstufe | B15: Insgesamt | C15: Beantwortet | D15: RLQ
A16: Vorschulklassen | B16: 37 | F16: Klassenstufe 00
A17: Schüler*innen Klassenstufe 1 | B17: 37 | F17: Klassenstufe 01
A18: Schüler*innen Klassenstufe 2 | B18: 38 | F18: Klassenstufe 02
A19: Schüler*innen Klassenstufe 3 | B19: 68 | C19: 31 | D19: =IF(A19="","",IF(B19<>0,C19/B19,"-")) -> 0.4558823529 | F19: Klassenstufe 03
A20: Schüler*innen Klassenstufe 4 | B20: 64 | C20: 22 | D20: 0.34375 | F20: Klassenstufe 04
A21: Schüler*innen Klassenstufe 5 | B21: 0 | C21: 0 | D21: - | F21: Klassenstufe 05
A22: Schüler*innen Klassenstufe 6 | B22: 0 | C22: 0 | D22: - | F22: Klassenstufe 06

Sheet PFB-Konstrukte (hidden)
J1: RLQ | K1: RLQ | L1: Rück
A2: Fragebogen für Pädagoginnen und Pädagogen - Konstrukte | J2: gelb | K2: rot | L2: rot
J3: =IF(Rücklaufquoten!I4=0.5,"der Pädagoginnen und Pädagogen","") ->  | K3: =IF(Rücklaufquoten!H4<=0.2,"der Pädagoginnen und Pädagogen","") ->  | L3: =IF(Rücklaufquoten!G4<=10,"der Pädagoginnen und Pädagogen","") ->  | M3: PFB
A4: ='FB nach BerT'!A1 -> Schule Rungwisch (5274) | J4: =IF(Rücklaufquoten!I7=0.5,"des pädagogisch therapeutischen Fachpersonals","") ->  | K4: =IF(Rücklaufquoten!H7<=0.2,"des pädagogisch therapeutischen Fachpersonals","") ->  | L4: =IF(Rücklaufquoten!G7<=10,"des pädagogisch therapeutischen Fachpersonals","") -> des pädagogisch therapeutischen Fachpersonals | M4: PTF
J5: =IF(COUNTIF(J3:J4,"?*")=0,0,1) -> 0 | K5: =IF(COUNTIF(K3:K4,"?*")=0,0,1) -> 0 | L5: =IF(COUNTIF(L3:L4,"?*")=0,0,1) -> 1
A6: =IF(SUM(J5:L5)=2, IF(J5=1,J6 & K7, K6 & L7), IF(SUM(J5:L5)=1, IF(J5=1, J6, IF(K5=1, K6, L6)), "Alle Rücklaufquoten sind ausreichend hoch, sodass alle Daten dargestellt werden.")) -> Der Rücklauf der Befragung des pädagogisch therapeutischen Fachpersonals betrug an Ihrer Schule 10 oder weniger Fragebögen. Um die Anonymität der Befragten zu gewährleisten, werden die entsprechenden Ergebnisse weder in grafischer, noch in tabellarischer Form zurückgemeldet. In die Berechnungen zu Items und Konstrukten, die sich an alle Pädagoginnen und Pädagogen der Schule richten, fließen die Daten der PTF jedoch mit ein. | J6: =IF(COUNTIF(J3:J4,"?*")=0,"", IF(COUNTIF(J3:J4,"?*")=1,CONCATENATE( "Die Rücklaufquote der Befragung ", J3 & J4, " an Ihrer Schule lag zwischen 20 und 50 Prozent. Die Daten sind bei einer solchen Rücklaufquote in der Regel systematisch verzerrt und können nicht als repräsentativ für die Meinung aller Befragten der Gruppe betrachtet werden."), IF(COUNTIF(J3:J4,"?*")=2,CONCATENATE( "Die Rücklaufquoten der Befragungen ", J3, ", sowie ", J4, " an Ihrer Schule lagen zwischen 20 und 50 Prozent. Die Daten sind bei einer solchen Rücklaufquote in der Regel systematisch verzerrt und können nicht als repräsentativ für die Meinung aller Befragten der jeweiligen Gruppe betrachtet werden."),"")) & " Aus diesem Grund werden die Ergebnisse grafisch nicht dargestellt. Zu Ihrer Information sind die Daten dennoch in den Tabellen einsehbar, jedoch sind sie mit einer gelben Markierung hinterlegt." & IF(SUM(K5,L5)>0," ","")) ->  | K6: =IF(COUNTIF(K3:K4,"?*")=0,"", IF(COUNTIF(K3:K4,"?*")=1,CONCATENATE( "Die Rücklaufquote der Befragung ", K3 & K4, " an Ihrer Schule lag unter 20 Prozent. Die Daten sind bei einer solchen Rücklaufquote in der Regel nicht aussagekräftig."), IF(COUNTIF(K3:K4,"?*")=2,CONCATENATE( "Die Rücklaufquoten der Befragungen ", K3, ", sowie ", K4, " an Ihrer Schule lagen unter 20 Prozent. Die Daten sind bei einer solchen Rücklaufquote in der Regel nicht aussagekräftig."),"")) & " " & IF(L5=1,"","Aus diesem Grund werden die Ergebnisse weder in grafischer, noch in tabellarischer Form zurückgemeldet." & IF(AND(K4<>"",K3:L3="")," In die Berechnungen zu Items und Konstrukten, die sich an alle Pädagoginnen und Pädagogen der Schule richten, fließen die Daten der PTF jedoch mit ein.",""))) ->  | L6: =IF(COUNTIF(L3:L4,"?*")=0,"", IF(COUNTIF(L3:L4,"?*")=1,CONCATENATE( "Der Rücklauf der Befragung ", L3 & L4, " betrug an Ihrer Schule 10 oder weniger Fragebögen."), IF(COUNTIF(L3:L4,"?*")=2,CONCATENATE( "Die Rückläufe der Befragungen ", L3, ", sowie ", L4, " betrugen an Ihrer Schule 10 oder weniger Fragebögen."),"")) & " Um die Anonymität der Befragten zu gewährleisten, werden die entsprechenden Ergebnisse weder in grafischer, noch in tabellarischer Form zurückgemeldet." & IF(AND(L4<>"",K3:L3="")," In die Berechnungen zu Items und Konstrukten, die sich an alle Pädagoginnen und Pädagogen der Schule richten, fließen die Daten der PTF jedoch mit ein.","")) -> Der Rücklauf der Befragung des pädagogisch therapeutischen Fachpersonals betrug an Ihrer Schule 10 oder weniger Fragebögen. Um die Anonymität der Befragten zu gewährleisten, werden die entsprechenden Ergebnisse weder in grafischer, noch in tabellarischer Form zurückgemeldet. In die Berechnungen zu Items und Konstrukten, die sich an alle Pädagoginnen und Pädagogen der Schule richten, fließen die Daten der PTF jedoch mit ein. | M6: Beginn
K7: =IF(COUNTIF(K3:K4,"?*")=0,"", IF(COUNTIF(K3:K4,"?*")=1,CONCATENATE( "Darüber hinaus lag die Rücklaufquote der Befragung ", K3 & K4, " an Ihrer Schule unter 20 Prozent. Die Daten sind bei einer solchen Rücklaufquote in der Regel nicht aussagekräftig."), IF(COUNTIF(K3:K4,"?*")=2,CONCATENATE( "Darüber hinaus lagen die Rücklaufquoten der Befragungen ", K3, ", sowie ", K4, " an Ihrer Schule unter 20 Prozent. Die Daten sind bei einer solchen Rücklaufquote in der Regel nicht aussagekräftig."),"")) & " " & IF(L5=1,"","Daher werden diese Ergebnisse weder in grafischer, noch in tabellarischer Form zurückgemeldet." & IF(AND(K4<>"",K3:L3="")," In die Berechnungen zu Items und Konstrukten, die sich an alle Pädagoginnen und Pädagogen der Schule richten, fließen die Daten der PTF jedoch mit ein.",""))) ->  | L7: =IF(COUNTIF(L3:L4,"?*")=0,"", IF(COUNTIF(L3:L4,"?*")=1,CONCATENATE( "Darüber hinaus betrug der Rücklauf der Befragung ", L3 & L4, " an Ihrer Schule 10 oder weniger Fragebögen."), IF(COUNTIF(L3:L4,"?*")=2,CONCATENATE( "Darüber hinaus betrugen die Rückläufe der Befragungen ", L3, ", sowie ", L4, " an Ihrer Schule 10 oder weniger Fragebögen."),"")) & " " & IF(K5=1,"Aufgrund der geringen Aussagekraft der Daten, bzw. um bei 10 oder weniger Rückläufen die Anonymität der Befragten zu gewährleisten, ","Um die Anonymität der Befragten zu gewährleisten, ") & "werden die entsprechenden Ergebnisse weder in grafischer, noch in tabellarischer Form zurückgemeldet." & IF(AND(L3<>"",K3:L3="")," In die Berechnungen zu Items und Konstrukten, die sich an alle Pädagoginnen und Pädagogen der Schule richten, fließen die Daten der PTF jedoch mit ein.","")) -> Darüber hinaus betrug der Rücklauf der Befragung des pädagogisch therapeutischen Fachpersonals an Ihrer Schule 10 oder weniger Fragebögen. Um die Anonymität der Befragten zu gewährleisten, werden die entsprechenden Ergebnisse weder in grafischer, noch in tabellarischer Form zurückgemeldet. | M7: Ende
A8: Konstrukt | C8: N | D8: Mittelwert | E8: SE | F8: SD | G8: Anzahl Items | H8: Items
A9: Transformationale Führung | C9: 23 | D9: 3.306418219 | E9: 0.1204910084 | F9: 0.5778545765 | G9: 9 | H9: 85, 86, 87, 89, 90, 94, 96, 98, 99 | J9: =" "&H9&", " -> 85, 86, 87, 89, 90, 94, 96, 98, 99,
B10: Motivation durch begeisternde Visionen | C10: 20 | D10: 3.133333333 | E10: 0.1664911356 | F10: 0.7445709939 | G10: 3 | H10: 87, 94, 96 | J10: =" "&H10&", " -> 87, 94, 96,
B11: Einfluss durch Vorbildlichkeit und Glaubwürdigkeit | C11: 23 | D11: 3.463768116 | E11: 0.1180635932 | F11: 0.5662131022 | G11: 3 | H11: 85, 86, 99 | J11: 85, 86, 99,
B12: Individuelle Unterstützung und Förderung | C12: 23 | D12: 3.253623188 | E12: 0.1405294451 | F12: 0.6739555429 | G12: 3 | H12: 89, 90, 98 | J12: 89, 90, 98,
A13: Transaktionale Führung | C13: 21 | D13: 3.150793651 | E13: 0.1472430781 | F13: 0.6747525512 | G13: 3 | H13: 92, 95, 97 | J13: 92, 95, 97,
A14: Aktive Führung | C14: 23 | D14: 3.268115942 | E14: 0.08430860821 | F14: 0.4043298809 | G14: 3 | H14: 88, 91, 93 | J14: 88, 91, 93,
A15: Instruktionale Führung | C15: 23 | D15: 2.811904762 | E15: 0.1237308637 | F15: 0.5933923765 | G15: 8 | H15: 77, 78, 79, 80, 81, 82, 83, 84 | J15: 77, 78, 79, 80, 81, 82, 83, 84,
B16: Supervision | C16: 21 | D16: 2.023809524 | E16: 0.116885121 | F16: 0.5356349148 | G16: 2 | H16: 82, 83 | J16: 82, 83,
B17: Schulziel-Management | C17: 19 | D17: 3.026315789 | E17: 0.1603395307 | F17: 0.6989038108 | G17: 3 | H17: 77, 78, 81 | J17: 77, 78, 81,
B18: Anleitungsmanagement | C18: 23 | D18: 3.166666667 | E18: 0.1152606791 | F18: 0.5527707984 | G18: 3 | H18: 79, 80, 84 | J18: 79, 80, 84,
A19: Partizipative Führung | C19: 23 | D19: 3.292184265 | E19: 0.1172392968 | F19: 0.5622599153 | G19: 8 | H19: 69, 70, 71, 72, 73, 74, 75, 76 | J19: 69, 70, 71, 72, 73, 74, 75, 76,
B20: Delegation von Führung | C20: 23 | D20: 3.27173913 | E20: 0.1204106335 | F20: 0.577469112 | G20: 4 | H20: 73, 74, 75, 76 | J20: 73, 74, 75, 76,
B21: Distribution von Führung | C21: 23 | D21: 3.31884058 | E21: 0.118854437 | F21: 0.5700058556 | G21: 4 | H21: 69, 70, 71, 72 | J21: 69, 70, 71, 72,
A22: Positives Innovationsklima | C22: 22 | D22: 3.09469697 | E22: 0.07681886489 | F22: 0.3603124145 | G22: 4 | H22: 59, 60, 61, 62 | J22: 59, 60, 61, 62,
A23: Schülerbezogener Austausch | C23: 22 | D23: 3.621212121 | E23: 0.1058542623 | F23: 0.4965005 | G23: 3 | H23: 1, 2, 3 | J23: 1, 2, 3,
A24: Synchronisation | C24: 16 | D24: 2.901041667 | E24: 0.16945903 | F24: 0.67783612 | G24: 4 | H24: 4, 5, 6, 7 | J24: 4, 5, 6, 7,
A25: Ko-Konstruktion | C25: 15 | D25: 1.966666667 | E25: 0.1225392713 | F25: 0.4745925571 | G25: 5 | H25: 8, 9, 10, 11, 12 | J25: 8, 9, 10, 11, 12,
A26: Kooperationsklima | C26: 23 | D26: 3.311594203 | E26: 0.07149383811 | F26: 0.3428724025 | G26: 4 | H26: 17, 18, 19, 20 | J26: 17, 18, 19, 20,
A27: Rahmenbedingungen der Kooperation | C27: 23 | D27: 2.865217391 | E27: 0.1303937866 | F27: 0.625346632 | G27: 6 | H27: 21, 22, 23, 24, 25, 26 | J27: 21, 22, 23, 24, 25, 26,
A28: Fachliche und jahrgangsspezifische Kooperation unter Lehrpersonen | C28: 16 | D28: 2.484375 | E28: 0.1329026791 | F28: 0.5316107163 | G28: 4 | H28: 13, 14, 15, 16 | J28: 13, 14, 15, 16,
A29: Kollektive Selbstwirksamkeit | C29: 23 | D29: 3.014492754 | E29: 0.08698396581 | F29: 0.4171604452 | G29: 6 | H29: 63, 64, 65, 66, 67, 68 | J29: 63, 64, 65, 66, 67, 68,
A30: Systematische Schul- und Unterrichtsentwicklung | C30: 23 | D30: 2.839337474 | E30: 0.1366664691 | F30: 0.6554293605 | G30: 7 | H30: 52, 53, 54, 55, 56, 57, 58 | J30: 52, 53, 54, 55, 56, 57, 58,
A31: Klassenführung | C31: 23 | D31: 3.185817805 | E31: 0.06970603674 | F31: 0.3342984083 | G31: 8 | H31: 44, 45, 46, 47, 48, 49, 50, 51 | J31: 44, 45, 46, 47, 48, 49, 50, 51,
A32: Konstruktive Unterstützung | C32: 21 | D32: 3.646258503 | E32: 0.07800914926 | F32: 0.3574828314 | G32: 7 | H32: 37, 38, 39, 40, 41, 42, 43 | J32: 37, 38, 39, 40, 41, 42, 43,
A33: Potenzial zur kognitiven Aktivierung | C33: 21 | D33: 3.653968254 | E33: 0.0673958609 | F33: 0.3088466341 | G33: 6 | H33: 31, 32, 33, 34, 35, 36 | J33: 31, 32, 33, 34, 35, 36,
A34: Arbeitszufriedenheit | C34: 23 | D34: 3.211594203 | E34: 0.08501230105 | F34: 0.4077046732 | G34: 6 | H34: 104, 105, 106, 107, 108, 109 | J34: 104, 105, 106, 107, 108, 109,
B35: Arbeitszufriedenheit (Nur Lehrpersonen) | F35: 0.3679711643 | G35: 6 | H35: 104, 105, 106, 107, 108, 109 | J35: 104, 105, 106, 107, 108, 109,
B36: Arbeitszufriedenheit (Nur PTF) | F36: 0.506570584 | G36: 6 | H36: 104, 105, 106, 107, 108, 109 | J36: 104, 105, 106, 107, 108, 109,
A37: Mitarbeiterbindung | C37: 23 | D37: 3.565217391 | E37: 0.1068519525 | F37: 0.512443962 | G37: 4 | H37: 100, 101, 102, 103 | J37: 100, 101, 102, 103,
B38: Mitarbeiterbindung (Nur Lehrpersonen) | F38: 0.4651948516 | G38: 4 | H38: 100, 101, 102, 103 | J38: 100, 101, 102, 103,
B39: Mitarbeiterbindung (Nur PTF) | F39: 0.6362090103 | G39: 4 | H39: 100, 101, 102, 103 | J39: 100, 101, 102, 103,
A40: Eingebundenheit in die Schulgemeinschaft - PTF der Schule | F40: 0.3818813079 | G40: 4 | H40: 27, 28, 29, 30 | J40: 27, 28, 29, 30,
A41: -

Sheet PFB-Items (hidden)
A2: Fragebogen für Pädagoginnen und Pädagogen - Items
A4: ='FB nach BerT'!A1 -> Schule Rungwisch (5274)
A6: ='PFB-Konstrukte'!A6 -> Der Rücklauf der Befragung des pädagogisch therapeutischen Fachpersonals betrug an Ihrer Schule 10 oder weniger Fragebögen. Um die Anonymität der Befragten zu gewährleisten, werden die entsprechenden Ergebnisse weder in grafischer, noch in tabellarischer Form zurückgemeldet. In die Berechnungen zu Items und Konstrukten, die sich an alle Pädagoginnen und Pädagogen der Schule richten, fließen die Daten der PTF jedoch mit ein.
B8: N | C8: MW | D8: SE | E8: SD | F8: trifft nicht zu | G8: trifft eher nicht zu | H8: trifft eher zu | I8: trifft voll zu | J8: Zuordnung zum Konstrukt
A9: 01. Ich entwickle mit meinen Kolleginnen und Kollegen bei Schwierigkeiten einzelner Schülerinnen und Schüler eine gemeinsame Lösungsstrategie. | B9: 22 | C9: 3.727272727 | D9: 0.1173631317 | E9: 0.5504818826 | F9: 0 | G9: 0.04545454545 | H9: 0.1818181818 | I9: 0.7727272727 | J9: =IF(INDIRECT("'PFB-Konstrukte'!A" & (SMALL(IF(NOT(ISERROR(FIND(IF(LEFT(A9,1)="0"," " & MID(A9,2,1) & ",",IF(MID(A9,3,1)=".",LEFT(A9,2),LEFT(A9,3))),'PFB-Konstrukte'!$J$9:$J$40))),ROW($9:$40)),1)+1))="", IF(LEFT(INDIRECT("A"&MAX(IF($B$1:B9="N",ROW($A$1:A9)))-1),3)="nur", IF(RIGHT(INDIRECT("A"&MAX(IF($B$1:B9="N",ROW($A$1:A9)))-1),4)="PTF!", INDEX('PFB-Konstrukte'!$B$9:$J$40,SMALL(IF(NOT(ISERROR(FIND(IF(LEFT(A9,1)="0"," " & MID(A9,2,1) & ",",IF(MID(A9,3,1)=".",LEFT(A9,2),LEFT(A9,3))),'PFB-Konstrukte'!$J$9:$J$40))),ROW($1:$32)),3),1), INDEX('PFB-Konstrukte'!$B$9:$J$40,SMALL(IF(NOT(ISERROR(FIND(IF(LEFT(A9,1)="0"," " & MID(A9,2,1) & ",",IF(MID(A9,3,1)=".",LEFT(A9,2),LEFT(A9,3))),'PFB-Konstrukte'!$J$9:$J$40))),ROW($1:$32)),2),1)), IF(RIGHT(INDEX('PFB-Konstrukte'!$A$9:$J$40,SMALL(IF(NOT(ISERROR(FIND(IF(LEFT(A9,1)="0"," " & MID(A9,2,1) & ",",IF(MID(A9,3,1)=".",LEFT(A9,2),LEFT(A9,3))),'PFB-Konstrukte'!$J$9:$J$40))),ROW($1:$32)),1),1),7)="Führung", INDEX('PFB-Konstrukte'!$A$9:$J$40,SMALL(IF(NOT(ISERROR(FIND(IF(LEFT(A9,1)="0"," " & MID(A9,2,1) & ",",IF(MID(A9,3,1)=".",LEFT(A9,2),LEFT(A9,3))),'PFB-Konstrukte'!$J$9:$J$40))),ROW($1:$32)),1),1) & ", " & INDEX('PFB-Konstrukte'!$B$9:$J$40,SMALL(IF(NOT(ISERROR(FIND(IF(LEFT(A9,1)="0"," " & MID(A9,2,1) & ",",IF(MID(A9,3,1)=".",LEFT(A9,2),LEFT(A9,3))),'PFB-Konstrukte'!$J$9:$J$40))),ROW($1:$32)),2),1), INDEX('PFB-Konstrukte'!$A$9:$J$40,SMALL(IF(NOT(ISERROR(FIND(IF(LEFT(A9,1)="0"," " & MID(A9,2,1) & ",",IF(MID(A9,3,1)=".",LEFT(A9,2),LEFT(A9,3))),'PFB-Konstrukte'!$J$9:$J$40))),ROW($1:$32)),1),1))), INDEX('PFB-Konstrukte'!$A$9:$J$40,SMALL(IF(NOT(ISERROR(FIND(IF(LEFT(A9,1)="0"," " & MID(A9,2,1) & ",",IF(MID(A9,3,1)=".",LEFT(A9,2),LEFT(A9,3))),'PFB-Konstrukte'!$J$9:$J$40))),ROW($1:$32)),1),1)) -> Schülerbezogener Austausch
A10: 02. Ich reflektiere mit meinen Kolleginnen und Kollegen regelmäßig unsere Erfahrungen bei der Unterstützung einzelner Schülerinnen und Schüler. | B10: 22 | C10: 3.590909091 | D10: 0.1072903353 | E10: 0.5032362797 | F10: 0 | G10: 0 | H10: 0.4090909091 | I10: 0.5909090909 | J10: =IF(INDIRECT("'PFB-Konstrukte'!A" & (SMALL(IF(NOT(ISERROR(FIND(IF(LEFT(A10,1)="0"," " & MID(A10,2,1) & ",",IF(MID(A10,3,1)=".",LEFT(A10,2),LEFT(A10,3))),'PFB-Konstrukte'!$J$9:$J$40))),ROW($9:$40)),1)+1))="", IF(LEFT(INDIRECT("A"&MAX(IF($B$1:B10="N",ROW($A$1:A10)))-1),3)="nur", IF(RIGHT(INDIRECT("A"&MAX(IF($B$1:B10="N",ROW($A$1:A10)))-1),4)="PTF!", INDEX('PFB-Konstrukte'!$B$9:$J$40,SMALL(IF(NOT(ISERROR(FIND(IF(LEFT(A10,1)="0"," " & MID(A10,2,1) & ",",IF(MID(A10,3,1)=".",LEFT(A10,2),LEFT(A10,3))),'PFB-Konstrukte'!$J$9:$J$40))),ROW($1:$32)),3),1), INDEX('PFB-Konstrukte'!$B$9:$J$40,SMALL(IF(NOT(ISERROR(FIND(IF(LEFT(A10,1)="0"," " & MID(A10,2,1) & ",",IF(MID(A10,3,1)=".",LEFT(A10,2),LEFT(A10,3))),'PFB-Konstrukte'!$J$9:$J$40))),ROW($1:$32)),2),1)), IF(RIGHT(INDEX('PFB-Konstrukte'!$A$9:$J$40,SMALL(IF(NOT(ISERROR(FIND(IF(LEFT(A10,1)="0"," " & MID(A10,2,1) & ",",IF(MID(A10,3,1)=".",LEFT(A10,2),LEFT(A10,3))),'PFB-Konstrukte'!$J$9:$J$40))),ROW($1:$32)),1),1),7)="Führung", INDEX('PFB-Konstrukte'!$A$9:$J$40,SMALL(IF(NOT(ISERROR(FIND(IF(LEFT(A10,1)="0"," " & MID(A10,2,1) & ",",IF(MID(A10,3,1)=".",LEFT(A10,2),LEFT(A10,3))),'PFB-Konstrukte'!$J$9:$J$40))),ROW($1:$32)),1),1) & ", " & INDEX('PFB-Konstrukte'!$B$9:$J$40,SMALL(IF(NOT(ISERROR(FIND(IF(LEFT(A10,1)="0"," " & MID(A10,2,1) & ",",IF(MID(A10,3,1)=".",LEFT(A10,2),LEFT(A10,3))),'PFB-Konstrukte'!$J$9:$J$40))),ROW($1:$32)),2),1), INDEX('PFB-Konstrukte'!$A$9:$J$40,SMALL(IF(NOT(ISERROR(FIND(IF(LEFT(A10,1)="0"," " & MID(A10,2,1) & ",",IF(MID(A10,3,1)=".",LEFT(A10,2),LEFT(A10,3))),'PFB-Konstrukte'!$J$9:$J$40))),ROW($1:$32)),1),1))), INDEX('PFB-Konstrukte'!$A$9:$J$40,SMALL(IF(NOT(ISERROR(FIND(IF(LEFT(A10,1)="0"," " & MID(A10,2,1) & ",",IF(MID(A10,3,1)=".",LEFT(A10,2),LEFT(A10,3))),'PFB-Konstrukte'!$J$9:$J$40))),ROW($1:$32)),1),1)) -> Schülerbezogener Austausch
A11: 03. Ich spreche mit Kolleginnen und Kollegen ab, wie wir gemeinsam einzelne Schülerinnen und Schüler fördern können | B11: 22 | C11: 3.545454545 | D11: 0.1270251147 | E11: 0.5958006 | F11: 0 | G11: 0.04545454545 | H11: 0.3636363636 | I11: 0.5909090909 | J11: =IF(INDIRECT("'PFB-Konstrukte'!A" & (SMALL(IF(NOT(ISERROR(FIND(IF(LEFT(A11,1)="0"," " & MID(A11,2,1) & ",",IF(MID(A11,3,1)=".",LEFT(A11,2),LEFT(A11,3))),'PFB-Konstrukte'!$J$9:$J$40))),ROW($9:$40)),1)+1))="", IF(LEFT(INDIRECT("A"&MAX(IF($B$1:B11="N",ROW($A$1:A11)))-1),3)="nur", IF(RIGHT(INDIRECT("A"&MAX(IF($B$1:B11="N",ROW($A$1:A11)))-1),4)="PTF!", INDEX('PFB-Konstrukte'!$B$9:$J$40,SMALL(IF(NOT(ISERROR(FIND(IF(LEFT(A11,1)="0"," " & MID(A11,2,1) & ",",IF(MID(A11,3,1)=".",LEFT(A11,2),LEFT(A11,3))),'PFB-Konstrukte'!$J$9:$J$40))),ROW($1:$32)),3),1), INDEX('PFB-Konstrukte'!$B$9:$J$40,SMALL(IF(NOT(ISERROR(FIND(IF(LEFT(A11,1)="0"," " & MID(A11,2,1) & ",",IF(MID(A11,3,1)=".",LEFT(A11,2),LEFT(A11,3))),'PFB-Konstrukte'!$J$9:$J$40))),ROW($1:$32)),2),1)), IF(RIGHT(INDEX('PFB-Konstrukte'!$A$9:$J$40,SMALL(IF(NOT(ISERROR(FIND(IF(LEFT(A11,1)="0"," " & MID(A11,2,1) & ",",IF(MID(A11,3,1)=".",LEFT(A11,2),LEFT(A11,3))),'PFB-Konstrukte'!$J$9:$J$40))),ROW($1:$32)),1),1),7)="Führung", INDEX('PFB-Konstrukte'!$A$9:$J$40,SMALL(IF(NOT(ISERROR(FIND(IF(LEFT(A11,1)="0"," " & MID(A11,2,1) & ",",IF(MID(A11,3,1)=".",LEFT(A11,2),LEFT(A11,3))),'PFB-Konstrukte'!$J$9:$J$40))),ROW($1:$32)),1),1) & ", " & INDEX('PFB-Konstrukte'!$B$9:$J$40,SMALL(IF(NOT(ISERROR(FIND(IF(LEFT(A11,1)="0"," " & MID(A11,2,1) & ",",IF(MID(A11,3,1)=".",LEFT(A11,2),LEFT(A11,3))),'PFB-Konstrukte'!$J$9:$J$40))),ROW($1:$32)),2),1), INDEX('PFB-Konstrukte'!$A$9:$J$40,SMALL(IF(NOT(ISERROR(FIND(IF(LEFT(A11,1)="0"," " & MID(A11,2,1) & ",",IF(MID(A11,3,1)=".",LEFT(A11,2),LEFT(A11,3))),'PFB-Konstrukte'!$J$9:$J$40))),ROW($1:$32)),1),1))), INDEX('PFB-Konstrukte'!$A$9:$J$40,SMALL(IF(NOT(ISERROR(FIND(IF(LEFT(A11,1)="0"," " & MID(A11,2,1) & ",",IF(MID(A11,3,1)=".",LEFT(A11,2),LEFT(A11,3))),'PFB-Konstrukte'!$J$9:$J$40))),ROW($1:$32)),1),1)) -> Schülerbezogener Austausch
B13: N | C13: MW | D13: SE | E13: SD | F13: trifft nicht zu | G13: trifft eher nicht zu | H13: trifft eher zu | I13: trifft voll zu | J13: Zuordnung zum Konstrukt
A14: 04. Ich spreche mich mit meinen Kolleginnen und Kollegen regelmäßig über Aufgaben im Unterricht ab. | B14: 16 | C14: 3.1875 | D14: 0.1875 | E14: 0.75 | F14: 0 | G14: 0.1875 | H14: 0.4375 | I14: 0.375 | J14: =IF(INDIRECT("'PFB-Konstrukte'!A" & (SMALL(IF(NOT(ISERROR(FIND(IF(LEFT(A14,1)="0"," " & MID(A14,2,1) & ",",IF(MID(A14,3,1)=".",LEFT(A14,2),LEFT(A14,3))),'PFB-Konstrukte'!$J$9:$J$40))),ROW($9:$40)),1)+1))="", IF(LEFT(INDIRECT("A"&MAX(IF($B$1:B14="N",ROW($A$1:A14)))-1),3)="nur", IF(RIGHT(INDIRECT("A"&MAX(IF($B$1:B14="N",ROW($A$1:A14)))-1),4)="PTF!", INDEX('PFB-Konstrukte'!$B$9:$J$40,SMALL(IF(NOT(ISERROR(FIND(IF(LEFT(A14,1)="0"," " & MID(A14,2,1) & ",",IF(MID(A14,3,1)=".",LEFT(A14,2),LEFT(A14,3))),'PFB-Konstrukte'!$J$9:$J$40))),ROW($1:$32)),3),1), INDEX('PFB-Konstrukte'!$B$9:$J$40,SMALL(IF(NOT(ISERROR(FIND(IF(LEFT(A14,1)="0"," " & MID(A14,2,1) & ",",IF(MID(A14,3,1)=".",LEFT(A14,2),LEFT(A14,3))),'PFB-Konstrukte'!$J$9:$J$40))),ROW($1:$32)),2),1)), IF(RIGHT(INDEX('PFB-Konstrukte'!$A$9:$J$40,SMALL(IF(NOT(ISERROR(FIND(IF(LEFT(A14,1)="0"," " & MID(A14,2,1) & ",",IF(MID(A14,3,1)=".",LEFT(A14,2),LEFT(A14,3))),'PFB-Konstrukte'!$J$9:$J$40))),ROW($1:$32)),1),1),7)="Führung", INDEX('PFB-Konstrukte'!$A$9:$J$40,SMALL(IF(NOT(ISERROR(FIND(IF(LEFT(A14,1)="0"," " & MID(A14,2,1) & ",",IF(MID(A14,3,1)=".",LEFT(A14,2),LEFT(A14,3))),'PFB-Konstrukte'!$J$9:$J$40))),ROW($1:$32)),1),1) & ", " & INDEX('PFB-Konstrukte'!$B$9:$J$40,SMALL(IF(NOT(ISERROR(FIND(IF(LEFT(A14,1)="0"," " & MID(A14,2,1) & ",",IF(MID(A14,3,1)=".",LEFT(A14,2),LEFT(A14,3))),'PFB-Konstrukte'!$J$9:$J$40))),ROW($1:$32)),2),1), INDEX('PFB-Konstrukte'!$A$9:$J$40,SMALL(IF(NOT(ISERROR(FIND(IF(LEFT(A14,1)="0"," " & MID(A14,2,1) & ",",IF(MID(A14,3,1)=".",LEFT(A14,2),LEFT(A14,3))),'PFB-Konstrukte'!$J$9:$J$40))),ROW($1:$32)),1),1))), INDEX('PFB-Konstrukte'!$A$9:$J$40,SMALL(IF(NOT(ISERROR(FIND(IF(LEFT(A14,1)="0"," " & MID(A14,2,1) & ",",IF(MID(A14,3,1)=".",LEFT(A14,2),LEFT(A14,3))),'PFB-Konstrukte'!$J$9:$J$40))),ROW($1:$32)),1),1)) -> Synchronisation
A15: 05. Ich spreche mich regelmäßig mit meinen Kolleginnen und Kollegen über Inhalt und Anforderungen von Klassenarbeiten ab. | B15: 16 | C15: 3 | D15: 0.1825741858 | E15: 0.7302967433 | F15: 0 | G15: 0.25 | H15: 0.5 | I15: 0.25 | J15: =IF(INDIRECT("'PFB-Konstrukte'!A" & (SMALL(IF(NOT(ISERROR(FIND(IF(LEFT(A15,1)="0"," " & MID(A15,2,1) & ",",IF(MID(A15,3,1)=".",LEFT(A15,2),LEFT(A15,3))),'PFB-Konstrukte'!$J$9:$J$40))),ROW($9:$40)),1)+1))="", IF(LEFT(INDIRECT("A"&MAX(IF($B$1:B15="N",ROW($A$1:A15)))-1),3)="nur", IF(RIGHT(INDIRECT("A"&MAX(IF($B$1:B15="N",ROW($A$1:A15)))-1),4)="PTF!", INDEX('PFB-Konstrukte'!$B$9:$J$40,SMALL(IF(NOT(ISERROR(FIND(IF(LEFT(A15,1)="0"," " & MID(A15,2,1) & ",",IF(MID(A15,3,1)=".",LEFT(A15,2),LEFT(A15,3))),'PFB-Konstrukte'!$J$9:$J$40))),ROW($1:$32)),3),1), INDEX('PFB-Konstrukte'!$B$9:$J$40,SMALL(IF(NOT(ISERROR(FIND(IF(LEFT(A15,1)="0"," " & MID(A15,2,1) & ",",IF(MID(A15,3,1)=".",LEFT(A15,2),LEFT(A15,3))),'PFB-Konstrukte'!$J$9:$J$40))),ROW($1:$32)),2),1)), IF(RIGHT(INDEX('PFB-Konstrukte'!$A$9:$J$40,SMALL(IF(NOT(ISERROR(FIND(IF(LEFT(A15,1)="0"," " & MID(A15,2,1) & ",",IF(MID(A15,3,1)=".",LEFT(A15,2),LEFT(A15,3))),'PFB-Konstrukte'!$J$9:$J$40))),ROW($1:$32)),1),1),7)="Führung", INDEX('PFB-Konstrukte'!$A$9:$J$40,SMALL(IF(NOT(ISERROR(FIND(IF(LEFT(A15,1)="0"," " & MID(A15,2,1) & ",",IF(MID(A15,3,1)=".",LEFT(A15,2),LEFT(A15,3))),'PFB-Konstrukte'!$J$9:$J$40))),ROW($1:$32)),1),1) & ", " & INDEX('PFB-Konstrukte'!$B$9:$J$40,SMALL(IF(NOT(ISERROR(FIND(IF(LEFT(A15,1)="0"," " & MID(A15,2,1) & ",",IF(MID(A15,3,1)=".",LEFT(A15,2),LEFT(A15,3))),'PFB-Konstrukte'!$J$9:$J$40))),ROW($1:$32)),2),1), INDEX('PFB-Konstrukte'!$A$9:$J$40,SMALL(IF(NOT(ISERROR(FIND(IF(LEFT(A15,1)="0"," " & MID(A15,2,1) & ",",IF(MID(A15,3,1)=".",LEFT(A15,2),LEFT(A15,3))),'PFB-Konstrukte'!$J$9:$J$40))),ROW($1:$32)),1),1))), INDEX('PFB-Konstrukte'!$A$9:$J$40,SMALL(IF(NOT(ISERROR(FIND(IF(LEFT(A15,1)="0"," " & MID(A15,2,1) & ",",IF(MID(A15,3,1)=".",LEFT(A15,2),LEFT(A15,3))),'PFB-Konstrukte'!$J$9:$J$40))),ROW($1:$32)),1),1)) -> Synchronisation
A16: 06. Ich spreche mich regelmäßig mit Kolleginnen und Kollegen, die dieselbe Jahrgangsstufe wie ich unterrichten, über Termine für Klassenarbeiten und Tests ab. | B16: 15 | C16: 2.533333333 | D16: 0.2737163403 | E16: 1.060098827 | F16: 0.1333333333 | G16: 0.4666666667 | H16: 0.1333333333 | I16: 0.2666666667 | J16: =IF(INDIRECT("'PFB-Konstrukte'!A" & (SMALL(IF(NOT(ISERROR(FIND(IF(LEFT(A16,1)="0"," " & MID(A16,2,1) & ",",IF(MID(A16,3,1)=".",LEFT(A16,2),LEFT(A16,3))),'PFB-Konstrukte'!$J$9:$J$40))),ROW($9:$40)),1)+1))="", IF(LEFT(INDIRECT("A"&MAX(IF($B$1:B16="N",ROW($A$1:A16)))-1),3)="nur", IF(RIGHT(INDIRECT("A"&MAX(IF($B$1:B16="N",ROW($A$1:A16)))-1),4)="PTF!", INDEX('PFB-Konstrukte'!$B$9:$J$40,SMALL(IF(NOT(ISERROR(FIND(IF(LEFT(A16,1)="0"," " & MID(A16,2,1) & ",",IF(MID(A16,3,1)=".",LEFT(A16,2),LEFT(A16,3))),'PFB-Konstrukte'!$J$9:$J$40))),ROW($1:$32)),3),1), INDEX('PFB-Konstrukte'!$B$9:$J$40,SMALL(IF(NOT(ISERROR(FIND(IF(LEFT(A16,1)="0"," " & MID(A16,2,1) & ",",IF(MID(A16,3,1)=".",LEFT(A16,2),LEFT(A16,3))),'PFB-Konstrukte'!$J$9:$J$40))),ROW($1:$32)),2),1)), IF(RIGHT(INDEX('PFB-Konstrukte'!$A$9:$J$40,SMALL(IF(NOT(ISERROR(FIND(IF(LEFT(A16,1)="0"," " & MID(A16,2,1) & ",",IF(MID(A16,3,1)=".",LEFT(A16,2),LEFT(A16,3))),'PFB-Konstrukte'!$J$9:$J$40))),ROW($1:$32)),1),1),7)="Führung", INDEX('PFB-Konstrukte'!$A$9:$J$40,SMALL(IF(NOT(ISERROR(FIND(IF(LEFT(A16,1)="0"," " & MID(A16,2,1) & ",",IF(MID(A16,3,1)=".",LEFT(A16,2),LEFT(A16,3))),'PFB-Konstrukte'!$J$9:$J$40))),ROW($1:$32)),1),1) & ", " & INDEX('PFB-Konstrukte'!$B$9:$J$40,SMALL(IF(NOT(ISERROR(FIND(IF(LEFT(A16,1)="0"," " & MID(A16,2,1) & ",",IF(MID(A16,3,1)=".",LEFT(A16,2),LEFT(A16,3))),'PFB-Konstrukte'!$J$9:$J$40))),ROW($1:$32)),2),1), INDEX('PFB-Konstrukte'!$A$9:$J$40,SMALL(IF(NOT(ISERROR(FIND(IF(LEFT(A16,1)="0"," " & MID(A16,2,1) & ",",IF(MID(A16,3,1)=".",LEFT(A16,2),LEFT(A16,3))),'PFB-Konstrukte'!$J$9:$J$40))),ROW($1:$32)),1),1))), INDEX('PFB-Konstrukte'!$A$9:$J$40,SMALL(IF(NOT(ISERROR(FIND(IF(LEFT(A16,1)="0"," " & MID(A16,2,1) & ",",IF(MID(A16,3,1)=".",LEFT(A16,2),LEFT(A16,3))),'PFB-Konstrukte'!$J$9:$J$40))),ROW($1:$32)),1),1)) -> Synchronisation
A17: 07. Ich gestalte regelmäßig mit Kolleginnen und Kollegen, die dieselbe Jahrgangsstufe wie ich unterrichten, die Themenfolge parallel. | B17: 14 | C17: 2.857142857 | D17: 0.177192478 | E17: 0.6629935441 | F17: 0 | G17: 0.2857142857 | H17: 0.5714285714 | I17: 0.1428571429 | J17: =IF(INDIRECT("'PFB-Konstrukte'!A" & (SMALL(IF(NOT(ISERROR(FIND(IF(LEFT(A17,1)="0"," " & MID(A17,2,1) & ",",IF(MID(A17,3,1)=".",LEFT(A17,2),LEFT(A17,3))),'PFB-Konstrukte'!$J$9:$J$40))),ROW($9:$40)),1)+1))="", IF(LEFT(INDIRECT("A"&MAX(IF($B$1:B17="N",ROW($A$1:A17)))-1),3)="nur", IF(RIGHT(INDIRECT("A"&MAX(IF($B$1:B17="N",ROW($A$1:A17)))-1),4)="PTF!", INDEX('PFB-Konstrukte'!$B$9:$J$40,SMALL(IF(NOT(ISERROR(FIND(IF(LEFT(A17,1)="0"," " & MID(A17,2,1) & ",",IF(MID(A17,3,1)=".",LEFT(A17,2),LEFT(A17,3))),'PFB-Konstrukte'!$J$9:$J$40))),ROW($1:$32)),3),1), INDEX('PFB-Konstrukte'!$B$9:$J$40,SMALL(IF(NOT(ISERROR(FIND(IF(LEFT(A17,1)="0"," " & MID(A17,2,1) & ",",IF(MID(A17,3,1)=".",LEFT(A17,2),LEFT(A17,3))),'PFB-Konstrukte'!$J$9:$J$40))),ROW($1:$32)),2),1)), IF(RIGHT(INDEX('PFB-Konstrukte'!$A$9:$J$40,SMALL(IF(NOT(ISERROR(FIND(IF(LEFT(A17,1)="0"," " & MID(A17,2,1) & ",",IF(MID(A17,3,1)=".",LEFT(A17,2),LEFT(A17,3))),'PFB-Konstrukte'!$J$9:$J$40))),ROW($1:$32)),1),1),7)="Führung", INDEX('PFB-Konstrukte'!$A$9:$J$40,SMALL(IF(NOT(ISERROR(FIND(IF(LEFT(A17,1)="0"," " & MID(A17,2,1) & ",",IF(MID(A17,3,1)=".",LEFT(A17,2),LEFT(A17,3))),'PFB-Konstrukte'!$J$9:$J$40))),ROW($1:$32)),1),1) & ", " & INDEX('PFB-Konstrukte'!$B$9:$J$40,SMALL(IF(NOT(ISERROR(FIND(IF(LEFT(A17,1)="0"," " & MID(A17,2,1) & ",",IF(MID(A17,3,1)=".",LEFT(A17,2),LEFT(A17,3))),'PFB-Konstrukte'!$J$9:$J$40))),ROW($1:$32)),2),1), INDEX('PFB-Konstrukte'!$A$9:$J$40,SMALL(IF(NOT(ISERROR(FIND(IF(LEFT(A17,1)="0"," " & MID(A17,2,1) & ",",IF(MID(A17,3,1)=".",LEFT(A17,2),LEFT(A17,3))),'PFB-Konstrukte'!$J$9:$J$40))),ROW($1:$32)),1),1))), INDEX('PFB-Konstrukte'!$A$9:$J$40,SMALL(IF(NOT(ISERROR(FIND(IF(LEFT(A17,1)="0"," " & MID(A17,2,1) & ",",IF(MID(A17,3,1)=".",LEFT(A17,2),LEFT(A17,3))),'PFB-Konstrukte'!$J$9:$J$40))),ROW($1:$32)),1),1)) -> Synchronisation
B19: N | C19: MW | D19: SE | E19: SD | F19: trifft nicht zu | G19: trifft eher nicht zu | H19: trifft eher zu | I19: trifft voll zu | J19: Zuordnung zum Konstrukt
A20: 08. Ich führe mit Kolleginnen und Kollegen regelmäßig gegenseitige Unterrichtshospitationen durch. | B20: 14 | C20: 1.142857143 | D20: 0.09705231721 | E20: 0.3631365196 | F20: 0.8571428571 | G20: 0.1428571429 | H20: 0 | I20: 0 | J20: =IF(INDIRECT("'PFB-Konstrukte'!A" & (SMALL(IF(NOT(ISERROR(FIND(IF(LEFT(A20,1)="0"," " & MID(A20,2,1) & ",",IF(MID(A20,3,1)=".",LEFT(A20,2),LEFT(A20,3))),'PFB-Konstrukte'!$J$9:$J$40))),ROW($9:$40)),1)+1))="", IF(LEFT(INDIRECT("A"&MAX(IF($B$1:B20="N",ROW($A$1:A20)))-1),3)="nur", IF(RIGHT(INDIRECT("A"&MAX(IF($B$1:B20="N",ROW($A$1:A20)))-1),4)="PTF!", INDEX('PFB-Konstrukte'!$B$9:$J$40,SMALL(IF(NOT(ISERROR(FIND(IF(LEFT(A20,1)="0"," " & MID(A20,2,1) & ",",IF(MID(A20,3,1)=".",LEFT(A20,2),LEFT(A20,3))),'PFB-Konstrukte'!$J$9:$J$40))),ROW($1:$32)),3),1), INDEX('PFB-Konstrukte'!$B$9:$J$40,SMALL(IF(NOT(ISERROR(FIND(IF(LEFT(A20,1)="0"," " & MID(A20,2,1) & ",",IF(MID(A20,3,1)=".",LEFT(A20,2),LEFT(A20,3))),'PFB-Konstrukte'!$J$9:$J$40))),ROW($1:$32)),2),1)), IF(RIGHT(INDEX('PFB-Konstrukte'!$A$9:$J$40,SMALL(IF(NOT(ISERROR(FIND(IF(LEFT(A20,1)="0"," " & MID(A20,2,1) & ",",IF(MID(A20,3,1)=".",LEFT(A20,2),LEFT(A20,3))),'PFB-Konstrukte'!$J$9:$J$40))),ROW($1:$32)),1),1),7)="Führung", INDEX('PFB-Konstrukte'!$A$9:$J$40,SMALL(IF(NOT(ISERROR(FIND(IF(LEFT(A20,1)="0"," " & MID(A20,2,1) & ",",IF(MID(A20,3,1)=".",LEFT(A20,2),LEFT(A20,3))),'PFB-Konstrukte'!$J$9:$J$40))),ROW($1:$32)),1),1) & ", " & INDEX('PFB-Konstrukte'!$B$9:$J$40,SMALL(IF(NOT(ISERROR(FIND(IF(LEFT(A20,1)="0"," " & MID(A20,2,1) & ",",IF(MID(A20,3,1)=".",LEFT(A20,2),LEFT(A20,3))),'PFB-Konstrukte'!$J$9:$J$40))),ROW($1:$32)),2),1), INDEX('PFB-Konstrukte'!$A$9:$J$40,SMALL(IF(NOT(ISERROR(FIND(IF(LEFT(A20,1)="0"," " & MID(A20,2,1) & ",",IF(MID(A20,3,1)=".",LEFT(A20,2),LEFT(A20,3))),'PFB-Konstrukte'!$J$9:$J$40))),ROW($1:$32)),1),1))), INDEX('PFB-Konstrukte'!$A$9:$J$40,SMALL(IF(NOT(ISERROR(FIND(IF(LEFT(A20,1)="0"," " & MID(A20,2,1) & ",",IF(MID(A20,3,1)=".",LEFT(A20,2),LEFT(A20,3))),'PFB-Konstrukte'!$J$9:$J$40))),ROW($1:$32)),1),1)) -> Ko-Konstruktion
A21: 09. Ich bereite mit meinen Kolleginnen und Kollegen regelmäßig gemeinsam Unterricht vor. | B21: 15 | C21: 2.066666667 | D21: 0.2062515031 | E21: 0.7988086367 | F21: 0.2666666667 | G21: 0.4 | H21: 0.3333333333 | I21: 0 | J21: =IF(INDIRECT("'PFB-Konstrukte'!A" & (SMALL(IF(NOT(ISERROR(FIND(IF(LEFT(A21,1)="0"," " & MID(A21,2,1) & ",",IF(MID(A21,3,1)=".",LEFT(A21,2),LEFT(A21,3))),'PFB-Konstrukte'!$J$9:$J$40))),ROW($9:$40)),1)+1))="", IF(LEFT(INDIRECT("A"&MAX(IF($B$1:B21="N",ROW($A$1:A21)))-1),3)="nur", IF(RIGHT(INDIRECT("A"&MAX(IF($B$1:B21="N",ROW($A$1:A21)))-1),4)="PTF!", INDEX('PFB-Konstrukte'!$B$9:$J$40,SMALL(IF(NOT(ISERROR(FIND(IF(LEFT(A21,1)="0"," " & MID(A21,2,1) & ",",IF(MID(A21,3,1)=".",LEFT(A21,2),LEFT(A21,3))),'PFB-Konstrukte'!$J$9:$J$40))),ROW($1:$32)),3),1), INDEX('PFB-Konstrukte'!$B$9:$J$40,SMALL(IF(NOT(ISERROR(FIND(IF(LEFT(A21,1)="0"," " & MID(A21,2,1) & ",",IF(MID(A21,3,1)=".",LEFT(A21,2),LEFT(A21,3))),'PFB-Konstrukte'!$J$9:$J$40))),ROW($1:$32)),2),1)), IF(RIGHT(INDEX('PFB-Konstrukte'!$A$9:$J$40,SMALL(IF(NOT(ISERROR(FIND(IF(LEFT(A21,1)="0"," " & MID(A21,2,1) & ",",IF(MID(A21,3,1)=".",LEFT(A21,2),LEFT(A21,3))),'PFB-Konstrukte'!$J$9:$J$40))),ROW($1:$32)),1),1),7)="Führung", INDEX('PFB-Konstrukte'!$A$9:$J$40,SMALL(IF(NOT(ISERROR(FIND(IF(LEFT(A21,1)="0"," " & MID(A21,2,1) & ",",IF(MID(A21,3,1)=".",LEFT(A21,2),LEFT(A21,3))),'PFB-Konstrukte'!$J$9:$J$40))),ROW($1:$32)),1),1) & ", " & INDEX('PFB-Konstrukte'!$B$9:$J$40,SMALL(IF(NOT(ISERROR(FIND(IF(LEFT(A21,1)="0"," " & MID(A21,2,1) & ",",IF(MID(A21,3,1)=".",LEFT(A21,2),LEFT(A21,3))),'PFB-Konstrukte'!$J$9:$J$40))),ROW($1:$32)),2),1), INDEX('PFB-Konstrukte'!$A$9:$J$40,SMALL(IF(NOT(ISERROR(FIND(IF(LEFT(A21,1)="0"," " & MID(A21,2,1) & ",",IF(MID(A21,3,1)=".",LEFT(A21,2),LEFT(A21,3))),'PFB-Konstrukte'!$J$9:$J$40))),ROW($1:$32)),1),1))), INDEX('PFB-Konstrukte'!$A$9:$J$40,SMALL(IF(NOT(ISERROR(FIND(IF(LEFT(A21,1)="0"," " & MID(A21,2,1) & ",",IF(MID(A21,3,1)=".",LEFT(A21,2),LEFT(A21,3))),'PFB-Konstrukte'!$J$9:$J$40))),ROW($1:$32)),1),1)) -> Ko-Konstruktion
A22: 10. Ich erprobe mit den Kolleginnen und Kollegen regelmäßig gemeinsam neue Unterrichtsmethoden. | B22: 14 | C22: 2.214285714 | D22: 0.1868939709 | E22: 0.6992932068 | F22: 0.1428571429 | G22: 0.5 | H22: 0.3571428571 | I22: 0 | J22: =IF(INDIRECT("'PFB-Konstrukte'!A" & (SMALL(IF(NOT(ISERROR(FIND(IF(LEFT(A22,1)="0"," " & MID(A22,2,1) & ",",IF(MID(A22,3,1)=".",LEFT(A22,2),LEFT(A22,3))),'PFB-Konstrukte'!$J$9:$J$40))),ROW($9:$40)),1)+1))="", IF(LEFT(INDIRECT("A"&MAX(IF($B$1:B22="N",ROW($A$1:A22)))-1),3)="nur", IF(RIGHT(INDIRECT("A"&MAX(IF($B$1:B22="N",ROW($A$1:A22)))-1),4)="PTF!", INDEX('PFB-Konstrukte'!$B$9:$J$40,SMALL(IF(NOT(ISERROR(FIND(IF(LEFT(A22,1)="0"," " & MID(A22,2,1) & ",",IF(MID(A22,3,1)=".",LEFT(A22,2),LEFT(A22,3))),'PFB-Konstrukte'!$J$9:$J$40))),ROW($1:$32)),3),1), INDEX('PFB-Konstrukte'!$B$9:$J$40,SMALL(IF(NOT(ISERROR(FIND(IF(LEFT(A22,1)="0"," " & MID(A22,2,1) & ",",IF(MID(A22,3,1)=".",LEFT(A22,2),LEFT(A22,3))),'PFB-Konstrukte'!$J$9:$J$40))),ROW($1:$32)),2),1)), IF(RIGHT(INDEX('PFB-Konstrukte'!$A$9:$J$40,SMALL(IF(NOT(ISERROR(FIND(IF(LEFT(A22,1)="0"," " & MID(A22,2,1) & ",",IF(MID(A22,3,1)=".",LEFT(A22,2),LEFT(A22,3))),'PFB-Konstrukte'!$J$9:$J$40))),ROW($1:$32)),1),1),7)="Führung", INDEX('PFB-Konstrukte'!$A$9:$J$40,SMALL(IF(NOT(ISERROR(FIND(IF(LEFT(A22,1)="0"," " & MID(A22,2,1) & ",",IF(MID(A22,3,1)=".",LEFT(A22,2),LEFT(A22,3))),'PFB-Konstrukte'!$J$9:$J$40))),ROW($1:$32)),1),1) & ", " & INDEX('PFB-Konstrukte'!$B$9:$J$40,SMALL(IF(NOT(ISERROR(FIND(IF(LEFT(A22,1)="0"," " & MID(A22,2,1) & ",",IF(MID(A22,3,1)=".",LEFT(A22,2),LEFT(A22,3))),'PFB-Konstrukte'!$J$9:$J$40))),ROW($1:$32)),2),1), INDEX('PFB-Konstrukte'!$A$9:$J$40,SMALL(IF(NOT(ISERROR(FIND(IF(LEFT(A22,1)="0"," " & MID(A22,2,1) & ",",IF(MID(A22,3,1)=".",LEFT(A22,2),LEFT(A22,3))),'PFB-Konstrukte'!$J$9:$J$40))),ROW($1:$32)),1),1))), INDEX('PFB-Konstrukte'!$A$9:$J$40,SMALL(IF(NOT(ISERROR(FIND(IF(LEFT(A22,1)="0"," " & MID(A22,2,1) & ",",IF(MID(A22,3,1)=".",LEFT(A22,2),LEFT(A22,3))),'PFB-Konstrukte'!$J$9:$J$40))),ROW($1:$32)),1),1)) -> Ko-Konstruktion
A23: 11. Ich erprobe mit den Kolleginnen und Kollegen regelmäßig gemeinsam neue Unterrichtsinhalte. | B23: 14 | C23: 2.214285714 | D23: 0.1868939709 | E23: 0.6992932068 | F23: 0.1428571429 | G23: 0.5 | H23: 0.3571428571 | I23: 0 | J23: =IF(INDIRECT("'PFB-Konstrukte'!A" & (SMALL(IF(NOT(ISERROR(FIND(IF(LEFT(A23,1)="0"," " & MID(A23,2,1) & ",",IF(MID(A23,3,1)=".",LEFT(A23,2),LEFT(A23,3))),'PFB-Konstrukte'!$J$9:$J$40))),ROW($9:$40)),1)+1))="", IF(LEFT(INDIRECT("A"&MAX(IF($B$1:B23="N",ROW($A$1:A23)))-1),3)="nur", IF(RIGHT(INDIRECT("A"&MAX(IF($B$1:B23="N",ROW($A$1:A23)))-1),4)="PTF!", INDEX('PFB-Konstrukte'!$B$9:$J$40,SMALL(IF(NOT(ISERROR(FIND(IF(LEFT(A23,1)="0"," " & MID(A23,2,1) & ",",IF(MID(A23,3,1)=".",LEFT(A23,2),LEFT(A23,3))),'PFB-Konstrukte'!$J$9:$J$40))),ROW($1:$32)),3),1), INDEX('PFB-Konstrukte'!$B$9:$J$40,SMALL(IF(NOT(ISERROR(FIND(IF(LEFT(A23,1)="0"," " & MID(A23,2,1) & ",",IF(MID(A23,3,1)=".",LEFT(A23,2),LEFT(A23,3))),'PFB-Konstrukte'!$J$9:$J$40))),ROW($1:$32)),2),1)), IF(RIGHT(INDEX('PFB-Konstrukte'!$A$9:$J$40,SMALL(IF(NOT(ISERROR(FIND(IF(LEFT(A23,1)="0"," " & MID(A23,2,1) & ",",IF(MID(A23,3,1)=".",LEFT(A23,2),LEFT(A23,3))),'PFB-Konstrukte'!$J$9:$J$40))),ROW($1:$32)),1),1),7)="Führung", INDEX('PFB-Konstrukte'!$A$9:$J$40,SMALL(IF(NOT(ISERROR(FIND(IF(LEFT(A23,1)="0"," " & MID(A23,2,1) & ",",IF(MID(A23,3,1)=".",LEFT(A23,2),LEFT(A23,3))),'PFB-Konstrukte'!$J$9:$J$40))),ROW($1:$32)),1),1) & ", " & INDEX('PFB-Konstrukte'!$B$9:$J$40,SMALL(IF(NOT(ISERROR(FIND(IF(LEFT(A23,1)="0"," " & MID(A23,2,1) & ",",IF(MID(A23,3,1)=".",LEFT(A23,2),LEFT(A23,3))),'PFB-Konstrukte'!$J$9:$J$40))),ROW($1:$32)),2),1), INDEX('PFB-Konstrukte'!$A$9:$J$40,SMALL(IF(NOT(ISERROR(FIND(IF(LEFT(A23,1)="0"," " & MID(A23,2,1) & ",",IF(MID(A23,3,1)=".",LEFT(A23,2),LEFT(A23,3))),'PFB-Konstrukte'!$J$9:$J$40))),ROW($1:$32)),1),1))), INDEX('PFB-Konstrukte'!$A$9:$J$40,SMALL(IF(NOT(ISERROR(FIND(IF(LEFT(A23,1)="0"," " & MID(A23,2,1) & ",",IF(MID(A23,3,1)=".",LEFT(A23,2),LEFT(A23,3))),'PFB-Konstrukte'!$J$9:$J$40))),ROW($1:$32)),1),1)) -> Ko-Konstruktion
A24: 12. Ich erarbeite mit meinen Kolleginnen und Kollegen regelmäßig Konzepte für den Unterricht oder Projekte. | B24: 14 | C24: 2.142857143 | D24: 0.177192478 | E24: 0.6629935441 | F24: 0.1428571429 | G24: 0.5714285714 | H24: 0.2857142857 | I24: 0 | J24: =IF(INDIRECT("'PFB-Konstrukte'!A" & (SMALL(IF(NOT(ISERROR(FIND(IF(LEFT(A24,1)="0"," " & MID(A24,2,1) & ",",IF(MID(A24,3,1)=".",LEFT(A24,2),LEFT(A24,3))),'PFB-Konstrukte'!$J$9:$J$40))),ROW($9:$40)),1)+1))="", IF(LEFT(INDIRECT("A"&MAX(IF($B$1:B24="N",ROW($A$1:A24)))-1),3)="nur", IF(RIGHT(INDIRECT("A"&MAX(IF($B$1:B24="N",ROW($A$1:A24)))-1),4)="PTF!", INDEX('PFB-Konstrukte'!$B$9:$J$40,SMALL(IF(NOT(ISERROR(FIND(IF(LEFT(A24,1)="0"," " & MID(A24,2,1) & ",",IF(MID(A24,3,1)=".",LEFT(A24,2),LEFT(A24,3))),'PFB-Konstrukte'!$J$9:$J$40))),ROW($1:$32)),3),1), INDEX('PFB-Konstrukte'!$B$9:$J$40,SMALL(IF(NOT(ISERROR(FIND(IF(LEFT(A24,1)="0"," " & MID(A24,2,1) & ",",IF(MID(A24,3,1)=".",LEFT(A24,2),LEFT(A24,3))),'PFB-Konstrukte'!$J$9:$J$40))),ROW($1:$32)),2),1)), IF(RIGHT(INDEX('PFB-Konstrukte'!$A$9:$J$40,SMALL(IF(NOT(ISERROR(FIND(IF(LEFT(A24,1)="0"," " & MID(A24,2,1) & ",",IF(MID(A24,3,1)=".",LEFT(A24,2),LEFT(A24,3))),'PFB-Konstrukte'!$J$9:$J$40))),ROW($1:$32)),1),1),7)="Führung", INDEX('PFB-Konstrukte'!$A$9:$J$40,SMALL(IF(NOT(ISERROR(FIND(IF(LEFT(A24,1)="0"," " & MID(A24,2,1) & ",",IF(MID(A24,3,1)=".",LEFT(A24,2),LEFT(A24,3))),'PFB-Konstrukte'!$J$9:$J$40))),ROW($1:$32)),1),1) & ", " & INDEX('PFB-Konstrukte'!$B$9:$J$40,SMALL(IF(NOT(ISERROR(FIND(IF(LEFT(A24,1)="0"," " & MID(A24,2,1) & ",",IF(MID(A24,3,1)=".",LEFT(A24,2),LEFT(A24,3))),'PFB-Konstrukte'!$J$9:$J$40))),ROW($1:$32)),2),1), INDEX('PFB-Konstrukte'!$A$9:$J$40,SMALL(IF(NOT(ISERROR(FIND(IF(LEFT(A24,1)="0"," " & MID(A24,2,1) & ",",IF(MID(A24,3,1)=".",LEFT(A24,2),LEFT(A24,3))),'PFB-Konstrukte'!$J$9:$J$40))),ROW($1:$32)),1),1))), INDEX('PFB-Konstrukte'!$A$9:$J$40,SMALL(IF(NOT(ISERROR(FIND(IF(LEFT(A24,1)="0"," " & MID(A24,2,1) & ",",IF(MID(A24,3,1)=".",LEFT(A24,2),LEFT(A24,3))),'PFB-Konstrukte'!$J$9:$J$40))),ROW($1:$32)),1),1)) -> Ko-Konstruktion
B26: N | C26: MW | D26: SE | E26: SD | F26: trifft nicht zu | G26: trifft eher nicht zu | H26: trifft eher zu | I26: trifft voll zu | J26: Zuordnung zum Konstrukt
A27: 13. Die fachspezifische Zusammenarbeit ist an unserer Schule fest etabliert. | B27: 16 | C27: 2.6875 | D27: 0.1983000672 | E27: 0.793200269 | F27: 0 | G27: 0.5 | H27: 0.3125 | I27: 0.1875 | J27: =IF(INDIRECT("'PFB-Konstrukte'!A" & (SMALL(IF(NOT(ISERROR(FIND(IF(LEFT(A27,1)="0"," " & MID(A27,2,1) & ",",IF(MID(A27,3,1)=".",LEFT(A27,2),LEFT(A27,3))),'PFB-Konstrukte'!$J$9:$J$40))),ROW($9:$40)),1)+1))="", IF(LEFT(INDIRECT("A"&MAX(IF($B$1:B27="N",ROW($A$1:A27)))-1),3)="nur", IF(RIGHT(INDIRECT("A"&MAX(IF($B$1:B27="N",ROW($A$1:A27)))-1),4)="PTF!", INDEX('PFB-Konstrukte'!$B$9:$J$40,SMALL(IF(NOT(ISERROR(FIND(IF(LEFT(A27,1)="0"," " & MID(A27,2,1) & ",",IF(MID(A27,3,1)=".",LEFT(A27,2),LEFT(A27,3))),'PFB-Konstrukte'!$J$9:$J$40))),ROW($1:$32)),3),1), INDEX('PFB-Konstrukte'!$B$9:$J$40,SMALL(IF(NOT(ISERROR(FIND(IF(LEFT(A27,1)="0"," " & MID(A27,2,1) & ",",IF(MID(A27,3,1)=".",LEFT(A27,2),LEFT(A27,3))),'PFB-Konstrukte'!$J$9:$J$40))),ROW($1:$32)),2),1)), IF(RIGHT(INDEX('PFB-Konstrukte'!$A$9:$J$40,SMALL(IF(NOT(ISERROR(FIND(IF(LEFT(A27,1)="0"," " & MID(A27,2,1) & ",",IF(MID(A27,3,1)=".",LEFT(A27,2),LEFT(A27,3))),'PFB-Konstrukte'!$J$9:$J$40))),ROW($1:$32)),1),1),7)="Führung", INDEX('PFB-Konstrukte'!$A$9:$J$40,SMALL(IF(NOT(ISERROR(FIND(IF(LEFT(A27,1)="0"," " & MID(A27,2,1) & ",",IF(MID(A27,3,1)=".",LEFT(A27,2),LEFT(A27,3))),'PFB-Konstrukte'!$J$9:$J$40))),ROW($1:$32)),1),1) & ", " & INDEX('PFB-Konstrukte'!$B$9:$J$40,SMALL(IF(NOT(ISERROR(FIND(IF(LEFT(A27,1)="0"," " & MID(A27,2,1) & ",",IF(MID(A27,3,1)=".",LEFT(A27,2),LEFT(A27,3))),'PFB-Konstrukte'!$J$9:$J$40))),ROW($1:$32)),2),1), INDEX('PFB-Konstrukte'!$A$9:$J$40,SMALL(IF(NOT(ISERROR(FIND(IF(LEFT(A27,1)="0"," " & MID(A27,2,1) & ",",IF(MID(A27,3,1)=".",LEFT(A27,2),LEFT(A27,3))),'PFB-Konstrukte'!$J$9:$J$40))),ROW($1:$32)),1),1))), INDEX('PFB-Konstrukte'!$A$9:$J$40,SMALL(IF(NOT(ISERROR(FIND(IF(LEFT(A27,1)="0"," " & MID(A27,2,1) & ",",IF(MID(A27,3,1)=".",LEFT(A27,2),LEFT(A27,3))),'PFB-Konstrukte'!$J$9:$J$40))),ROW($1:$32)),1),1)) -> Fachliche und jahrgangsspezifische Kooperation unter Lehrpersonen
A28: 14. Die fachübergreifende Zusammenarbeit ist an unserer Schule fest etabliert. | B28: 15 | C28: 2.333333333 | D28: 0.1259881577 | E28: 0.4879500365 | F28: 0 | G28: 0.6666666667 | H28: 0.3333333333 | I28: 0 | J28: =IF(INDIRECT("'PFB-Konstrukte'!A" & (SMALL(IF(NOT(ISERROR(FIND(IF(LEFT(A28,1)="0"," " & MID(A28,2,1) & ",",IF(MID(A28,3,1)=".",LEFT(A28,2),LEFT(A28,3))),'PFB-Konstrukte'!$J$9:$J$40))),ROW($9:$40)),1)+1))="", IF(LEFT(INDIRECT("A"&MAX(IF($B$1:B28="N",ROW($A$1:A28)))-1),3)="nur", IF(RIGHT(INDIRECT("A"&MAX(IF($B$1:B28="N",ROW($A$1:A28)))-1),4)="PTF!", INDEX('PFB-Konstrukte'!$B$9:$J$40,SMALL(IF(NOT(ISERROR(FIND(IF(LEFT(A28,1)="0"," " & MID(A28,2,1) & ",",IF(MID(A28,3,1)=".",LEFT(A28,2),LEFT(A28,3))),'PFB-Konstrukte'!$J$9:$J$40))),ROW($1:$32)),3),1), INDEX('PFB-Konstrukte'!$B$9:$J$40,SMALL(IF(NOT(ISERROR(FIND(IF(LEFT(A28,1)="0"," " & MID(A28,2,1) & ",",IF(MID(A28,3,1)=".",LEFT(A28,2),LEFT(A28,3))),'PFB-Konstrukte'!$J$9:$J$40))),ROW($1:$32)),2),1)), IF(RIGHT(INDEX('PFB-Konstrukte'!$A$9:$J$40,SMALL(IF(NOT(ISERROR(FIND(IF(LEFT(A28,1)="0"," " & MID(A28,2,1) & ",",IF(MID(A28,3,1)=".",LEFT(A28,2),LEFT(A28,3))),'PFB-Konstrukte'!$J$9:$J$40))),ROW($1:$32)),1),1),7)="Führung", INDEX('PFB-Konstrukte'!$A$9:$J$40,SMALL(IF(NOT(ISERROR(FIND(IF(LEFT(A28,1)="0"," " & MID(A28,2,1) & ",",IF(MID(A28,3,1)=".",LEFT(A28,2),LEFT(A28,3))),'PFB-Konstrukte'!$J$9:$J$40))),ROW($1:$32)),1),1) & ", " & INDEX('PFB-Konstrukte'!$B$9:$J$40,SMALL(IF(NOT(ISERROR(FIND(IF(LEFT(A28,1)="0"," " & MID(A28,2,1) & ",",IF(MID(A28,3,1)=".",LEFT(A28,2),LEFT(A28,3))),'PFB-Konstrukte'!$J$9:$J$40))),ROW($1:$32)),2),1), INDEX('PFB-Konstrukte'!$A$9:$J$40,SMALL(IF(NOT(ISERROR(FIND(IF(LEFT(A28,1)="0"," " & MID(A28,2,1) & ",",IF(MID(A28,3,1)=".",LEFT(A28,2),LEFT(A28,3))),'PFB-Konstrukte'!$J$9:$J$40))),ROW($1:$32)),1),1))), INDEX('PFB-Konstrukte'!$A$9:$J$40,SMALL(IF(NOT(ISERROR(FIND(IF(LEFT(A28,1)="0"," " & MID(A28,2,1) & ",",IF(MID(A28,3,1)=".",LEFT(A28,2),LEFT(A28,3))),'PFB-Konstrukte'!$J$9:$J$40))),ROW($1:$32)),1),1)) -> Fachliche und jahrgangsspezifische Kooperation unter Lehrpersonen
A29: 15. Die jahrgangsspezifische Zusammenarbeit ist an unserer Schule fest etabliert. | B29: 15 | C29: 2.8 | D29: 0.1745743122 | E29: 0.6761234038 | F29: 0 | G29: 0.3333333333 | H29: 0.5333333333 | I29: 0.1333333333 | J29: =IF(INDIRECT("'PFB-Konstrukte'!A" & (SMALL(IF(NOT(ISERROR(FIND(IF(LEFT(A29,1)="0"," " & MID(A29,2,1) & ",",IF(MID(A29,3,1)=".",LEFT(A29,2),LEFT(A29,3))),'PFB-Konstrukte'!$J$9:$J$40))),ROW($9:$40)),1)+1))="", IF(LEFT(INDIRECT("A"&MAX(IF($B$1:B29="N",ROW($A$1:A29)))-1),3)="nur", IF(RIGHT(INDIRECT("A"&MAX(IF($B$1:B29="N",ROW($A$1:A29)))-1),4)="PTF!", INDEX('PFB-Konstrukte'!$B$9:$J$40,SMALL(IF(NOT(ISERROR(FIND(IF(LEFT(A29,1)="0"," " & MID(A29,2,1) & ",",IF(MID(A29,3,1)=".",LEFT(A29,2),LEFT(A29,3))),'PFB-Konstrukte'!$J$9:$J$40))),ROW($1:$32)),3),1), INDEX('PFB-Konstrukte'!$B$9:$J$40,SMALL(IF(NOT(ISERROR(FIND(IF(LEFT(A29,1)="0"," " & MID(A29,2,1) & ",",IF(MID(A29,3,1)=".",LEFT(A29,2),LEFT(A29,3))),'PFB-Konstrukte'!$J$9:$J$40))),ROW($1:$32)),2),1)), IF(RIGHT(INDEX('PFB-Konstrukte'!$A$9:$J$40,SMALL(IF(NOT(ISERROR(FIND(IF(LEFT(A29,1)="0"," " & MID(A29,2,1) & ",",IF(MID(A29,3,1)=".",LEFT(A29,2),LEFT(A29,3))),'PFB-Konstrukte'!$J$9:$J$40))),ROW($1:$32)),1),1),7)="Führung", INDEX('PFB-Konstrukte'!$A$9:$J$40,SMALL(IF(NOT(ISERROR(FIND(IF(LEFT(A29,1)="0"," " & MID(A29,2,1) & ",",IF(MID(A29,3,1)=".",LEFT(A29,2),LEFT(A29,3))),'PFB-Konstrukte'!$J$9:$J$40))),ROW($1:$32)),1),1) & ", " & INDEX('PFB-Konstrukte'!$B$9:$J$40,SMALL(IF(NOT(ISERROR(FIND(IF(LEFT(A29,1)="0"," " & MID(A29,2,1) & ",",IF(MID(A29,3,1)=".",LEFT(A29,2),LEFT(A29,3))),'PFB-Konstrukte'!$J$9:$J$40))),ROW($1:$32)),2),1), INDEX('PFB-Konstrukte'!$A$9:$J$40,SMALL(IF(NOT(ISERROR(FIND(IF(LEFT(A29,1)="0"," " & MID(A29,2,1) & ",",IF(MID(A29,3,1)=".",LEFT(A29,2),LEFT(A29,3))),'PFB-Konstrukte'!$J$9:$J$40))),ROW($1:$32)),1),1))), INDEX('PFB-Konstrukte'!$A$9:$J$40,SMALL(IF(NOT(ISERROR(FIND(IF(LEFT(A29,1)="0"," " & MID(A29,2,1) & ",",IF(MID(A29,3,1)=".",LEFT(A29,2),LEFT(A29,3))),'PFB-Konstrukte'!$J$9:$J$40))),ROW($1:$32)),1),1)) -> Fachliche und jahrgangsspezifische Kooperation unter Lehrpersonen
A30: 16. Die jahrgangsübergreifende Zusammenarbeit ist an unserer Schule fest etabliert. | B30: 14 | C30: 1.928571429 | D30: 0.1268505097 | E30: 0.4746311465 | F30: 0.1428571429 | G30: 0.7857142857 | H30: 0.07142857143 | I30: 0 | J30: =IF(INDIRECT("'PFB-Konstrukte'!A" & (SMALL(IF(NOT(ISERROR(FIND(IF(LEFT(A30,1)="0"," " & MID(A30,2,1) & ",",IF(MID(A30,3,1)=".",LEFT(A30,2),LEFT(A30,3))),'PFB-Konstrukte'!$J$9:$J$40))),ROW($9:$40)),1)+1))="", IF(LEFT(INDIRECT("A"&MAX(IF($B$1:B30="N",ROW($A$1:A30)))-1),3)="nur", IF(RIGHT(INDIRECT("A"&MAX(IF($B$1:B30="N",ROW($A$1:A30)))-1),4)="PTF!", INDEX('PFB-Konstrukte'!$B$9:$J$40,SMALL(IF(NOT(ISERROR(FIND(IF(LEFT(A30,1)="0"," " & MID(A30,2,1) & ",",IF(MID(A30,3,1)=".",LEFT(A30,2),LEFT(A30,3))),'PFB-Konstrukte'!$J$9:$J$40))),ROW($1:$32)),3),1), INDEX('PFB-Konstrukte'!$B$9:$J$40,SMALL(IF(NOT(ISERROR(FIND(IF(LEFT(A30,1)="0"," " & MID(A30,2,1) & ",",IF(MID(A30,3,1)=".",LEFT(A30,2),LEFT(A30,3))),'PFB-Konstrukte'!$J$9:$J$40))),ROW($1:$32)),2),1)), IF(RIGHT(INDEX('PFB-Konstrukte'!$A$9:$J$40,SMALL(IF(NOT(ISERROR(FIND(IF(LEFT(A30,1)="0"," " & MID(A30,2,1) & ",",IF(MID(A30,3,1)=".",LEFT(A30,2),LEFT(A30,3))),'PFB-Konstrukte'!$J$9:$J$40))),ROW($1:$32)),1),1),7)="Führung", INDEX('PFB-Konstrukte'!$A$9:$J$40,SMALL(IF(NOT(ISERROR(FIND(IF(LEFT(A30,1)="0"," " & MID(A30,2,1) & ",",IF(MID(A30,3,1)=".",LEFT(A30,2),LEFT(A30,3))),'PFB-Konstrukte'!$J$9:$J$40))),ROW($1:$32)),1),1) & ", " & INDEX('PFB-Konstrukte'!$B$9:$J$40,SMALL(IF(NOT(ISERROR(FIND(IF(LEFT(A30,1)="0"," " & MID(A30,2,1) & ",",IF(MID(A30,3,1)=".",LEFT(A30,2),LEFT(A30,3))),'PFB-Konstrukte'!$J$9:$J$40))),ROW($1:$32)),2),1), INDEX('PFB-Konstrukte'!$A$9:$J$40,SMALL(IF(NOT(ISERROR(FIND(IF(LEFT(A30,1)="0"," " & MID(A30,2,1) & ",",IF(MID(A30,3,1)=".",LEFT(A30,2),LEFT(A30,3))),'PFB-Konstrukte'!$J$9:$J$40))),ROW($1:$32)),1),1))), INDEX('PFB-Konstrukte'!$A$9:$J$40,SMALL(IF(NOT(ISERROR(FIND(IF(LEFT(A30,1)="0"," " & MID(A30,2,1) & ",",IF(MID(A30,3,1)=".",LEFT(A30,2),LEFT(A30,3))),'PFB-Konstrukte'!$J$9:$J$40))),ROW($1:$32)),1),1)) -> Fachliche und jahrgangsspezifische Kooperation unter Lehrpersonen
B32: N | C32: MW | D32: SE | E32: SD | F32: trifft nicht zu | G32: trifft eher nicht zu | H32: trifft eher zu | I32: trifft voll zu | J32: Zuordnung zum Konstrukt
A33: 17. Im Kollegium haben wir gemeinsame Ziele. | B33: 22 | C33: 3.227272727 | D33: 0.1126581271 | E33: 0.5284134548 | F33: 0 | G33: 0.04545454545 | H33: 0.6818181818 | I33: 0.2727272727 | J33: =IF(INDIRECT("'PFB-Konstrukte'!A" & (SMALL(IF(NOT(ISERROR(FIND(IF(LEFT(A33,1)="0"," " & MID(A33,2,1) & ",",IF(MID(A33,3,1)=".",LEFT(A33,2),LEFT(A33,3))),'PFB-Konstrukte'!$J$9:$J$40))),ROW($9:$40)),1)+1))="", IF(LEFT(INDIRECT("A"&MAX(IF($B$1:B33="N",ROW($A$1:A33)))-1),3)="nur", IF(RIGHT(INDIRECT("A"&MAX(IF($B$1:B33="N",ROW($A$1:A33)))-1),4)="PTF!", INDEX('PFB-Konstrukte'!$B$9:$J$40,SMALL(IF(NOT(ISERROR(FIND(IF(LEFT(A33,1)="0"," " & MID(A33,2,1) & ",",IF(MID(A33,3,1)=".",LEFT(A33,2),LEFT(A33,3))),'PFB-Konstrukte'!$J$9:$J$40))),ROW($1:$32)),3),1), INDEX('PFB-Konstrukte'!$B$9:$J$40,SMALL(IF(NOT(ISERROR(FIND(IF(LEFT(A33,1)="0"," " & MID(A33,2,1) & ",",IF(MID(A33,3,1)=".",LEFT(A33,2),LEFT(A33,3))),'PFB-Konstrukte'!$J$9:$J$40))),ROW($1:$32)),2),1)), IF(RIGHT(INDEX('PFB-Konstrukte'!$A$9:$J$40,SMALL(IF(NOT(ISERROR(FIND(IF(LEFT(A33,1)="0"," " & MID(A33,2,1) & ",",IF(MID(A33,3,1)=".",LEFT(A33,2),LEFT(A33,3))),'PFB-Konstrukte'!$J$9:$J$40))),ROW($1:$32)),1),1),7)="Führung", INDEX('PFB-Konstrukte'!$A$9:$J$40,SMALL(IF(NOT(ISERROR(FIND(IF(LEFT(A33,1)="0"," " & MID(A33,2,1) & ",",IF(MID(A33,3,1)=".",LEFT(A33,2),LEFT(A33,3))),'PFB-Konstrukte'!$J$9:$J$40))),ROW($1:$32)),1),1) & ", " & INDEX('PFB-Konstrukte'!$B$9:$J$40,SMALL(IF(NOT(ISERROR(FIND(IF(LEFT(A33,1)="0"," " & MID(A33,2,1) & ",",IF(MID(A33,3,1)=".",LEFT(A33,2),LEFT(A33,3))),'PFB-Konstrukte'!$J$9:$J$40))),ROW($1:$32)),2),1), INDEX('PFB-Konstrukte'!$A$9:$J$40,SMALL(IF(NOT(ISERROR(FIND(IF(LEFT(A33,1)="0"," " & MID(A33,2,1) & ",",IF(MID(A33,3,1)=".",LEFT(A33,2),LEFT(A33,3))),'PFB-Konstrukte'!$J$9:$J$40))),ROW($1:$32)),1),1))), INDEX('PFB-Konstrukte'!$A$9:$J$40,SMALL(IF(NOT(ISERROR(FIND(IF(LEFT(A33,1)="0"," " & MID(A33,2,1) & ",",IF(MID(A33,3,1)=".",LEFT(A33,2),LEFT(A33,3))),'PFB-Konstrukte'!$J$9:$J$40))),ROW($1:$32)),1),1)) -> Kooperationsklima
A34: 18. Im Kollegium herrscht ein vertrauensvolles Klima. | B34: 23 | C34: 3.47826087 | D34: 0.1236718407 | E34: 0.5931093121 | F34: 0 | G34: 0.04347826087 | H34: 0.4347826087 | I34: 0.5217391304 | J34: =IF(INDIRECT("'PFB-Konstrukte'!A" & (SMALL(IF(NOT(ISERROR(FIND(IF(LEFT(A34,1)="0"," " & MID(A34,2,1) & ",",IF(MID(A34,3,1)=".",LEFT(A34,2),LEFT(A34,3))),'PFB-Konstrukte'!$J$9:$J$40))),ROW($9:$40)),1)+1))="", IF(LEFT(INDIRECT("A"&MAX(IF($B$1:B34="N",ROW($A$1:A34)))-1),3)="nur", IF(RIGHT(INDIRECT("A"&MAX(IF($B$1:B34="N",ROW($A$1:A34)))-1),4)="PTF!", INDEX('PFB-Konstrukte'!$B$9:$J$40,SMALL(IF(NOT(ISERROR(FIND(IF(LEFT(A34,1)="0"," " & MID(A34,2,1) & ",",IF(MID(A34,3,1)=".",LEFT(A34,2),LEFT(A34,3))),'PFB-Konstrukte'!$J$9:$J$40))),ROW($1:$32)),3),1), INDEX('PFB-Konstrukte'!$B$9:$J$40,SMALL(IF(NOT(ISERROR(FIND(IF(LEFT(A34,1)="0"," " & MID(A34,2,1) & ",",IF(MID(A34,3,1)=".",LEFT(A34,2),LEFT(A34,3))),'PFB-Konstrukte'!$J$9:$J$40))),ROW($1:$32)),2),1)), IF(RIGHT(INDEX('PFB-Konstrukte'!$A$9:$J$40,SMALL(IF(NOT(ISERROR(FIND(IF(LEFT(A34,1)="0"," " & MID(A34,2,1) & ",",IF(MID(A34,3,1)=".",LEFT(A34,2),LEFT(A34,3))),'PFB-Konstrukte'!$J$9:$J$40))),ROW($1:$32)),1),1),7)="Führung", INDEX('PFB-Konstrukte'!$A$9:$J$40,SMALL(IF(NOT(ISERROR(FIND(IF(LEFT(A34,1)="0"," " & MID(A34,2,1) & ",",IF(MID(A34,3,1)=".",LEFT(A34,2),LEFT(A34,3))),'PFB-Konstrukte'!$J$9:$J$40))),ROW($1:$32)),1),1) & ", " & INDEX('PFB-Konstrukte'!$B$9:$J$40,SMALL(IF(NOT(ISERROR(FIND(IF(LEFT(A34,1)="0"," " & MID(A34,2,1) & ",",IF(MID(A34,3,1)=".",LEFT(A34,2),LEFT(A34,3))),'PFB-Konstrukte'!$J$9:$J$40))),ROW($1:$32)),2),1), INDEX('PFB-Konstrukte'!$A$9:$J$40,SMALL(IF(NOT(ISERROR(FIND(IF(LEFT(A34,1)="0"," " & MID(A34,2,1) & ",",IF(MID(A34,3,1)=".",LEFT(A34,2),LEFT(A34,3))),'PFB-Konstrukte'!$J$9:$J$40))),ROW($1:$32)),1),1))), INDEX('PFB-Konstrukte'!$A$9:$J$40,SMALL(IF(NOT(ISERROR(FIND(IF(LEFT(A34,1)="0"," " & MID(A34,2,1) & ",",IF(MID(A34,3,1)=".",LEFT(A34,2),LEFT(A34,3))),'PFB-Konstrukte'!$J$9:$J$40))),ROW($1:$32)),1),1)) -> Kooperationsklima
A35: 19. Im Kollegium werden Absprachen verbindlich eingehalten. | B35: 23 | C35: 3 | D35: 0.08891084489 | E35: 0.4264014327 | F35: 0 | G35: 0.08695652174 | H35: 0.8260869565 | I35: 0.08695652174 | J35: =IF(INDIRECT("'PFB-Konstrukte'!A" & (SMALL(IF(NOT(ISERROR(FIND(IF(LEFT(A35,1)="0"," " & MID(A35,2,1) & ",",IF(MID(A35,3,1)=".",LEFT(A35,2),LEFT(A35,3))),'PFB-Konstrukte'!$J$9:$J$40))),ROW($9:$40)),1)+1))="", IF(LEFT(INDIRECT("A"&MAX(IF($B$1:B35="N",ROW($A$1:A35)))-1),3)="nur", IF(RIGHT(INDIRECT("A"&MAX(IF($B$1:B35="N",ROW($A$1:A35)))-1),4)="PTF!", INDEX('PFB-Konstrukte'!$B$9:$J$40,SMALL(IF(NOT(ISERROR(FIND(IF(LEFT(A35,1)="0"," " & MID(A35,2,1) & ",",IF(MID(A35,3,1)=".",LEFT(A35,2),LEFT(A35,3))),'PFB-Konstrukte'!$J$9:$J$40))),ROW($1:$32)),3),1), INDEX('PFB-Konstrukte'!$B$9:$J$40,SMALL(IF(NOT(ISERROR(FIND(IF(LEFT(A35,1)="0"," " & MID(A35,2,1) & ",",IF(MID(A35,3,1)=".",LEFT(A35,2),LEFT(A35,3))),'PFB-Konstrukte'!$J$9:$J$40))),ROW($1:$32)),2),1)), IF(RIGHT(INDEX('PFB-Konstrukte'!$A$9:$J$40,SMALL(IF(NOT(ISERROR(FIND(IF(LEFT(A35,1)="0"," " & MID(A35,2,1) & ",",IF(MID(A35,3,1)=".",LEFT(A35,2),LEFT(A35,3))),'PFB-Konstrukte'!$J$9:$J$40))),ROW($1:$32)),1),1),7)="Führung", INDEX('PFB-Konstrukte'!$A$9:$J$40,SMALL(IF(NOT(ISERROR(FIND(IF(LEFT(A35,1)="0"," " & MID(A35,2,1) & ",",IF(MID(A35,3,1)=".",LEFT(A35,2),LEFT(A35,3))),'PFB-Konstrukte'!$J$9:$J$40))),ROW($1:$32)),1),1) & ", " & INDEX('PFB-Konstrukte'!$B$9:$J$40,SMALL(IF(NOT(ISERROR(FIND(IF(LEFT(A35,1)="0"," " & MID(A35,2,1) & ",",IF(MID(A35,3,1)=".",LEFT(A35,2),LEFT(A35,3))),'PFB-Konstrukte'!$J$9:$J$40))),ROW($1:$32)),2),1), INDEX('PFB-Konstrukte'!$A$9:$J$40,SMALL(IF(NOT(ISERROR(FIND(IF(LEFT(A35,1)="0"," " & MID(A35,2,1) & ",",IF(MID(A35,3,1)=".",LEFT(A35,2),LEFT(A35,3))),'PFB-Konstrukte'!$J$9:$J$40))),ROW($1:$32)),1),1))), INDEX('PFB-Konstrukte'!$A$9:$J$40,SMALL(IF(NOT(ISERROR(FIND(IF(LEFT(A35,1)="0"," " & MID(A35,2,1) & ",",IF(MID(A35,3,1)=".",LEFT(A35,2),LEFT(A35,3))),'PFB-Konstrukte'!$J$9:$J$40))),ROW($1:$32)),1),1)) -> Kooperationsklima
A36: 20. Im Kollegium werden alle Professionen anerkannt und geschätzt. | B36: 23 | C36: 3.52173913 | D36: 0.1236718407 | E36: 0.5931093121 | F36: 0 | G36: 0.04347826087 | H36: 0.3913043478 | I36: 0.5652173913 | J36: =IF(INDIRECT("'PFB-Konstrukte'!A" & (SMALL(IF(NOT(ISERROR(FIND(IF(LEFT(A36,1)="0"," " & MID(A36,2,1) & ",",IF(MID(A36,3,1)=".",LEFT(A36,2),LEFT(A36,3))),'PFB-Konstrukte'!$J$9:$J$40))),ROW($9:$40)),1)+1))="", IF(LEFT(INDIRECT("A"&MAX(IF($B$1:B36="N",ROW($A$1:A36)))-1),3)="nur", IF(RIGHT(INDIRECT("A"&MAX(IF($B$1:B36="N",ROW($A$1:A36)))-1),4)="PTF!", INDEX('PFB-Konstrukte'!$B$9:$J$40,SMALL(IF(NOT(ISERROR(FIND(IF(LEFT(A36,1)="0"," " & MID(A36,2,1) & ",",IF(MID(A36,3,1)=".",LEFT(A36,2),LEFT(A36,3))),'PFB-Konstrukte'!$J$9:$J$40))),ROW($1:$32)),3),1), INDEX('PFB-Konstrukte'!$B$9:$J$40,SMALL(IF(NOT(ISERROR(FIND(IF(LEFT(A36,1)="0"," " & MID(A36,2,1) & ",",IF(MID(A36,3,1)=".",LEFT(A36,2),LEFT(A36,3))),'PFB-Konstrukte'!$J$9:$J$40))),ROW($1:$32)),2),1)), IF(RIGHT(INDEX('PFB-Konstrukte'!$A$9:$J$40,SMALL(IF(NOT(ISERROR(FIND(IF(LEFT(A36,1)="0"," " & MID(A36,2,1) & ",",IF(MID(A36,3,1)=".",LEFT(A36,2),LEFT(A36,3))),'PFB-Konstrukte'!$J$9:$J$40))),ROW($1:$32)),1),1),7)="Führung", INDEX('PFB-Konstrukte'!$A$9:$J$40,SMALL(IF(NOT(ISERROR(FIND(IF(LEFT(A36,1)="0"," " & MID(A36,2,1) & ",",IF(MID(A36,3,1)=".",LEFT(A36,2),LEFT(A36,3))),'PFB-Konstrukte'!$J$9:$J$40))),ROW($1:$32)),1),1) & ", " & INDEX('PFB-Konstrukte'!$B$9:$J$40,SMALL(IF(NOT(ISERROR(FIND(IF(LEFT(A36,1)="0"," " & MID(A36,2,1) & ",",IF(MID(A36,3,1)=".",LEFT(A36,2),LEFT(A36,3))),'PFB-Konstrukte'!$J$9:$J$40))),ROW($1:$32)),2),1), INDEX('PFB-Konstrukte'!$A$9:$J$40,SMALL(IF(NOT(ISERROR(FIND(IF(LEFT(A36,1)="0"," " & MID(A36,2,1) & ",",IF(MID(A36,3,1)=".",LEFT(A36,2),LEFT(A36,3))),'PFB-Konstrukte'!$J$9:$J$40))),ROW($1:$32)),1),1))), INDEX('PFB-Konstrukte'!$A$9:$J$40,SMALL(IF(NOT(ISERROR(FIND(IF(LEFT(A36,1)="0"," " & MID(A36,2,1) & ",",IF(MID(A36,3,1)=".",LEFT(A36,2),LEFT(A36,3))),'PFB-Konstrukte'!$J$9:$J$40))),ROW($1:$32)),1),1)) -> Kooperationsklima
B38: N | C38: MW | D38: SE | E38: SD | F38: trifft nicht zu | G38: trifft eher nicht zu | H38: trifft eher zu | I38: trifft voll zu | J38: Zuordnung zum Konstrukt
A39: 21. Es gibt feste Zeiten, um professionsspezifisch mit Kolleginnen und Kollegen zu kooperieren. | B39: 22 | C39: 2.772727273 | D39: 0.1853021188 | E39: 0.8691439785 | F39: 0.04545454545 | G39: 0.3636363636 | H39: 0.3636363636 | I39: 0.2272727273 | J39: =IF(INDIRECT("'PFB-Konstrukte'!A" & (SMALL(IF(NOT(ISERROR(FIND(IF(LEFT(A39,1)="0"," " & MID(A39,2,1) & ",",IF(MID(A39,3,1)=".",LEFT(A39,2),LEFT(A39,3))),'PFB-Konstrukte'!$J$9:$J$40))),ROW($9:$40)),1)+1))="", IF(LEFT(INDIRECT("A"&MAX(IF($B$1:B39="N",ROW($A$1:A39)))-1),3)="nur", IF(RIGHT(INDIRECT("A"&MAX(IF($B$1:B39="N",ROW($A$1:A39)))-1),4)="PTF!", INDEX('PFB-Konstrukte'!$B$9:$J$40,SMALL(IF(NOT(ISERROR(FIND(IF(LEFT(A39,1)="0"," " & MID(A39,2,1) & ",",IF(MID(A39,3,1)=".",LEFT(A39,2),LEFT(A39,3))),'PFB-Konstrukte'!$J$9:$J$40))),ROW($1:$32)),3),1), INDEX('PFB-Konstrukte'!$B$9:$J$40,SMALL(IF(NOT(ISERROR(FIND(IF(LEFT(A39,1)="0"," " & MID(A39,2,1) & ",",IF(MID(A39,3,1)=".",LEFT(A39,2),LEFT(A39,3))),'PFB-Konstrukte'!$J$9:$J$40))),ROW($1:$32)),2),1)), IF(RIGHT(INDEX('PFB-Konstrukte'!$A$9:$J$40,SMALL(IF(NOT(ISERROR(FIND(IF(LEFT(A39,1)="0"," " & MID(A39,2,1) & ",",IF(MID(A39,3,1)=".",LEFT(A39,2),LEFT(A39,3))),'PFB-Konstrukte'!$J$9:$J$40))),ROW($1:$32)),1),1),7)="Führung", INDEX('PFB-Konstrukte'!$A$9:$J$40,SMALL(IF(NOT(ISERROR(FIND(IF(LEFT(A39,1)="0"," " & MID(A39,2,1) & ",",IF(MID(A39,3,1)=".",LEFT(A39,2),LEFT(A39,3))),'PFB-Konstrukte'!$J$9:$J$40))),ROW($1:$32)),1),1) & ", " & INDEX('PFB-Konstrukte'!$B$9:$J$40,SMALL(IF(NOT(ISERROR(FIND(IF(LEFT(A39,1)="0"," " & MID(A39,2,1) & ",",IF(MID(A39,3,1)=".",LEFT(A39,2),LEFT(A39,3))),'PFB-Konstrukte'!$J$9:$J$40))),ROW($1:$32)),2),1), INDEX('PFB-Konstrukte'!$A$9:$J$40,SMALL(IF(NOT(ISERROR(FIND(IF(LEFT(A39,1)="0"," " & MID(A39,2,1) & ",",IF(MID(A39,3,1)=".",LEFT(A39,2),LEFT(A39,3))),'PFB-Konstrukte'!$J$9:$J$40))),ROW($1:$32)),1),1))), INDEX('PFB-Konstrukte'!$A$9:$J$40,SMALL(IF(NOT(ISERROR(FIND(IF(LEFT(A39,1)="0"," " & MID(A39,2,1) & ",",IF(MID(A39,3,1)=".",LEFT(A39,2),LEFT(A39,3))),'PFB-Konstrukte'!$J$9:$J$40))),ROW($1:$32)),1),1)) -> Rahmenbedingungen der Kooperation
A40: 22. Es gibt feste Zeiten, um professionsübergreifend mit Kolleginnen und Kollegen zu kooperieren. | B40: 23 | C40: 2.565217391 | D40: 0.164257666 | E40: 0.7877520928 | F40: 0.04347826087 | G40: 0.4782608696 | H40: 0.347826087 | I40: 0.1304347826 | J40: =IF(INDIRECT("'PFB-Konstrukte'!A" & (SMALL(IF(NOT(ISERROR(FIND(IF(LEFT(A40,1)="0"," " & MID(A40,2,1) & ",",IF(MID(A40,3,1)=".",LEFT(A40,2),LEFT(A40,3))),'PFB-Konstrukte'!$J$9:$J$40))),ROW($9:$40)),1)+1))="", IF(LEFT(INDIRECT("A"&MAX(IF($B$1:B40="N",ROW($A$1:A40)))-1),3)="nur", IF(RIGHT(INDIRECT("A"&MAX(IF($B$1:B40="N",ROW($A$1:A40)))-1),4)="PTF!", INDEX('PFB-Konstrukte'!$B$9:$J$40,SMALL(IF(NOT(ISERROR(FIND(IF(LEFT(A40,1)="0"," " & MID(A40,2,1) & ",",IF(MID(A40,3,1)=".",LEFT(A40,2),LEFT(A40,3))),'PFB-Konstrukte'!$J$9:$J$40))),ROW($1:$32)),3),1), INDEX('PFB-Konstrukte'!$B$9:$J$40,SMALL(IF(NOT(ISERROR(FIND(IF(LEFT(A40,1)="0"," " & MID(A40,2,1) & ",",IF(MID(A40,3,1)=".",LEFT(A40,2),LEFT(A40,3))),'PFB-Konstrukte'!$J$9:$J$40))),ROW($1:$32)),2),1)), IF(RIGHT(INDEX('PFB-Konstrukte'!$A$9:$J$40,SMALL(IF(NOT(ISERROR(FIND(IF(LEFT(A40,1)="0"," " & MID(A40,2,1) & ",",IF(MID(A40,3,1)=".",LEFT(A40,2),LEFT(A40,3))),'PFB-Konstrukte'!$J$9:$J$40))),ROW($1:$32)),1),1),7)="Führung", INDEX('PFB-Konstrukte'!$A$9:$J$40,SMALL(IF(NOT(ISERROR(FIND(IF(LEFT(A40,1)="0"," " & MID(A40,2,1) & ",",IF(MID(A40,3,1)=".",LEFT(A40,2),LEFT(A40,3))),'PFB-Konstrukte'!$J$9:$J$40))),ROW($1:$32)),1),1) & ", " & INDEX('PFB-Konstrukte'!$B$9:$J$40,SMALL(IF(NOT(ISERROR(FIND(IF(LEFT(A40,1)="0"," " & MID(A40,2,1) & ",",IF(MID(A40,3,1)=".",LEFT(A40,2),LEFT(A40,3))),'PFB-Konstrukte'!$J$9:$J$40))),ROW($1:$32)),2),1), INDEX('PFB-Konstrukte'!$A$9:$J$40,SMALL(IF(NOT(ISERROR(FIND(IF(LEFT(A40,1)="0"," " & MID(A40,2,1) & ",",IF(MID(A40,3,1)=".",LEFT(A40,2),LEFT(A40,3))),'PFB-Konstrukte'!$J$9:$J$40))),ROW($1:$32)),1),1))), INDEX('PFB-Konstrukte'!$A$9:$J$40,SMALL(IF(NOT(ISERROR(FIND(IF(LEFT(A40,1)="0"," " & MID(A40,2,1) & ",",IF(MID(A40,3,1)=".",LEFT(A40,2),LEFT(A40,3))),'PFB-Konstrukte'!$J$9:$J$40))),ROW($1:$32)),1),1)) -> Rahmenbedingungen der Kooperation
A41: 23. Die Schulleitung unterstützt die professionsspezifische Kooperation zwischen den Kolleginnen und Kollegen durch Anregungen und Ideen. | B41: 22 | C41: 2.727272727 | D41: 0.1635882565 | E41: 0.7672969365 | F41: 0.04545454545 | G41: 0.3181818182 | H41: 0.5 | I41: 0.1363636364 | J41: =IF(INDIRECT("'PFB-Konstrukte'!A" & (SMALL(IF(NOT(ISERROR(FIND(IF(LEFT(A41,1)="0"," " & MID(A41,2,1) & ",",IF(MID(A41,3,1)=".",LEFT(A41,2),LEFT(A41,3))),'PFB-Konstrukte'!$J$9:$J$40))),ROW($9:$40)),1)+1))="", IF(LEFT(INDIRECT("A"&MAX(IF($B$1:B41="N",ROW($A$1:A41)))-1),3)="nur", IF(RIGHT(INDIRECT("A"&MAX(IF($B$1:B41="N",ROW($A$1:A41)))-1),4)="PTF!", INDEX('PFB-Konstrukte'!$B$9:$J$40,SMALL(IF(NOT(ISERROR(FIND(IF(LEFT(A41,1)="0"," " & MID(A41,2,1) & ",",IF(MID(A41,3,1)=".",LEFT(A41,2),LEFT(A41,3))),'PFB-Konstrukte'!$J$9:$J$40))),ROW($1:$32)),3),1), INDEX('PFB-Konstrukte'!$B$9:$J$40,SMALL(IF(NOT(ISERROR(FIND(IF(LEFT(A41,1)="0"," " & MID(A41,2,1) & ",",IF(MID(A41,3,1)=".",LEFT(A41,2),LEFT(A41,3))),'PFB-Konstrukte'!$J$9:$J$40))),ROW($1:$32)),2),1)), IF(RIGHT(INDEX('PFB-Konstrukte'!$A$9:$J$40,SMALL(IF(NOT(ISERROR(FIND(IF(LEFT(A41,1)="0"," " & MID(A41,2,1) & ",",IF(MID(A41,3,1)=".",LEFT(A41,2),LEFT(A41,3))),'PFB-Konstrukte'!$J$9:$J$40))),ROW($1:$32)),1),1),7)="Führung", INDEX('PFB-Konstrukte'!$A$9:$J$40,SMALL(IF(NOT(ISERROR(FIND(IF(LEFT(A41,1)="0"," " & MID(A41,2,1) & ",",IF(MID(A41,3,1)=".",LEFT(A41,2),LEFT(A41,3))),'PFB-Konstrukte'!$J$9:$J$40))),ROW($1:$32)),1),1) & ", " & INDEX('PFB-Konstrukte'!$B$9:$J$40,SMALL(IF(NOT(ISERROR(FIND(IF(LEFT(A41,1)="0"," " & MID(A41,2,1) & ",",IF(MID(A41,3,1)=".",LEFT(A41,2),LEFT(A41,3))),'PFB-Konstrukte'!$J$9:$J$40))),ROW($1:$32)),2),1), INDEX('PFB-Konstrukte'!$A$9:$J$40,SMALL(IF(NOT(ISERROR(FIND(IF(LEFT(A41,1)="0"," " & MID(A41,2,1) & ",",IF(MID(A41,3,1)=".",LEFT(A41,2),LEFT(A41,3))),'PFB-Konstrukte'!$J$9:$J$40))),ROW($1:$32)),1),1))), INDEX('PFB-Konstrukte'!$A$9:$J$40,SMALL(IF(NOT(ISERROR(FIND(IF(LEFT(A41,1)="0"," " & MID(A41,2,1) & ",",IF(MID(A41,3,1)=".",LEFT(A41,2),LEFT(A41,3))),'PFB-Konstrukte'!$J$9:$J$40))),ROW($1:$32)),1),1)) -> Rahmenbedingungen der Kooperation
A42: 24. Die Schulleitung unterstützt die professionsübergreifende Kooperation zwischen den Kolleginnen und Kollegen durch Anregungen und Ideen. | B42: 21 | C42: 2.714285714 | D42: 0.1710312857 | E42: 0.7837638128 | F42: 0.04761904762 | G42: 0.3333333333 | H42: 0.4761904762 | I42: 0.1428571429 | J42: =IF(INDIRECT("'PFB-Konstrukte'!A" & (SMALL(IF(NOT(ISERROR(FIND(IF(LEFT(A42,1)="0"," " & MID(A42,2,1) & ",",IF(MID(A42,3,1)=".",LEFT(A42,2),LEFT(A42,3))),'PFB-Konstrukte'!$J$9:$J$40))),ROW($9:$40)),1)+1))="", IF(LEFT(INDIRECT("A"&MAX(IF($B$1:B42="N",ROW($A$1:A42)))-1),3)="nur", IF(RIGHT(INDIRECT("A"&MAX(IF($B$1:B42="N",ROW($A$1:A42)))-1),4)="PTF!", INDEX('PFB-Konstrukte'!$B$9:$J$40,SMALL(IF(NOT(ISERROR(FIND(IF(LEFT(A42,1)="0"," " & MID(A42,2,1) & ",",IF(MID(A42,3,1)=".",LEFT(A42,2),LEFT(A42,3))),'PFB-Konstrukte'!$J$9:$J$40))),ROW($1:$32)),3),1), INDEX('PFB-Konstrukte'!$B$9:$J$40,SMALL(IF(NOT(ISERROR(FIND(IF(LEFT(A42,1)="0"," " & MID(A42,2,1) & ",",IF(MID(A42,3,1)=".",LEFT(A42,2),LEFT(A42,3))),'PFB-Konstrukte'!$J$9:$J$40))),ROW($1:$32)),2),1)), IF(RIGHT(INDEX('PFB-Konstrukte'!$A$9:$J$40,SMALL(IF(NOT(ISERROR(FIND(IF(LEFT(A42,1)="0"," " & MID(A42,2,1) & ",",IF(MID(A42,3,1)=".",LEFT(A42,2),LEFT(A42,3))),'PFB-Konstrukte'!$J$9:$J$40))),ROW($1:$32)),1),1),7)="Führung", INDEX('PFB-Konstrukte'!$A$9:$J$40,SMALL(IF(NOT(ISERROR(FIND(IF(LEFT(A42,1)="0"," " & MID(A42,2,1) & ",",IF(MID(A42,3,1)=".",LEFT(A42,2),LEFT(A42,3))),'PFB-Konstrukte'!$J$9:$J$40))),ROW($1:$32)),1),1) & ", " & INDEX('PFB-Konstrukte'!$B$9:$J$40,SMALL(IF(NOT(ISERROR(FIND(IF(LEFT(A42,1)="0"," " & MID(A42,2,1) & ",",IF(MID(A42,3,1)=".",LEFT(A42,2),LEFT(A42,3))),'PFB-Konstrukte'!$J$9:$J$40))),ROW($1:$32)),2),1), INDEX('PFB-Konstrukte'!$A$9:$J$40,SMALL(IF(NOT(ISERROR(FIND(IF(LEFT(A42,1)="0"," " & MID(A42,2,1) & ",",IF(MID(A42,3,1)=".",LEFT(A42,2),LEFT(A42,3))),'PFB-Konstrukte'!$J$9:$J$40))),ROW($1:$32)),1),1))), INDEX('PFB-Konstrukte'!$A$9:$J$40,SMALL(IF(NOT(ISERROR(FIND(IF(LEFT(A42,1)="0"," " & MID(A42,2,1) & ",",IF(MID(A42,3,1)=".",LEFT(A42,2),LEFT(A42,3))),'PFB-Konstrukte'!$J$9:$J$40))),ROW($1:$32)),1),1)) -> Rahmenbedingungen der Kooperation
A43: 25. Die Schulleitung motiviert uns zur Kooperation. | B43: 23 | C43: 3.173913043 | D43: 0.1621517114 | E43: 0.7776522893 | F43: 0 | G43: 0.2173913043 | H43: 0.3913043478 | I43: 0.3913043478 | J43: =IF(INDIRECT("'PFB-Konstrukte'!A" & (SMALL(IF(NOT(ISERROR(FIND(IF(LEFT(A43,1)="0"," " & MID(A43,2,1) & ",",IF(MID(A43,3,1)=".",LEFT(A43,2),LEFT(A43,3))),'PFB-Konstrukte'!$J$9:$J$40))),ROW($9:$40)),1)+1))="", IF(LEFT(INDIRECT("A"&MAX(IF($B$1:B43="N",ROW($A$1:A43)))-1),3)="nur", IF(RIGHT(INDIRECT("A"&MAX(IF($B$1:B43="N",ROW($A$1:A43)))-1),4)="PTF!", INDEX('PFB-Konstrukte'!$B$9:$J$40,SMALL(IF(NOT(ISERROR(FIND(IF(LEFT(A43,1)="0"," " & MID(A43,2,1) & ",",IF(MID(A43,3,1)=".",LEFT(A43,2),LEFT(A43,3))),'PFB-Konstrukte'!$J$9:$J$40))),ROW($1:$32)),3),1), INDEX('PFB-Konstrukte'!$B$9:$J$40,SMALL(IF(NOT(ISERROR(FIND(IF(LEFT(A43,1)="0"," " & MID(A43,2,1) & ",",IF(MID(A43,3,1)=".",LEFT(A43,2),LEFT(A43,3))),'PFB-Konstrukte'!$J$9:$J$40))),ROW($1:$32)),2),1)), IF(RIGHT(INDEX('PFB-Konstrukte'!$A$9:$J$40,SMALL(IF(NOT(ISERROR(FIND(IF(LEFT(A43,1)="0"," " & MID(A43,2,1) & ",",IF(MID(A43,3,1)=".",LEFT(A43,2),LEFT(A43,3))),'PFB-Konstrukte'!$J$9:$J$40))),ROW($1:$32)),1),1),7)="Führung", INDEX('PFB-Konstrukte'!$A$9:$J$40,SMALL(IF(NOT(ISERROR(FIND(IF(LEFT(A43,1)="0"," " & MID(A43,2,1) & ",",IF(MID(A43,3,1)=".",LEFT(A43,2),LEFT(A43,3))),'PFB-Konstrukte'!$J$9:$J$40))),ROW($1:$32)),1),1) & ", " & INDEX('PFB-Konstrukte'!$B$9:$J$40,SMALL(IF(NOT(ISERROR(FIND(IF(LEFT(A43,1)="0"," " & MID(A43,2,1) & ",",IF(MID(A43,3,1)=".",LEFT(A43,2),LEFT(A43,3))),'PFB-Konstrukte'!$J$9:$J$40))),ROW($1:$32)),2),1), INDEX('PFB-Konstrukte'!$A$9:$J$40,SMALL(IF(NOT(ISERROR(FIND(IF(LEFT(A43,1)="0"," " & MID(A43,2,1) & ",",IF(MID(A43,3,1)=".",LEFT(A43,2),LEFT(A43,3))),'PFB-Konstrukte'!$J$9:$J$40))),ROW($1:$32)),1),1))), INDEX('PFB-Konstrukte'!$A$9:$J$40,SMALL(IF(NOT(ISERROR(FIND(IF(LEFT(A43,1)="0"," " & MID(A43,2,1) & ",",IF(MID(A43,3,1)=".",LEFT(A43,2),LEFT(A43,3))),'PFB-Konstrukte'!$J$9:$J$40))),ROW($1:$32)),1),1)) -> Rahmenbedingungen der Kooperation
A44: 26. Uns stehen Räume für Kooperation zur Verfügung. | B44: 22 | C44: 3.272727273 | D44: 0.1763239122 | E44: 0.8270324564 | F44: 0 | G44: 0.2272727273 | H44: 0.2727272727 | I44: 0.5 | J44: =IF(INDIRECT("'PFB-Konstrukte'!A" & (SMALL(IF(NOT(ISERROR(FIND(IF(LEFT(A44,1)="0"," " & MID(A44,2,1) & ",",IF(MID(A44,3,1)=".",LEFT(A44,2),LEFT(A44,3))),'PFB-Konstrukte'!$J$9:$J$40))),ROW($9:$40)),1)+1))="", IF(LEFT(INDIRECT("A"&MAX(IF($B$1:B44="N",ROW($A$1:A44)))-1),3)="nur", IF(RIGHT(INDIRECT("A"&MAX(IF($B$1:B44="N",ROW($A$1:A44)))-1),4)="PTF!", INDEX('PFB-Konstrukte'!$B$9:$J$40,SMALL(IF(NOT(ISERROR(FIND(IF(LEFT(A44,1)="0"," " & MID(A44,2,1) & ",",IF(MID(A44,3,1)=".",LEFT(A44,2),LEFT(A44,3))),'PFB-Konstrukte'!$J$9:$J$40))),ROW($1:$32)),3),1), INDEX('PFB-Konstrukte'!$B$9:$J$40,SMALL(IF(NOT(ISERROR(FIND(IF(LEFT(A44,1)="0"," " & MID(A44,2,1) & ",",IF(MID(A44,3,1)=".",LEFT(A44,2),LEFT(A44,3))),'PFB-Konstrukte'!$J$9:$J$40))),ROW($1:$32)),2),1)), IF(RIGHT(INDEX('PFB-Konstrukte'!$A$9:$J$40,SMALL(IF(NOT(ISERROR(FIND(IF(LEFT(A44,1)="0"," " & MID(A44,2,1) & ",",IF(MID(A44,3,1)=".",LEFT(A44,2),LEFT(A44,3))),'PFB-Konstrukte'!$J$9:$J$40))),ROW($1:$32)),1),1),7)="Führung", INDEX('PFB-Konstrukte'!$A$9:$J$40,SMALL(IF(NOT(ISERROR(FIND(IF(LEFT(A44,1)="0"," " & MID(A44,2,1) & ",",IF(MID(A44,3,1)=".",LEFT(A44,2),LEFT(A44,3))),'PFB-Konstrukte'!$J$9:$J$40))),ROW($1:$32)),1),1) & ", " & INDEX('PFB-Konstrukte'!$B$9:$J$40,SMALL(IF(NOT(ISERROR(FIND(IF(LEFT(A44,1)="0"," " & MID(A44,2,1) & ",",IF(MID(A44,3,1)=".",LEFT(A44,2),LEFT(A44,3))),'PFB-Konstrukte'!$J$9:$J$40))),ROW($1:$32)),2),1), INDEX('PFB-Konstrukte'!$A$9:$J$40,SMALL(IF(NOT(ISERROR(FIND(IF(LEFT(A44,1)="0"," " & MID(A44,2,1) & ",",IF(MID(A44,3,1)=".",LEFT(A44,2),LEFT(A44,3))),'PFB-Konstrukte'!$J$9:$J$40))),ROW($1:$32)),1),1))), INDEX('PFB-Konstrukte'!$A$9:$J$40,SMALL(IF(NOT(ISERROR(FIND(IF(LEFT(A44,1)="0"," " & MID(A44,2,1) & ",",IF(MID(A44,3,1)=".",LEFT(A44,2),LEFT(A44,3))),'PFB-Konstrukte'!$J$9:$J$40))),ROW($1:$32)),1),1)) -> Rahmenbedingungen der Kooperation
B46: N | C46: MW | D46: SE | E46: SD | F46: trifft nicht zu | G46: trifft eher nicht zu | H46: trifft eher zu | I46: trifft voll zu | J46: Zuordnung zum Konstrukt
A47: 27. Ich fühle mich gut integriert in die Schulgemeinschaft. | B47: 7 | J47: =IF(INDIRECT("'PFB-Konstrukte'!A" & (SMALL(IF(NOT(ISERROR(FIND(IF(LEFT(A47,1)="0"," " & MID(A47,2,1) & ",",IF(MID(A47,3,1)=".",LEFT(A47,2),LEFT(A47,3))),'PFB-Konstrukte'!$J$9:$J$40))),ROW($9:$40)),1)+1))="", IF(LEFT(INDIRECT("A"&MAX(IF($B$1:B47="N",ROW($A$1:A47)))-1),3)="nur", IF(RIGHT(INDIRECT("A"&MAX(IF($B$1:B47="N",ROW($A$1:A47)))-1),4)="PTF!", INDEX('PFB-Konstrukte'!$B$9:$J$40,SMALL(IF(NOT(ISERROR(FIND(IF(LEFT(A47,1)="0"," " & MID(A47,2,1) & ",",IF(MID(A47,3,1)=".",LEFT(A47,2),LEFT(A47,3))),'PFB-Konstrukte'!$J$9:$J$40))),ROW($1:$32)),3),1), INDEX('PFB-Konstrukte'!$B$9:$J$40,SMALL(IF(NOT(ISERROR(FIND(IF(LEFT(A47,1)="0"," " & MID(A47,2,1) & ",",IF(MID(A47,3,1)=".",LEFT(A47,2),LEFT(A47,3))),'PFB-Konstrukte'!$J$9:$J$40))),ROW($1:$32)),2),1)), IF(RIGHT(INDEX('PFB-Konstrukte'!$A$9:$J$40,SMALL(IF(NOT(ISERROR(FIND(IF(LEFT(A47,1)="0"," " & MID(A47,2,1) & ",",IF(MID(A47,3,1)=".",LEFT(A47,2),LEFT(A47,3))),'PFB-Konstrukte'!$J$9:$J$40))),ROW($1:$32)),1),1),7)="Führung", INDEX('PFB-Konstrukte'!$A$9:$J$40,SMALL(IF(NOT(ISERROR(FIND(IF(LEFT(A47,1)="0"," " & MID(A47,2,1) & ",",IF(MID(A47,3,1)=".",LEFT(A47,2),LEFT(A47,3))),'PFB-Konstrukte'!$J$9:$J$40))),ROW($1:$32)),1),1) & ", " & INDEX('PFB-Konstrukte'!$B$9:$J$40,SMALL(IF(NOT(ISERROR(FIND(IF(LEFT(A47,1)="0"," " & MID(A47,2,1) & ",",IF(MID(A47,3,1)=".",LEFT(A47,2),LEFT(A47,3))),'PFB-Konstrukte'!$J$9:$J$40))),ROW($1:$32)),2),1), INDEX('PFB-Konstrukte'!$A$9:$J$40,SMALL(IF(NOT(ISERROR(FIND(IF(LEFT(A47,1)="0"," " & MID(A47,2,1) & ",",IF(MID(A47,3,1)=".",LEFT(A47,2),LEFT(A47,3))),'PFB-Konstrukte'!$J$9:$J$40))),ROW($1:$32)),1),1))), INDEX('PFB-Konstrukte'!$A$9:$J$40,SMALL(IF(NOT(ISERROR(FIND(IF(LEFT(A47,1)="0"," " & MID(A47,2,1) & ",",IF(MID(A47,3,1)=".",LEFT(A47,2),LEFT(A47,3))),'PFB-Konstrukte'!$J$9:$J$40))),ROW($1:$32)),1),1)) -> Eingebundenheit in die Schulgemeinschaft - PTF der Schule
A48: 28. Ich werde bei offiziellen schulischen Veranstaltungen (z.B. Feste, kulturelle Veranstaltungen) eingeladen. | B48: 7 | J48: =IF(INDIRECT("'PFB-Konstrukte'!A" & (SMALL(IF(NOT(ISERROR(FIND(IF(LEFT(A48,1)="0"," " & MID(A48,2,1) & ",",IF(MID(A48,3,1)=".",LEFT(A48,2),LEFT(A48,3))),'PFB-Konstrukte'!$J$9:$J$40))),ROW($9:$40)),1)+1))="", IF(LEFT(INDIRECT("A"&MAX(IF($B$1:B48="N",ROW($A$1:A48)))-1),3)="nur", IF(RIGHT(INDIRECT("A"&MAX(IF($B$1:B48="N",ROW($A$1:A48)))-1),4)="PTF!", INDEX('PFB-Konstrukte'!$B$9:$J$40,SMALL(IF(NOT(ISERROR(FIND(IF(LEFT(A48,1)="0"," " & MID(A48,2,1) & ",",IF(MID(A48,3,1)=".",LEFT(A48,2),LEFT(A48,3))),'PFB-Konstrukte'!$J$9:$J$40))),ROW($1:$32)),3),1), INDEX('PFB-Konstrukte'!$B$9:$J$40,SMALL(IF(NOT(ISERROR(FIND(IF(LEFT(A48,1)="0"," " & MID(A48,2,1) & ",",IF(MID(A48,3,1)=".",LEFT(A48,2),LEFT(A48,3))),'PFB-Konstrukte'!$J$9:$J$40))),ROW($1:$32)),2),1)), IF(RIGHT(INDEX('PFB-Konstrukte'!$A$9:$J$40,SMALL(IF(NOT(ISERROR(FIND(IF(LEFT(A48,1)="0"," " & MID(A48,2,1) & ",",IF(MID(A48,3,1)=".",LEFT(A48,2),LEFT(A48,3))),'PFB-Konstrukte'!$J$9:$J$40))),ROW($1:$32)),1),1),7)="Führung", INDEX('PFB-Konstrukte'!$A$9:$J$40,SMALL(IF(NOT(ISERROR(FIND(IF(LEFT(A48,1)="0"," " & MID(A48,2,1) & ",",IF(MID(A48,3,1)=".",LEFT(A48,2),LEFT(A48,3))),'PFB-Konstrukte'!$J$9:$J$40))),ROW($1:$32)),1),1) & ", " & INDEX('PFB-Konstrukte'!$B$9:$J$40,SMALL(IF(NOT(ISERROR(FIND(IF(LEFT(A48,1)="0"," " & MID(A48,2,1) & ",",IF(MID(A48,3,1)=".",LEFT(A48,2),LEFT(A48,3))),'PFB-Konstrukte'!$J$9:$J$40))),ROW($1:$32)),2),1), INDEX('PFB-Konstrukte'!$A$9:$J$40,SMALL(IF(NOT(ISERROR(FIND(IF(LEFT(A48,1)="0"," " & MID(A48,2,1) & ",",IF(MID(A48,3,1)=".",LEFT(A48,2),LEFT(A48,3))),'PFB-Konstrukte'!$J$9:$J$40))),ROW($1:$32)),1),1))), INDEX('PFB-Konstrukte'!$A$9:$J$40,SMALL(IF(NOT(ISERROR(FIND(IF(LEFT(A48,1)="0"," " & MID(A48,2,1) & ",",IF(MID(A48,3,1)=".",LEFT(A48,2),LEFT(A48,3))),'PFB-Konstrukte'!$J$9:$J$40))),ROW($1:$32)),1),1)) -> Eingebundenheit in die Schulgemeinschaft - PTF der Schule
A49: 29. Ich bin in informellen Austausch eingebunden (z.B. Mittagessen, Feiern etc.). | B49: 7 | J49: =IF(INDIRECT("'PFB-Konstrukte'!A" & (SMALL(IF(NOT(ISERROR(FIND(IF(LEFT(A49,1)="0"," " & MID(A49,2,1) & ",",IF(MID(A49,3,1)=".",LEFT(A49,2),LEFT(A49,3))),'PFB-Konstrukte'!$J$9:$J$40))),ROW($9:$40)),1)+1))="", IF(LEFT(INDIRECT("A"&MAX(IF($B$1:B49="N",ROW($A$1:A49)))-1),3)="nur", IF(RIGHT(INDIRECT("A"&MAX(IF($B$1:B49="N",ROW($A$1:A49)))-1),4)="PTF!", INDEX('PFB-Konstrukte'!$B$9:$J$40,SMALL(IF(NOT(ISERROR(FIND(IF(LEFT(A49,1)="0"," " & MID(A49,2,1) & ",",IF(MID(A49,3,1)=".",LEFT(A49,2),LEFT(A49,3))),'PFB-Konstrukte'!$J$9:$J$40))),ROW($1:$32)),3),1), INDEX('PFB-Konstrukte'!$B$9:$J$40,SMALL(IF(NOT(ISERROR(FIND(IF(LEFT(A49,1)="0"," " & MID(A49,2,1) & ",",IF(MID(A49,3,1)=".",LEFT(A49,2),LEFT(A49,3))),'PFB-Konstrukte'!$J$9:$J$40))),ROW($1:$32)),2),1)), IF(RIGHT(INDEX('PFB-Konstrukte'!$A$9:$J$40,SMALL(IF(NOT(ISERROR(FIND(IF(LEFT(A49,1)="0"," " & MID(A49,2,1) & ",",IF(MID(A49,3,1)=".",LEFT(A49,2),LEFT(A49,3))),'PFB-Konstrukte'!$J$9:$J$40))),ROW($1:$32)),1),1),7)="Führung", INDEX('PFB-Konstrukte'!$A$9:$J$40,SMALL(IF(NOT(ISERROR(FIND(IF(LEFT(A49,1)="0"," " & MID(A49,2,1) & ",",IF(MID(A49,3,1)=".",LEFT(A49,2),LEFT(A49,3))),'PFB-Konstrukte'!$J$9:$J$40))),ROW($1:$32)),1),1) & ", " & INDEX('PFB-Konstrukte'!$B$9:$J$40,SMALL(IF(NOT(ISERROR(FIND(IF(LEFT(A49,1)="0"," " & MID(A49,2,1) & ",",IF(MID(A49,3,1)=".",LEFT(A49,2),LEFT(A49,3))),'PFB-Konstrukte'!$J$9:$J$40))),ROW($1:$32)),2),1), INDEX('PFB-Konstrukte'!$A$9:$J$40,SMALL(IF(NOT(ISERROR(FIND(IF(LEFT(A49,1)="0"," " & MID(A49,2,1) & ",",IF(MID(A49,3,1)=".",LEFT(A49,2),LEFT(A49,3))),'PFB-Konstrukte'!$J$9:$J$40))),ROW($1:$32)),1),1))), INDEX('PFB-Konstrukte'!$A$9:$J$40,SMALL(IF(NOT(ISERROR(FIND(IF(LEFT(A49,1)="0"," " & MID(A49,2,1) & ",",IF(MID(A49,3,1)=".",LEFT(A49,2),LEFT(A49,3))),'PFB-Konstrukte'!$J$9:$J$40))),ROW($1:$32)),1),1)) -> Eingebundenheit in die Schulgemeinschaft - PTF der Schule
A50: 30. Ich bin bei der Vorbereitung und Durchführung schulischer Veranstaltungen beteiligt. | B50: 7 | J50: =IF(INDIRECT("'PFB-Konstrukte'!A" & (SMALL(IF(NOT(ISERROR(FIND(IF(LEFT(A50,1)="0"," " & MID(A50,2,1) & ",",IF(MID(A50,3,1)=".",LEFT(A50,2),LEFT(A50,3))),'PFB-Konstrukte'!$J$9:$J$40))),ROW($9:$40)),1)+1))="", IF(LEFT(INDIRECT("A"&MAX(IF($B$1:B50="N",ROW($A$1:A50)))-1),3)="nur", IF(RIGHT(INDIRECT("A"&MAX(IF($B$1:B50="N",ROW($A$1:A50)))-1),4)="PTF!", INDEX('PFB-Konstrukte'!$B$9:$J$40,SMALL(IF(NOT(ISERROR(FIND(IF(LEFT(A50,1)="0"," " & MID(A50,2,1) & ",",IF(MID(A50,3,1)=".",LEFT(A50,2),LEFT(A50,3))),'PFB-Konstrukte'!$J$9:$J$40))),ROW($1:$32)),3),1), INDEX('PFB-Konstrukte'!$B$9:$J$40,SMALL(IF(NOT(ISERROR(FIND(IF(LEFT(A50,1)="0"," " & MID(A50,2,1) & ",",IF(MID(A50,3,1)=".",LEFT(A50,2),LEFT(A50,3))),'PFB-Konstrukte'!$J$9:$J$40))),ROW($1:$32)),2),1)), IF(RIGHT(INDEX('PFB-Konstrukte'!$A$9:$J$40,SMALL(IF(NOT(ISERROR(FIND(IF(LEFT(A50,1)="0"," " & MID(A50,2,1) & ",",IF(MID(A50,3,1)=".",LEFT(A50,2),LEFT(A50,3))),'PFB-Konstrukte'!$J$9:$J$40))),ROW($1:$32)),1),1),7)="Führung", INDEX('PFB-Konstrukte'!$A$9:$J$40,SMALL(IF(NOT(ISERROR(FIND(IF(LEFT(A50,1)="0"," " & MID(A50,2,1) & ",",IF(MID(A50,3,1)=".",LEFT(A50,2),LEFT(A50,3))),'PFB-Konstrukte'!$J$9:$J$40))),ROW($1:$32)),1),1) & ", " & INDEX('PFB-Konstrukte'!$B$9:$J$40,SMALL(IF(NOT(ISERROR(FIND(IF(LEFT(A50,1)="0"," " & MID(A50,2,1) & ",",IF(MID(A50,3,1)=".",LEFT(A50,2),LEFT(A50,3))),'PFB-Konstrukte'!$J$9:$J$40))),ROW($1:$32)),2),1), INDEX('PFB-Konstrukte'!$A$9:$J$40,SMALL(IF(NOT(ISERROR(FIND(IF(LEFT(A50,1)="0"," " & MID(A50,2,1) & ",",IF(MID(A50,3,1)=".",LEFT(A50,2),LEFT(A50,3))),'PFB-Konstrukte'!$J$9:$J$40))),ROW($1:$32)),1),1))), INDEX('PFB-Konstrukte'!$A$9:$J$40,SMALL(IF(NOT(ISERROR(FIND(IF(LEFT(A50,1)="0"," " & MID(A50,2,1) & ",",IF(MID(A50,3,1)=".",LEFT(A50,2),LEFT(A50,3))),'PFB-Konstrukte'!$J$9:$J$40))),ROW($1:$32)),1),1)) -> Eingebundenheit in die Schulgemeinschaft - PTF der Schule
B52: N | C52: MW | D52: SE | E52: SD | F52: trifft nicht zu | G52: trifft eher nicht zu | H52: trifft eher zu | I52: trifft voll zu | J52: Zuordnung zum Konstrukt
A53: 31. Ich ermutige die Schülerinnen und Schüler, ihre eigenen Ideen zu äußern. | B53: 21 | C53: 3.904761905 | D53: 0.06563832739 | E53: 0.3007926038 | F53: 0 | G53: 0 | H53: 0.09523809524 | I53: 0.9047619048 | J53: =IF(INDIRECT("'PFB-Konstrukte'!A" & (SMALL(IF(NOT(ISERROR(FIND(IF(LEFT(A53,1)="0"," " & MID(A53,2,1) & ",",IF(MID(A53,3,1)=".",LEFT(A53,2),LEFT(A53,3))),'PFB-Konstrukte'!$J$9:$J$40))),ROW($9:$40)),1)+1))="", IF(LEFT(INDIRECT("A"&MAX(IF($B$1:B53="N",ROW($A$1:A53)))-1),3)="nur", IF(RIGHT(INDIRECT("A"&MAX(IF($B$1:B53="N",ROW($A$1:A53)))-1),4)="PTF!", INDEX('PFB-Konstrukte'!$B$9:$J$40,SMALL(IF(NOT(ISERROR(FIND(IF(LEFT(A53,1)="0"," " & MID(A53,2,1) & ",",IF(MID(A53,3,1)=".",LEFT(A53,2),LEFT(A53,3))),'PFB-Konstrukte'!$J$9:$J$40))),ROW($1:$32)),3),1), INDEX('PFB-Konstrukte'!$B$9:$J$40,SMALL(IF(NOT(ISERROR(FIND(IF(LEFT(A53,1)="0"," " & MID(A53,2,1) & ",",IF(MID(A53,3,1)=".",LEFT(A53,2),LEFT(A53,3))),'PFB-Konstrukte'!$J$9:$J$40))),ROW($1:$32)),2),1)), IF(RIGHT(INDEX('PFB-Konstrukte'!$A$9:$J$40,SMALL(IF(NOT(ISERROR(FIND(IF(LEFT(A53,1)="0"," " & MID(A53,2,1) & ",",IF(MID(A53,3,1)=".",LEFT(A53,2),LEFT(A53,3))),'PFB-Konstrukte'!$J$9:$J$40))),ROW($1:$32)),1),1),7)="Führung", INDEX('PFB-Konstrukte'!$A$9:$J$40,SMALL(IF(NOT(ISERROR(FIND(IF(LEFT(A53,1)="0"," " & MID(A53,2,1) & ",",IF(MID(A53,3,1)=".",LEFT(A53,2),LEFT(A53,3))),'PFB-Konstrukte'!$J$9:$J$40))),ROW($1:$32)),1),1) & ", " & INDEX('PFB-Konstrukte'!$B$9:$J$40,SMALL(IF(NOT(ISERROR(FIND(IF(LEFT(A53,1)="0"," " & MID(A53,2,1) & ",",IF(MID(A53,3,1)=".",LEFT(A53,2),LEFT(A53,3))),'PFB-Konstrukte'!$J$9:$J$40))),ROW($1:$32)),2),1), INDEX('PFB-Konstrukte'!$A$9:$J$40,SMALL(IF(NOT(ISERROR(FIND(IF(LEFT(A53,1)="0"," " & MID(A53,2,1) & ",",IF(MID(A53,3,1)=".",LEFT(A53,2),LEFT(A53,3))),'PFB-Konstrukte'!$J$9:$J$40))),ROW($1:$32)),1),1))), INDEX('PFB-Konstrukte'!$A$9:$J$40,SMALL(IF(NOT(ISERROR(FIND(IF(LEFT(A53,1)="0"," " & MID(A53,2,1) & ",",IF(MID(A53,3,1)=".",LEFT(A53,2),LEFT(A53,3))),'PFB-Konstrukte'!$J$9:$J$40))),ROW($1:$32)),1),1)) -> Potenzial zur kognitiven Aktivierung
A54: 32. Ich stelle oft Fragen oder Aufgaben, die die Schülerinnen und Schüler zum intensiven Nachdenken anregen sollen. | B54: 20 | C54: 3.5 | D54: 0.1357241785 | E54: 0.6069769787 | F54: 0 | G54: 0.05 | H54: 0.4 | I54: 0.55 | J54: =IF(INDIRECT("'PFB-Konstrukte'!A" & (SMALL(IF(NOT(ISERROR(FIND(IF(LEFT(A54,1)="0"," " & MID(A54,2,1) & ",",IF(MID(A54,3,1)=".",LEFT(A54,2),LEFT(A54,3))),'PFB-Konstrukte'!$J$9:$J$40))),ROW($9:$40)),1)+1))="", IF(LEFT(INDIRECT("A"&MAX(IF($B$1:B54="N",ROW($A$1:A54)))-1),3)="nur", IF(RIGHT(INDIRECT("A"&MAX(IF($B$1:B54="N",ROW($A$1:A54)))-1),4)="PTF!", INDEX('PFB-Konstrukte'!$B$9:$J$40,SMALL(IF(NOT(ISERROR(FIND(IF(LEFT(A54,1)="0"," " & MID(A54,2,1) & ",",IF(MID(A54,3,1)=".",LEFT(A54,2),LEFT(A54,3))),'PFB-Konstrukte'!$J$9:$J$40))),ROW($1:$32)),3),1), INDEX('PFB-Konstrukte'!$B$9:$J$40,SMALL(IF(NOT(ISERROR(FIND(IF(LEFT(A54,1)="0"," " & MID(A54,2,1) & ",",IF(MID(A54,3,1)=".",LEFT(A54,2),LEFT(A54,3))),'PFB-Konstrukte'!$J$9:$J$40))),ROW($1:$32)),2),1)), IF(RIGHT(INDEX('PFB-Konstrukte'!$A$9:$J$40,SMALL(IF(NOT(ISERROR(FIND(IF(LEFT(A54,1)="0"," " & MID(A54,2,1) & ",",IF(MID(A54,3,1)=".",LEFT(A54,2),LEFT(A54,3))),'PFB-Konstrukte'!$J$9:$J$40))),ROW($1:$32)),1),1),7)="Führung", INDEX('PFB-Konstrukte'!$A$9:$J$40,SMALL(IF(NOT(ISERROR(FIND(IF(LEFT(A54,1)="0"," " & MID(A54,2,1) & ",",IF(MID(A54,3,1)=".",LEFT(A54,2),LEFT(A54,3))),'PFB-Konstrukte'!$J$9:$J$40))),ROW($1:$32)),1),1) & ", " & INDEX('PFB-Konstrukte'!$B$9:$J$40,SMALL(IF(NOT(ISERROR(FIND(IF(LEFT(A54,1)="0"," " & MID(A54,2,1) & ",",IF(MID(A54,3,1)=".",LEFT(A54,2),LEFT(A54,3))),'PFB-Konstrukte'!$J$9:$J$40))),ROW($1:$32)),2),1), INDEX('PFB-Konstrukte'!$A$9:$J$40,SMALL(IF(NOT(ISERROR(FIND(IF(LEFT(A54,1)="0"," " & MID(A54,2,1) & ",",IF(MID(A54,3,1)=".",LEFT(A54,2),LEFT(A54,3))),'PFB-Konstrukte'!$J$9:$J$40))),ROW($1:$32)),1),1))), INDEX('PFB-Konstrukte'!$A$9:$J$40,SMALL(IF(NOT(ISERROR(FIND(IF(LEFT(A54,1)="0"," " & MID(A54,2,1) & ",",IF(MID(A54,3,1)=".",LEFT(A54,2),LEFT(A54,3))),'PFB-Konstrukte'!$J$9:$J$40))),ROW($1:$32)),1),1)) -> Potenzial zur kognitiven Aktivierung
A55: 33. Ich fordere die Schülerinnen und Schüler auf, ihre Aussagen gut zu begründen. | B55: 20 | C55: 3.75 | D55: 0.09933992678 | E55: 0.4442616583 | F55: 0 | G55: 0 | H55: 0.25 | I55: 0.75 | J55: =IF(INDIRECT("'PFB-Konstrukte'!A" & (SMALL(IF(NOT(ISERROR(FIND(IF(LEFT(A55,1)="0"," " & MID(A55,2,1) & ",",IF(MID(A55,3,1)=".",LEFT(A55,2),LEFT(A55,3))),'PFB-Konstrukte'!$J$9:$J$40))),ROW($9:$40)),1)+1))="", IF(LEFT(INDIRECT("A"&MAX(IF($B$1:B55="N",ROW($A$1:A55)))-1),3)="nur", IF(RIGHT(INDIRECT("A"&MAX(IF($B$1:B55="N",ROW($A$1:A55)))-1),4)="PTF!", INDEX('PFB-Konstrukte'!$B$9:$J$40,SMALL(IF(NOT(ISERROR(FIND(IF(LEFT(A55,1)="0"," " & MID(A55,2,1) & ",",IF(MID(A55,3,1)=".",LEFT(A55,2),LEFT(A55,3))),'PFB-Konstrukte'!$J$9:$J$40))),ROW($1:$32)),3),1), INDEX('PFB-Konstrukte'!$B$9:$J$40,SMALL(IF(NOT(ISERROR(FIND(IF(LEFT(A55,1)="0"," " & MID(A55,2,1) & ",",IF(MID(A55,3,1)=".",LEFT(A55,2),LEFT(A55,3))),'PFB-Konstrukte'!$J$9:$J$40))),ROW($1:$32)),2),1)), IF(RIGHT(INDEX('PFB-Konstrukte'!$A$9:$J$40,SMALL(IF(NOT(ISERROR(FIND(IF(LEFT(A55,1)="0"," " & MID(A55,2,1) & ",",IF(MID(A55,3,1)=".",LEFT(A55,2),LEFT(A55,3))),'PFB-Konstrukte'!$J$9:$J$40))),ROW($1:$32)),1),1),7)="Führung", INDEX('PFB-Konstrukte'!$A$9:$J$40,SMALL(IF(NOT(ISERROR(FIND(IF(LEFT(A55,1)="0"," " & MID(A55,2,1) & ",",IF(MID(A55,3,1)=".",LEFT(A55,2),LEFT(A55,3))),'PFB-Konstrukte'!$J$9:$J$40))),ROW($1:$32)),1),1) & ", " & INDEX('PFB-Konstrukte'!$B$9:$J$40,SMALL(IF(NOT(ISERROR(FIND(IF(LEFT(A55,1)="0"," " & MID(A55,2,1) & ",",IF(MID(A55,3,1)=".",LEFT(A55,2),LEFT(A55,3))),'PFB-Konstrukte'!$J$9:$J$40))),ROW($1:$32)),2),1), INDEX('PFB-Konstrukte'!$A$9:$J$40,SMALL(IF(NOT(ISERROR(FIND(IF(LEFT(A55,1)="0"," " & MID(A55,2,1) & ",",IF(MID(A55,3,1)=".",LEFT(A55,2),LEFT(A55,3))),'PFB-Konstrukte'!$J$9:$J$40))),ROW($1:$32)),1),1))), INDEX('PFB-Konstrukte'!$A$9:$J$40,SMALL(IF(NOT(ISERROR(FIND(IF(LEFT(A55,1)="0"," " & MID(A55,2,1) & ",",IF(MID(A55,3,1)=".",LEFT(A55,2),LEFT(A55,3))),'PFB-Konstrukte'!$J$9:$J$40))),ROW($1:$32)),1),1)) -> Potenzial zur kognitiven Aktivierung
A56: 34. Ich behandle Fehler von den Schülerinnen und Schülern als Teil des Lernprozesses. | B56: 21 | C56: 3.80952381 | D56: 0.08780518531 | E56: 0.4023739081 | F56: 0 | G56: 0 | H56: 0.1904761905 | I56: 0.8095238095 | J56: =IF(INDIRECT("'PFB-Konstrukte'!A" & (SMALL(IF(NOT(ISERROR(FIND(IF(LEFT(A56,1)="0"," " & MID(A56,2,1) & ",",IF(MID(A56,3,1)=".",LEFT(A56,2),LEFT(A56,3))),'PFB-Konstrukte'!$J$9:$J$40))),ROW($9:$40)),1)+1))="", IF(LEFT(INDIRECT("A"&MAX(IF($B$1:B56="N",ROW($A$1:A56)))-1),3)="nur", IF(RIGHT(INDIRECT("A"&MAX(IF($B$1:B56="N",ROW($A$1:A56)))-1),4)="PTF!", INDEX('PFB-Konstrukte'!$B$9:$J$40,SMALL(IF(NOT(ISERROR(FIND(IF(LEFT(A56,1)="0"," " & MID(A56,2,1) & ",",IF(MID(A56,3,1)=".",LEFT(A56,2),LEFT(A56,3))),'PFB-Konstrukte'!$J$9:$J$40))),ROW($1:$32)),3),1), INDEX('PFB-Konstrukte'!$B$9:$J$40,SMALL(IF(NOT(ISERROR(FIND(IF(LEFT(A56,1)="0"," " & MID(A56,2,1) & ",",IF(MID(A56,3,1)=".",LEFT(A56,2),LEFT(A56,3))),'PFB-Konstrukte'!$J$9:$J$40))),ROW($1:$32)),2),1)), IF(RIGHT(INDEX('PFB-Konstrukte'!$A$9:$J$40,SMALL(IF(NOT(ISERROR(FIND(IF(LEFT(A56,1)="0"," " & MID(A56,2,1) & ",",IF(MID(A56,3,1)=".",LEFT(A56,2),LEFT(A56,3))),'PFB-Konstrukte'!$J$9:$J$40))),ROW($1:$32)),1),1),7)="Führung", INDEX('PFB-Konstrukte'!$A$9:$J$40,SMALL(IF(NOT(ISERROR(FIND(IF(LEFT(A56,1)="0"," " & MID(A56,2,1) & ",",IF(MID(A56,3,1)=".",LEFT(A56,2),LEFT(A56,3))),'PFB-Konstrukte'!$J$9:$J$40))),ROW($1:$32)),1),1) & ", " & INDEX('PFB-Konstrukte'!$B$9:$J$40,SMALL(IF(NOT(ISERROR(FIND(IF(LEFT(A56,1)="0"," " & MID(A56,2,1) & ",",IF(MID(A56,3,1)=".",LEFT(A56,2),LEFT(A56,3))),'PFB-Konstrukte'!$J$9:$J$40))),ROW($1:$32)),2),1), INDEX('PFB-Konstrukte'!$A$9:$J$40,SMALL(IF(NOT(ISERROR(FIND(IF(LEFT(A56,1)="0"," " & MID(A56,2,1) & ",",IF(MID(A56,3,1)=".",LEFT(A56,2),LEFT(A56,3))),'PFB-Konstrukte'!$J$9:$J$40))),ROW($1:$32)),1),1))), INDEX('PFB-Konstrukte'!$A$9:$J$40,SMALL(IF(NOT(ISERROR(FIND(IF(LEFT(A56,1)="0"," " & MID(A56,2,1) & ",",IF(MID(A56,3,1)=".",LEFT(A56,2),LEFT(A56,3))),'PFB-Konstrukte'!$J$9:$J$40))),ROW($1:$32)),1),1)) -> Potenzial zur kognitiven Aktivierung
A57: 35. Ich biete verschiedene Lernwege/Methodenvielfalt an. | B57: 21 | C57: 3.476190476 | D57: 0.1116765657 | E57: 0.5117663157 | F57: 0 | G57: 0 | H57: 0.5238095238 | I57: 0.4761904762 | J57: =IF(INDIRECT("'PFB-Konstrukte'!A" & (SMALL(IF(NOT(ISERROR(FIND(IF(LEFT(A57,1)="0"," " & MID(A57,2,1) & ",",IF(MID(A57,3,1)=".",LEFT(A57,2),LEFT(A57,3))),'PFB-Konstrukte'!$J$9:$J$40))),ROW($9:$40)),1)+1))="", IF(LEFT(INDIRECT("A"&MAX(IF($B$1:B57="N",ROW($A$1:A57)))-1),3)="nur", IF(RIGHT(INDIRECT("A"&MAX(IF($B$1:B57="N",ROW($A$1:A57)))-1),4)="PTF!", INDEX('PFB-Konstrukte'!$B$9:$J$40,SMALL(IF(NOT(ISERROR(FIND(IF(LEFT(A57,1)="0"," " & MID(A57,2,1) & ",",IF(MID(A57,3,1)=".",LEFT(A57,2),LEFT(A57,3))),'PFB-Konstrukte'!$J$9:$J$40))),ROW($1:$32)),3),1), INDEX('PFB-Konstrukte'!$B$9:$J$40,SMALL(IF(NOT(ISERROR(FIND(IF(LEFT(A57,1)="0"," " & MID(A57,2,1) & ",",IF(MID(A57,3,1)=".",LEFT(A57,2),LEFT(A57,3))),'PFB-Konstrukte'!$J$9:$J$40))),ROW($1:$32)),2),1)), IF(RIGHT(INDEX('PFB-Konstrukte'!$A$9:$J$40,SMALL(IF(NOT(ISERROR(FIND(IF(LEFT(A57,1)="0"," " & MID(A57,2,1) & ",",IF(MID(A57,3,1)=".",LEFT(A57,2),LEFT(A57,3))),'PFB-Konstrukte'!$J$9:$J$40))),ROW($1:$32)),1),1),7)="Führung", INDEX('PFB-Konstrukte'!$A$9:$J$40,SMALL(IF(NOT(ISERROR(FIND(IF(LEFT(A57,1)="0"," " & MID(A57,2,1) & ",",IF(MID(A57,3,1)=".",LEFT(A57,2),LEFT(A57,3))),'PFB-Konstrukte'!$J$9:$J$40))),ROW($1:$32)),1),1) & ", " & INDEX('PFB-Konstrukte'!$B$9:$J$40,SMALL(IF(NOT(ISERROR(FIND(IF(LEFT(A57,1)="0"," " & MID(A57,2,1) & ",",IF(MID(A57,3,1)=".",LEFT(A57,2),LEFT(A57,3))),'PFB-Konstrukte'!$J$9:$J$40))),ROW($1:$32)),2),1), INDEX('PFB-Konstrukte'!$A$9:$J$40,SMALL(IF(NOT(ISERROR(FIND(IF(LEFT(A57,1)="0"," " & MID(A57,2,1) & ",",IF(MID(A57,3,1)=".",LEFT(A57,2),LEFT(A57,3))),'PFB-Konstrukte'!$J$9:$J$40))),ROW($1:$32)),1),1))), INDEX('PFB-Konstrukte'!$A$9:$J$40,SMALL(IF(NOT(ISERROR(FIND(IF(LEFT(A57,1)="0"," " & MID(A57,2,1) & ",",IF(MID(A57,3,1)=".",LEFT(A57,2),LEFT(A57,3))),'PFB-Konstrukte'!$J$9:$J$40))),ROW($1:$32)),1),1)) -> Potenzial zur kognitiven Aktivierung
A58: 36. Ich achte darauf, dass möglichst alle Schülerinnen und Schüler den Unterrichtsstoff verstanden haben, bevor ich ein neues Thema beginne. | B58: 15 | C58: 3.4 | D58: 0.1632993162 | E58: 0.632455532 | F58: 0 | G58: 0.06666666667 | H58: 0.4666666667 | I58: 0.4666666667 | J58: =IF(INDIRECT("'PFB-Konstrukte'!A" & (SMALL(IF(NOT(ISERROR(FIND(IF(LEFT(A58,1)="0"," " & MID(A58,2,1) & ",",IF(MID(A58,3,1)=".",LEFT(A58,2),LEFT(A58,3))),'PFB-Konstrukte'!$J$9:$J$40))),ROW($9:$40)),1)+1))="", IF(LEFT(INDIRECT("A"&MAX(IF($B$1:B58="N",ROW($A$1:A58)))-1),3)="nur", IF(RIGHT(INDIRECT("A"&MAX(IF($B$1:B58="N",ROW($A$1:A58)))-1),4)="PTF!", INDEX('PFB-Konstrukte'!$B$9:$J$40,SMALL(IF(NOT(ISERROR(FIND(IF(LEFT(A58,1)="0"," " & MID(A58,2,1) & ",",IF(MID(A58,3,1)=".",LEFT(A58,2),LEFT(A58,3))),'PFB-Konstrukte'!$J$9:$J$40))),ROW($1:$32)),3),1), INDEX('PFB-Konstrukte'!$B$9:$J$40,SMALL(IF(NOT(ISERROR(FIND(IF(LEFT(A58,1)="0"," " & MID(A58,2,1) & ",",IF(MID(A58,3,1)=".",LEFT(A58,2),LEFT(A58,3))),'PFB-Konstrukte'!$J$9:$J$40))),ROW($1:$32)),2),1)), IF(RIGHT(INDEX('PFB-Konstrukte'!$A$9:$J$40,SMALL(IF(NOT(ISERROR(FIND(IF(LEFT(A58,1)="0"," " & MID(A58,2,1) & ",",IF(MID(A58,3,1)=".",LEFT(A58,2),LEFT(A58,3))),'PFB-Konstrukte'!$J$9:$J$40))),ROW($1:$32)),1),1),7)="Führung", INDEX('PFB-Konstrukte'!$A$9:$J$40,SMALL(IF(NOT(ISERROR(FIND(IF(LEFT(A58,1)="0"," " & MID(A58,2,1) & ",",IF(MID(A58,3,1)=".",LEFT(A58,2),LEFT(A58,3))),'PFB-Konstrukte'!$J$9:$J$40))),ROW($1:$32)),1),1) & ", " & INDEX('PFB-Konstrukte'!$B$9:$J$40,SMALL(IF(NOT(ISERROR(FIND(IF(LEFT(A58,1)="0"," " & MID(A58,2,1) & ",",IF(MID(A58,3,1)=".",LEFT(A58,2),LEFT(A58,3))),'PFB-Konstrukte'!$J$9:$J$40))),ROW($1:$32)),2),1), INDEX('PFB-Konstrukte'!$A$9:$J$40,SMALL(IF(NOT(ISERROR(FIND(IF(LEFT(A58,1)="0"," " & MID(A58,2,1) & ",",IF(MID(A58,3,1)=".",LEFT(A58,2),LEFT(A58,3))),'PFB-Konstrukte'!$J$9:$J$40))),ROW($1:$32)),1),1))), INDEX('PFB-Konstrukte'!$A$9:$J$40,SMALL(IF(NOT(ISERROR(FIND(IF(LEFT(A58,1)="0"," " & MID(A58,2,1) & ",",IF(MID(A58,3,1)=".",LEFT(A58,2),LEFT(A58,3))),'PFB-Konstrukte'!$J$9:$J$40))),ROW($1:$32)),1),1)) -> Potenzial zur kognitiven Aktivierung
B60: N | C60: MW | D60: SE | E60: SD | F60: trifft nicht zu | G60: trifft eher nicht zu | H60: trifft eher zu | I60: trifft voll zu | J60: Zuordnung zum Konstrukt
A61: 37. Ich traue den Schülerinnen und Schülern auch die Lösung schwieriger Aufgaben zu. | B61: 20 | C61: 3.55 | D61: 0.1141328865 | E61: 0.5104177855 | F61: 0 | G61: 0 | H61: 0.45 | I61: 0.55 | J61: =IF(INDIRECT("'PFB-Konstrukte'!A" & (SMALL(IF(NOT(ISERROR(FIND(IF(LEFT(A61,1)="0"," " & MID(A61,2,1) & ",",IF(MID(A61,3,1)=".",LEFT(A61,2),LEFT(A61,3))),'PFB-Konstrukte'!$J$9:$J$40))),ROW($9:$40)),1)+1))="", IF(LEFT(INDIRECT("A"&MAX(IF($B$1:B61="N",ROW($A$1:A61)))-1),3)="nur", IF(RIGHT(INDIRECT("A"&MAX(IF($B$1:B61="N",ROW($A$1:A61)))-1),4)="PTF!", INDEX('PFB-Konstrukte'!$B$9:$J$40,SMALL(IF(NOT(ISERROR(FIND(IF(LEFT(A61,1)="0"," " & MID(A61,2,1) & ",",IF(MID(A61,3,1)=".",LEFT(A61,2),LEFT(A61,3))),'PFB-Konstrukte'!$J$9:$J$40))),ROW($1:$32)),3),1), INDEX('PFB-Konstrukte'!$B$9:$J$40,SMALL(IF(NOT(ISERROR(FIND(IF(LEFT(A61,1)="0"," " & MID(A61,2,1) & ",",IF(MID(A61,3,1)=".",LEFT(A61,2),LEFT(A61,3))),'PFB-Konstrukte'!$J$9:$J$40))),ROW($1:$32)),2),1)), IF(RIGHT(INDEX('PFB-Konstrukte'!$A$9:$J$40,SMALL(IF(NOT(ISERROR(FIND(IF(LEFT(A61,1)="0"," " & MID(A61,2,1) & ",",IF(MID(A61,3,1)=".",LEFT(A61,2),LEFT(A61,3))),'PFB-Konstrukte'!$J$9:$J$40))),ROW($1:$32)),1),1),7)="Führung", INDEX('PFB-Konstrukte'!$A$9:$J$40,SMALL(IF(NOT(ISERROR(FIND(IF(LEFT(A61,1)="0"," " & MID(A61,2,1) & ",",IF(MID(A61,3,1)=".",LEFT(A61,2),LEFT(A61,3))),'PFB-Konstrukte'!$J$9:$J$40))),ROW($1:$32)),1),1) & ", " & INDEX('PFB-Konstrukte'!$B$9:$J$40,SMALL(IF(NOT(ISERROR(FIND(IF(LEFT(A61,1)="0"," " & MID(A61,2,1) & ",",IF(MID(A61,3,1)=".",LEFT(A61,2),LEFT(A61,3))),'PFB-Konstrukte'!$J$9:$J$40))),ROW($1:$32)),2),1), INDEX('PFB-Konstrukte'!$A$9:$J$40,SMALL(IF(NOT(ISERROR(FIND(IF(LEFT(A61,1)="0"," " & MID(A61,2,1) & ",",IF(MID(A61,3,1)=".",LEFT(A61,2),LEFT(A61,3))),'PFB-Konstrukte'!$J$9:$J$40))),ROW($1:$32)),1),1))), INDEX('PFB-Konstrukte'!$A$9:$J$40,SMALL(IF(NOT(ISERROR(FIND(IF(LEFT(A61,1)="0"," " & MID(A61,2,1) & ",",IF(MID(A61,3,1)=".",LEFT(A61,2),LEFT(A61,3))),'PFB-Konstrukte'!$J$9:$J$40))),ROW($1:$32)),1),1)) -> Konstruktive Unterstützung
A62: 38. Ich ermuntere die Schülerinnen und Schüler, auch bei schwierigen Aufgaben erst einmal selbst die richtige Lösung zu finden. | B62: 20 | C62: 3.75 | D62: 0.09933992678 | E62: 0.4442616583 | F62: 0 | G62: 0 | H62: 0.25 | I62: 0.75 | J62: =IF(INDIRECT("'PFB-Konstrukte'!A" & (SMALL(IF(NOT(ISERROR(FIND(IF(LEFT(A62,1)="0"," " & MID(A62,2,1) & ",",IF(MID(A62,3,1)=".",LEFT(A62,2),LEFT(A62,3))),'PFB-Konstrukte'!$J$9:$J$40))),ROW($9:$40)),1)+1))="", IF(LEFT(INDIRECT("A"&MAX(IF($B$1:B62="N",ROW($A$1:A62)))-1),3)="nur", IF(RIGHT(INDIRECT("A"&MAX(IF($B$1:B62="N",ROW($A$1:A62)))-1),4)="PTF!", INDEX('PFB-Konstrukte'!$B$9:$J$40,SMALL(IF(NOT(ISERROR(FIND(IF(LEFT(A62,1)="0"," " & MID(A62,2,1) & ",",IF(MID(A62,3,1)=".",LEFT(A62,2),LEFT(A62,3))),'PFB-Konstrukte'!$J$9:$J$40))),ROW($1:$32)),3),1), INDEX('PFB-Konstrukte'!$B$9:$J$40,SMALL(IF(NOT(ISERROR(FIND(IF(LEFT(A62,1)="0"," " & MID(A62,2,1) & ",",IF(MID(A62,3,1)=".",LEFT(A62,2),LEFT(A62,3))),'PFB-Konstrukte'!$J$9:$J$40))),ROW($1:$32)),2),1)), IF(RIGHT(INDEX('PFB-Konstrukte'!$A$9:$J$40,SMALL(IF(NOT(ISERROR(FIND(IF(LEFT(A62,1)="0"," " & MID(A62,2,1) & ",",IF(MID(A62,3,1)=".",LEFT(A62,2),LEFT(A62,3))),'PFB-Konstrukte'!$J$9:$J$40))),ROW($1:$32)),1),1),7)="Führung", INDEX('PFB-Konstrukte'!$A$9:$J$40,SMALL(IF(NOT(ISERROR(FIND(IF(LEFT(A62,1)="0"," " & MID(A62,2,1) & ",",IF(MID(A62,3,1)=".",LEFT(A62,2),LEFT(A62,3))),'PFB-Konstrukte'!$J$9:$J$40))),ROW($1:$32)),1),1) & ", " & INDEX('PFB-Konstrukte'!$B$9:$J$40,SMALL(IF(NOT(ISERROR(FIND(IF(LEFT(A62,1)="0"," " & MID(A62,2,1) & ",",IF(MID(A62,3,1)=".",LEFT(A62,2),LEFT(A62,3))),'PFB-Konstrukte'!$J$9:$J$40))),ROW($1:$32)),2),1), INDEX('PFB-Konstrukte'!$A$9:$J$40,SMALL(IF(NOT(ISERROR(FIND(IF(LEFT(A62,1)="0"," " & MID(A62,2,1) & ",",IF(MID(A62,3,1)=".",LEFT(A62,2),LEFT(A62,3))),'PFB-Konstrukte'!$J$9:$J$40))),ROW($1:$32)),1),1))), INDEX('PFB-Konstrukte'!$A$9:$J$40,SMALL(IF(NOT(ISERROR(FIND(IF(LEFT(A62,1)="0"," " & MID(A62,2,1) & ",",IF(MID(A62,3,1)=".",LEFT(A62,2),LEFT(A62,3))),'PFB-Konstrukte'!$J$9:$J$40))),ROW($1:$32)),1),1)) -> Konstruktive Unterstützung
A63: 39. Ich versuche, die Schülerinnen und Schüler für den Unterrichtsgegenstand zu begeistern. | B63: 20 | C63: 3.85 | D63: 0.08191780219 | E63: 0.3663475485 | F63: 0 | G63: 0 | H63: 0.15 | I63: 0.85 | J63: =IF(INDIRECT("'PFB-Konstrukte'!A" & (SMALL(IF(NOT(ISERROR(FIND(IF(LEFT(A63,1)="0"," " & MID(A63,2,1) & ",",IF(MID(A63,3,1)=".",LEFT(A63,2),LEFT(A63,3))),'PFB-Konstrukte'!$J$9:$J$40))),ROW($9:$40)),1)+1))="", IF(LEFT(INDIRECT("A"&MAX(IF($B$1:B63="N",ROW($A$1:A63)))-1),3)="nur", IF(RIGHT(INDIRECT("A"&MAX(IF($B$1:B63="N",ROW($A$1:A63)))-1),4)="PTF!", INDEX('PFB-Konstrukte'!$B$9:$J$40,SMALL(IF(NOT(ISERROR(FIND(IF(LEFT(A63,1)="0"," " & MID(A63,2,1) & ",",IF(MID(A63,3,1)=".",LEFT(A63,2),LEFT(A63,3))),'PFB-Konstrukte'!$J$9:$J$40))),ROW($1:$32)),3),1), INDEX('PFB-Konstrukte'!$B$9:$J$40,SMALL(IF(NOT(ISERROR(FIND(IF(LEFT(A63,1)="0"," " & MID(A63,2,1) & ",",IF(MID(A63,3,1)=".",LEFT(A63,2),LEFT(A63,3))),'PFB-Konstrukte'!$J$9:$J$40))),ROW($1:$32)),2),1)), IF(RIGHT(INDEX('PFB-Konstrukte'!$A$9:$J$40,SMALL(IF(NOT(ISERROR(FIND(IF(LEFT(A63,1)="0"," " & MID(A63,2,1) & ",",IF(MID(A63,3,1)=".",LEFT(A63,2),LEFT(A63,3))),'PFB-Konstrukte'!$J$9:$J$40))),ROW($1:$32)),1),1),7)="Führung", INDEX('PFB-Konstrukte'!$A$9:$J$40,SMALL(IF(NOT(ISERROR(FIND(IF(LEFT(A63,1)="0"," " & MID(A63,2,1) & ",",IF(MID(A63,3,1)=".",LEFT(A63,2),LEFT(A63,3))),'PFB-Konstrukte'!$J$9:$J$40))),ROW($1:$32)),1),1) & ", " & INDEX('PFB-Konstrukte'!$B$9:$J$40,SMALL(IF(NOT(ISERROR(FIND(IF(LEFT(A63,1)="0"," " & MID(A63,2,1) & ",",IF(MID(A63,3,1)=".",LEFT(A63,2),LEFT(A63,3))),'PFB-Konstrukte'!$J$9:$J$40))),ROW($1:$32)),2),1), INDEX('PFB-Konstrukte'!$A$9:$J$40,SMALL(IF(NOT(ISERROR(FIND(IF(LEFT(A63,1)="0"," " & MID(A63,2,1) & ",",IF(MID(A63,3,1)=".",LEFT(A63,2),LEFT(A63,3))),'PFB-Konstrukte'!$J$9:$J$40))),ROW($1:$32)),1),1))), INDEX('PFB-Konstrukte'!$A$9:$J$40,SMALL(IF(NOT(ISERROR(FIND(IF(LEFT(A63,1)="0"," " & MID(A63,2,1) & ",",IF(MID(A63,3,1)=".",LEFT(A63,2),LEFT(A63,3))),'PFB-Konstrukte'!$J$9:$J$40))),ROW($1:$32)),1),1)) -> Konstruktive Unterstützung
A64: 40. Ich gebe den Schülerinnen und Schülern Aufgaben entsprechend ihrer individuellen Fähigkeiten. | B64: 21 | C64: 3.476190476 | D64: 0.1116765657 | E64: 0.5117663157 | F64: 0 | G64: 0 | H64: 0.5238095238 | I64: 0.4761904762 | J64: =IF(INDIRECT("'PFB-Konstrukte'!A" & (SMALL(IF(NOT(ISERROR(FIND(IF(LEFT(A64,1)="0"," " & MID(A64,2,1) & ",",IF(MID(A64,3,1)=".",LEFT(A64,2),LEFT(A64,3))),'PFB-Konstrukte'!$J$9:$J$40))),ROW($9:$40)),1)+1))="", IF(LEFT(INDIRECT("A"&MAX(IF($B$1:B64="N",ROW($A$1:A64)))-1),3)="nur", IF(RIGHT(INDIRECT("A"&MAX(IF($B$1:B64="N",ROW($A$1:A64)))-1),4)="PTF!", INDEX('PFB-Konstrukte'!$B$9:$J$40,SMALL(IF(NOT(ISERROR(FIND(IF(LEFT(A64,1)="0"," " & MID(A64,2,1) & ",",IF(MID(A64,3,1)=".",LEFT(A64,2),LEFT(A64,3))),'PFB-Konstrukte'!$J$9:$J$40))),ROW($1:$32)),3),1), INDEX('PFB-Konstrukte'!$B$9:$J$40,SMALL(IF(NOT(ISERROR(FIND(IF(LEFT(A64,1)="0"," " & MID(A64,2,1) & ",",IF(MID(A64,3,1)=".",LEFT(A64,2),LEFT(A64,3))),'PFB-Konstrukte'!$J$9:$J$40))),ROW($1:$32)),2),1)), IF(RIGHT(INDEX('PFB-Konstrukte'!$A$9:$J$40,SMALL(IF(NOT(ISERROR(FIND(IF(LEFT(A64,1)="0"," " & MID(A64,2,1) & ",",IF(MID(A64,3,1)=".",LEFT(A64,2),LEFT(A64,3))),'PFB-Konstrukte'!$J$9:$J$40))),ROW($1:$32)),1),1),7)="Führung", INDEX('PFB-Konstrukte'!$A$9:$J$40,SMALL(IF(NOT(ISERROR(FIND(IF(LEFT(A64,1)="0"," " & MID(A64,2,1) & ",",IF(MID(A64,3,1)=".",LEFT(A64,2),LEFT(A64,3))),'PFB-Konstrukte'!$J$9:$J$40))),ROW($1:$32)),1),1) & ", " & INDEX('PFB-Konstrukte'!$B$9:$J$40,SMALL(IF(NOT(ISERROR(FIND(IF(LEFT(A64,1)="0"," " & MID(A64,2,1) & ",",IF(MID(A64,3,1)=".",LEFT(A64,2),LEFT(A64,3))),'PFB-Konstrukte'!$J$9:$J$40))),ROW($1:$32)),2),1), INDEX('PFB-Konstrukte'!$A$9:$J$40,SMALL(IF(NOT(ISERROR(FIND(IF(LEFT(A64,1)="0"," " & MID(A64,2,1) & ",",IF(MID(A64,3,1)=".",LEFT(A64,2),LEFT(A64,3))),'PFB-Konstrukte'!$J$9:$J$40))),ROW($1:$32)),1),1))), INDEX('PFB-Konstrukte'!$A$9:$J$40,SMALL(IF(NOT(ISERROR(FIND(IF(LEFT(A64,1)="0"," " & MID(A64,2,1) & ",",IF(MID(A64,3,1)=".",LEFT(A64,2),LEFT(A64,3))),'PFB-Konstrukte'!$J$9:$J$40))),ROW($1:$32)),1),1)) -> Konstruktive Unterstützung
A65: 41. Ich gestalte den Unterricht so, dass die Schülerinnen und Schüler individuell lernen können. | B65: 20 | C65: 3.5 | D65: 0.1147078669 | E65: 0.512989176 | F65: 0 | G65: 0 | H65: 0.5 | I65: 0.5 | J65: =IF(INDIRECT("'PFB-Konstrukte'!A" & (SMALL(IF(NOT(ISERROR(FIND(IF(LEFT(A65,1)="0"," " & MID(A65,2,1) & ",",IF(MID(A65,3,1)=".",LEFT(A65,2),LEFT(A65,3))),'PFB-Konstrukte'!$J$9:$J$40))),ROW($9:$40)),1)+1))="", IF(LEFT(INDIRECT("A"&MAX(IF($B$1:B65="N",ROW($A$1:A65)))-1),3)="nur", IF(RIGHT(INDIRECT("A"&MAX(IF($B$1:B65="N",ROW($A$1:A65)))-1),4)="PTF!", INDEX('PFB-Konstrukte'!$B$9:$J$40,SMALL(IF(NOT(ISERROR(FIND(IF(LEFT(A65,1)="0"," " & MID(A65,2,1) & ",",IF(MID(A65,3,1)=".",LEFT(A65,2),LEFT(A65,3))),'PFB-Konstrukte'!$J$9:$J$40))),ROW($1:$32)),3),1), INDEX('PFB-Konstrukte'!$B$9:$J$40,SMALL(IF(NOT(ISERROR(FIND(IF(LEFT(A65,1)="0"," " & MID(A65,2,1) & ",",IF(MID(A65,3,1)=".",LEFT(A65,2),LEFT(A65,3))),'PFB-Konstrukte'!$J$9:$J$40))),ROW($1:$32)),2),1)), IF(RIGHT(INDEX('PFB-Konstrukte'!$A$9:$J$40,SMALL(IF(NOT(ISERROR(FIND(IF(LEFT(A65,1)="0"," " & MID(A65,2,1) & ",",IF(MID(A65,3,1)=".",LEFT(A65,2),LEFT(A65,3))),'PFB-Konstrukte'!$J$9:$J$40))),ROW($1:$32)),1),1),7)="Führung", INDEX('PFB-Konstrukte'!$A$9:$J$40,SMALL(IF(NOT(ISERROR(FIND(IF(LEFT(A65,1)="0"," " & MID(A65,2,1) & ",",IF(MID(A65,3,1)=".",LEFT(A65,2),LEFT(A65,3))),'PFB-Konstrukte'!$J$9:$J$40))),ROW($1:$32)),1),1) & ", " & INDEX('PFB-Konstrukte'!$B$9:$J$40,SMALL(IF(NOT(ISERROR(FIND(IF(LEFT(A65,1)="0"," " & MID(A65,2,1) & ",",IF(MID(A65,3,1)=".",LEFT(A65,2),LEFT(A65,3))),'PFB-Konstrukte'!$J$9:$J$40))),ROW($1:$32)),2),1), INDEX('PFB-Konstrukte'!$A$9:$J$40,SMALL(IF(NOT(ISERROR(FIND(IF(LEFT(A65,1)="0"," " & MID(A65,2,1) & ",",IF(MID(A65,3,1)=".",LEFT(A65,2),LEFT(A65,3))),'PFB-Konstrukte'!$J$9:$J$40))),ROW($1:$32)),1),1))), INDEX('PFB-Konstrukte'!$A$9:$J$40,SMALL(IF(NOT(ISERROR(FIND(IF(LEFT(A65,1)="0"," " & MID(A65,2,1) & ",",IF(MID(A65,3,1)=".",LEFT(A65,2),LEFT(A65,3))),'PFB-Konstrukte'!$J$9:$J$40))),ROW($1:$32)),1),1)) -> Konstruktive Unterstützung
A66: 42. Im Unterricht gebe ich den Schülerinnen und Schülern individuelle Hinweise, wie sie sich verbessern können. | B66: 20 | C66: 3.7 | D66: 0.1277332747 | E66: 0.5712405706 | F66: 0 | G66: 0.05 | H66: 0.2 | I66: 0.75 | J66: =IF(INDIRECT("'PFB-Konstrukte'!A" & (SMALL(IF(NOT(ISERROR(FIND(IF(LEFT(A66,1)="0"," " & MID(A66,2,1) & ",",IF(MID(A66,3,1)=".",LEFT(A66,2),LEFT(A66,3))),'PFB-Konstrukte'!$J$9:$J$40))),ROW($9:$40)),1)+1))="", IF(LEFT(INDIRECT("A"&MAX(IF($B$1:B66="N",ROW($A$1:A66)))-1),3)="nur", IF(RIGHT(INDIRECT("A"&MAX(IF($B$1:B66="N",ROW($A$1:A66)))-1),4)="PTF!", INDEX('PFB-Konstrukte'!$B$9:$J$40,SMALL(IF(NOT(ISERROR(FIND(IF(LEFT(A66,1)="0"," " & MID(A66,2,1) & ",",IF(MID(A66,3,1)=".",LEFT(A66,2),LEFT(A66,3))),'PFB-Konstrukte'!$J$9:$J$40))),ROW($1:$32)),3),1), INDEX('PFB-Konstrukte'!$B$9:$J$40,SMALL(IF(NOT(ISERROR(FIND(IF(LEFT(A66,1)="0"," " & MID(A66,2,1) & ",",IF(MID(A66,3,1)=".",LEFT(A66,2),LEFT(A66,3))),'PFB-Konstrukte'!$J$9:$J$40))),ROW($1:$32)),2),1)), IF(RIGHT(INDEX('PFB-Konstrukte'!$A$9:$J$40,SMALL(IF(NOT(ISERROR(FIND(IF(LEFT(A66,1)="0"," " & MID(A66,2,1) & ",",IF(MID(A66,3,1)=".",LEFT(A66,2),LEFT(A66,3))),'PFB-Konstrukte'!$J$9:$J$40))),ROW($1:$32)),1),1),7)="Führung", INDEX('PFB-Konstrukte'!$A$9:$J$40,SMALL(IF(NOT(ISERROR(FIND(IF(LEFT(A66,1)="0"," " & MID(A66,2,1) & ",",IF(MID(A66,3,1)=".",LEFT(A66,2),LEFT(A66,3))),'PFB-Konstrukte'!$J$9:$J$40))),ROW($1:$32)),1),1) & ", " & INDEX('PFB-Konstrukte'!$B$9:$J$40,SMALL(IF(NOT(ISERROR(FIND(IF(LEFT(A66,1)="0"," " & MID(A66,2,1) & ",",IF(MID(A66,3,1)=".",LEFT(A66,2),LEFT(A66,3))),'PFB-Konstrukte'!$J$9:$J$40))),ROW($1:$32)),2),1), INDEX('PFB-Konstrukte'!$A$9:$J$40,SMALL(IF(NOT(ISERROR(FIND(IF(LEFT(A66,1)="0"," " & MID(A66,2,1) & ",",IF(MID(A66,3,1)=".",LEFT(A66,2),LEFT(A66,3))),'PFB-Konstrukte'!$J$9:$J$40))),ROW($1:$32)),1),1))), INDEX('PFB-Konstrukte'!$A$9:$J$40,SMALL(IF(NOT(ISERROR(FIND(IF(LEFT(A66,1)="0"," " & MID(A66,2,1) & ",",IF(MID(A66,3,1)=".",LEFT(A66,2),LEFT(A66,3))),'PFB-Konstrukte'!$J$9:$J$40))),ROW($1:$32)),1),1)) -> Konstruktive Unterstützung
A67: 43. Ich bemühe mich, individuelle Lernfortschritte zu ermöglichen. | B67: 21 | C67: 3.666666667 | D67: 0.1054092553 | E67: 0.4830458915 | F67: 0 | G67: 0 | H67: 0.3333333333 | I67: 0.6666666667 | J67: =IF(INDIRECT("'PFB-Konstrukte'!A" & (SMALL(IF(NOT(ISERROR(FIND(IF(LEFT(A67,1)="0"," " & MID(A67,2,1) & ",",IF(MID(A67,3,1)=".",LEFT(A67,2),LEFT(A67,3))),'PFB-Konstrukte'!$J$9:$J$40))),ROW($9:$40)),1)+1))="", IF(LEFT(INDIRECT("A"&MAX(IF($B$1:B67="N",ROW($A$1:A67)))-1),3)="nur", IF(RIGHT(INDIRECT("A"&MAX(IF($B$1:B67="N",ROW($A$1:A67)))-1),4)="PTF!", INDEX('PFB-Konstrukte'!$B$9:$J$40,SMALL(IF(NOT(ISERROR(FIND(IF(LEFT(A67,1)="0"," " & MID(A67,2,1) & ",",IF(MID(A67,3,1)=".",LEFT(A67,2),LEFT(A67,3))),'PFB-Konstrukte'!$J$9:$J$40))),ROW($1:$32)),3),1), INDEX('PFB-Konstrukte'!$B$9:$J$40,SMALL(IF(NOT(ISERROR(FIND(IF(LEFT(A67,1)="0"," " & MID(A67,2,1) & ",",IF(MID(A67,3,1)=".",LEFT(A67,2),LEFT(A67,3))),'PFB-Konstrukte'!$J$9:$J$40))),ROW($1:$32)),2),1)), IF(RIGHT(INDEX('PFB-Konstrukte'!$A$9:$J$40,SMALL(IF(NOT(ISERROR(FIND(IF(LEFT(A67,1)="0"," " & MID(A67,2,1) & ",",IF(MID(A67,3,1)=".",LEFT(A67,2),LEFT(A67,3))),'PFB-Konstrukte'!$J$9:$J$40))),ROW($1:$32)),1),1),7)="Führung", INDEX('PFB-Konstrukte'!$A$9:$J$40,SMALL(IF(NOT(ISERROR(FIND(IF(LEFT(A67,1)="0"," " & MID(A67,2,1) & ",",IF(MID(A67,3,1)=".",LEFT(A67,2),LEFT(A67,3))),'PFB-Konstrukte'!$J$9:$J$40))),ROW($1:$32)),1),1) & ", " & INDEX('PFB-Konstrukte'!$B$9:$J$40,SMALL(IF(NOT(ISERROR(FIND(IF(LEFT(A67,1)="0"," " & MID(A67,2,1) & ",",IF(MID(A67,3,1)=".",LEFT(A67,2),LEFT(A67,3))),'PFB-Konstrukte'!$J$9:$J$40))),ROW($1:$32)),2),1), INDEX('PFB-Konstrukte'!$A$9:$J$40,SMALL(IF(NOT(ISERROR(FIND(IF(LEFT(A67,1)="0"," " & MID(A67,2,1) & ",",IF(MID(A67,3,1)=".",LEFT(A67,2),LEFT(A67,3))),'PFB-Konstrukte'!$J$9:$J$40))),ROW($1:$32)),1),1))), INDEX('PFB-Konstrukte'!$A$9:$J$40,SMALL(IF(NOT(ISERROR(FIND(IF(LEFT(A67,1)="0"," " & MID(A67,2,1) & ",",IF(MID(A67,3,1)=".",LEFT(A67,2),LEFT(A67,3))),'PFB-Konstrukte'!$J$9:$J$40))),ROW($1:$32)),1),1)) -> Konstruktive Unterstützung
B69: N | C69: MW | D69: SE | E69: SD | F69: trifft nicht zu | G69: trifft eher nicht zu | H69: trifft eher zu | I69: trifft voll zu | J69: Zuordnung zum Konstrukt
A70: 44. Ich bespreche den Ablauf der Stunde mit den Schülerinnen und Schülern. | B70: 15 | C70: 3 | D70: 0.1380131119 | E70: 0.5345224838 | F70: 0 | G70: 0.1333333333 | H70: 0.7333333333 | I70: 0.1333333333 | J70: =IF(INDIRECT("'PFB-Konstrukte'!A" & (SMALL(IF(NOT(ISERROR(FIND(IF(LEFT(A70,1)="0"," " & MID(A70,2,1) & ",",IF(MID(A70,3,1)=".",LEFT(A70,2),LEFT(A70,3))),'PFB-Konstrukte'!$J$9:$J$40))),ROW($9:$40)),1)+1))="", IF(LEFT(INDIRECT("A"&MAX(IF($B$1:B70="N",ROW($A$1:A70)))-1),3)="nur", IF(RIGHT(INDIRECT("A"&MAX(IF($B$1:B70="N",ROW($A$1:A70)))-1),4)="PTF!", INDEX('PFB-Konstrukte'!$B$9:$J$40,SMALL(IF(NOT(ISERROR(FIND(IF(LEFT(A70,1)="0"," " & MID(A70,2,1) & ",",IF(MID(A70,3,1)=".",LEFT(A70,2),LEFT(A70,3))),'PFB-Konstrukte'!$J$9:$J$40))),ROW($1:$32)),3),1), INDEX('PFB-Konstrukte'!$B$9:$J$40,SMALL(IF(NOT(ISERROR(FIND(IF(LEFT(A70,1)="0"," " & MID(A70,2,1) & ",",IF(MID(A70,3,1)=".",LEFT(A70,2),LEFT(A70,3))),'PFB-Konstrukte'!$J$9:$J$40))),ROW($1:$32)),2),1)), IF(RIGHT(INDEX('PFB-Konstrukte'!$A$9:$J$40,SMALL(IF(NOT(ISERROR(FIND(IF(LEFT(A70,1)="0"," " & MID(A70,2,1) & ",",IF(MID(A70,3,1)=".",LEFT(A70,2),LEFT(A70,3))),'PFB-Konstrukte'!$J$9:$J$40))),ROW($1:$32)),1),1),7)="Führung", INDEX('PFB-Konstrukte'!$A$9:$J$40,SMALL(IF(NOT(ISERROR(FIND(IF(LEFT(A70,1)="0"," " & MID(A70,2,1) & ",",IF(MID(A70,3,1)=".",LEFT(A70,2),LEFT(A70,3))),'PFB-Konstrukte'!$J$9:$J$40))),ROW($1:$32)),1),1) & ", " & INDEX('PFB-Konstrukte'!$B$9:$J$40,SMALL(IF(NOT(ISERROR(FIND(IF(LEFT(A70,1)="0"," " & MID(A70,2,1) & ",",IF(MID(A70,3,1)=".",LEFT(A70,2),LEFT(A70,3))),'PFB-Konstrukte'!$J$9:$J$40))),ROW($1:$32)),2),1), INDEX('PFB-Konstrukte'!$A$9:$J$40,SMALL(IF(NOT(ISERROR(FIND(IF(LEFT(A70,1)="0"," " & MID(A70,2,1) & ",",IF(MID(A70,3,1)=".",LEFT(A70,2),LEFT(A70,3))),'PFB-Konstrukte'!$J$9:$J$40))),ROW($1:$32)),1),1))), INDEX('PFB-Konstrukte'!$A$9:$J$40,SMALL(IF(NOT(ISERROR(FIND(IF(LEFT(A70,1)="0"," " & MID(A70,2,1) & ",",IF(MID(A70,3,1)=".",LEFT(A70,2),LEFT(A70,3))),'PFB-Konstrukte'!$J$9:$J$40))),ROW($1:$32)),1),1)) -> Klassenführung
A71: 45. Ich gebe den Schülerinnen und Schülern zu Beginn der Stunde eine Übersicht darüber, was in der Stunde gelernt werden soll. | B71: 15 | C71: 3.066666667 | D71: 0.1532712089 | E71: 0.5936168397 | F71: 0 | G71: 0.1333333333 | H71: 0.6666666667 | I71: 0.2 | J71: =IF(INDIRECT("'PFB-Konstrukte'!A" & (SMALL(IF(NOT(ISERROR(FIND(IF(LEFT(A71,1)="0"," " & MID(A71,2,1) & ",",IF(MID(A71,3,1)=".",LEFT(A71,2),LEFT(A71,3))),'PFB-Konstrukte'!$J$9:$J$40))),ROW($9:$40)),1)+1))="", IF(LEFT(INDIRECT("A"&MAX(IF($B$1:B71="N",ROW($A$1:A71)))-1),3)="nur", IF(RIGHT(INDIRECT("A"&MAX(IF($B$1:B71="N",ROW($A$1:A71)))-1),4)="PTF!", INDEX('PFB-Konstrukte'!$B$9:$J$40,SMALL(IF(NOT(ISERROR(FIND(IF(LEFT(A71,1)="0"," " & MID(A71,2,1) & ",",IF(MID(A71,3,1)=".",LEFT(A71,2),LEFT(A71,3))),'PFB-Konstrukte'!$J$9:$J$40))),ROW($1:$32)),3),1), INDEX('PFB-Konstrukte'!$B$9:$J$40,SMALL(IF(NOT(ISERROR(FIND(IF(LEFT(A71,1)="0"," " & MID(A71,2,1) & ",",IF(MID(A71,3,1)=".",LEFT(A71,2),LEFT(A71,3))),'PFB-Konstrukte'!$J$9:$J$40))),ROW($1:$32)),2),1)), IF(RIGHT(INDEX('PFB-Konstrukte'!$A$9:$J$40,SMALL(IF(NOT(ISERROR(FIND(IF(LEFT(A71,1)="0"," " & MID(A71,2,1) & ",",IF(MID(A71,3,1)=".",LEFT(A71,2),LEFT(A71,3))),'PFB-Konstrukte'!$J$9:$J$40))),ROW($1:$32)),1),1),7)="Führung", INDEX('PFB-Konstrukte'!$A$9:$J$40,SMALL(IF(NOT(ISERROR(FIND(IF(LEFT(A71,1)="0"," " & MID(A71,2,1) & ",",IF(MID(A71,3,1)=".",LEFT(A71,2),LEFT(A71,3))),'PFB-Konstrukte'!$J$9:$J$40))),ROW($1:$32)),1),1) & ", " & INDEX('PFB-Konstrukte'!$B$9:$J$40,SMALL(IF(NOT(ISERROR(FIND(IF(LEFT(A71,1)="0"," " & MID(A71,2,1) & ",",IF(MID(A71,3,1)=".",LEFT(A71,2),LEFT(A71,3))),'PFB-Konstrukte'!$J$9:$J$40))),ROW($1:$32)),2),1), INDEX('PFB-Konstrukte'!$A$9:$J$40,SMALL(IF(NOT(ISERROR(FIND(IF(LEFT(A71,1)="0"," " & MID(A71,2,1) & ",",IF(MID(A71,3,1)=".",LEFT(A71,2),LEFT(A71,3))),'PFB-Konstrukte'!$J$9:$J$40))),ROW($1:$32)),1),1))), INDEX('PFB-Konstrukte'!$A$9:$J$40,SMALL(IF(NOT(ISERROR(FIND(IF(LEFT(A71,1)="0"," " & MID(A71,2,1) & ",",IF(MID(A71,3,1)=".",LEFT(A71,2),LEFT(A71,3))),'PFB-Konstrukte'!$J$9:$J$40))),ROW($1:$32)),1),1)) -> Klassenführung
A72: 46. Die Schülerinnen und Schüler hören im Unterricht zu. | B72: 20 | C72: 3.2 | D72: 0.1169795304 | E72: 0.5231483638 | F72: 0 | G72: 0.05 | H72: 0.7 | I72: 0.25 | J72: =IF(INDIRECT("'PFB-Konstrukte'!A" & (SMALL(IF(NOT(ISERROR(FIND(IF(LEFT(A72,1)="0"," " & MID(A72,2,1) & ",",IF(MID(A72,3,1)=".",LEFT(A72,2),LEFT(A72,3))),'PFB-Konstrukte'!$J$9:$J$40))),ROW($9:$40)),1)+1))="", IF(LEFT(INDIRECT("A"&MAX(IF($B$1:B72="N",ROW($A$1:A72)))-1),3)="nur", IF(RIGHT(INDIRECT("A"&MAX(IF($B$1:B72="N",ROW($A$1:A72)))-1),4)="PTF!", INDEX('PFB-Konstrukte'!$B$9:$J$40,SMALL(IF(NOT(ISERROR(FIND(IF(LEFT(A72,1)="0"," " & MID(A72,2,1) & ",",IF(MID(A72,3,1)=".",LEFT(A72,2),LEFT(A72,3))),'PFB-Konstrukte'!$J$9:$J$40))),ROW($1:$32)),3),1), INDEX('PFB-Konstrukte'!$B$9:$J$40,SMALL(IF(NOT(ISERROR(FIND(IF(LEFT(A72,1)="0"," " & MID(A72,2,1) & ",",IF(MID(A72,3,1)=".",LEFT(A72,2),LEFT(A72,3))),'PFB-Konstrukte'!$J$9:$J$40))),ROW($1:$32)),2),1)), IF(RIGHT(INDEX('PFB-Konstrukte'!$A$9:$J$40,SMALL(IF(NOT(ISERROR(FIND(IF(LEFT(A72,1)="0"," " & MID(A72,2,1) & ",",IF(MID(A72,3,1)=".",LEFT(A72,2),LEFT(A72,3))),'PFB-Konstrukte'!$J$9:$J$40))),ROW($1:$32)),1),1),7)="Führung", INDEX('PFB-Konstrukte'!$A$9:$J$40,SMALL(IF(NOT(ISERROR(FIND(IF(LEFT(A72,1)="0"," " & MID(A72,2,1) & ",",IF(MID(A72,3,1)=".",LEFT(A72,2),LEFT(A72,3))),'PFB-Konstrukte'!$J$9:$J$40))),ROW($1:$32)),1),1) & ", " & INDEX('PFB-Konstrukte'!$B$9:$J$40,SMALL(IF(NOT(ISERROR(FIND(IF(LEFT(A72,1)="0"," " & MID(A72,2,1) & ",",IF(MID(A72,3,1)=".",LEFT(A72,2),LEFT(A72,3))),'PFB-Konstrukte'!$J$9:$J$40))),ROW($1:$32)),2),1), INDEX('PFB-Konstrukte'!$A$9:$J$40,SMALL(IF(NOT(ISERROR(FIND(IF(LEFT(A72,1)="0"," " & MID(A72,2,1) & ",",IF(MID(A72,3,1)=".",LEFT(A72,2),LEFT(A72,3))),'PFB-Konstrukte'!$J$9:$J$40))),ROW($1:$32)),1),1))), INDEX('PFB-Konstrukte'!$A$9:$J$40,SMALL(IF(NOT(ISERROR(FIND(IF(LEFT(A72,1)="0"," " & MID(A72,2,1) & ",",IF(MID(A72,3,1)=".",LEFT(A72,2),LEFT(A72,3))),'PFB-Konstrukte'!$J$9:$J$40))),ROW($1:$32)),1),1)) -> Klassenführung
A73: 47. Im Unterricht ist es laut und unruhig. | B73: 20 | C73: 2.15 | D73: 0.1312891546 | E73: 0.5871429486 | F73: 0.1 | G73: 0.65 | H73: 0.25 | I73: 0 | J73: =IF(INDIRECT("'PFB-Konstrukte'!A" & (SMALL(IF(NOT(ISERROR(FIND(IF(LEFT(A73,1)="0"," " & MID(A73,2,1) & ",",IF(MID(A73,3,1)=".",LEFT(A73,2),LEFT(A73,3))),'PFB-Konstrukte'!$J$9:$J$40))),ROW($9:$40)),1)+1))="", IF(LEFT(INDIRECT("A"&MAX(IF($B$1:B73="N",ROW($A$1:A73)))-1),3)="nur", IF(RIGHT(INDIRECT("A"&MAX(IF($B$1:B73="N",ROW($A$1:A73)))-1),4)="PTF!", INDEX('PFB-Konstrukte'!$B$9:$J$40,SMALL(IF(NOT(ISERROR(FIND(IF(LEFT(A73,1)="0"," " & MID(A73,2,1) & ",",IF(MID(A73,3,1)=".",LEFT(A73,2),LEFT(A73,3))),'PFB-Konstrukte'!$J$9:$J$40))),ROW($1:$32)),3),1), INDEX('PFB-Konstrukte'!$B$9:$J$40,SMALL(IF(NOT(ISERROR(FIND(IF(LEFT(A73,1)="0"," " & MID(A73,2,1) & ",",IF(MID(A73,3,1)=".",LEFT(A73,2),LEFT(A73,3))),'PFB-Konstrukte'!$J$9:$J$40))),ROW($1:$32)),2),1)), IF(RIGHT(INDEX('PFB-Konstrukte'!$A$9:$J$40,SMALL(IF(NOT(ISERROR(FIND(IF(LEFT(A73,1)="0"," " & MID(A73,2,1) & ",",IF(MID(A73,3,1)=".",LEFT(A73,2),LEFT(A73,3))),'PFB-Konstrukte'!$J$9:$J$40))),ROW($1:$32)),1),1),7)="Führung", INDEX('PFB-Konstrukte'!$A$9:$J$40,SMALL(IF(NOT(ISERROR(FIND(IF(LEFT(A73,1)="0"," " & MID(A73,2,1) & ",",IF(MID(A73,3,1)=".",LEFT(A73,2),LEFT(A73,3))),'PFB-Konstrukte'!$J$9:$J$40))),ROW($1:$32)),1),1) & ", " & INDEX('PFB-Konstrukte'!$B$9:$J$40,SMALL(IF(NOT(ISERROR(FIND(IF(LEFT(A73,1)="0"," " & MID(A73,2,1) & ",",IF(MID(A73,3,1)=".",LEFT(A73,2),LEFT(A73,3))),'PFB-Konstrukte'!$J$9:$J$40))),ROW($1:$32)),2),1), INDEX('PFB-Konstrukte'!$A$9:$J$40,SMALL(IF(NOT(ISERROR(FIND(IF(LEFT(A73,1)="0"," " & MID(A73,2,1) & ",",IF(MID(A73,3,1)=".",LEFT(A73,2),LEFT(A73,3))),'PFB-Konstrukte'!$J$9:$J$40))),ROW($1:$32)),1),1))), INDEX('PFB-Konstrukte'!$A$9:$J$40,SMALL(IF(NOT(ISERROR(FIND(IF(LEFT(A73,1)="0"," " & MID(A73,2,1) & ",",IF(MID(A73,3,1)=".",LEFT(A73,2),LEFT(A73,3))),'PFB-Konstrukte'!$J$9:$J$40))),ROW($1:$32)),1),1)) -> Klassenführung
A74: 48. Ich stütze die Organisation des Unterrichts über Rituale und Prozeduren. | B74: 18 | C74: 3.777777778 | D74: 0.1008316903 | E74: 0.4277926319 | F74: 0 | G74: 0 | H74: 0.2222222222 | I74: 0.7777777778 | J74: =IF(INDIRECT("'PFB-Konstrukte'!A" & (SMALL(IF(NOT(ISERROR(FIND(IF(LEFT(A74,1)="0"," " & MID(A74,2,1) & ",",IF(MID(A74,3,1)=".",LEFT(A74,2),LEFT(A74,3))),'PFB-Konstrukte'!$J$9:$J$40))),ROW($9:$40)),1)+1))="", IF(LEFT(INDIRECT("A"&MAX(IF($B$1:B74="N",ROW($A$1:A74)))-1),3)="nur", IF(RIGHT(INDIRECT("A"&MAX(IF($B$1:B74="N",ROW($A$1:A74)))-1),4)="PTF!", INDEX('PFB-Konstrukte'!$B$9:$J$40,SMALL(IF(NOT(ISERROR(FIND(IF(LEFT(A74,1)="0"," " & MID(A74,2,1) & ",",IF(MID(A74,3,1)=".",LEFT(A74,2),LEFT(A74,3))),'PFB-Konstrukte'!$J$9:$J$40))),ROW($1:$32)),3),1), INDEX('PFB-Konstrukte'!$B$9:$J$40,SMALL(IF(NOT(ISERROR(FIND(IF(LEFT(A74,1)="0"," " & MID(A74,2,1) & ",",IF(MID(A74,3,1)=".",LEFT(A74,2),LEFT(A74,3))),'PFB-Konstrukte'!$J$9:$J$40))),ROW($1:$32)),2),1)), IF(RIGHT(INDEX('PFB-Konstrukte'!$A$9:$J$40,SMALL(IF(NOT(ISERROR(FIND(IF(LEFT(A74,1)="0"," " & MID(A74,2,1) & ",",IF(MID(A74,3,1)=".",LEFT(A74,2),LEFT(A74,3))),'PFB-Konstrukte'!$J$9:$J$40))),ROW($1:$32)),1),1),7)="Führung", INDEX('PFB-Konstrukte'!$A$9:$J$40,SMALL(IF(NOT(ISERROR(FIND(IF(LEFT(A74,1)="0"," " & MID(A74,2,1) & ",",IF(MID(A74,3,1)=".",LEFT(A74,2),LEFT(A74,3))),'PFB-Konstrukte'!$J$9:$J$40))),ROW($1:$32)),1),1) & ", " & INDEX('PFB-Konstrukte'!$B$9:$J$40,SMALL(IF(NOT(ISERROR(FIND(IF(LEFT(A74,1)="0"," " & MID(A74,2,1) & ",",IF(MID(A74,3,1)=".",LEFT(A74,2),LEFT(A74,3))),'PFB-Konstrukte'!$J$9:$J$40))),ROW($1:$32)),2),1), INDEX('PFB-Konstrukte'!$A$9:$J$40,SMALL(IF(NOT(ISERROR(FIND(IF(LEFT(A74,1)="0"," " & MID(A74,2,1) & ",",IF(MID(A74,3,1)=".",LEFT(A74,2),LEFT(A74,3))),'PFB-Konstrukte'!$J$9:$J$40))),ROW($1:$32)),1),1))), INDEX('PFB-Konstrukte'!$A$9:$J$40,SMALL(IF(NOT(ISERROR(FIND(IF(LEFT(A74,1)="0"," " & MID(A74,2,1) & ",",IF(MID(A74,3,1)=".",LEFT(A74,2),LEFT(A74,3))),'PFB-Konstrukte'!$J$9:$J$40))),ROW($1:$32)),1),1)) -> Klassenführung
A75: 49. Während des Unterrichts achte ich darauf, dass alle Schülerinnen und Schüler konzentriert mitarbeiten. | B75: 20 | C75: 3.75 | D75: 0.09933992678 | E75: 0.4442616583 | F75: 0 | G75: 0 | H75: 0.25 | I75: 0.75 | J75: =IF(INDIRECT("'PFB-Konstrukte'!A" & (SMALL(IF(NOT(ISERROR(FIND(IF(LEFT(A75,1)="0"," " & MID(A75,2,1) & ",",IF(MID(A75,3,1)=".",LEFT(A75,2),LEFT(A75,3))),'PFB-Konstrukte'!$J$9:$J$40))),ROW($9:$40)),1)+1))="", IF(LEFT(INDIRECT("A"&MAX(IF($B$1:B75="N",ROW($A$1:A75)))-1),3)="nur", IF(RIGHT(INDIRECT("A"&MAX(IF($B$1:B75="N",ROW($A$1:A75)))-1),4)="PTF!", INDEX('PFB-Konstrukte'!$B$9:$J$40,SMALL(IF(NOT(ISERROR(FIND(IF(LEFT(A75,1)="0"," " & MID(A75,2,1) & ",",IF(MID(A75,3,1)=".",LEFT(A75,2),LEFT(A75,3))),'PFB-Konstrukte'!$J$9:$J$40))),ROW($1:$32)),3),1), INDEX('PFB-Konstrukte'!$B$9:$J$40,SMALL(IF(NOT(ISERROR(FIND(IF(LEFT(A75,1)="0"," " & MID(A75,2,1) & ",",IF(MID(A75,3,1)=".",LEFT(A75,2),LEFT(A75,3))),'PFB-Konstrukte'!$J$9:$J$40))),ROW($1:$32)),2),1)), IF(RIGHT(INDEX('PFB-Konstrukte'!$A$9:$J$40,SMALL(IF(NOT(ISERROR(FIND(IF(LEFT(A75,1)="0"," " & MID(A75,2,1) & ",",IF(MID(A75,3,1)=".",LEFT(A75,2),LEFT(A75,3))),'PFB-Konstrukte'!$J$9:$J$40))),ROW($1:$32)),1),1),7)="Führung", INDEX('PFB-Konstrukte'!$A$9:$J$40,SMALL(IF(NOT(ISERROR(FIND(IF(LEFT(A75,1)="0"," " & MID(A75,2,1) & ",",IF(MID(A75,3,1)=".",LEFT(A75,2),LEFT(A75,3))),'PFB-Konstrukte'!$J$9:$J$40))),ROW($1:$32)),1),1) & ", " & INDEX('PFB-Konstrukte'!$B$9:$J$40,SMALL(IF(NOT(ISERROR(FIND(IF(LEFT(A75,1)="0"," " & MID(A75,2,1) & ",",IF(MID(A75,3,1)=".",LEFT(A75,2),LEFT(A75,3))),'PFB-Konstrukte'!$J$9:$J$40))),ROW($1:$32)),2),1), INDEX('PFB-Konstrukte'!$A$9:$J$40,SMALL(IF(NOT(ISERROR(FIND(IF(LEFT(A75,1)="0"," " & MID(A75,2,1) & ",",IF(MID(A75,3,1)=".",LEFT(A75,2),LEFT(A75,3))),'PFB-Konstrukte'!$J$9:$J$40))),ROW($1:$32)),1),1))), INDEX('PFB-Konstrukte'!$A$9:$J$40,SMALL(IF(NOT(ISERROR(FIND(IF(LEFT(A75,1)="0"," " & MID(A75,2,1) & ",",IF(MID(A75,3,1)=".",LEFT(A75,2),LEFT(A75,3))),'PFB-Konstrukte'!$J$9:$J$40))),ROW($1:$32)),1),1)) -> Klassenführung
A76: 50. Die Klassenräume bieten mir die Möglichkeit der individuellen Unterstützung. | B76: 21 | C76: 2.80952381 | D76: 0.1775366846 | E76: 0.8135752958 | F76: 0 | G76: 0.4285714286 | H76: 0.3333333333 | I76: 0.2380952381 | J76: =IF(INDIRECT("'PFB-Konstrukte'!A" & (SMALL(IF(NOT(ISERROR(FIND(IF(LEFT(A76,1)="0"," " & MID(A76,2,1) & ",",IF(MID(A76,3,1)=".",LEFT(A76,2),LEFT(A76,3))),'PFB-Konstrukte'!$J$9:$J$40))),ROW($9:$40)),1)+1))="", IF(LEFT(INDIRECT("A"&MAX(IF($B$1:B76="N",ROW($A$1:A76)))-1),3)="nur", IF(RIGHT(INDIRECT("A"&MAX(IF($B$1:B76="N",ROW($A$1:A76)))-1),4)="PTF!", INDEX('PFB-Konstrukte'!$B$9:$J$40,SMALL(IF(NOT(ISERROR(FIND(IF(LEFT(A76,1)="0"," " & MID(A76,2,1) & ",",IF(MID(A76,3,1)=".",LEFT(A76,2),LEFT(A76,3))),'PFB-Konstrukte'!$J$9:$J$40))),ROW($1:$32)),3),1), INDEX('PFB-Konstrukte'!$B$9:$J$40,SMALL(IF(NOT(ISERROR(FIND(IF(LEFT(A76,1)="0"," " & MID(A76,2,1) & ",",IF(MID(A76,3,1)=".",LEFT(A76,2),LEFT(A76,3))),'PFB-Konstrukte'!$J$9:$J$40))),ROW($1:$32)),2),1)), IF(RIGHT(INDEX('PFB-Konstrukte'!$A$9:$J$40,SMALL(IF(NOT(ISERROR(FIND(IF(LEFT(A76,1)="0"," " & MID(A76,2,1) & ",",IF(MID(A76,3,1)=".",LEFT(A76,2),LEFT(A76,3))),'PFB-Konstrukte'!$J$9:$J$40))),ROW($1:$32)),1),1),7)="Führung", INDEX('PFB-Konstrukte'!$A$9:$J$40,SMALL(IF(NOT(ISERROR(FIND(IF(LEFT(A76,1)="0"," " & MID(A76,2,1) & ",",IF(MID(A76,3,1)=".",LEFT(A76,2),LEFT(A76,3))),'PFB-Konstrukte'!$J$9:$J$40))),ROW($1:$32)),1),1) & ", " & INDEX('PFB-Konstrukte'!$B$9:$J$40,SMALL(IF(NOT(ISERROR(FIND(IF(LEFT(A76,1)="0"," " & MID(A76,2,1) & ",",IF(MID(A76,3,1)=".",LEFT(A76,2),LEFT(A76,3))),'PFB-Konstrukte'!$J$9:$J$40))),ROW($1:$32)),2),1), INDEX('PFB-Konstrukte'!$A$9:$J$40,SMALL(IF(NOT(ISERROR(FIND(IF(LEFT(A76,1)="0"," " & MID(A76,2,1) & ",",IF(MID(A76,3,1)=".",LEFT(A76,2),LEFT(A76,3))),'PFB-Konstrukte'!$J$9:$J$40))),ROW($1:$32)),1),1))), INDEX('PFB-Konstrukte'!$A$9:$J$40,SMALL(IF(NOT(ISERROR(FIND(IF(LEFT(A76,1)="0"," " & MID(A76,2,1) & ",",IF(MID(A76,3,1)=".",LEFT(A76,2),LEFT(A76,3))),'PFB-Konstrukte'!$J$9:$J$40))),ROW($1:$32)),1),1)) -> Klassenführung
A77: 51. In meinem Unterricht findet nach der Instruktion ein zügiger Übergang in die Arbeitsphase statt. | B77: 15 | C77: 3.466666667 | D77: 0.1333333333 | E77: 0.5163977795 | F77: 0 | G77: 0 | H77: 0.5333333333 | I77: 0.4666666667 | J77: =IF(INDIRECT("'PFB-Konstrukte'!A" & (SMALL(IF(NOT(ISERROR(FIND(IF(LEFT(A77,1)="0"," " & MID(A77,2,1) & ",",IF(MID(A77,3,1)=".",LEFT(A77,2),LEFT(A77,3))),'PFB-Konstrukte'!$J$9:$J$40))),ROW($9:$40)),1)+1))="", IF(LEFT(INDIRECT("A"&MAX(IF($B$1:B77="N",ROW($A$1:A77)))-1),3)="nur", IF(RIGHT(INDIRECT("A"&MAX(IF($B$1:B77="N",ROW($A$1:A77)))-1),4)="PTF!", INDEX('PFB-Konstrukte'!$B$9:$J$40,SMALL(IF(NOT(ISERROR(FIND(IF(LEFT(A77,1)="0"," " & MID(A77,2,1) & ",",IF(MID(A77,3,1)=".",LEFT(A77,2),LEFT(A77,3))),'PFB-Konstrukte'!$J$9:$J$40))),ROW($1:$32)),3),1), INDEX('PFB-Konstrukte'!$B$9:$J$40,SMALL(IF(NOT(ISERROR(FIND(IF(LEFT(A77,1)="0"," " & MID(A77,2,1) & ",",IF(MID(A77,3,1)=".",LEFT(A77,2),LEFT(A77,3))),'PFB-Konstrukte'!$J$9:$J$40))),ROW($1:$32)),2),1)), IF(RIGHT(INDEX('PFB-Konstrukte'!$A$9:$J$40,SMALL(IF(NOT(ISERROR(FIND(IF(LEFT(A77,1)="0"," " & MID(A77,2,1) & ",",IF(MID(A77,3,1)=".",LEFT(A77,2),LEFT(A77,3))),'PFB-Konstrukte'!$J$9:$J$40))),ROW($1:$32)),1),1),7)="Führung", INDEX('PFB-Konstrukte'!$A$9:$J$40,SMALL(IF(NOT(ISERROR(FIND(IF(LEFT(A77,1)="0"," " & MID(A77,2,1) & ",",IF(MID(A77,3,1)=".",LEFT(A77,2),LEFT(A77,3))),'PFB-Konstrukte'!$J$9:$J$40))),ROW($1:$32)),1),1) & ", " & INDEX('PFB-Konstrukte'!$B$9:$J$40,SMALL(IF(NOT(ISERROR(FIND(IF(LEFT(A77,1)="0"," " & MID(A77,2,1) & ",",IF(MID(A77,3,1)=".",LEFT(A77,2),LEFT(A77,3))),'PFB-Konstrukte'!$J$9:$J$40))),ROW($1:$32)),2),1), INDEX('PFB-Konstrukte'!$A$9:$J$40,SMALL(IF(NOT(ISERROR(FIND(IF(LEFT(A77,1)="0"," " & MID(A77,2,1) & ",",IF(MID(A77,3,1)=".",LEFT(A77,2),LEFT(A77,3))),'PFB-Konstrukte'!$J$9:$J$40))),ROW($1:$32)),1),1))), INDEX('PFB-Konstrukte'!$A$9:$J$40,SMALL(IF(NOT(ISERROR(FIND(IF(LEFT(A77,1)="0"," " & MID(A77,2,1) & ",",IF(MID(A77,3,1)=".",LEFT(A77,2),LEFT(A77,3))),'PFB-Konstrukte'!$J$9:$J$40))),ROW($1:$32)),1),1)) -> Klassenführung
A79: An unserer Schule… | B79: N | C79: MW | D79: SE | E79: SD | F79: trifft nicht zu | G79: trifft eher nicht zu | H79: trifft eher zu | I79: trifft voll zu | J79: Zuordnung zum Konstrukt
A80: 52. ...sind Zuständigkeiten für Entwicklungsmaßnahmen klar festgelegt. | B80: 21 | C80: 3.095238095 | D80: 0.1363602006 | E80: 0.624880941 | F80: 0 | G80: 0.1428571429 | H80: 0.619047619 | I80: 0.2380952381 | J80: =IF(INDIRECT("'PFB-Konstrukte'!A" & (SMALL(IF(NOT(ISERROR(FIND(IF(LEFT(A80,1)="0"," " & MID(A80,2,1) & ",",IF(MID(A80,3,1)=".",LEFT(A80,2),LEFT(A80,3))),'PFB-Konstrukte'!$J$9:$J$40))),ROW($9:$40)),1)+1))="", IF(LEFT(INDIRECT("A"&MAX(IF($B$1:B80="N",ROW($A$1:A80)))-1),3)="nur", IF(RIGHT(INDIRECT("A"&MAX(IF($B$1:B80="N",ROW($A$1:A80)))-1),4)="PTF!", INDEX('PFB-Konstrukte'!$B$9:$J$40,SMALL(IF(NOT(ISERROR(FIND(IF(LEFT(A80,1)="0"," " & MID(A80,2,1) & ",",IF(MID(A80,3,1)=".",LEFT(A80,2),LEFT(A80,3))),'PFB-Konstrukte'!$J$9:$J$40))),ROW($1:$32)),3),1), INDEX('PFB-Konstrukte'!$B$9:$J$40,SMALL(IF(NOT(ISERROR(FIND(IF(LEFT(A80,1)="0"," " & MID(A80,2,1) & ",",IF(MID(A80,3,1)=".",LEFT(A80,2),LEFT(A80,3))),'PFB-Konstrukte'!$J$9:$J$40))),ROW($1:$32)),2),1)), IF(RIGHT(INDEX('PFB-Konstrukte'!$A$9:$J$40,SMALL(IF(NOT(ISERROR(FIND(IF(LEFT(A80,1)="0"," " & MID(A80,2,1) & ",",IF(MID(A80,3,1)=".",LEFT(A80,2),LEFT(A80,3))),'PFB-Konstrukte'!$J$9:$J$40))),ROW($1:$32)),1),1),7)="Führung", INDEX('PFB-Konstrukte'!$A$9:$J$40,SMALL(IF(NOT(ISERROR(FIND(IF(LEFT(A80,1)="0"," " & MID(A80,2,1) & ",",IF(MID(A80,3,1)=".",LEFT(A80,2),LEFT(A80,3))),'PFB-Konstrukte'!$J$9:$J$40))),ROW($1:$32)),1),1) & ", " & INDEX('PFB-Konstrukte'!$B$9:$J$40,SMALL(IF(NOT(ISERROR(FIND(IF(LEFT(A80,1)="0"," " & MID(A80,2,1) & ",",IF(MID(A80,3,1)=".",LEFT(A80,2),LEFT(A80,3))),'PFB-Konstrukte'!$J$9:$J$40))),ROW($1:$32)),2),1), INDEX('PFB-Konstrukte'!$A$9:$J$40,SMALL(IF(NOT(ISERROR(FIND(IF(LEFT(A80,1)="0"," " & MID(A80,2,1) & ",",IF(MID(A80,3,1)=".",LEFT(A80,2),LEFT(A80,3))),'PFB-Konstrukte'!$J$9:$J$40))),ROW($1:$32)),1),1))), INDEX('PFB-Konstrukte'!$A$9:$J$40,SMALL(IF(NOT(ISERROR(FIND(IF(LEFT(A80,1)="0"," " & MID(A80,2,1) & ",",IF(MID(A80,3,1)=".",LEFT(A80,2),LEFT(A80,3))),'PFB-Konstrukte'!$J$9:$J$40))),ROW($1:$32)),1),1)) -> Systematische Schul- und Unterrichtsentwicklung
A81: 53. ...werden die Pädagoginnen und Pädagogen bei wichtigen Entscheidungen systematisch beteiligt. | B81: 22 | C81: 3.272727273 | D81: 0.1173631317 | E81: 0.5504818826 | F81: 0 | G81: 0.04545454545 | H81: 0.6363636364 | I81: 0.3181818182 | J81: =IF(INDIRECT("'PFB-Konstrukte'!A" & (SMALL(IF(NOT(ISERROR(FIND(IF(LEFT(A81,1)="0"," " & MID(A81,2,1) & ",",IF(MID(A81,3,1)=".",LEFT(A81,2),LEFT(A81,3))),'PFB-Konstrukte'!$J$9:$J$40))),ROW($9:$40)),1)+1))="", IF(LEFT(INDIRECT("A"&MAX(IF($B$1:B81="N",ROW($A$1:A81)))-1),3)="nur", IF(RIGHT(INDIRECT("A"&MAX(IF($B$1:B81="N",ROW($A$1:A81)))-1),4)="PTF!", INDEX('PFB-Konstrukte'!$B$9:$J$40,SMALL(IF(NOT(ISERROR(FIND(IF(LEFT(A81,1)="0"," " & MID(A81,2,1) & ",",IF(MID(A81,3,1)=".",LEFT(A81,2),LEFT(A81,3))),'PFB-Konstrukte'!$J$9:$J$40))),ROW($1:$32)),3),1), INDEX('PFB-Konstrukte'!$B$9:$J$40,SMALL(IF(NOT(ISERROR(FIND(IF(LEFT(A81,1)="0"," " & MID(A81,2,1) & ",",IF(MID(A81,3,1)=".",LEFT(A81,2),LEFT(A81,3))),'PFB-Konstrukte'!$J$9:$J$40))),ROW($1:$32)),2),1)), IF(RIGHT(INDEX('PFB-Konstrukte'!$A$9:$J$40,SMALL(IF(NOT(ISERROR(FIND(IF(LEFT(A81,1)="0"," " & MID(A81,2,1) & ",",IF(MID(A81,3,1)=".",LEFT(A81,2),LEFT(A81,3))),'PFB-Konstrukte'!$J$9:$J$40))),ROW($1:$32)),1),1),7)="Führung", INDEX('PFB-Konstrukte'!$A$9:$J$40,SMALL(IF(NOT(ISERROR(FIND(IF(LEFT(A81,1)="0"," " & MID(A81,2,1) & ",",IF(MID(A81,3,1)=".",LEFT(A81,2),LEFT(A81,3))),'PFB-Konstrukte'!$J$9:$J$40))),ROW($1:$32)),1),1) & ", " & INDEX('PFB-Konstrukte'!$B$9:$J$40,SMALL(IF(NOT(ISERROR(FIND(IF(LEFT(A81,1)="0"," " & MID(A81,2,1) & ",",IF(MID(A81,3,1)=".",LEFT(A81,2),LEFT(A81,3))),'PFB-Konstrukte'!$J$9:$J$40))),ROW($1:$32)),2),1), INDEX('PFB-Konstrukte'!$A$9:$J$40,SMALL(IF(NOT(ISERROR(FIND(IF(LEFT(A81,1)="0"," " & MID(A81,2,1) & ",",IF(MID(A81,3,1)=".",LEFT(A81,2),LEFT(A81,3))),'PFB-Konstrukte'!$J$9:$J$40))),ROW($1:$32)),1),1))), INDEX('PFB-Konstrukte'!$A$9:$J$40,SMALL(IF(NOT(ISERROR(FIND(IF(LEFT(A81,1)="0"," " & MID(A81,2,1) & ",",IF(MID(A81,3,1)=".",LEFT(A81,2),LEFT(A81,3))),'PFB-Konstrukte'!$J$9:$J$40))),ROW($1:$32)),1),1)) -> Systematische Schul- und Unterrichtsentwicklung
A82: 54. ...haben wir Entwicklungsprioritäten erarbeitet. | B82: 18 | C82: 3.166666667 | D82: 0.1666666667 | E82: 0.7071067812 | F82: 0 | G82: 0.1666666667 | H82: 0.5 | I82: 0.3333333333 | J82: =IF(INDIRECT("'PFB-Konstrukte'!A" & (SMALL(IF(NOT(ISERROR(FIND(IF(LEFT(A82,1)="0"," " & MID(A82,2,1) & ",",IF(MID(A82,3,1)=".",LEFT(A82,2),LEFT(A82,3))),'PFB-Konstrukte'!$J$9:$J$40))),ROW($9:$40)),1)+1))="", IF(LEFT(INDIRECT("A"&MAX(IF($B$1:B82="N",ROW($A$1:A82)))-1),3)="nur", IF(RIGHT(INDIRECT("A"&MAX(IF($B$1:B82="N",ROW($A$1:A82)))-1),4)="PTF!", INDEX('PFB-Konstrukte'!$B$9:$J$40,SMALL(IF(NOT(ISERROR(FIND(IF(LEFT(A82,1)="0"," " & MID(A82,2,1) & ",",IF(MID(A82,3,1)=".",LEFT(A82,2),LEFT(A82,3))),'PFB-Konstrukte'!$J$9:$J$40))),ROW($1:$32)),3),1), INDEX('PFB-Konstrukte'!$B$9:$J$40,SMALL(IF(NOT(ISERROR(FIND(IF(LEFT(A82,1)="0"," " & MID(A82,2,1) & ",",IF(MID(A82,3,1)=".",LEFT(A82,2),LEFT(A82,3))),'PFB-Konstrukte'!$J$9:$J$40))),ROW($1:$32)),2),1)), IF(RIGHT(INDEX('PFB-Konstrukte'!$A$9:$J$40,SMALL(IF(NOT(ISERROR(FIND(IF(LEFT(A82,1)="0"," " & MID(A82,2,1) & ",",IF(MID(A82,3,1)=".",LEFT(A82,2),LEFT(A82,3))),'PFB-Konstrukte'!$J$9:$J$40))),ROW($1:$32)),1),1),7)="Führung", INDEX('PFB-Konstrukte'!$A$9:$J$40,SMALL(IF(NOT(ISERROR(FIND(IF(LEFT(A82,1)="0"," " & MID(A82,2,1) & ",",IF(MID(A82,3,1)=".",LEFT(A82,2),LEFT(A82,3))),'PFB-Konstrukte'!$J$9:$J$40))),ROW($1:$32)),1),1) & ", " & INDEX('PFB-Konstrukte'!$B$9:$J$40,SMALL(IF(NOT(ISERROR(FIND(IF(LEFT(A82,1)="0"," " & MID(A82,2,1) & ",",IF(MID(A82,3,1)=".",LEFT(A82,2),LEFT(A82,3))),'PFB-Konstrukte'!$J$9:$J$40))),ROW($1:$32)),2),1), INDEX('PFB-Konstrukte'!$A$9:$J$40,SMALL(IF(NOT(ISERROR(FIND(IF(LEFT(A82,1)="0"," " & MID(A82,2,1) & ",",IF(MID(A82,3,1)=".",LEFT(A82,2),LEFT(A82,3))),'PFB-Konstrukte'!$J$9:$J$40))),ROW($1:$32)),1),1))), INDEX('PFB-Konstrukte'!$A$9:$J$40,SMALL(IF(NOT(ISERROR(FIND(IF(LEFT(A82,1)="0"," " & MID(A82,2,1) & ",",IF(MID(A82,3,1)=".",LEFT(A82,2),LEFT(A82,3))),'PFB-Konstrukte'!$J$9:$J$40))),ROW($1:$32)),1),1)) -> Systematische Schul- und Unterrichtsentwicklung
A83: 55. ...werden die Ergebnisse wichtiger Maßnahmen unserer Schulentwicklung systematisch dokumentiert und öffentlich gemacht. | B83: 19 | C83: 3.210526316 | D83: 0.1446703728 | E83: 0.6306035353 | F83: 0 | G83: 0.1052631579 | H83: 0.5789473684 | I83: 0.3157894737 | J83: =IF(INDIRECT("'PFB-Konstrukte'!A" & (SMALL(IF(NOT(ISERROR(FIND(IF(LEFT(A83,1)="0"," " & MID(A83,2,1) & ",",IF(MID(A83,3,1)=".",LEFT(A83,2),LEFT(A83,3))),'PFB-Konstrukte'!$J$9:$J$40))),ROW($9:$40)),1)+1))="", IF(LEFT(INDIRECT("A"&MAX(IF($B$1:B83="N",ROW($A$1:A83)))-1),3)="nur", IF(RIGHT(INDIRECT("A"&MAX(IF($B$1:B83="N",ROW($A$1:A83)))-1),4)="PTF!", INDEX('PFB-Konstrukte'!$B$9:$J$40,SMALL(IF(NOT(ISERROR(FIND(IF(LEFT(A83,1)="0"," " & MID(A83,2,1) & ",",IF(MID(A83,3,1)=".",LEFT(A83,2),LEFT(A83,3))),'PFB-Konstrukte'!$J$9:$J$40))),ROW($1:$32)),3),1), INDEX('PFB-Konstrukte'!$B$9:$J$40,SMALL(IF(NOT(ISERROR(FIND(IF(LEFT(A83,1)="0"," " & MID(A83,2,1) & ",",IF(MID(A83,3,1)=".",LEFT(A83,2),LEFT(A83,3))),'PFB-Konstrukte'!$J$9:$J$40))),ROW($1:$32)),2),1)), IF(RIGHT(INDEX('PFB-Konstrukte'!$A$9:$J$40,SMALL(IF(NOT(ISERROR(FIND(IF(LEFT(A83,1)="0"," " & MID(A83,2,1) & ",",IF(MID(A83,3,1)=".",LEFT(A83,2),LEFT(A83,3))),'PFB-Konstrukte'!$J$9:$J$40))),ROW($1:$32)),1),1),7)="Führung", INDEX('PFB-Konstrukte'!$A$9:$J$40,SMALL(IF(NOT(ISERROR(FIND(IF(LEFT(A83,1)="0"," " & MID(A83,2,1) & ",",IF(MID(A83,3,1)=".",LEFT(A83,2),LEFT(A83,3))),'PFB-Konstrukte'!$J$9:$J$40))),ROW($1:$32)),1),1) & ", " & INDEX('PFB-Konstrukte'!$B$9:$J$40,SMALL(IF(NOT(ISERROR(FIND(IF(LEFT(A83,1)="0"," " & MID(A83,2,1) & ",",IF(MID(A83,3,1)=".",LEFT(A83,2),LEFT(A83,3))),'PFB-Konstrukte'!$J$9:$J$40))),ROW($1:$32)),2),1), INDEX('PFB-Konstrukte'!$A$9:$J$40,SMALL(IF(NOT(ISERROR(FIND(IF(LEFT(A83,1)="0"," " & MID(A83,2,1) & ",",IF(MID(A83,3,1)=".",LEFT(A83,2),LEFT(A83,3))),'PFB-Konstrukte'!$J$9:$J$40))),ROW($1:$32)),1),1))), INDEX('PFB-Konstrukte'!$A$9:$J$40,SMALL(IF(NOT(ISERROR(FIND(IF(LEFT(A83,1)="0"," " & MID(A83,2,1) & ",",IF(MID(A83,3,1)=".",LEFT(A83,2),LEFT(A83,3))),'PFB-Konstrukte'!$J$9:$J$40))),ROW($1:$32)),1),1)) -> Systematische Schul- und Unterrichtsentwicklung
A84: 56. ...werden die schulischen Entwicklungsmaßnahmen regelmäßig empirisch überprüft. | B84: 17 | C84: 2.529411765 | D84: 0.1514063256 | E84: 0.6242642728 | F84: 0.05882352941 | G84: 0.3529411765 | H84: 0.5882352941 | I84: 0 | J84: =IF(INDIRECT("'PFB-Konstrukte'!A" & (SMALL(IF(NOT(ISERROR(FIND(IF(LEFT(A84,1)="0"," " & MID(A84,2,1) & ",",IF(MID(A84,3,1)=".",LEFT(A84,2),LEFT(A84,3))),'PFB-Konstrukte'!$J$9:$J$40))),ROW($9:$40)),1)+1))="", IF(LEFT(INDIRECT("A"&MAX(IF($B$1:B84="N",ROW($A$1:A84)))-1),3)="nur", IF(RIGHT(INDIRECT("A"&MAX(IF($B$1:B84="N",ROW($A$1:A84)))-1),4)="PTF!", INDEX('PFB-Konstrukte'!$B$9:$J$40,SMALL(IF(NOT(ISERROR(FIND(IF(LEFT(A84,1)="0"," " & MID(A84,2,1) & ",",IF(MID(A84,3,1)=".",LEFT(A84,2),LEFT(A84,3))),'PFB-Konstrukte'!$J$9:$J$40))),ROW($1:$32)),3),1), INDEX('PFB-Konstrukte'!$B$9:$J$40,SMALL(IF(NOT(ISERROR(FIND(IF(LEFT(A84,1)="0"," " & MID(A84,2,1) & ",",IF(MID(A84,3,1)=".",LEFT(A84,2),LEFT(A84,3))),'PFB-Konstrukte'!$J$9:$J$40))),ROW($1:$32)),2),1)), IF(RIGHT(INDEX('PFB-Konstrukte'!$A$9:$J$40,SMALL(IF(NOT(ISERROR(FIND(IF(LEFT(A84,1)="0"," " & MID(A84,2,1) & ",",IF(MID(A84,3,1)=".",LEFT(A84,2),LEFT(A84,3))),'PFB-Konstrukte'!$J$9:$J$40))),ROW($1:$32)),1),1),7)="Führung", INDEX('PFB-Konstrukte'!$A$9:$J$40,SMALL(IF(NOT(ISERROR(FIND(IF(LEFT(A84,1)="0"," " & MID(A84,2,1) & ",",IF(MID(A84,3,1)=".",LEFT(A84,2),LEFT(A84,3))),'PFB-Konstrukte'!$J$9:$J$40))),ROW($1:$32)),1),1) & ", " & INDEX('PFB-Konstrukte'!$B$9:$J$40,SMALL(IF(NOT(ISERROR(FIND(IF(LEFT(A84,1)="0"," " & MID(A84,2,1) & ",",IF(MID(A84,3,1)=".",LEFT(A84,2),LEFT(A84,3))),'PFB-Konstrukte'!$J$9:$J$40))),ROW($1:$32)),2),1), INDEX('PFB-Konstrukte'!$A$9:$J$40,SMALL(IF(NOT(ISERROR(FIND(IF(LEFT(A84,1)="0"," " & MID(A84,2,1) & ",",IF(MID(A84,3,1)=".",LEFT(A84,2),LEFT(A84,3))),'PFB-Konstrukte'!$J$9:$J$40))),ROW($1:$32)),1),1))), INDEX('PFB-Konstrukte'!$A$9:$J$40,SMALL(IF(NOT(ISERROR(FIND(IF(LEFT(A84,1)="0"," " & MID(A84,2,1) & ",",IF(MID(A84,3,1)=".",LEFT(A84,2),LEFT(A84,3))),'PFB-Konstrukte'!$J$9:$J$40))),ROW($1:$32)),1),1)) -> Systematische Schul- und Unterrichtsentwicklung
A85: 57. ...ziehen wir regelmäßig Ergebnisse aus der schulinternen Evaluation zur Unterrichtsentwicklung heran. | B85: 15 | C85: 2.4 | D85: 0.1902379462 | E85: 0.7367883976 | F85: 0.1333333333 | G85: 0.3333333333 | H85: 0.5333333333 | I85: 0 | J85: =IF(INDIRECT("'PFB-Konstrukte'!A" & (SMALL(IF(NOT(ISERROR(FIND(IF(LEFT(A85,1)="0"," " & MID(A85,2,1) & ",",IF(MID(A85,3,1)=".",LEFT(A85,2),LEFT(A85,3))),'PFB-Konstrukte'!$J$9:$J$40))),ROW($9:$40)),1)+1))="", IF(LEFT(INDIRECT("A"&MAX(IF($B$1:B85="N",ROW($A$1:A85)))-1),3)="nur", IF(RIGHT(INDIRECT("A"&MAX(IF($B$1:B85="N",ROW($A$1:A85)))-1),4)="PTF!", INDEX('PFB-Konstrukte'!$B$9:$J$40,SMALL(IF(NOT(ISERROR(FIND(IF(LEFT(A85,1)="0"," " & MID(A85,2,1) & ",",IF(MID(A85,3,1)=".",LEFT(A85,2),LEFT(A85,3))),'PFB-Konstrukte'!$J$9:$J$40))),ROW($1:$32)),3),1), INDEX('PFB-Konstrukte'!$B$9:$J$40,SMALL(IF(NOT(ISERROR(FIND(IF(LEFT(A85,1)="0"," " & MID(A85,2,1) & ",",IF(MID(A85,3,1)=".",LEFT(A85,2),LEFT(A85,3))),'PFB-Konstrukte'!$J$9:$J$40))),ROW($1:$32)),2),1)), IF(RIGHT(INDEX('PFB-Konstrukte'!$A$9:$J$40,SMALL(IF(NOT(ISERROR(FIND(IF(LEFT(A85,1)="0"," " & MID(A85,2,1) & ",",IF(MID(A85,3,1)=".",LEFT(A85,2),LEFT(A85,3))),'PFB-Konstrukte'!$J$9:$J$40))),ROW($1:$32)),1),1),7)="Führung", INDEX('PFB-Konstrukte'!$A$9:$J$40,SMALL(IF(NOT(ISERROR(FIND(IF(LEFT(A85,1)="0"," " & MID(A85,2,1) & ",",IF(MID(A85,3,1)=".",LEFT(A85,2),LEFT(A85,3))),'PFB-Konstrukte'!$J$9:$J$40))),ROW($1:$32)),1),1) & ", " & INDEX('PFB-Konstrukte'!$B$9:$J$40,SMALL(IF(NOT(ISERROR(FIND(IF(LEFT(A85,1)="0"," " & MID(A85,2,1) & ",",IF(MID(A85,3,1)=".",LEFT(A85,2),LEFT(A85,3))),'PFB-Konstrukte'!$J$9:$J$40))),ROW($1:$32)),2),1), INDEX('PFB-Konstrukte'!$A$9:$J$40,SMALL(IF(NOT(ISERROR(FIND(IF(LEFT(A85,1)="0"," " & MID(A85,2,1) & ",",IF(MID(A85,3,1)=".",LEFT(A85,2),LEFT(A85,3))),'PFB-Konstrukte'!$J$9:$J$40))),ROW($1:$32)),1),1))), INDEX('PFB-Konstrukte'!$A$9:$J$40,SMALL(IF(NOT(ISERROR(FIND(IF(LEFT(A85,1)="0"," " & MID(A85,2,1) & ",",IF(MID(A85,3,1)=".",LEFT(A85,2),LEFT(A85,3))),'PFB-Konstrukte'!$J$9:$J$40))),ROW($1:$32)),1),1)) -> Systematische Schul- und Unterrichtsentwicklung
A86: 58. ...gibt es ein systematisches Konzept zur Einführung neuer Kolleginnen und Kollegen (bspw. Mentorinnen und Mentoren, Einarbeitungshandbuch). | B86: 22 | C86: 2.318181818 | D86: 0.1527009872 | E86: 0.716231117 | F86: 0.1363636364 | G86: 0.4090909091 | H86: 0.4545454545 | I86: 0 | J86: =IF(INDIRECT("'PFB-Konstrukte'!A" & (SMALL(IF(NOT(ISERROR(FIND(IF(LEFT(A86,1)="0"," " & MID(A86,2,1) & ",",IF(MID(A86,3,1)=".",LEFT(A86,2),LEFT(A86,3))),'PFB-Konstrukte'!$J$9:$J$40))),ROW($9:$40)),1)+1))="", IF(LEFT(INDIRECT("A"&MAX(IF($B$1:B86="N",ROW($A$1:A86)))-1),3)="nur", IF(RIGHT(INDIRECT("A"&MAX(IF($B$1:B86="N",ROW($A$1:A86)))-1),4)="PTF!", INDEX('PFB-Konstrukte'!$B$9:$J$40,SMALL(IF(NOT(ISERROR(FIND(IF(LEFT(A86,1)="0"," " & MID(A86,2,1) & ",",IF(MID(A86,3,1)=".",LEFT(A86,2),LEFT(A86,3))),'PFB-Konstrukte'!$J$9:$J$40))),ROW($1:$32)),3),1), INDEX('PFB-Konstrukte'!$B$9:$J$40,SMALL(IF(NOT(ISERROR(FIND(IF(LEFT(A86,1)="0"," " & MID(A86,2,1) & ",",IF(MID(A86,3,1)=".",LEFT(A86,2),LEFT(A86,3))),'PFB-Konstrukte'!$J$9:$J$40))),ROW($1:$32)),2),1)), IF(RIGHT(INDEX('PFB-Konstrukte'!$A$9:$J$40,SMALL(IF(NOT(ISERROR(FIND(IF(LEFT(A86,1)="0"," " & MID(A86,2,1) & ",",IF(MID(A86,3,1)=".",LEFT(A86,2),LEFT(A86,3))),'PFB-Konstrukte'!$J$9:$J$40))),ROW($1:$32)),1),1),7)="Führung", INDEX('PFB-Konstrukte'!$A$9:$J$40,SMALL(IF(NOT(ISERROR(FIND(IF(LEFT(A86,1)="0"," " & MID(A86,2,1) & ",",IF(MID(A86,3,1)=".",LEFT(A86,2),LEFT(A86,3))),'PFB-Konstrukte'!$J$9:$J$40))),ROW($1:$32)),1),1) & ", " & INDEX('PFB-Konstrukte'!$B$9:$J$40,SMALL(IF(NOT(ISERROR(FIND(IF(LEFT(A86,1)="0"," " & MID(A86,2,1) & ",",IF(MID(A86,3,1)=".",LEFT(A86,2),LEFT(A86,3))),'PFB-Konstrukte'!$J$9:$J$40))),ROW($1:$32)),2),1), INDEX('PFB-Konstrukte'!$A$9:$J$40,SMALL(IF(NOT(ISERROR(FIND(IF(LEFT(A86,1)="0"," " & MID(A86,2,1) & ",",IF(MID(A86,3,1)=".",LEFT(A86,2),LEFT(A86,3))),'PFB-Konstrukte'!$J$9:$J$40))),ROW($1:$32)),1),1))), INDEX('PFB-Konstrukte'!$A$9:$J$40,SMALL(IF(NOT(ISERROR(FIND(IF(LEFT(A86,1)="0"," " & MID(A86,2,1) & ",",IF(MID(A86,3,1)=".",LEFT(A86,2),LEFT(A86,3))),'PFB-Konstrukte'!$J$9:$J$40))),ROW($1:$32)),1),1)) -> Systematische Schul- und Unterrichtsentwicklung
B88: N | C88: MW | D88: SE | E88: SD | F88: trifft nicht zu | G88: trifft eher nicht zu | H88: trifft eher zu | I88: trifft voll zu | J88: Zuordnung zum Konstrukt
A89: 59. Gemeinsam denken wir regelmäßig über Veränderungen unserer Schule nach. | B89: 22 | C89: 3.227272727 | D89: 0.1304640101 | E89: 0.611930449 | F89: 0 | G89: 0.09090909091 | H89: 0.5909090909 | I89: 0.3181818182 | J89: =IF(INDIRECT("'PFB-Konstrukte'!A" & (SMALL(IF(NOT(ISERROR(FIND(IF(LEFT(A89,1)="0"," " & MID(A89,2,1) & ",",IF(MID(A89,3,1)=".",LEFT(A89,2),LEFT(A89,3))),'PFB-Konstrukte'!$J$9:$J$40))),ROW($9:$40)),1)+1))="", IF(LEFT(INDIRECT("A"&MAX(IF($B$1:B89="N",ROW($A$1:A89)))-1),3)="nur", IF(RIGHT(INDIRECT("A"&MAX(IF($B$1:B89="N",ROW($A$1:A89)))-1),4)="PTF!", INDEX('PFB-Konstrukte'!$B$9:$J$40,SMALL(IF(NOT(ISERROR(FIND(IF(LEFT(A89,1)="0"," " & MID(A89,2,1) & ",",IF(MID(A89,3,1)=".",LEFT(A89,2),LEFT(A89,3))),'PFB-Konstrukte'!$J$9:$J$40))),ROW($1:$32)),3),1), INDEX('PFB-Konstrukte'!$B$9:$J$40,SMALL(IF(NOT(ISERROR(FIND(IF(LEFT(A89,1)="0"," " & MID(A89,2,1) & ",",IF(MID(A89,3,1)=".",LEFT(A89,2),LEFT(A89,3))),'PFB-Konstrukte'!$J$9:$J$40))),ROW($1:$32)),2),1)), IF(RIGHT(INDEX('PFB-Konstrukte'!$A$9:$J$40,SMALL(IF(NOT(ISERROR(FIND(IF(LEFT(A89,1)="0"," " & MID(A89,2,1) & ",",IF(MID(A89,3,1)=".",LEFT(A89,2),LEFT(A89,3))),'PFB-Konstrukte'!$J$9:$J$40))),ROW($1:$32)),1),1),7)="Führung", INDEX('PFB-Konstrukte'!$A$9:$J$40,SMALL(IF(NOT(ISERROR(FIND(IF(LEFT(A89,1)="0"," " & MID(A89,2,1) & ",",IF(MID(A89,3,1)=".",LEFT(A89,2),LEFT(A89,3))),'PFB-Konstrukte'!$J$9:$J$40))),ROW($1:$32)),1),1) & ", " & INDEX('PFB-Konstrukte'!$B$9:$J$40,SMALL(IF(NOT(ISERROR(FIND(IF(LEFT(A89,1)="0"," " & MID(A89,2,1) & ",",IF(MID(A89,3,1)=".",LEFT(A89,2),LEFT(A89,3))),'PFB-Konstrukte'!$J$9:$J$40))),ROW($1:$32)),2),1), INDEX('PFB-Konstrukte'!$A$9:$J$40,SMALL(IF(NOT(ISERROR(FIND(IF(LEFT(A89,1)="0"," " & MID(A89,2,1) & ",",IF(MID(A89,3,1)=".",LEFT(A89,2),LEFT(A89,3))),'PFB-Konstrukte'!$J$9:$J$40))),ROW($1:$32)),1),1))), INDEX('PFB-Konstrukte'!$A$9:$J$40,SMALL(IF(NOT(ISERROR(FIND(IF(LEFT(A89,1)="0"," " & MID(A89,2,1) & ",",IF(MID(A89,3,1)=".",LEFT(A89,2),LEFT(A89,3))),'PFB-Konstrukte'!$J$9:$J$40))),ROW($1:$32)),1),1)) -> Positives Innovationsklima
A90: 60. Meine Kolleginnen und Kollegen unterstützen mich, wenn ich Innovationen umsetzen möchte. | B90: 20 | C90: 3.2 | D90: 0.09176629355 | E90: 0.4103913408 | F90: 0 | G90: 0 | H90: 0.8 | I90: 0.2 | J90: =IF(INDIRECT("'PFB-Konstrukte'!A" & (SMALL(IF(NOT(ISERROR(FIND(IF(LEFT(A90,1)="0"," " & MID(A90,2,1) & ",",IF(MID(A90,3,1)=".",LEFT(A90,2),LEFT(A90,3))),'PFB-Konstrukte'!$J$9:$J$40))),ROW($9:$40)),1)+1))="", IF(LEFT(INDIRECT("A"&MAX(IF($B$1:B90="N",ROW($A$1:A90)))-1),3)="nur", IF(RIGHT(INDIRECT("A"&MAX(IF($B$1:B90="N",ROW($A$1:A90)))-1),4)="PTF!", INDEX('PFB-Konstrukte'!$B$9:$J$40,SMALL(IF(NOT(ISERROR(FIND(IF(LEFT(A90,1)="0"," " & MID(A90,2,1) & ",",IF(MID(A90,3,1)=".",LEFT(A90,2),LEFT(A90,3))),'PFB-Konstrukte'!$J$9:$J$40))),ROW($1:$32)),3),1), INDEX('PFB-Konstrukte'!$B$9:$J$40,SMALL(IF(NOT(ISERROR(FIND(IF(LEFT(A90,1)="0"," " & MID(A90,2,1) & ",",IF(MID(A90,3,1)=".",LEFT(A90,2),LEFT(A90,3))),'PFB-Konstrukte'!$J$9:$J$40))),ROW($1:$32)),2),1)), IF(RIGHT(INDEX('PFB-Konstrukte'!$A$9:$J$40,SMALL(IF(NOT(ISERROR(FIND(IF(LEFT(A90,1)="0"," " & MID(A90,2,1) & ",",IF(MID(A90,3,1)=".",LEFT(A90,2),LEFT(A90,3))),'PFB-Konstrukte'!$J$9:$J$40))),ROW($1:$32)),1),1),7)="Führung", INDEX('PFB-Konstrukte'!$A$9:$J$40,SMALL(IF(NOT(ISERROR(FIND(IF(LEFT(A90,1)="0"," " & MID(A90,2,1) & ",",IF(MID(A90,3,1)=".",LEFT(A90,2),LEFT(A90,3))),'PFB-Konstrukte'!$J$9:$J$40))),ROW($1:$32)),1),1) & ", " & INDEX('PFB-Konstrukte'!$B$9:$J$40,SMALL(IF(NOT(ISERROR(FIND(IF(LEFT(A90,1)="0"," " & MID(A90,2,1) & ",",IF(MID(A90,3,1)=".",LEFT(A90,2),LEFT(A90,3))),'PFB-Konstrukte'!$J$9:$J$40))),ROW($1:$32)),2),1), INDEX('PFB-Konstrukte'!$A$9:$J$40,SMALL(IF(NOT(ISERROR(FIND(IF(LEFT(A90,1)="0"," " & MID(A90,2,1) & ",",IF(MID(A90,3,1)=".",LEFT(A90,2),LEFT(A90,3))),'PFB-Konstrukte'!$J$9:$J$40))),ROW($1:$32)),1),1))), INDEX('PFB-Konstrukte'!$A$9:$J$40,SMALL(IF(NOT(ISERROR(FIND(IF(LEFT(A90,1)="0"," " & MID(A90,2,1) & ",",IF(MID(A90,3,1)=".",LEFT(A90,2),LEFT(A90,3))),'PFB-Konstrukte'!$J$9:$J$40))),ROW($1:$32)),1),1)) -> Positives Innovationsklima
A91: 61. Im Allgemeinen herrscht ein innovationsfreudiges Klima innerhalb des Kollegiums. | B91: 22 | C91: 3.136363636 | D91: 0.0748867701 | E91: 0.3512500867 | F91: 0 | G91: 0 | H91: 0.8636363636 | I91: 0.1363636364 | J91: =IF(INDIRECT("'PFB-Konstrukte'!A" & (SMALL(IF(NOT(ISERROR(FIND(IF(LEFT(A91,1)="0"," " & MID(A91,2,1) & ",",IF(MID(A91,3,1)=".",LEFT(A91,2),LEFT(A91,3))),'PFB-Konstrukte'!$J$9:$J$40))),ROW($9:$40)),1)+1))="", IF(LEFT(INDIRECT("A"&MAX(IF($B$1:B91="N",ROW($A$1:A91)))-1),3)="nur", IF(RIGHT(INDIRECT("A"&MAX(IF($B$1:B91="N",ROW($A$1:A91)))-1),4)="PTF!", INDEX('PFB-Konstrukte'!$B$9:$J$40,SMALL(IF(NOT(ISERROR(FIND(IF(LEFT(A91,1)="0"," " & MID(A91,2,1) & ",",IF(MID(A91,3,1)=".",LEFT(A91,2),LEFT(A91,3))),'PFB-Konstrukte'!$J$9:$J$40))),ROW($1:$32)),3),1), INDEX('PFB-Konstrukte'!$B$9:$J$40,SMALL(IF(NOT(ISERROR(FIND(IF(LEFT(A91,1)="0"," " & MID(A91,2,1) & ",",IF(MID(A91,3,1)=".",LEFT(A91,2),LEFT(A91,3))),'PFB-Konstrukte'!$J$9:$J$40))),ROW($1:$32)),2),1)), IF(RIGHT(INDEX('PFB-Konstrukte'!$A$9:$J$40,SMALL(IF(NOT(ISERROR(FIND(IF(LEFT(A91,1)="0"," " & MID(A91,2,1) & ",",IF(MID(A91,3,1)=".",LEFT(A91,2),LEFT(A91,3))),'PFB-Konstrukte'!$J$9:$J$40))),ROW($1:$32)),1),1),7)="Führung", INDEX('PFB-Konstrukte'!$A$9:$J$40,SMALL(IF(NOT(ISERROR(FIND(IF(LEFT(A91,1)="0"," " & MID(A91,2,1) & ",",IF(MID(A91,3,1)=".",LEFT(A91,2),LEFT(A91,3))),'PFB-Konstrukte'!$J$9:$J$40))),ROW($1:$32)),1),1) & ", " & INDEX('PFB-Konstrukte'!$B$9:$J$40,SMALL(IF(NOT(ISERROR(FIND(IF(LEFT(A91,1)="0"," " & MID(A91,2,1) & ",",IF(MID(A91,3,1)=".",LEFT(A91,2),LEFT(A91,3))),'PFB-Konstrukte'!$J$9:$J$40))),ROW($1:$32)),2),1), INDEX('PFB-Konstrukte'!$A$9:$J$40,SMALL(IF(NOT(ISERROR(FIND(IF(LEFT(A91,1)="0"," " & MID(A91,2,1) & ",",IF(MID(A91,3,1)=".",LEFT(A91,2),LEFT(A91,3))),'PFB-Konstrukte'!$J$9:$J$40))),ROW($1:$32)),1),1))), INDEX('PFB-Konstrukte'!$A$9:$J$40,SMALL(IF(NOT(ISERROR(FIND(IF(LEFT(A91,1)="0"," " & MID(A91,2,1) & ",",IF(MID(A91,3,1)=".",LEFT(A91,2),LEFT(A91,3))),'PFB-Konstrukte'!$J$9:$J$40))),ROW($1:$32)),1),1)) -> Positives Innovationsklima
A92: 62. In die Weiterentwicklung unserer Schule bringen sich alle Kolleginnen und Kollegen ein. | B92: 20 | C92: 2.8 | D92: 0.1716790151 | E92: 0.7677718959 | F92: 0.05 | G92: 0.25 | H92: 0.55 | I92: 0.15 | J92: =IF(INDIRECT("'PFB-Konstrukte'!A" & (SMALL(IF(NOT(ISERROR(FIND(IF(LEFT(A92,1)="0"," " & MID(A92,2,1) & ",",IF(MID(A92,3,1)=".",LEFT(A92,2),LEFT(A92,3))),'PFB-Konstrukte'!$J$9:$J$40))),ROW($9:$40)),1)+1))="", IF(LEFT(INDIRECT("A"&MAX(IF($B$1:B92="N",ROW($A$1:A92)))-1),3)="nur", IF(RIGHT(INDIRECT("A"&MAX(IF($B$1:B92="N",ROW($A$1:A92)))-1),4)="PTF!", INDEX('PFB-Konstrukte'!$B$9:$J$40,SMALL(IF(NOT(ISERROR(FIND(IF(LEFT(A92,1)="0"," " & MID(A92,2,1) & ",",IF(MID(A92,3,1)=".",LEFT(A92,2),LEFT(A92,3))),'PFB-Konstrukte'!$J$9:$J$40))),ROW($1:$32)),3),1), INDEX('PFB-Konstrukte'!$B$9:$J$40,SMALL(IF(NOT(ISERROR(FIND(IF(LEFT(A92,1)="0"," " & MID(A92,2,1) & ",",IF(MID(A92,3,1)=".",LEFT(A92,2),LEFT(A92,3))),'PFB-Konstrukte'!$J$9:$J$40))),ROW($1:$32)),2),1)), IF(RIGHT(INDEX('PFB-Konstrukte'!$A$9:$J$40,SMALL(IF(NOT(ISERROR(FIND(IF(LEFT(A92,1)="0"," " & MID(A92,2,1) & ",",IF(MID(A92,3,1)=".",LEFT(A92,2),LEFT(A92,3))),'PFB-Konstrukte'!$J$9:$J$40))),ROW($1:$32)),1),1),7)="Führung", INDEX('PFB-Konstrukte'!$A$9:$J$40,SMALL(IF(NOT(ISERROR(FIND(IF(LEFT(A92,1)="0"," " & MID(A92,2,1) & ",",IF(MID(A92,3,1)=".",LEFT(A92,2),LEFT(A92,3))),'PFB-Konstrukte'!$J$9:$J$40))),ROW($1:$32)),1),1) & ", " & INDEX('PFB-Konstrukte'!$B$9:$J$40,SMALL(IF(NOT(ISERROR(FIND(IF(LEFT(A92,1)="0"," " & MID(A92,2,1) & ",",IF(MID(A92,3,1)=".",LEFT(A92,2),LEFT(A92,3))),'PFB-Konstrukte'!$J$9:$J$40))),ROW($1:$32)),2),1), INDEX('PFB-Konstrukte'!$A$9:$J$40,SMALL(IF(NOT(ISERROR(FIND(IF(LEFT(A92,1)="0"," " & MID(A92,2,1) & ",",IF(MID(A92,3,1)=".",LEFT(A92,2),LEFT(A92,3))),'PFB-Konstrukte'!$J$9:$J$40))),ROW($1:$32)),1),1))), INDEX('PFB-Konstrukte'!$A$9:$J$40,SMALL(IF(NOT(ISERROR(FIND(IF(LEFT(A92,1)="0"," " & MID(A92,2,1) & ",",IF(MID(A92,3,1)=".",LEFT(A92,2),LEFT(A92,3))),'PFB-Konstrukte'!$J$9:$J$40))),ROW($1:$32)),1),1)) -> Positives Innovationsklima
B94: N | C94: MW | D94: SE | E94: SD | F94: trifft nicht zu | G94: trifft eher nicht zu | H94: trifft eher zu | I94: trifft voll zu | J94: Zuordnung zum Konstrukt
A95: 63. Da wir dieselben pädagogischen Absichten verfolgen, können wir auch mit schwierigem Verhalten von Schülerinnen und Schülern klarkommen. | B95: 23 | C95: 3.043478261 | D95: 0.11725215 | E95: 0.5623215571 | F95: 0 | G95: 0.1304347826 | H95: 0.6956521739 | I95: 0.1739130435 | J95: =IF(INDIRECT("'PFB-Konstrukte'!A" & (SMALL(IF(NOT(ISERROR(FIND(IF(LEFT(A95,1)="0"," " & MID(A95,2,1) & ",",IF(MID(A95,3,1)=".",LEFT(A95,2),LEFT(A95,3))),'PFB-Konstrukte'!$J$9:$J$40))),ROW($9:$40)),1)+1))="", IF(LEFT(INDIRECT("A"&MAX(IF($B$1:B95="N",ROW($A$1:A95)))-1),3)="nur", IF(RIGHT(INDIRECT("A"&MAX(IF($B$1:B95="N",ROW($A$1:A95)))-1),4)="PTF!", INDEX('PFB-Konstrukte'!$B$9:$J$40,SMALL(IF(NOT(ISERROR(FIND(IF(LEFT(A95,1)="0"," " & MID(A95,2,1) & ",",IF(MID(A95,3,1)=".",LEFT(A95,2),LEFT(A95,3))),'PFB-Konstrukte'!$J$9:$J$40))),ROW($1:$32)),3),1), INDEX('PFB-Konstrukte'!$B$9:$J$40,SMALL(IF(NOT(ISERROR(FIND(IF(LEFT(A95,1)="0"," " & MID(A95,2,1) & ",",IF(MID(A95,3,1)=".",LEFT(A95,2),LEFT(A95,3))),'PFB-Konstrukte'!$J$9:$J$40))),ROW($1:$32)),2),1)), IF(RIGHT(INDEX('PFB-Konstrukte'!$A$9:$J$40,SMALL(IF(NOT(ISERROR(FIND(IF(LEFT(A95,1)="0"," " & MID(A95,2,1) & ",",IF(MID(A95,3,1)=".",LEFT(A95,2),LEFT(A95,3))),'PFB-Konstrukte'!$J$9:$J$40))),ROW($1:$32)),1),1),7)="Führung", INDEX('PFB-Konstrukte'!$A$9:$J$40,SMALL(IF(NOT(ISERROR(FIND(IF(LEFT(A95,1)="0"," " & MID(A95,2,1) & ",",IF(MID(A95,3,1)=".",LEFT(A95,2),LEFT(A95,3))),'PFB-Konstrukte'!$J$9:$J$40))),ROW($1:$32)),1),1) & ", " & INDEX('PFB-Konstrukte'!$B$9:$J$40,SMALL(IF(NOT(ISERROR(FIND(IF(LEFT(A95,1)="0"," " & MID(A95,2,1) & ",",IF(MID(A95,3,1)=".",LEFT(A95,2),LEFT(A95,3))),'PFB-Konstrukte'!$J$9:$J$40))),ROW($1:$32)),2),1), INDEX('PFB-Konstrukte'!$A$9:$J$40,SMALL(IF(NOT(ISERROR(FIND(IF(LEFT(A95,1)="0"," " & MID(A95,2,1) & ",",IF(MID(A95,3,1)=".",LEFT(A95,2),LEFT(A95,3))),'PFB-Konstrukte'!$J$9:$J$40))),ROW($1:$32)),1),1))), INDEX('PFB-Konstrukte'!$A$9:$J$40,SMALL(IF(NOT(ISERROR(FIND(IF(LEFT(A95,1)="0"," " & MID(A95,2,1) & ",",IF(MID(A95,3,1)=".",LEFT(A95,2),LEFT(A95,3))),'PFB-Konstrukte'!$J$9:$J$40))),ROW($1:$32)),1),1)) -> Kollektive Selbstwirksamkeit
A96: 64. Auch mit außergewöhnlichen Vorfällen können wir zurechtkommen, da wir uns im Kollegium gegenseitig Rückhalt bieten. | B96: 23 | C96: 3.217391304 | D96: 0.0879391125 | E96: 0.4217411678 | F96: 0 | G96: 0 | H96: 0.7826086957 | I96: 0.2173913043 | J96: =IF(INDIRECT("'PFB-Konstrukte'!A" & (SMALL(IF(NOT(ISERROR(FIND(IF(LEFT(A96,1)="0"," " & MID(A96,2,1) & ",",IF(MID(A96,3,1)=".",LEFT(A96,2),LEFT(A96,3))),'PFB-Konstrukte'!$J$9:$J$40))),ROW($9:$40)),1)+1))="", IF(LEFT(INDIRECT("A"&MAX(IF($B$1:B96="N",ROW($A$1:A96)))-1),3)="nur", IF(RIGHT(INDIRECT("A"&MAX(IF($B$1:B96="N",ROW($A$1:A96)))-1),4)="PTF!", INDEX('PFB-Konstrukte'!$B$9:$J$40,SMALL(IF(NOT(ISERROR(FIND(IF(LEFT(A96,1)="0"," " & MID(A96,2,1) & ",",IF(MID(A96,3,1)=".",LEFT(A96,2),LEFT(A96,3))),'PFB-Konstrukte'!$J$9:$J$40))),ROW($1:$32)),3),1), INDEX('PFB-Konstrukte'!$B$9:$J$40,SMALL(IF(NOT(ISERROR(FIND(IF(LEFT(A96,1)="0"," " & MID(A96,2,1) & ",",IF(MID(A96,3,1)=".",LEFT(A96,2),LEFT(A96,3))),'PFB-Konstrukte'!$J$9:$J$40))),ROW($1:$32)),2),1)), IF(RIGHT(INDEX('PFB-Konstrukte'!$A$9:$J$40,SMALL(IF(NOT(ISERROR(FIND(IF(LEFT(A96,1)="0"," " & MID(A96,2,1) & ",",IF(MID(A96,3,1)=".",LEFT(A96,2),LEFT(A96,3))),'PFB-Konstrukte'!$J$9:$J$40))),ROW($1:$32)),1),1),7)="Führung", INDEX('PFB-Konstrukte'!$A$9:$J$40,SMALL(IF(NOT(ISERROR(FIND(IF(LEFT(A96,1)="0"," " & MID(A96,2,1) & ",",IF(MID(A96,3,1)=".",LEFT(A96,2),LEFT(A96,3))),'PFB-Konstrukte'!$J$9:$J$40))),ROW($1:$32)),1),1) & ", " & INDEX('PFB-Konstrukte'!$B$9:$J$40,SMALL(IF(NOT(ISERROR(FIND(IF(LEFT(A96,1)="0"," " & MID(A96,2,1) & ",",IF(MID(A96,3,1)=".",LEFT(A96,2),LEFT(A96,3))),'PFB-Konstrukte'!$J$9:$J$40))),ROW($1:$32)),2),1), INDEX('PFB-Konstrukte'!$A$9:$J$40,SMALL(IF(NOT(ISERROR(FIND(IF(LEFT(A96,1)="0"," " & MID(A96,2,1) & ",",IF(MID(A96,3,1)=".",LEFT(A96,2),LEFT(A96,3))),'PFB-Konstrukte'!$J$9:$J$40))),ROW($1:$32)),1),1))), INDEX('PFB-Konstrukte'!$A$9:$J$40,SMALL(IF(NOT(ISERROR(FIND(IF(LEFT(A96,1)="0"," " & MID(A96,2,1) & ",",IF(MID(A96,3,1)=".",LEFT(A96,2),LEFT(A96,3))),'PFB-Konstrukte'!$J$9:$J$40))),ROW($1:$32)),1),1)) -> Kollektive Selbstwirksamkeit
A97: 65. Als kompetentes Kollegium können wir an schwierigen Aufgaben wachsen. | B97: 20 | C97: 3.1 | D97: 0.1432700799 | E97: 0.6407232755 | F97: 0 | G97: 0.15 | H97: 0.6 | I97: 0.25 | J97: =IF(INDIRECT("'PFB-Konstrukte'!A" & (SMALL(IF(NOT(ISERROR(FIND(IF(LEFT(A97,1)="0"," " & MID(A97,2,1) & ",",IF(MID(A97,3,1)=".",LEFT(A97,2),LEFT(A97,3))),'PFB-Konstrukte'!$J$9:$J$40))),ROW($9:$40)),1)+1))="", IF(LEFT(INDIRECT("A"&MAX(IF($B$1:B97="N",ROW($A$1:A97)))-1),3)="nur", IF(RIGHT(INDIRECT("A"&MAX(IF($B$1:B97="N",ROW($A$1:A97)))-1),4)="PTF!", INDEX('PFB-Konstrukte'!$B$9:$J$40,SMALL(IF(NOT(ISERROR(FIND(IF(LEFT(A97,1)="0"," " & MID(A97,2,1) & ",",IF(MID(A97,3,1)=".",LEFT(A97,2),LEFT(A97,3))),'PFB-Konstrukte'!$J$9:$J$40))),ROW($1:$32)),3),1), INDEX('PFB-Konstrukte'!$B$9:$J$40,SMALL(IF(NOT(ISERROR(FIND(IF(LEFT(A97,1)="0"," " & MID(A97,2,1) & ",",IF(MID(A97,3,1)=".",LEFT(A97,2),LEFT(A97,3))),'PFB-Konstrukte'!$J$9:$J$40))),ROW($1:$32)),2),1)), IF(RIGHT(INDEX('PFB-Konstrukte'!$A$9:$J$40,SMALL(IF(NOT(ISERROR(FIND(IF(LEFT(A97,1)="0"," " & MID(A97,2,1) & ",",IF(MID(A97,3,1)=".",LEFT(A97,2),LEFT(A97,3))),'PFB-Konstrukte'!$J$9:$J$40))),ROW($1:$32)),1),1),7)="Führung", INDEX('PFB-Konstrukte'!$A$9:$J$40,SMALL(IF(NOT(ISERROR(FIND(IF(LEFT(A97,1)="0"," " & MID(A97,2,1) & ",",IF(MID(A97,3,1)=".",LEFT(A97,2),LEFT(A97,3))),'PFB-Konstrukte'!$J$9:$J$40))),ROW($1:$32)),1),1) & ", " & INDEX('PFB-Konstrukte'!$B$9:$J$40,SMALL(IF(NOT(ISERROR(FIND(IF(LEFT(A97,1)="0"," " & MID(A97,2,1) & ",",IF(MID(A97,3,1)=".",LEFT(A97,2),LEFT(A97,3))),'PFB-Konstrukte'!$J$9:$J$40))),ROW($1:$32)),2),1), INDEX('PFB-Konstrukte'!$A$9:$J$40,SMALL(IF(NOT(ISERROR(FIND(IF(LEFT(A97,1)="0"," " & MID(A97,2,1) & ",",IF(MID(A97,3,1)=".",LEFT(A97,2),LEFT(A97,3))),'PFB-Konstrukte'!$J$9:$J$40))),ROW($1:$32)),1),1))), INDEX('PFB-Konstrukte'!$A$9:$J$40,SMALL(IF(NOT(ISERROR(FIND(IF(LEFT(A97,1)="0"," " & MID(A97,2,1) & ",",IF(MID(A97,3,1)=".",LEFT(A97,2),LEFT(A97,3))),'PFB-Konstrukte'!$J$9:$J$40))),ROW($1:$32)),1),1)) -> Kollektive Selbstwirksamkeit
A98: 66. Auch aus pädagogischen Fehlern und Rückschlägen können wir viel lernen, solange wir auf unsere gemeinsame Handlungskompetenz vertrauen. | B98: 20 | C98: 3 | D98: 0.1025978352 | E98: 0.4588314677 | F98: 0 | G98: 0.1 | H98: 0.8 | I98: 0.1 | J98: =IF(INDIRECT("'PFB-Konstrukte'!A" & (SMALL(IF(NOT(ISERROR(FIND(IF(LEFT(A98,1)="0"," " & MID(A98,2,1) & ",",IF(MID(A98,3,1)=".",LEFT(A98,2),LEFT(A98,3))),'PFB-Konstrukte'!$J$9:$J$40))),ROW($9:$40)),1)+1))="", IF(LEFT(INDIRECT("A"&MAX(IF($B$1:B98="N",ROW($A$1:A98)))-1),3)="nur", IF(RIGHT(INDIRECT("A"&MAX(IF($B$1:B98="N",ROW($A$1:A98)))-1),4)="PTF!", INDEX('PFB-Konstrukte'!$B$9:$J$40,SMALL(IF(NOT(ISERROR(FIND(IF(LEFT(A98,1)="0"," " & MID(A98,2,1) & ",",IF(MID(A98,3,1)=".",LEFT(A98,2),LEFT(A98,3))),'PFB-Konstrukte'!$J$9:$J$40))),ROW($1:$32)),3),1), INDEX('PFB-Konstrukte'!$B$9:$J$40,SMALL(IF(NOT(ISERROR(FIND(IF(LEFT(A98,1)="0"," " & MID(A98,2,1) & ",",IF(MID(A98,3,1)=".",LEFT(A98,2),LEFT(A98,3))),'PFB-Konstrukte'!$J$9:$J$40))),ROW($1:$32)),2),1)), IF(RIGHT(INDEX('PFB-Konstrukte'!$A$9:$J$40,SMALL(IF(NOT(ISERROR(FIND(IF(LEFT(A98,1)="0"," " & MID(A98,2,1) & ",",IF(MID(A98,3,1)=".",LEFT(A98,2),LEFT(A98,3))),'PFB-Konstrukte'!$J$9:$J$40))),ROW($1:$32)),1),1),7)="Führung", INDEX('PFB-Konstrukte'!$A$9:$J$40,SMALL(IF(NOT(ISERROR(FIND(IF(LEFT(A98,1)="0"," " & MID(A98,2,1) & ",",IF(MID(A98,3,1)=".",LEFT(A98,2),LEFT(A98,3))),'PFB-Konstrukte'!$J$9:$J$40))),ROW($1:$32)),1),1) & ", " & INDEX('PFB-Konstrukte'!$B$9:$J$40,SMALL(IF(NOT(ISERROR(FIND(IF(LEFT(A98,1)="0"," " & MID(A98,2,1) & ",",IF(MID(A98,3,1)=".",LEFT(A98,2),LEFT(A98,3))),'PFB-Konstrukte'!$J$9:$J$40))),ROW($1:$32)),2),1), INDEX('PFB-Konstrukte'!$A$9:$J$40,SMALL(IF(NOT(ISERROR(FIND(IF(LEFT(A98,1)="0"," " & MID(A98,2,1) & ",",IF(MID(A98,3,1)=".",LEFT(A98,2),LEFT(A98,3))),'PFB-Konstrukte'!$J$9:$J$40))),ROW($1:$32)),1),1))), INDEX('PFB-Konstrukte'!$A$9:$J$40,SMALL(IF(NOT(ISERROR(FIND(IF(LEFT(A98,1)="0"," " & MID(A98,2,1) & ",",IF(MID(A98,3,1)=".",LEFT(A98,2),LEFT(A98,3))),'PFB-Konstrukte'!$J$9:$J$40))),ROW($1:$32)),1),1)) -> Kollektive Selbstwirksamkeit
A99: 67. Wir als Kollegium erzielen pädagogische Fortschritte und lassen uns nicht von Alltagsschwierigkeiten aus dem Konzept bringen. | B99: 22 | C99: 2.863636364 | D99: 0.1194405165 | E99: 0.5602256812 | F99: 0 | G99: 0.2272727273 | H99: 0.6818181818 | I99: 0.09090909091 | J99: =IF(INDIRECT("'PFB-Konstrukte'!A" & (SMALL(IF(NOT(ISERROR(FIND(IF(LEFT(A99,1)="0"," " & MID(A99,2,1) & ",",IF(MID(A99,3,1)=".",LEFT(A99,2),LEFT(A99,3))),'PFB-Konstrukte'!$J$9:$J$40))),ROW($9:$40)),1)+1))="", IF(LEFT(INDIRECT("A"&MAX(IF($B$1:B99="N",ROW($A$1:A99)))-1),3)="nur", IF(RIGHT(INDIRECT("A"&MAX(IF($B$1:B99="N",ROW($A$1:A99)))-1),4)="PTF!", INDEX('PFB-Konstrukte'!$B$9:$J$40,SMALL(IF(NOT(ISERROR(FIND(IF(LEFT(A99,1)="0"," " & MID(A99,2,1) & ",",IF(MID(A99,3,1)=".",LEFT(A99,2),LEFT(A99,3))),'PFB-Konstrukte'!$J$9:$J$40))),ROW($1:$32)),3),1), INDEX('PFB-Konstrukte'!$B$9:$J$40,SMALL(IF(NOT(ISERROR(FIND(IF(LEFT(A99,1)="0"," " & MID(A99,2,1) & ",",IF(MID(A99,3,1)=".",LEFT(A99,2),LEFT(A99,3))),'PFB-Konstrukte'!$J$9:$J$40))),ROW($1:$32)),2),1)), IF(RIGHT(INDEX('PFB-Konstrukte'!$A$9:$J$40,SMALL(IF(NOT(ISERROR(FIND(IF(LEFT(A99,1)="0"," " & MID(A99,2,1) & ",",IF(MID(A99,3,1)=".",LEFT(A99,2),LEFT(A99,3))),'PFB-Konstrukte'!$J$9:$J$40))),ROW($1:$32)),1),1),7)="Führung", INDEX('PFB-Konstrukte'!$A$9:$J$40,SMALL(IF(NOT(ISERROR(FIND(IF(LEFT(A99,1)="0"," " & MID(A99,2,1) & ",",IF(MID(A99,3,1)=".",LEFT(A99,2),LEFT(A99,3))),'PFB-Konstrukte'!$J$9:$J$40))),ROW($1:$32)),1),1) & ", " & INDEX('PFB-Konstrukte'!$B$9:$J$40,SMALL(IF(NOT(ISERROR(FIND(IF(LEFT(A99,1)="0"," " & MID(A99,2,1) & ",",IF(MID(A99,3,1)=".",LEFT(A99,2),LEFT(A99,3))),'PFB-Konstrukte'!$J$9:$J$40))),ROW($1:$32)),2),1), INDEX('PFB-Konstrukte'!$A$9:$J$40,SMALL(IF(NOT(ISERROR(FIND(IF(LEFT(A99,1)="0"," " & MID(A99,2,1) & ",",IF(MID(A99,3,1)=".",LEFT(A99,2),LEFT(A99,3))),'PFB-Konstrukte'!$J$9:$J$40))),ROW($1:$32)),1),1))), INDEX('PFB-Konstrukte'!$A$9:$J$40,SMALL(IF(NOT(ISERROR(FIND(IF(LEFT(A99,1)="0"," " & MID(A99,2,1) & ",",IF(MID(A99,3,1)=".",LEFT(A99,2),LEFT(A99,3))),'PFB-Konstrukte'!$J$9:$J$40))),ROW($1:$32)),1),1)) -> Kollektive Selbstwirksamkeit
A100: 68. Trotz der Systemzwänge können wir als Kollegium die pädagogische Qualität unserer Schule verbessern. | B100: 20 | C100: 2.8 | D100: 0.155597321 | E100: 0.6958523739 | F100: 0 | G100: 0.35 | H100: 0.5 | I100: 0.15 | J100: =IF(INDIRECT("'PFB-Konstrukte'!A" & (SMALL(IF(NOT(ISERROR(FIND(IF(LEFT(A100,1)="0"," " & MID(A100,2,1) & ",",IF(MID(A100,3,1)=".",LEFT(A100,2),LEFT(A100,3))),'PFB-Konstrukte'!$J$9:$J$40))),ROW($9:$40)),1)+1))="", IF(LEFT(INDIRECT("A"&MAX(IF($B$1:B100="N",ROW($A$1:A100)))-1),3)="nur", IF(RIGHT(INDIRECT("A"&MAX(IF($B$1:B100="N",ROW($A$1:A100)))-1),4)="PTF!", INDEX('PFB-Konstrukte'!$B$9:$J$40,SMALL(IF(NOT(ISERROR(FIND(IF(LEFT(A100,1)="0"," " & MID(A100,2,1) & ",",IF(MID(A100,3,1)=".",LEFT(A100,2),LEFT(A100,3))),'PFB-Konstrukte'!$J$9:$J$40))),ROW($1:$32)),3),1), INDEX('PFB-Konstrukte'!$B$9:$J$40,SMALL(IF(NOT(ISERROR(FIND(IF(LEFT(A100,1)="0"," " & MID(A100,2,1) & ",",IF(MID(A100,3,1)=".",LEFT(A100,2),LEFT(A100,3))),'PFB-Konstrukte'!$J$9:$J$40))),ROW($1:$32)),2),1)), IF(RIGHT(INDEX('PFB-Konstrukte'!$A$9:$J$40,SMALL(IF(NOT(ISERROR(FIND(IF(LEFT(A100,1)="0"," " & MID(A100,2,1) & ",",IF(MID(A100,3,1)=".",LEFT(A100,2),LEFT(A100,3))),'PFB-Konstrukte'!$J$9:$J$40))),ROW($1:$32)),1),1),7)="Führung", INDEX('PFB-Konstrukte'!$A$9:$J$40,SMALL(IF(NOT(ISERROR(FIND(IF(LEFT(A100,1)="0"," " & MID(A100,2,1) & ",",IF(MID(A100,3,1)=".",LEFT(A100,2),LEFT(A100,3))),'PFB-Konstrukte'!$J$9:$J$40))),ROW($1:$32)),1),1) & ", " & INDEX('PFB-Konstrukte'!$B$9:$J$40,SMALL(IF(NOT(ISERROR(FIND(IF(LEFT(A100,1)="0"," " & MID(A100,2,1) & ",",IF(MID(A100,3,1)=".",LEFT(A100,2),LEFT(A100,3))),'PFB-Konstrukte'!$J$9:$J$40))),ROW($1:$32)),2),1), INDEX('PFB-Konstrukte'!$A$9:$J$40,SMALL(IF(NOT(ISERROR(FIND(IF(LEFT(A100,1)="0"," " & MID(A100,2,1) & ",",IF(MID(A100,3,1)=".",LEFT(A100,2),LEFT(A100,3))),'PFB-Konstrukte'!$J$9:$J$40))),ROW($1:$32)),1),1))), INDEX('PFB-Konstrukte'!$A$9:$J$40,SMALL(IF(NOT(ISERROR(FIND(IF(LEFT(A100,1)="0"," " & MID(A100,2,1) & ",",IF(MID(A100,3,1)=".",LEFT(A100,2),LEFT(A100,3))),'PFB-Konstrukte'!$J$9:$J$40))),ROW($1:$32)),1),1)) -> Kollektive Selbstwirksamkeit
B102: N | C102: MW | D102: SE | E102: SD | F102: trifft nicht zu | G102: trifft eher nicht zu | H102: trifft eher zu | I102: trifft voll zu | J102: Zuordnung zum Konstrukt
A103: 69. Unsere Schulleitung agiert als gut funktionierendes Leitungsteam. | B103: 23 | C103: 3.304347826 | D103: 0.132396318 | E103: 0.6349504353 | F103: 0 | G103: 0.08695652174 | H103: 0.5217391304 | I103: 0.3913043478 | J103: =IF(INDIRECT("'PFB-Konstrukte'!A" & (SMALL(IF(NOT(ISERROR(FIND(IF(LEFT(A103,1)="0"," " & MID(A103,2,1) & ",",IF(MID(A103,3,1)=".",LEFT(A103,2),LEFT(A103,3))),'PFB-Konstrukte'!$J$9:$J$40))),ROW($9:$40)),1)+1))="", IF(LEFT(INDIRECT("A"&MAX(IF($B$1:B103="N",ROW($A$1:A103)))-1),3)="nur", IF(RIGHT(INDIRECT("A"&MAX(IF($B$1:B103="N",ROW($A$1:A103)))-1),4)="PTF!", INDEX('PFB-Konstrukte'!$B$9:$J$40,SMALL(IF(NOT(ISERROR(FIND(IF(LEFT(A103,1)="0"," " & MID(A103,2,1) & ",",IF(MID(A103,3,1)=".",LEFT(A103,2),LEFT(A103,3))),'PFB-Konstrukte'!$J$9:$J$40))),ROW($1:$32)),3),1), INDEX('PFB-Konstrukte'!$B$9:$J$40,SMALL(IF(NOT(ISERROR(FIND(IF(LEFT(A103,1)="0"," " & MID(A103,2,1) & ",",IF(MID(A103,3,1)=".",LEFT(A103,2),LEFT(A103,3))),'PFB-Konstrukte'!$J$9:$J$40))),ROW($1:$32)),2),1)), IF(RIGHT(INDEX('PFB-Konstrukte'!$A$9:$J$40,SMALL(IF(NOT(ISERROR(FIND(IF(LEFT(A103,1)="0"," " & MID(A103,2,1) & ",",IF(MID(A103,3,1)=".",LEFT(A103,2),LEFT(A103,3))),'PFB-Konstrukte'!$J$9:$J$40))),ROW($1:$32)),1),1),7)="Führung", INDEX('PFB-Konstrukte'!$A$9:$J$40,SMALL(IF(NOT(ISERROR(FIND(IF(LEFT(A103,1)="0"," " & MID(A103,2,1) & ",",IF(MID(A103,3,1)=".",LEFT(A103,2),LEFT(A103,3))),'PFB-Konstrukte'!$J$9:$J$40))),ROW($1:$32)),1),1) & ", " & INDEX('PFB-Konstrukte'!$B$9:$J$40,SMALL(IF(NOT(ISERROR(FIND(IF(LEFT(A103,1)="0"," " & MID(A103,2,1) & ",",IF(MID(A103,3,1)=".",LEFT(A103,2),LEFT(A103,3))),'PFB-Konstrukte'!$J$9:$J$40))),ROW($1:$32)),2),1), INDEX('PFB-Konstrukte'!$A$9:$J$40,SMALL(IF(NOT(ISERROR(FIND(IF(LEFT(A103,1)="0"," " & MID(A103,2,1) & ",",IF(MID(A103,3,1)=".",LEFT(A103,2),LEFT(A103,3))),'PFB-Konstrukte'!$J$9:$J$40))),ROW($1:$32)),1),1))), INDEX('PFB-Konstrukte'!$A$9:$J$40,SMALL(IF(NOT(ISERROR(FIND(IF(LEFT(A103,1)="0"," " & MID(A103,2,1) & ",",IF(MID(A103,3,1)=".",LEFT(A103,2),LEFT(A103,3))),'PFB-Konstrukte'!$J$9:$J$40))),ROW($1:$32)),1),1)) -> Partizipative Führung, Distribution von Führung
A104: 70. Bei der Weiterentwicklung unserer Schule ziehen alle Mitglieder der Schulleitung an einem Strang. | B104: 21 | C104: 3.476190476 | D104: 0.1312766548 | E104: 0.6015852075 | F104: 0 | G104: 0.04761904762 | H104: 0.4285714286 | I104: 0.5238095238 | J104: =IF(INDIRECT("'PFB-Konstrukte'!A" & (SMALL(IF(NOT(ISERROR(FIND(IF(LEFT(A104,1)="0"," " & MID(A104,2,1) & ",",IF(MID(A104,3,1)=".",LEFT(A104,2),LEFT(A104,3))),'PFB-Konstrukte'!$J$9:$J$40))),ROW($9:$40)),1)+1))="", IF(LEFT(INDIRECT("A"&MAX(IF($B$1:B104="N",ROW($A$1:A104)))-1),3)="nur", IF(RIGHT(INDIRECT("A"&MAX(IF($B$1:B104="N",ROW($A$1:A104)))-1),4)="PTF!", INDEX('PFB-Konstrukte'!$B$9:$J$40,SMALL(IF(NOT(ISERROR(FIND(IF(LEFT(A104,1)="0"," " & MID(A104,2,1) & ",",IF(MID(A104,3,1)=".",LEFT(A104,2),LEFT(A104,3))),'PFB-Konstrukte'!$J$9:$J$40))),ROW($1:$32)),3),1), INDEX('PFB-Konstrukte'!$B$9:$J$40,SMALL(IF(NOT(ISERROR(FIND(IF(LEFT(A104,1)="0"," " & MID(A104,2,1) & ",",IF(MID(A104,3,1)=".",LEFT(A104,2),LEFT(A104,3))),'PFB-Konstrukte'!$J$9:$J$40))),ROW($1:$32)),2),1)), IF(RIGHT(INDEX('PFB-Konstrukte'!$A$9:$J$40,SMALL(IF(NOT(ISERROR(FIND(IF(LEFT(A104,1)="0"," " & MID(A104,2,1) & ",",IF(MID(A104,3,1)=".",LEFT(A104,2),LEFT(A104,3))),'PFB-Konstrukte'!$J$9:$J$40))),ROW($1:$32)),1),1),7)="Führung", INDEX('PFB-Konstrukte'!$A$9:$J$40,SMALL(IF(NOT(ISERROR(FIND(IF(LEFT(A104,1)="0"," " & MID(A104,2,1) & ",",IF(MID(A104,3,1)=".",LEFT(A104,2),LEFT(A104,3))),'PFB-Konstrukte'!$J$9:$J$40))),ROW($1:$32)),1),1) & ", " & INDEX('PFB-Konstrukte'!$B$9:$J$40,SMALL(IF(NOT(ISERROR(FIND(IF(LEFT(A104,1)="0"," " & MID(A104,2,1) & ",",IF(MID(A104,3,1)=".",LEFT(A104,2),LEFT(A104,3))),'PFB-Konstrukte'!$J$9:$J$40))),ROW($1:$32)),2),1), INDEX('PFB-Konstrukte'!$A$9:$J$40,SMALL(IF(NOT(ISERROR(FIND(IF(LEFT(A104,1)="0"," " & MID(A104,2,1) & ",",IF(MID(A104,3,1)=".",LEFT(A104,2),LEFT(A104,3))),'PFB-Konstrukte'!$J$9:$J$40))),ROW($1:$32)),1),1))), INDEX('PFB-Konstrukte'!$A$9:$J$40,SMALL(IF(NOT(ISERROR(FIND(IF(LEFT(A104,1)="0"," " & MID(A104,2,1) & ",",IF(MID(A104,3,1)=".",LEFT(A104,2),LEFT(A104,3))),'PFB-Konstrukte'!$J$9:$J$40))),ROW($1:$32)),1),1)) -> Partizipative Führung, Distribution von Führung
A105: 71. Es ist klar, wie die Aufgaben innerhalb der Schulleitung an unserer Schule verteilt sind. | B105: 22 | C105: 3.227272727 | D105: 0.1461159206 | E105: 0.6853444168 | F105: 0 | G105: 0.1363636364 | H105: 0.5 | I105: 0.3636363636 | J105: =IF(INDIRECT("'PFB-Konstrukte'!A" & (SMALL(IF(NOT(ISERROR(FIND(IF(LEFT(A105,1)="0"," " & MID(A105,2,1) & ",",IF(MID(A105,3,1)=".",LEFT(A105,2),LEFT(A105,3))),'PFB-Konstrukte'!$J$9:$J$40))),ROW($9:$40)),1)+1))="", IF(LEFT(INDIRECT("A"&MAX(IF($B$1:B105="N",ROW($A$1:A105)))-1),3)="nur", IF(RIGHT(INDIRECT("A"&MAX(IF($B$1:B105="N",ROW($A$1:A105)))-1),4)="PTF!", INDEX('PFB-Konstrukte'!$B$9:$J$40,SMALL(IF(NOT(ISERROR(FIND(IF(LEFT(A105,1)="0"," " & MID(A105,2,1) & ",",IF(MID(A105,3,1)=".",LEFT(A105,2),LEFT(A105,3))),'PFB-Konstrukte'!$J$9:$J$40))),ROW($1:$32)),3),1), INDEX('PFB-Konstrukte'!$B$9:$J$40,SMALL(IF(NOT(ISERROR(FIND(IF(LEFT(A105,1)="0"," " & MID(A105,2,1) & ",",IF(MID(A105,3,1)=".",LEFT(A105,2),LEFT(A105,3))),'PFB-Konstrukte'!$J$9:$J$40))),ROW($1:$32)),2),1)), IF(RIGHT(INDEX('PFB-Konstrukte'!$A$9:$J$40,SMALL(IF(NOT(ISERROR(FIND(IF(LEFT(A105,1)="0"," " & MID(A105,2,1) & ",",IF(MID(A105,3,1)=".",LEFT(A105,2),LEFT(A105,3))),'PFB-Konstrukte'!$J$9:$J$40))),ROW($1:$32)),1),1),7)="Führung", INDEX('PFB-Konstrukte'!$A$9:$J$40,SMALL(IF(NOT(ISERROR(FIND(IF(LEFT(A105,1)="0"," " & MID(A105,2,1) & ",",IF(MID(A105,3,1)=".",LEFT(A105,2),LEFT(A105,3))),'PFB-Konstrukte'!$J$9:$J$40))),ROW($1:$32)),1),1) & ", " & INDEX('PFB-Konstrukte'!$B$9:$J$40,SMALL(IF(NOT(ISERROR(FIND(IF(LEFT(A105,1)="0"," " & MID(A105,2,1) & ",",IF(MID(A105,3,1)=".",LEFT(A105,2),LEFT(A105,3))),'PFB-Konstrukte'!$J$9:$J$40))),ROW($1:$32)),2),1), INDEX('PFB-Konstrukte'!$A$9:$J$40,SMALL(IF(NOT(ISERROR(FIND(IF(LEFT(A105,1)="0"," " & MID(A105,2,1) & ",",IF(MID(A105,3,1)=".",LEFT(A105,2),LEFT(A105,3))),'PFB-Konstrukte'!$J$9:$J$40))),ROW($1:$32)),1),1))), INDEX('PFB-Konstrukte'!$A$9:$J$40,SMALL(IF(NOT(ISERROR(FIND(IF(LEFT(A105,1)="0"," " & MID(A105,2,1) & ",",IF(MID(A105,3,1)=".",LEFT(A105,2),LEFT(A105,3))),'PFB-Konstrukte'!$J$9:$J$40))),ROW($1:$32)),1),1)) -> Partizipative Führung, Distribution von Führung
A106: 72. Es ist klar, welche Entscheidungsspielräume die Mitglieder der Schulleitung an unserer Schule haben. | B106: 20 | C106: 3.35 | D106: 0.1666228012 | E106: 0.7451598204 | F106: 0 | G106: 0.15 | H106: 0.35 | I106: 0.5 | J106: =IF(INDIRECT("'PFB-Konstrukte'!A" & (SMALL(IF(NOT(ISERROR(FIND(IF(LEFT(A106,1)="0"," " & MID(A106,2,1) & ",",IF(MID(A106,3,1)=".",LEFT(A106,2),LEFT(A106,3))),'PFB-Konstrukte'!$J$9:$J$40))),ROW($9:$40)),1)+1))="", IF(LEFT(INDIRECT("A"&MAX(IF($B$1:B106="N",ROW($A$1:A106)))-1),3)="nur", IF(RIGHT(INDIRECT("A"&MAX(IF($B$1:B106="N",ROW($A$1:A106)))-1),4)="PTF!", INDEX('PFB-Konstrukte'!$B$9:$J$40,SMALL(IF(NOT(ISERROR(FIND(IF(LEFT(A106,1)="0"," " & MID(A106,2,1) & ",",IF(MID(A106,3,1)=".",LEFT(A106,2),LEFT(A106,3))),'PFB-Konstrukte'!$J$9:$J$40))),ROW($1:$32)),3),1), INDEX('PFB-Konstrukte'!$B$9:$J$40,SMALL(IF(NOT(ISERROR(FIND(IF(LEFT(A106,1)="0"," " & MID(A106,2,1) & ",",IF(MID(A106,3,1)=".",LEFT(A106,2),LEFT(A106,3))),'PFB-Konstrukte'!$J$9:$J$40))),ROW($1:$32)),2),1)), IF(RIGHT(INDEX('PFB-Konstrukte'!$A$9:$J$40,SMALL(IF(NOT(ISERROR(FIND(IF(LEFT(A106,1)="0"," " & MID(A106,2,1) & ",",IF(MID(A106,3,1)=".",LEFT(A106,2),LEFT(A106,3))),'PFB-Konstrukte'!$J$9:$J$40))),ROW($1:$32)),1),1),7)="Führung", INDEX('PFB-Konstrukte'!$A$9:$J$40,SMALL(IF(NOT(ISERROR(FIND(IF(LEFT(A106,1)="0"," " & MID(A106,2,1) & ",",IF(MID(A106,3,1)=".",LEFT(A106,2),LEFT(A106,3))),'PFB-Konstrukte'!$J$9:$J$40))),ROW($1:$32)),1),1) & ", " & INDEX('PFB-Konstrukte'!$B$9:$J$40,SMALL(IF(NOT(ISERROR(FIND(IF(LEFT(A106,1)="0"," " & MID(A106,2,1) & ",",IF(MID(A106,3,1)=".",LEFT(A106,2),LEFT(A106,3))),'PFB-Konstrukte'!$J$9:$J$40))),ROW($1:$32)),2),1), INDEX('PFB-Konstrukte'!$A$9:$J$40,SMALL(IF(NOT(ISERROR(FIND(IF(LEFT(A106,1)="0"," " & MID(A106,2,1) & ",",IF(MID(A106,3,1)=".",LEFT(A106,2),LEFT(A106,3))),'PFB-Konstrukte'!$J$9:$J$40))),ROW($1:$32)),1),1))), INDEX('PFB-Konstrukte'!$A$9:$J$40,SMALL(IF(NOT(ISERROR(FIND(IF(LEFT(A106,1)="0"," " & MID(A106,2,1) & ",",IF(MID(A106,3,1)=".",LEFT(A106,2),LEFT(A106,3))),'PFB-Konstrukte'!$J$9:$J$40))),ROW($1:$32)),1),1)) -> Partizipative Führung, Distribution von Führung
A107: 73. Die Schulleitung behält den Überblick über die Arbeit der verschiedenen Funktionsgruppen. | B107: 21 | C107: 3.428571429 | D107: 0.1304101327 | E107: 0.5976143047 | F107: 0 | G107: 0.04761904762 | H107: 0.4761904762 | I107: 0.4761904762 | J107: =IF(INDIRECT("'PFB-Konstrukte'!A" & (SMALL(IF(NOT(ISERROR(FIND(IF(LEFT(A107,1)="0"," " & MID(A107,2,1) & ",",IF(MID(A107,3,1)=".",LEFT(A107,2),LEFT(A107,3))),'PFB-Konstrukte'!$J$9:$J$40))),ROW($9:$40)),1)+1))="", IF(LEFT(INDIRECT("A"&MAX(IF($B$1:B107="N",ROW($A$1:A107)))-1),3)="nur", IF(RIGHT(INDIRECT("A"&MAX(IF($B$1:B107="N",ROW($A$1:A107)))-1),4)="PTF!", INDEX('PFB-Konstrukte'!$B$9:$J$40,SMALL(IF(NOT(ISERROR(FIND(IF(LEFT(A107,1)="0"," " & MID(A107,2,1) & ",",IF(MID(A107,3,1)=".",LEFT(A107,2),LEFT(A107,3))),'PFB-Konstrukte'!$J$9:$J$40))),ROW($1:$32)),3),1), INDEX('PFB-Konstrukte'!$B$9:$J$40,SMALL(IF(NOT(ISERROR(FIND(IF(LEFT(A107,1)="0"," " & MID(A107,2,1) & ",",IF(MID(A107,3,1)=".",LEFT(A107,2),LEFT(A107,3))),'PFB-Konstrukte'!$J$9:$J$40))),ROW($1:$32)),2),1)), IF(RIGHT(INDEX('PFB-Konstrukte'!$A$9:$J$40,SMALL(IF(NOT(ISERROR(FIND(IF(LEFT(A107,1)="0"," " & MID(A107,2,1) & ",",IF(MID(A107,3,1)=".",LEFT(A107,2),LEFT(A107,3))),'PFB-Konstrukte'!$J$9:$J$40))),ROW($1:$32)),1),1),7)="Führung", INDEX('PFB-Konstrukte'!$A$9:$J$40,SMALL(IF(NOT(ISERROR(FIND(IF(LEFT(A107,1)="0"," " & MID(A107,2,1) & ",",IF(MID(A107,3,1)=".",LEFT(A107,2),LEFT(A107,3))),'PFB-Konstrukte'!$J$9:$J$40))),ROW($1:$32)),1),1) & ", " & INDEX('PFB-Konstrukte'!$B$9:$J$40,SMALL(IF(NOT(ISERROR(FIND(IF(LEFT(A107,1)="0"," " & MID(A107,2,1) & ",",IF(MID(A107,3,1)=".",LEFT(A107,2),LEFT(A107,3))),'PFB-Konstrukte'!$J$9:$J$40))),ROW($1:$32)),2),1), INDEX('PFB-Konstrukte'!$A$9:$J$40,SMALL(IF(NOT(ISERROR(FIND(IF(LEFT(A107,1)="0"," " & MID(A107,2,1) & ",",IF(MID(A107,3,1)=".",LEFT(A107,2),LEFT(A107,3))),'PFB-Konstrukte'!$J$9:$J$40))),ROW($1:$32)),1),1))), INDEX('PFB-Konstrukte'!$A$9:$J$40,SMALL(IF(NOT(ISERROR(FIND(IF(LEFT(A107,1)="0"," " & MID(A107,2,1) & ",",IF(MID(A107,3,1)=".",LEFT(A107,2),LEFT(A107,3))),'PFB-Konstrukte'!$J$9:$J$40))),ROW($1:$32)),1),1)) -> Partizipative Führung, Delegation von Führung
A108: 74. Der Schulleitung gelingt es, die Arbeit von Funktionsgruppen oder Mitgliedern des Kollegiums strukturiert zusammenzuführen. | B108: 22 | C108: 3.272727273 | D108: 0.1345477945 | E108: 0.6310850959 | F108: 0 | G108: 0.09090909091 | H108: 0.5454545455 | I108: 0.3636363636 | J108: =IF(INDIRECT("'PFB-Konstrukte'!A" & (SMALL(IF(NOT(ISERROR(FIND(IF(LEFT(A108,1)="0"," " & MID(A108,2,1) & ",",IF(MID(A108,3,1)=".",LEFT(A108,2),LEFT(A108,3))),'PFB-Konstrukte'!$J$9:$J$40))),ROW($9:$40)),1)+1))="", IF(LEFT(INDIRECT("A"&MAX(IF($B$1:B108="N",ROW($A$1:A108)))-1),3)="nur", IF(RIGHT(INDIRECT("A"&MAX(IF($B$1:B108="N",ROW($A$1:A108)))-1),4)="PTF!", INDEX('PFB-Konstrukte'!$B$9:$J$40,SMALL(IF(NOT(ISERROR(FIND(IF(LEFT(A108,1)="0"," " & MID(A108,2,1) & ",",IF(MID(A108,3,1)=".",LEFT(A108,2),LEFT(A108,3))),'PFB-Konstrukte'!$J$9:$J$40))),ROW($1:$32)),3),1), INDEX('PFB-Konstrukte'!$B$9:$J$40,SMALL(IF(NOT(ISERROR(FIND(IF(LEFT(A108,1)="0"," " & MID(A108,2,1) & ",",IF(MID(A108,3,1)=".",LEFT(A108,2),LEFT(A108,3))),'PFB-Konstrukte'!$J$9:$J$40))),ROW($1:$32)),2),1)), IF(RIGHT(INDEX('PFB-Konstrukte'!$A$9:$J$40,SMALL(IF(NOT(ISERROR(FIND(IF(LEFT(A108,1)="0"," " & MID(A108,2,1) & ",",IF(MID(A108,3,1)=".",LEFT(A108,2),LEFT(A108,3))),'PFB-Konstrukte'!$J$9:$J$40))),ROW($1:$32)),1),1),7)="Führung", INDEX('PFB-Konstrukte'!$A$9:$J$40,SMALL(IF(NOT(ISERROR(FIND(IF(LEFT(A108,1)="0"," " & MID(A108,2,1) & ",",IF(MID(A108,3,1)=".",LEFT(A108,2),LEFT(A108,3))),'PFB-Konstrukte'!$J$9:$J$40))),ROW($1:$32)),1),1) & ", " & INDEX('PFB-Konstrukte'!$B$9:$J$40,SMALL(IF(NOT(ISERROR(FIND(IF(LEFT(A108,1)="0"," " & MID(A108,2,1) & ",",IF(MID(A108,3,1)=".",LEFT(A108,2),LEFT(A108,3))),'PFB-Konstrukte'!$J$9:$J$40))),ROW($1:$32)),2),1), INDEX('PFB-Konstrukte'!$A$9:$J$40,SMALL(IF(NOT(ISERROR(FIND(IF(LEFT(A108,1)="0"," " & MID(A108,2,1) & ",",IF(MID(A108,3,1)=".",LEFT(A108,2),LEFT(A108,3))),'PFB-Konstrukte'!$J$9:$J$40))),ROW($1:$32)),1),1))), INDEX('PFB-Konstrukte'!$A$9:$J$40,SMALL(IF(NOT(ISERROR(FIND(IF(LEFT(A108,1)="0"," " & MID(A108,2,1) & ",",IF(MID(A108,3,1)=".",LEFT(A108,2),LEFT(A108,3))),'PFB-Konstrukte'!$J$9:$J$40))),ROW($1:$32)),1),1)) -> Partizipative Führung, Delegation von Führung
A109: 75. Die Schulleitung beteiligt das Kollegium an der Erarbeitung der Fortbildungsplanung für das Schuljahr. | B109: 20 | C109: 3.25 | D109: 0.1758438302 | E109: 0.7863975157 | F109: 0.05 | G109: 0.05 | H109: 0.5 | I109: 0.4 | J109: =IF(INDIRECT("'PFB-Konstrukte'!A" & (SMALL(IF(NOT(ISERROR(FIND(IF(LEFT(A109,1)="0"," " & MID(A109,2,1) & ",",IF(MID(A109,3,1)=".",LEFT(A109,2),LEFT(A109,3))),'PFB-Konstrukte'!$J$9:$J$40))),ROW($9:$40)),1)+1))="", IF(LEFT(INDIRECT("A"&MAX(IF($B$1:B109="N",ROW($A$1:A109)))-1),3)="nur", IF(RIGHT(INDIRECT("A"&MAX(IF($B$1:B109="N",ROW($A$1:A109)))-1),4)="PTF!", INDEX('PFB-Konstrukte'!$B$9:$J$40,SMALL(IF(NOT(ISERROR(FIND(IF(LEFT(A109,1)="0"," " & MID(A109,2,1) & ",",IF(MID(A109,3,1)=".",LEFT(A109,2),LEFT(A109,3))),'PFB-Konstrukte'!$J$9:$J$40))),ROW($1:$32)),3),1), INDEX('PFB-Konstrukte'!$B$9:$J$40,SMALL(IF(NOT(ISERROR(FIND(IF(LEFT(A109,1)="0"," " & MID(A109,2,1) & ",",IF(MID(A109,3,1)=".",LEFT(A109,2),LEFT(A109,3))),'PFB-Konstrukte'!$J$9:$J$40))),ROW($1:$32)),2),1)), IF(RIGHT(INDEX('PFB-Konstrukte'!$A$9:$J$40,SMALL(IF(NOT(ISERROR(FIND(IF(LEFT(A109,1)="0"," " & MID(A109,2,1) & ",",IF(MID(A109,3,1)=".",LEFT(A109,2),LEFT(A109,3))),'PFB-Konstrukte'!$J$9:$J$40))),ROW($1:$32)),1),1),7)="Führung", INDEX('PFB-Konstrukte'!$A$9:$J$40,SMALL(IF(NOT(ISERROR(FIND(IF(LEFT(A109,1)="0"," " & MID(A109,2,1) & ",",IF(MID(A109,3,1)=".",LEFT(A109,2),LEFT(A109,3))),'PFB-Konstrukte'!$J$9:$J$40))),ROW($1:$32)),1),1) & ", " & INDEX('PFB-Konstrukte'!$B$9:$J$40,SMALL(IF(NOT(ISERROR(FIND(IF(LEFT(A109,1)="0"," " & MID(A109,2,1) & ",",IF(MID(A109,3,1)=".",LEFT(A109,2),LEFT(A109,3))),'PFB-Konstrukte'!$J$9:$J$40))),ROW($1:$32)),2),1), INDEX('PFB-Konstrukte'!$A$9:$J$40,SMALL(IF(NOT(ISERROR(FIND(IF(LEFT(A109,1)="0"," " & MID(A109,2,1) & ",",IF(MID(A109,3,1)=".",LEFT(A109,2),LEFT(A109,3))),'PFB-Konstrukte'!$J$9:$J$40))),ROW($1:$32)),1),1))), INDEX('PFB-Konstrukte'!$A$9:$J$40,SMALL(IF(NOT(ISERROR(FIND(IF(LEFT(A109,1)="0"," " & MID(A109,2,1) & ",",IF(MID(A109,3,1)=".",LEFT(A109,2),LEFT(A109,3))),'PFB-Konstrukte'!$J$9:$J$40))),ROW($1:$32)),1),1)) -> Partizipative Führung, Delegation von Führung
A110: 76. Die Schulleitung macht die Zuständigkeiten im Kollegium transparent. | B110: 23 | C110: 3.217391304 | D110: 0.1250536919 | E110: 0.5997364375 | F110: 0 | G110: 0.08695652174 | H110: 0.6086956522 | I110: 0.3043478261 | J110: =IF(INDIRECT("'PFB-Konstrukte'!A" & (SMALL(IF(NOT(ISERROR(FIND(IF(LEFT(A110,1)="0"," " & MID(A110,2,1) & ",",IF(MID(A110,3,1)=".",LEFT(A110,2),LEFT(A110,3))),'PFB-Konstrukte'!$J$9:$J$40))),ROW($9:$40)),1)+1))="", IF(LEFT(INDIRECT("A"&MAX(IF($B$1:B110="N",ROW($A$1:A110)))-1),3)="nur", IF(RIGHT(INDIRECT("A"&MAX(IF($B$1:B110="N",ROW($A$1:A110)))-1),4)="PTF!", INDEX('PFB-Konstrukte'!$B$9:$J$40,SMALL(IF(NOT(ISERROR(FIND(IF(LEFT(A110,1)="0"," " & MID(A110,2,1) & ",",IF(MID(A110,3,1)=".",LEFT(A110,2),LEFT(A110,3))),'PFB-Konstrukte'!$J$9:$J$40))),ROW($1:$32)),3),1), INDEX('PFB-Konstrukte'!$B$9:$J$40,SMALL(IF(NOT(ISERROR(FIND(IF(LEFT(A110,1)="0"," " & MID(A110,2,1) & ",",IF(MID(A110,3,1)=".",LEFT(A110,2),LEFT(A110,3))),'PFB-Konstrukte'!$J$9:$J$40))),ROW($1:$32)),2),1)), IF(RIGHT(INDEX('PFB-Konstrukte'!$A$9:$J$40,SMALL(IF(NOT(ISERROR(FIND(IF(LEFT(A110,1)="0"," " & MID(A110,2,1) & ",",IF(MID(A110,3,1)=".",LEFT(A110,2),LEFT(A110,3))),'PFB-Konstrukte'!$J$9:$J$40))),ROW($1:$32)),1),1),7)="Führung", INDEX('PFB-Konstrukte'!$A$9:$J$40,SMALL(IF(NOT(ISERROR(FIND(IF(LEFT(A110,1)="0"," " & MID(A110,2,1) & ",",IF(MID(A110,3,1)=".",LEFT(A110,2),LEFT(A110,3))),'PFB-Konstrukte'!$J$9:$J$40))),ROW($1:$32)),1),1) & ", " & INDEX('PFB-Konstrukte'!$B$9:$J$40,SMALL(IF(NOT(ISERROR(FIND(IF(LEFT(A110,1)="0"," " & MID(A110,2,1) & ",",IF(MID(A110,3,1)=".",LEFT(A110,2),LEFT(A110,3))),'PFB-Konstrukte'!$J$9:$J$40))),ROW($1:$32)),2),1), INDEX('PFB-Konstrukte'!$A$9:$J$40,SMALL(IF(NOT(ISERROR(FIND(IF(LEFT(A110,1)="0"," " & MID(A110,2,1) & ",",IF(MID(A110,3,1)=".",LEFT(A110,2),LEFT(A110,3))),'PFB-Konstrukte'!$J$9:$J$40))),ROW($1:$32)),1),1))), INDEX('PFB-Konstrukte'!$A$9:$J$40,SMALL(IF(NOT(ISERROR(FIND(IF(LEFT(A110,1)="0"," " & MID(A110,2,1) & ",",IF(MID(A110,3,1)=".",LEFT(A110,2),LEFT(A110,3))),'PFB-Konstrukte'!$J$9:$J$40))),ROW($1:$32)),1),1)) -> Partizipative Führung, Delegation von Führung
B112: N | C112: MW | D112: SE | E112: SD | F112: trifft nicht zu | G112: trifft eher nicht zu | H112: trifft eher zu | I112: trifft voll zu | J112: Zuordnung zum Konstrukt
A113: 77. Die Schulleitung stellt sicher, dass die Fortbildungsaktivitäten der Pädagoginnen und Pädagogen auf die curricularen und pädagogischen Ziele der Schule abgestimmt sind. | B113: 16 | C113: 3.0625 | D113: 0.1929756029 | E113: 0.7719024118 | F113: 0.0625 | G113: 0.0625 | H113: 0.625 | I113: 0.25 | J113: =IF(INDIRECT("'PFB-Konstrukte'!A" & (SMALL(IF(NOT(ISERROR(FIND(IF(LEFT(A113,1)="0"," " & MID(A113,2,1) & ",",IF(MID(A113,3,1)=".",LEFT(A113,2),LEFT(A113,3))),'PFB-Konstrukte'!$J$9:$J$40))),ROW($9:$40)),1)+1))="", IF(LEFT(INDIRECT("A"&MAX(IF($B$1:B113="N",ROW($A$1:A113)))-1),3)="nur", IF(RIGHT(INDIRECT("A"&MAX(IF($B$1:B113="N",ROW($A$1:A113)))-1),4)="PTF!", INDEX('PFB-Konstrukte'!$B$9:$J$40,SMALL(IF(NOT(ISERROR(FIND(IF(LEFT(A113,1)="0"," " & MID(A113,2,1) & ",",IF(MID(A113,3,1)=".",LEFT(A113,2),LEFT(A113,3))),'PFB-Konstrukte'!$J$9:$J$40))),ROW($1:$32)),3),1), INDEX('PFB-Konstrukte'!$B$9:$J$40,SMALL(IF(NOT(ISERROR(FIND(IF(LEFT(A113,1)="0"," " & MID(A113,2,1) & ",",IF(MID(A113,3,1)=".",LEFT(A113,2),LEFT(A113,3))),'PFB-Konstrukte'!$J$9:$J$40))),ROW($1:$32)),2),1)), IF(RIGHT(INDEX('PFB-Konstrukte'!$A$9:$J$40,SMALL(IF(NOT(ISERROR(FIND(IF(LEFT(A113,1)="0"," " & MID(A113,2,1) & ",",IF(MID(A113,3,1)=".",LEFT(A113,2),LEFT(A113,3))),'PFB-Konstrukte'!$J$9:$J$40))),ROW($1:$32)),1),1),7)="Führung", INDEX('PFB-Konstrukte'!$A$9:$J$40,SMALL(IF(NOT(ISERROR(FIND(IF(LEFT(A113,1)="0"," " & MID(A113,2,1) & ",",IF(MID(A113,3,1)=".",LEFT(A113,2),LEFT(A113,3))),'PFB-Konstrukte'!$J$9:$J$40))),ROW($1:$32)),1),1) & ", " & INDEX('PFB-Konstrukte'!$B$9:$J$40,SMALL(IF(NOT(ISERROR(FIND(IF(LEFT(A113,1)="0"," " & MID(A113,2,1) & ",",IF(MID(A113,3,1)=".",LEFT(A113,2),LEFT(A113,3))),'PFB-Konstrukte'!$J$9:$J$40))),ROW($1:$32)),2),1), INDEX('PFB-Konstrukte'!$A$9:$J$40,SMALL(IF(NOT(ISERROR(FIND(IF(LEFT(A113,1)="0"," " & MID(A113,2,1) & ",",IF(MID(A113,3,1)=".",LEFT(A113,2),LEFT(A113,3))),'PFB-Konstrukte'!$J$9:$J$40))),ROW($1:$32)),1),1))), INDEX('PFB-Konstrukte'!$A$9:$J$40,SMALL(IF(NOT(ISERROR(FIND(IF(LEFT(A113,1)="0"," " & MID(A113,2,1) & ",",IF(MID(A113,3,1)=".",LEFT(A113,2),LEFT(A113,3))),'PFB-Konstrukte'!$J$9:$J$40))),ROW($1:$32)),1),1)) -> Instruktionale Führung, Schulziel-Management
A114: 78. Die Schulleitung sorgt für Klarheit bezüglich der internen Verantwortung für die Entwicklung des schulinternen Curriculums. | B114: 17 | C114: 3.176470588 | D114: 0.1962009421 | E114: 0.8089572082 | F114: 0.05882352941 | G114: 0.05882352941 | H114: 0.5294117647 | I114: 0.3529411765 | J114: =IF(INDIRECT("'PFB-Konstrukte'!A" & (SMALL(IF(NOT(ISERROR(FIND(IF(LEFT(A114,1)="0"," " & MID(A114,2,1) & ",",IF(MID(A114,3,1)=".",LEFT(A114,2),LEFT(A114,3))),'PFB-Konstrukte'!$J$9:$J$40))),ROW($9:$40)),1)+1))="", IF(LEFT(INDIRECT("A"&MAX(IF($B$1:B114="N",ROW($A$1:A114)))-1),3)="nur", IF(RIGHT(INDIRECT("A"&MAX(IF($B$1:B114="N",ROW($A$1:A114)))-1),4)="PTF!", INDEX('PFB-Konstrukte'!$B$9:$J$40,SMALL(IF(NOT(ISERROR(FIND(IF(LEFT(A114,1)="0"," " & MID(A114,2,1) & ",",IF(MID(A114,3,1)=".",LEFT(A114,2),LEFT(A114,3))),'PFB-Konstrukte'!$J$9:$J$40))),ROW($1:$32)),3),1), INDEX('PFB-Konstrukte'!$B$9:$J$40,SMALL(IF(NOT(ISERROR(FIND(IF(LEFT(A114,1)="0"," " & MID(A114,2,1) & ",",IF(MID(A114,3,1)=".",LEFT(A114,2),LEFT(A114,3))),'PFB-Konstrukte'!$J$9:$J$40))),ROW($1:$32)),2),1)), IF(RIGHT(INDEX('PFB-Konstrukte'!$A$9:$J$40,SMALL(IF(NOT(ISERROR(FIND(IF(LEFT(A114,1)="0"," " & MID(A114,2,1) & ",",IF(MID(A114,3,1)=".",LEFT(A114,2),LEFT(A114,3))),'PFB-Konstrukte'!$J$9:$J$40))),ROW($1:$32)),1),1),7)="Führung", INDEX('PFB-Konstrukte'!$A$9:$J$40,SMALL(IF(NOT(ISERROR(FIND(IF(LEFT(A114,1)="0"," " & MID(A114,2,1) & ",",IF(MID(A114,3,1)=".",LEFT(A114,2),LEFT(A114,3))),'PFB-Konstrukte'!$J$9:$J$40))),ROW($1:$32)),1),1) & ", " & INDEX('PFB-Konstrukte'!$B$9:$J$40,SMALL(IF(NOT(ISERROR(FIND(IF(LEFT(A114,1)="0"," " & MID(A114,2,1) & ",",IF(MID(A114,3,1)=".",LEFT(A114,2),LEFT(A114,3))),'PFB-Konstrukte'!$J$9:$J$40))),ROW($1:$32)),2),1), INDEX('PFB-Konstrukte'!$A$9:$J$40,SMALL(IF(NOT(ISERROR(FIND(IF(LEFT(A114,1)="0"," " & MID(A114,2,1) & ",",IF(MID(A114,3,1)=".",LEFT(A114,2),LEFT(A114,3))),'PFB-Konstrukte'!$J$9:$J$40))),ROW($1:$32)),1),1))), INDEX('PFB-Konstrukte'!$A$9:$J$40,SMALL(IF(NOT(ISERROR(FIND(IF(LEFT(A114,1)="0"," " & MID(A114,2,1) & ",",IF(MID(A114,3,1)=".",LEFT(A114,2),LEFT(A114,3))),'PFB-Konstrukte'!$J$9:$J$40))),ROW($1:$32)),1),1)) -> Instruktionale Führung, Schulziel-Management
A115: 79. Die Schulleitung stellt sicher, dass Pädagoginnen und Pädagogen über die Möglichkeiten informiert sind, ihr Wissen und ihre Fähigkeiten auf den neuesten Stand zu bringen. | B115: 22 | C115: 3.045454545 | D115: 0.1539842114 | E115: 0.7222499717 | F115: 0.04545454545 | G115: 0.09090909091 | H115: 0.6363636364 | I115: 0.2272727273 | J115: =IF(INDIRECT("'PFB-Konstrukte'!A" & (SMALL(IF(NOT(ISERROR(FIND(IF(LEFT(A115,1)="0"," " & MID(A115,2,1) & ",",IF(MID(A115,3,1)=".",LEFT(A115,2),LEFT(A115,3))),'PFB-Konstrukte'!$J$9:$J$40))),ROW($9:$40)),1)+1))="", IF(LEFT(INDIRECT("A"&MAX(IF($B$1:B115="N",ROW($A$1:A115)))-1),3)="nur", IF(RIGHT(INDIRECT("A"&MAX(IF($B$1:B115="N",ROW($A$1:A115)))-1),4)="PTF!", INDEX('PFB-Konstrukte'!$B$9:$J$40,SMALL(IF(NOT(ISERROR(FIND(IF(LEFT(A115,1)="0"," " & MID(A115,2,1) & ",",IF(MID(A115,3,1)=".",LEFT(A115,2),LEFT(A115,3))),'PFB-Konstrukte'!$J$9:$J$40))),ROW($1:$32)),3),1), INDEX('PFB-Konstrukte'!$B$9:$J$40,SMALL(IF(NOT(ISERROR(FIND(IF(LEFT(A115,1)="0"," " & MID(A115,2,1) & ",",IF(MID(A115,3,1)=".",LEFT(A115,2),LEFT(A115,3))),'PFB-Konstrukte'!$J$9:$J$40))),ROW($1:$32)),2),1)), IF(RIGHT(INDEX('PFB-Konstrukte'!$A$9:$J$40,SMALL(IF(NOT(ISERROR(FIND(IF(LEFT(A115,1)="0"," " & MID(A115,2,1) & ",",IF(MID(A115,3,1)=".",LEFT(A115,2),LEFT(A115,3))),'PFB-Konstrukte'!$J$9:$J$40))),ROW($1:$32)),1),1),7)="Führung", INDEX('PFB-Konstrukte'!$A$9:$J$40,SMALL(IF(NOT(ISERROR(FIND(IF(LEFT(A115,1)="0"," " & MID(A115,2,1) & ",",IF(MID(A115,3,1)=".",LEFT(A115,2),LEFT(A115,3))),'PFB-Konstrukte'!$J$9:$J$40))),ROW($1:$32)),1),1) & ", " & INDEX('PFB-Konstrukte'!$B$9:$J$40,SMALL(IF(NOT(ISERROR(FIND(IF(LEFT(A115,1)="0"," " & MID(A115,2,1) & ",",IF(MID(A115,3,1)=".",LEFT(A115,2),LEFT(A115,3))),'PFB-Konstrukte'!$J$9:$J$40))),ROW($1:$32)),2),1), INDEX('PFB-Konstrukte'!$A$9:$J$40,SMALL(IF(NOT(ISERROR(FIND(IF(LEFT(A115,1)="0"," " & MID(A115,2,1) & ",",IF(MID(A115,3,1)=".",LEFT(A115,2),LEFT(A115,3))),'PFB-Konstrukte'!$J$9:$J$40))),ROW($1:$32)),1),1))), INDEX('PFB-Konstrukte'!$A$9:$J$40,SMALL(IF(NOT(ISERROR(FIND(IF(LEFT(A115,1)="0"," " & MID(A115,2,1) & ",",IF(MID(A115,3,1)=".",LEFT(A115,2),LEFT(A115,3))),'PFB-Konstrukte'!$J$9:$J$40))),ROW($1:$32)),1),1)) -> Instruktionale Führung, Anleitungsmanagement
A116: 80. Wenn eine Pädagogin/ein Pädagoge Probleme in einer Klasse hat, ergreift die Schulleitung die Initiative, um darüber zu sprechen. | B116: 20 | C116: 3.15 | D116: 0.1817314386 | E116: 0.8127277009 | F116: 0 | G116: 0.25 | H116: 0.35 | I116: 0.4 | J116: =IF(INDIRECT("'PFB-Konstrukte'!A" & (SMALL(IF(NOT(ISERROR(FIND(IF(LEFT(A116,1)="0"," " & MID(A116,2,1) & ",",IF(MID(A116,3,1)=".",LEFT(A116,2),LEFT(A116,3))),'PFB-Konstrukte'!$J$9:$J$40))),ROW($9:$40)),1)+1))="", IF(LEFT(INDIRECT("A"&MAX(IF($B$1:B116="N",ROW($A$1:A116)))-1),3)="nur", IF(RIGHT(INDIRECT("A"&MAX(IF($B$1:B116="N",ROW($A$1:A116)))-1),4)="PTF!", INDEX('PFB-Konstrukte'!$B$9:$J$40,SMALL(IF(NOT(ISERROR(FIND(IF(LEFT(A116,1)="0"," " & MID(A116,2,1) & ",",IF(MID(A116,3,1)=".",LEFT(A116,2),LEFT(A116,3))),'PFB-Konstrukte'!$J$9:$J$40))),ROW($1:$32)),3),1), INDEX('PFB-Konstrukte'!$B$9:$J$40,SMALL(IF(NOT(ISERROR(FIND(IF(LEFT(A116,1)="0"," " & MID(A116,2,1) & ",",IF(MID(A116,3,1)=".",LEFT(A116,2),LEFT(A116,3))),'PFB-Konstrukte'!$J$9:$J$40))),ROW($1:$32)),2),1)), IF(RIGHT(INDEX('PFB-Konstrukte'!$A$9:$J$40,SMALL(IF(NOT(ISERROR(FIND(IF(LEFT(A116,1)="0"," " & MID(A116,2,1) & ",",IF(MID(A116,3,1)=".",LEFT(A116,2),LEFT(A116,3))),'PFB-Konstrukte'!$J$9:$J$40))),ROW($1:$32)),1),1),7)="Führung", INDEX('PFB-Konstrukte'!$A$9:$J$40,SMALL(IF(NOT(ISERROR(FIND(IF(LEFT(A116,1)="0"," " & MID(A116,2,1) & ",",IF(MID(A116,3,1)=".",LEFT(A116,2),LEFT(A116,3))),'PFB-Konstrukte'!$J$9:$J$40))),ROW($1:$32)),1),1) & ", " & INDEX('PFB-Konstrukte'!$B$9:$J$40,SMALL(IF(NOT(ISERROR(FIND(IF(LEFT(A116,1)="0"," " & MID(A116,2,1) & ",",IF(MID(A116,3,1)=".",LEFT(A116,2),LEFT(A116,3))),'PFB-Konstrukte'!$J$9:$J$40))),ROW($1:$32)),2),1), INDEX('PFB-Konstrukte'!$A$9:$J$40,SMALL(IF(NOT(ISERROR(FIND(IF(LEFT(A116,1)="0"," " & MID(A116,2,1) & ",",IF(MID(A116,3,1)=".",LEFT(A116,2),LEFT(A116,3))),'PFB-Konstrukte'!$J$9:$J$40))),ROW($1:$32)),1),1))), INDEX('PFB-Konstrukte'!$A$9:$J$40,SMALL(IF(NOT(ISERROR(FIND(IF(LEFT(A116,1)="0"," " & MID(A116,2,1) & ",",IF(MID(A116,3,1)=".",LEFT(A116,2),LEFT(A116,3))),'PFB-Konstrukte'!$J$9:$J$40))),ROW($1:$32)),1),1)) -> Instruktionale Führung, Anleitungsmanagement
A117: 81. Die Schulleitung stellt sicher, dass die Arbeit der Pädagoginnen und Pädagogen mit den curricularen und pädagogischen Zielen der Schule übereinstimmt. | B117: 19 | C117: 3 | D117: 0.1529438226 | E117: 0.6666666667 | F117: 0 | G117: 0.2105263158 | H117: 0.5789473684 | I117: 0.2105263158 | J117: =IF(INDIRECT("'PFB-Konstrukte'!A" & (SMALL(IF(NOT(ISERROR(FIND(IF(LEFT(A117,1)="0"," " & MID(A117,2,1) & ",",IF(MID(A117,3,1)=".",LEFT(A117,2),LEFT(A117,3))),'PFB-Konstrukte'!$J$9:$J$40))),ROW($9:$40)),1)+1))="", IF(LEFT(INDIRECT("A"&MAX(IF($B$1:B117="N",ROW($A$1:A117)))-1),3)="nur", IF(RIGHT(INDIRECT("A"&MAX(IF($B$1:B117="N",ROW($A$1:A117)))-1),4)="PTF!", INDEX('PFB-Konstrukte'!$B$9:$J$40,SMALL(IF(NOT(ISERROR(FIND(IF(LEFT(A117,1)="0"," " & MID(A117,2,1) & ",",IF(MID(A117,3,1)=".",LEFT(A117,2),LEFT(A117,3))),'PFB-Konstrukte'!$J$9:$J$40))),ROW($1:$32)),3),1), INDEX('PFB-Konstrukte'!$B$9:$J$40,SMALL(IF(NOT(ISERROR(FIND(IF(LEFT(A117,1)="0"," " & MID(A117,2,1) & ",",IF(MID(A117,3,1)=".",LEFT(A117,2),LEFT(A117,3))),'PFB-Konstrukte'!$J$9:$J$40))),ROW($1:$32)),2),1)), IF(RIGHT(INDEX('PFB-Konstrukte'!$A$9:$J$40,SMALL(IF(NOT(ISERROR(FIND(IF(LEFT(A117,1)="0"," " & MID(A117,2,1) & ",",IF(MID(A117,3,1)=".",LEFT(A117,2),LEFT(A117,3))),'PFB-Konstrukte'!$J$9:$J$40))),ROW($1:$32)),1),1),7)="Führung", INDEX('PFB-Konstrukte'!$A$9:$J$40,SMALL(IF(NOT(ISERROR(FIND(IF(LEFT(A117,1)="0"," " & MID(A117,2,1) & ",",IF(MID(A117,3,1)=".",LEFT(A117,2),LEFT(A117,3))),'PFB-Konstrukte'!$J$9:$J$40))),ROW($1:$32)),1),1) & ", " & INDEX('PFB-Konstrukte'!$B$9:$J$40,SMALL(IF(NOT(ISERROR(FIND(IF(LEFT(A117,1)="0"," " & MID(A117,2,1) & ",",IF(MID(A117,3,1)=".",LEFT(A117,2),LEFT(A117,3))),'PFB-Konstrukte'!$J$9:$J$40))),ROW($1:$32)),2),1), INDEX('PFB-Konstrukte'!$A$9:$J$40,SMALL(IF(NOT(ISERROR(FIND(IF(LEFT(A117,1)="0"," " & MID(A117,2,1) & ",",IF(MID(A117,3,1)=".",LEFT(A117,2),LEFT(A117,3))),'PFB-Konstrukte'!$J$9:$J$40))),ROW($1:$32)),1),1))), INDEX('PFB-Konstrukte'!$A$9:$J$40,SMALL(IF(NOT(ISERROR(FIND(IF(LEFT(A117,1)="0"," " & MID(A117,2,1) & ",",IF(MID(A117,3,1)=".",LEFT(A117,2),LEFT(A117,3))),'PFB-Konstrukte'!$J$9:$J$40))),ROW($1:$32)),1),1)) -> Instruktionale Führung, Schulziel-Management
A118: 82. Die Schulleitung gibt den Pädagoginnen und Pädagogen Anregungen, wie sie ihren Unterricht oder ihre pädagogische Arbeit verbessern können. | B118: 21 | C118: 2.428571429 | D118: 0.1475422227 | E118: 0.6761234038 | F118: 0.04761904762 | G118: 0.5238095238 | H118: 0.380952381 | I118: 0.04761904762 | J118: =IF(INDIRECT("'PFB-Konstrukte'!A" & (SMALL(IF(NOT(ISERROR(FIND(IF(LEFT(A118,1)="0"," " & MID(A118,2,1) & ",",IF(MID(A118,3,1)=".",LEFT(A118,2),LEFT(A118,3))),'PFB-Konstrukte'!$J$9:$J$40))),ROW($9:$40)),1)+1))="", IF(LEFT(INDIRECT("A"&MAX(IF($B$1:B118="N",ROW($A$1:A118)))-1),3)="nur", IF(RIGHT(INDIRECT("A"&MAX(IF($B$1:B118="N",ROW($A$1:A118)))-1),4)="PTF!", INDEX('PFB-Konstrukte'!$B$9:$J$40,SMALL(IF(NOT(ISERROR(FIND(IF(LEFT(A118,1)="0"," " & MID(A118,2,1) & ",",IF(MID(A118,3,1)=".",LEFT(A118,2),LEFT(A118,3))),'PFB-Konstrukte'!$J$9:$J$40))),ROW($1:$32)),3),1), INDEX('PFB-Konstrukte'!$B$9:$J$40,SMALL(IF(NOT(ISERROR(FIND(IF(LEFT(A118,1)="0"," " & MID(A118,2,1) & ",",IF(MID(A118,3,1)=".",LEFT(A118,2),LEFT(A118,3))),'PFB-Konstrukte'!$J$9:$J$40))),ROW($1:$32)),2),1)), IF(RIGHT(INDEX('PFB-Konstrukte'!$A$9:$J$40,SMALL(IF(NOT(ISERROR(FIND(IF(LEFT(A118,1)="0"," " & MID(A118,2,1) & ",",IF(MID(A118,3,1)=".",LEFT(A118,2),LEFT(A118,3))),'PFB-Konstrukte'!$J$9:$J$40))),ROW($1:$32)),1),1),7)="Führung", INDEX('PFB-Konstrukte'!$A$9:$J$40,SMALL(IF(NOT(ISERROR(FIND(IF(LEFT(A118,1)="0"," " & MID(A118,2,1) & ",",IF(MID(A118,3,1)=".",LEFT(A118,2),LEFT(A118,3))),'PFB-Konstrukte'!$J$9:$J$40))),ROW($1:$32)),1),1) & ", " & INDEX('PFB-Konstrukte'!$B$9:$J$40,SMALL(IF(NOT(ISERROR(FIND(IF(LEFT(A118,1)="0"," " & MID(A118,2,1) & ",",IF(MID(A118,3,1)=".",LEFT(A118,2),LEFT(A118,3))),'PFB-Konstrukte'!$J$9:$J$40))),ROW($1:$32)),2),1), INDEX('PFB-Konstrukte'!$A$9:$J$40,SMALL(IF(NOT(ISERROR(FIND(IF(LEFT(A118,1)="0"," " & MID(A118,2,1) & ",",IF(MID(A118,3,1)=".",LEFT(A118,2),LEFT(A118,3))),'PFB-Konstrukte'!$J$9:$J$40))),ROW($1:$32)),1),1))), INDEX('PFB-Konstrukte'!$A$9:$J$40,SMALL(IF(NOT(ISERROR(FIND(IF(LEFT(A118,1)="0"," " & MID(A118,2,1) & ",",IF(MID(A118,3,1)=".",LEFT(A118,2),LEFT(A118,3))),'PFB-Konstrukte'!$J$9:$J$40))),ROW($1:$32)),1),1)) -> Instruktionale Führung, Supervision
A119: 83. Die Schulleitung hospitiert im Unterricht. | B119: 18 | C119: 1.5 | D119: 0.145745772 | E119: 0.6183469424 | F119: 0.5555555556 | G119: 0.3888888889 | H119: 0.05555555556 | I119: 0 | J119: =IF(INDIRECT("'PFB-Konstrukte'!A" & (SMALL(IF(NOT(ISERROR(FIND(IF(LEFT(A119,1)="0"," " & MID(A119,2,1) & ",",IF(MID(A119,3,1)=".",LEFT(A119,2),LEFT(A119,3))),'PFB-Konstrukte'!$J$9:$J$40))),ROW($9:$40)),1)+1))="", IF(LEFT(INDIRECT("A"&MAX(IF($B$1:B119="N",ROW($A$1:A119)))-1),3)="nur", IF(RIGHT(INDIRECT("A"&MAX(IF($B$1:B119="N",ROW($A$1:A119)))-1),4)="PTF!", INDEX('PFB-Konstrukte'!$B$9:$J$40,SMALL(IF(NOT(ISERROR(FIND(IF(LEFT(A119,1)="0"," " & MID(A119,2,1) & ",",IF(MID(A119,3,1)=".",LEFT(A119,2),LEFT(A119,3))),'PFB-Konstrukte'!$J$9:$J$40))),ROW($1:$32)),3),1), INDEX('PFB-Konstrukte'!$B$9:$J$40,SMALL(IF(NOT(ISERROR(FIND(IF(LEFT(A119,1)="0"," " & MID(A119,2,1) & ",",IF(MID(A119,3,1)=".",LEFT(A119,2),LEFT(A119,3))),'PFB-Konstrukte'!$J$9:$J$40))),ROW($1:$32)),2),1)), IF(RIGHT(INDEX('PFB-Konstrukte'!$A$9:$J$40,SMALL(IF(NOT(ISERROR(FIND(IF(LEFT(A119,1)="0"," " & MID(A119,2,1) & ",",IF(MID(A119,3,1)=".",LEFT(A119,2),LEFT(A119,3))),'PFB-Konstrukte'!$J$9:$J$40))),ROW($1:$32)),1),1),7)="Führung", INDEX('PFB-Konstrukte'!$A$9:$J$40,SMALL(IF(NOT(ISERROR(FIND(IF(LEFT(A119,1)="0"," " & MID(A119,2,1) & ",",IF(MID(A119,3,1)=".",LEFT(A119,2),LEFT(A119,3))),'PFB-Konstrukte'!$J$9:$J$40))),ROW($1:$32)),1),1) & ", " & INDEX('PFB-Konstrukte'!$B$9:$J$40,SMALL(IF(NOT(ISERROR(FIND(IF(LEFT(A119,1)="0"," " & MID(A119,2,1) & ",",IF(MID(A119,3,1)=".",LEFT(A119,2),LEFT(A119,3))),'PFB-Konstrukte'!$J$9:$J$40))),ROW($1:$32)),2),1), INDEX('PFB-Konstrukte'!$A$9:$J$40,SMALL(IF(NOT(ISERROR(FIND(IF(LEFT(A119,1)="0"," " & MID(A119,2,1) & ",",IF(MID(A119,3,1)=".",LEFT(A119,2),LEFT(A119,3))),'PFB-Konstrukte'!$J$9:$J$40))),ROW($1:$32)),1),1))), INDEX('PFB-Konstrukte'!$A$9:$J$40,SMALL(IF(NOT(ISERROR(FIND(IF(LEFT(A119,1)="0"," " & MID(A119,2,1) & ",",IF(MID(A119,3,1)=".",LEFT(A119,2),LEFT(A119,3))),'PFB-Konstrukte'!$J$9:$J$40))),ROW($1:$32)),1),1)) -> Instruktionale Führung, Supervision
A120: 84. Die Schulleitung kümmert sich um Probleme in Bezug auf störendes Verhalten in den Klassen. | B120: 21 | C120: 3.333333333 | D120: 0.1259881577 | E120: 0.5773502692 | F120: 0 | G120: 0.04761904762 | H120: 0.5714285714 | I120: 0.380952381 | J120: =IF(INDIRECT("'PFB-Konstrukte'!A" & (SMALL(IF(NOT(ISERROR(FIND(IF(LEFT(A120,1)="0"," " & MID(A120,2,1) & ",",IF(MID(A120,3,1)=".",LEFT(A120,2),LEFT(A120,3))),'PFB-Konstrukte'!$J$9:$J$40))),ROW($9:$40)),1)+1))="", IF(LEFT(INDIRECT("A"&MAX(IF($B$1:B120="N",ROW($A$1:A120)))-1),3)="nur", IF(RIGHT(INDIRECT("A"&MAX(IF($B$1:B120="N",ROW($A$1:A120)))-1),4)="PTF!", INDEX('PFB-Konstrukte'!$B$9:$J$40,SMALL(IF(NOT(ISERROR(FIND(IF(LEFT(A120,1)="0"," " & MID(A120,2,1) & ",",IF(MID(A120,3,1)=".",LEFT(A120,2),LEFT(A120,3))),'PFB-Konstrukte'!$J$9:$J$40))),ROW($1:$32)),3),1), INDEX('PFB-Konstrukte'!$B$9:$J$40,SMALL(IF(NOT(ISERROR(FIND(IF(LEFT(A120,1)="0"," " & MID(A120,2,1) & ",",IF(MID(A120,3,1)=".",LEFT(A120,2),LEFT(A120,3))),'PFB-Konstrukte'!$J$9:$J$40))),ROW($1:$32)),2),1)), IF(RIGHT(INDEX('PFB-Konstrukte'!$A$9:$J$40,SMALL(IF(NOT(ISERROR(FIND(IF(LEFT(A120,1)="0"," " & MID(A120,2,1) & ",",IF(MID(A120,3,1)=".",LEFT(A120,2),LEFT(A120,3))),'PFB-Konstrukte'!$J$9:$J$40))),ROW($1:$32)),1),1),7)="Führung", INDEX('PFB-Konstrukte'!$A$9:$J$40,SMALL(IF(NOT(ISERROR(FIND(IF(LEFT(A120,1)="0"," " & MID(A120,2,1) & ",",IF(MID(A120,3,1)=".",LEFT(A120,2),LEFT(A120,3))),'PFB-Konstrukte'!$J$9:$J$40))),ROW($1:$32)),1),1) & ", " & INDEX('PFB-Konstrukte'!$B$9:$J$40,SMALL(IF(NOT(ISERROR(FIND(IF(LEFT(A120,1)="0"," " & MID(A120,2,1) & ",",IF(MID(A120,3,1)=".",LEFT(A120,2),LEFT(A120,3))),'PFB-Konstrukte'!$J$9:$J$40))),ROW($1:$32)),2),1), INDEX('PFB-Konstrukte'!$A$9:$J$40,SMALL(IF(NOT(ISERROR(FIND(IF(LEFT(A120,1)="0"," " & MID(A120,2,1) & ",",IF(MID(A120,3,1)=".",LEFT(A120,2),LEFT(A120,3))),'PFB-Konstrukte'!$J$9:$J$40))),ROW($1:$32)),1),1))), INDEX('PFB-Konstrukte'!$A$9:$J$40,SMALL(IF(NOT(ISERROR(FIND(IF(LEFT(A120,1)="0"," " & MID(A120,2,1) & ",",IF(MID(A120,3,1)=".",LEFT(A120,2),LEFT(A120,3))),'PFB-Konstrukte'!$J$9:$J$40))),ROW($1:$32)),1),1)) -> Instruktionale Führung, Anleitungsmanagement
B122: N | C122: MW | D122: SE | E122: SD | F122: trifft nicht zu | G122: trifft eher nicht zu | H122: trifft eher zu | I122: trifft voll zu | J122: Zuordnung zum Konstrukt
A123: 85. Auf mich strahlt die Schulleitung Stärke und Vertrauen aus. | B123: 23 | C123: 3.434782609 | D123: 0.1229750924 | E123: 0.5897678246 | F123: 0 | G123: 0.04347826087 | H123: 0.4782608696 | I123: 0.4782608696 | J123: =IF(INDIRECT("'PFB-Konstrukte'!A" & (SMALL(IF(NOT(ISERROR(FIND(IF(LEFT(A123,1)="0"," " & MID(A123,2,1) & ",",IF(MID(A123,3,1)=".",LEFT(A123,2),LEFT(A123,3))),'PFB-Konstrukte'!$J$9:$J$40))),ROW($9:$40)),1)+1))="", IF(LEFT(INDIRECT("A"&MAX(IF($B$1:B123="N",ROW($A$1:A123)))-1),3)="nur", IF(RIGHT(INDIRECT("A"&MAX(IF($B$1:B123="N",ROW($A$1:A123)))-1),4)="PTF!", INDEX('PFB-Konstrukte'!$B$9:$J$40,SMALL(IF(NOT(ISERROR(FIND(IF(LEFT(A123,1)="0"," " & MID(A123,2,1) & ",",IF(MID(A123,3,1)=".",LEFT(A123,2),LEFT(A123,3))),'PFB-Konstrukte'!$J$9:$J$40))),ROW($1:$32)),3),1), INDEX('PFB-Konstrukte'!$B$9:$J$40,SMALL(IF(NOT(ISERROR(FIND(IF(LEFT(A123,1)="0"," " & MID(A123,2,1) & ",",IF(MID(A123,3,1)=".",LEFT(A123,2),LEFT(A123,3))),'PFB-Konstrukte'!$J$9:$J$40))),ROW($1:$32)),2),1)), IF(RIGHT(INDEX('PFB-Konstrukte'!$A$9:$J$40,SMALL(IF(NOT(ISERROR(FIND(IF(LEFT(A123,1)="0"," " & MID(A123,2,1) & ",",IF(MID(A123,3,1)=".",LEFT(A123,2),LEFT(A123,3))),'PFB-Konstrukte'!$J$9:$J$40))),ROW($1:$32)),1),1),7)="Führung", INDEX('PFB-Konstrukte'!$A$9:$J$40,SMALL(IF(NOT(ISERROR(FIND(IF(LEFT(A123,1)="0"," " & MID(A123,2,1) & ",",IF(MID(A123,3,1)=".",LEFT(A123,2),LEFT(A123,3))),'PFB-Konstrukte'!$J$9:$J$40))),ROW($1:$32)),1),1) & ", " & INDEX('PFB-Konstrukte'!$B$9:$J$40,SMALL(IF(NOT(ISERROR(FIND(IF(LEFT(A123,1)="0"," " & MID(A123,2,1) & ",",IF(MID(A123,3,1)=".",LEFT(A123,2),LEFT(A123,3))),'PFB-Konstrukte'!$J$9:$J$40))),ROW($1:$32)),2),1), INDEX('PFB-Konstrukte'!$A$9:$J$40,SMALL(IF(NOT(ISERROR(FIND(IF(LEFT(A123,1)="0"," " & MID(A123,2,1) & ",",IF(MID(A123,3,1)=".",LEFT(A123,2),LEFT(A123,3))),'PFB-Konstrukte'!$J$9:$J$40))),ROW($1:$32)),1),1))), INDEX('PFB-Konstrukte'!$A$9:$J$40,SMALL(IF(NOT(ISERROR(FIND(IF(LEFT(A123,1)="0"," " & MID(A123,2,1) & ",",IF(MID(A123,3,1)=".",LEFT(A123,2),LEFT(A123,3))),'PFB-Konstrukte'!$J$9:$J$40))),ROW($1:$32)),1),1)) -> Transformationale Führung, Einfluss durch Vorbildlichkeit und Glaubwürdigkeit
A124: 86. Ich schätze die Weise, in der die Schulleitung handelt. | B124: 23 | C124: 3.391304348 | D124: 0.1368639501 | E124: 0.6563764465 | F124: 0 | G124: 0.08695652174 | H124: 0.4347826087 | I124: 0.4782608696 | J124: =IF(INDIRECT("'PFB-Konstrukte'!A" & (SMALL(IF(NOT(ISERROR(FIND(IF(LEFT(A124,1)="0"," " & MID(A124,2,1) & ",",IF(MID(A124,3,1)=".",LEFT(A124,2),LEFT(A124,3))),'PFB-Konstrukte'!$J$9:$J$40))),ROW($9:$40)),1)+1))="", IF(LEFT(INDIRECT("A"&MAX(IF($B$1:B124="N",ROW($A$1:A124)))-1),3)="nur", IF(RIGHT(INDIRECT("A"&MAX(IF($B$1:B124="N",ROW($A$1:A124)))-1),4)="PTF!", INDEX('PFB-Konstrukte'!$B$9:$J$40,SMALL(IF(NOT(ISERROR(FIND(IF(LEFT(A124,1)="0"," " & MID(A124,2,1) & ",",IF(MID(A124,3,1)=".",LEFT(A124,2),LEFT(A124,3))),'PFB-Konstrukte'!$J$9:$J$40))),ROW($1:$32)),3),1), INDEX('PFB-Konstrukte'!$B$9:$J$40,SMALL(IF(NOT(ISERROR(FIND(IF(LEFT(A124,1)="0"," " & MID(A124,2,1) & ",",IF(MID(A124,3,1)=".",LEFT(A124,2),LEFT(A124,3))),'PFB-Konstrukte'!$J$9:$J$40))),ROW($1:$32)),2),1)), IF(RIGHT(INDEX('PFB-Konstrukte'!$A$9:$J$40,SMALL(IF(NOT(ISERROR(FIND(IF(LEFT(A124,1)="0"," " & MID(A124,2,1) & ",",IF(MID(A124,3,1)=".",LEFT(A124,2),LEFT(A124,3))),'PFB-Konstrukte'!$J$9:$J$40))),ROW($1:$32)),1),1),7)="Führung", INDEX('PFB-Konstrukte'!$A$9:$J$40,SMALL(IF(NOT(ISERROR(FIND(IF(LEFT(A124,1)="0"," " & MID(A124,2,1) & ",",IF(MID(A124,3,1)=".",LEFT(A124,2),LEFT(A124,3))),'PFB-Konstrukte'!$J$9:$J$40))),ROW($1:$32)),1),1) & ", " & INDEX('PFB-Konstrukte'!$B$9:$J$40,SMALL(IF(NOT(ISERROR(FIND(IF(LEFT(A124,1)="0"," " & MID(A124,2,1) & ",",IF(MID(A124,3,1)=".",LEFT(A124,2),LEFT(A124,3))),'PFB-Konstrukte'!$J$9:$J$40))),ROW($1:$32)),2),1), INDEX('PFB-Konstrukte'!$A$9:$J$40,SMALL(IF(NOT(ISERROR(FIND(IF(LEFT(A124,1)="0"," " & MID(A124,2,1) & ",",IF(MID(A124,3,1)=".",LEFT(A124,2),LEFT(A124,3))),'PFB-Konstrukte'!$J$9:$J$40))),ROW($1:$32)),1),1))), INDEX('PFB-Konstrukte'!$A$9:$J$40,SMALL(IF(NOT(ISERROR(FIND(IF(LEFT(A124,1)="0"," " & MID(A124,2,1) & ",",IF(MID(A124,3,1)=".",LEFT(A124,2),LEFT(A124,3))),'PFB-Konstrukte'!$J$9:$J$40))),ROW($1:$32)),1),1)) -> Transformationale Führung, Einfluss durch Vorbildlichkeit und Glaubwürdigkeit
A125: 87. Die Schulleitung formuliert eine überzeugende Zukunftsvision. | B125: 19 | C125: 3.157894737 | D125: 0.1578947368 | E125: 0.6882472016 | F125: 0 | G125: 0.1578947368 | H125: 0.5263157895 | I125: 0.3157894737 | J125: =IF(INDIRECT("'PFB-Konstrukte'!A" & (SMALL(IF(NOT(ISERROR(FIND(IF(LEFT(A125,1)="0"," " & MID(A125,2,1) & ",",IF(MID(A125,3,1)=".",LEFT(A125,2),LEFT(A125,3))),'PFB-Konstrukte'!$J$9:$J$40))),ROW($9:$40)),1)+1))="", IF(LEFT(INDIRECT("A"&MAX(IF($B$1:B125="N",ROW($A$1:A125)))-1),3)="nur", IF(RIGHT(INDIRECT("A"&MAX(IF($B$1:B125="N",ROW($A$1:A125)))-1),4)="PTF!", INDEX('PFB-Konstrukte'!$B$9:$J$40,SMALL(IF(NOT(ISERROR(FIND(IF(LEFT(A125,1)="0"," " & MID(A125,2,1) & ",",IF(MID(A125,3,1)=".",LEFT(A125,2),LEFT(A125,3))),'PFB-Konstrukte'!$J$9:$J$40))),ROW($1:$32)),3),1), INDEX('PFB-Konstrukte'!$B$9:$J$40,SMALL(IF(NOT(ISERROR(FIND(IF(LEFT(A125,1)="0"," " & MID(A125,2,1) & ",",IF(MID(A125,3,1)=".",LEFT(A125,2),LEFT(A125,3))),'PFB-Konstrukte'!$J$9:$J$40))),ROW($1:$32)),2),1)), IF(RIGHT(INDEX('PFB-Konstrukte'!$A$9:$J$40,SMALL(IF(NOT(ISERROR(FIND(IF(LEFT(A125,1)="0"," " & MID(A125,2,1) & ",",IF(MID(A125,3,1)=".",LEFT(A125,2),LEFT(A125,3))),'PFB-Konstrukte'!$J$9:$J$40))),ROW($1:$32)),1),1),7)="Führung", INDEX('PFB-Konstrukte'!$A$9:$J$40,SMALL(IF(NOT(ISERROR(FIND(IF(LEFT(A125,1)="0"," " & MID(A125,2,1) & ",",IF(MID(A125,3,1)=".",LEFT(A125,2),LEFT(A125,3))),'PFB-Konstrukte'!$J$9:$J$40))),ROW($1:$32)),1),1) & ", " & INDEX('PFB-Konstrukte'!$B$9:$J$40,SMALL(IF(NOT(ISERROR(FIND(IF(LEFT(A125,1)="0"," " & MID(A125,2,1) & ",",IF(MID(A125,3,1)=".",LEFT(A125,2),LEFT(A125,3))),'PFB-Konstrukte'!$J$9:$J$40))),ROW($1:$32)),2),1), INDEX('PFB-Konstrukte'!$A$9:$J$40,SMALL(IF(NOT(ISERROR(FIND(IF(LEFT(A125,1)="0"," " & MID(A125,2,1) & ",",IF(MID(A125,3,1)=".",LEFT(A125,2),LEFT(A125,3))),'PFB-Konstrukte'!$J$9:$J$40))),ROW($1:$32)),1),1))), INDEX('PFB-Konstrukte'!$A$9:$J$40,SMALL(IF(NOT(ISERROR(FIND(IF(LEFT(A125,1)="0"," " & MID(A125,2,1) & ",",IF(MID(A125,3,1)=".",LEFT(A125,2),LEFT(A125,3))),'PFB-Konstrukte'!$J$9:$J$40))),ROW($1:$32)),1),1)) -> Transformationale Führung, Motivation durch begeisternde Visionen
A126: 88. Die Schulleitung trifft schnell und ohne zu zögern Entscheidungen. | B126: 20 | C126: 3.2 | D126: 0.1376494403 | E126: 0.6155870113 | F126: 0 | G126: 0.1 | H126: 0.6 | I126: 0.3 | J126: =IF(INDIRECT("'PFB-Konstrukte'!A" & (SMALL(IF(NOT(ISERROR(FIND(IF(LEFT(A126,1)="0"," " & MID(A126,2,1) & ",",IF(MID(A126,3,1)=".",LEFT(A126,2),LEFT(A126,3))),'PFB-Konstrukte'!$J$9:$J$40))),ROW($9:$40)),1)+1))="", IF(LEFT(INDIRECT("A"&MAX(IF($B$1:B126="N",ROW($A$1:A126)))-1),3)="nur", IF(RIGHT(INDIRECT("A"&MAX(IF($B$1:B126="N",ROW($A$1:A126)))-1),4)="PTF!", INDEX('PFB-Konstrukte'!$B$9:$J$40,SMALL(IF(NOT(ISERROR(FIND(IF(LEFT(A126,1)="0"," " & MID(A126,2,1) & ",",IF(MID(A126,3,1)=".",LEFT(A126,2),LEFT(A126,3))),'PFB-Konstrukte'!$J$9:$J$40))),ROW($1:$32)),3),1), INDEX('PFB-Konstrukte'!$B$9:$J$40,SMALL(IF(NOT(ISERROR(FIND(IF(LEFT(A126,1)="0"," " & MID(A126,2,1) & ",",IF(MID(A126,3,1)=".",LEFT(A126,2),LEFT(A126,3))),'PFB-Konstrukte'!$J$9:$J$40))),ROW($1:$32)),2),1)), IF(RIGHT(INDEX('PFB-Konstrukte'!$A$9:$J$40,SMALL(IF(NOT(ISERROR(FIND(IF(LEFT(A126,1)="0"," " & MID(A126,2,1) & ",",IF(MID(A126,3,1)=".",LEFT(A126,2),LEFT(A126,3))),'PFB-Konstrukte'!$J$9:$J$40))),ROW($1:$32)),1),1),7)="Führung", INDEX('PFB-Konstrukte'!$A$9:$J$40,SMALL(IF(NOT(ISERROR(FIND(IF(LEFT(A126,1)="0"," " & MID(A126,2,1) & ",",IF(MID(A126,3,1)=".",LEFT(A126,2),LEFT(A126,3))),'PFB-Konstrukte'!$J$9:$J$40))),ROW($1:$32)),1),1) & ", " & INDEX('PFB-Konstrukte'!$B$9:$J$40,SMALL(IF(NOT(ISERROR(FIND(IF(LEFT(A126,1)="0"," " & MID(A126,2,1) & ",",IF(MID(A126,3,1)=".",LEFT(A126,2),LEFT(A126,3))),'PFB-Konstrukte'!$J$9:$J$40))),ROW($1:$32)),2),1), INDEX('PFB-Konstrukte'!$A$9:$J$40,SMALL(IF(NOT(ISERROR(FIND(IF(LEFT(A126,1)="0"," " & MID(A126,2,1) & ",",IF(MID(A126,3,1)=".",LEFT(A126,2),LEFT(A126,3))),'PFB-Konstrukte'!$J$9:$J$40))),ROW($1:$32)),1),1))), INDEX('PFB-Konstrukte'!$A$9:$J$40,SMALL(IF(NOT(ISERROR(FIND(IF(LEFT(A126,1)="0"," " & MID(A126,2,1) & ",",IF(MID(A126,3,1)=".",LEFT(A126,2),LEFT(A126,3))),'PFB-Konstrukte'!$J$9:$J$40))),ROW($1:$32)),1),1)) -> Aktive Führung
A127: 89. Die Schulleitung erkennt meine individuellen Bedürfnisse, Fähigkeiten und Ziele. | B127: 22 | C127: 3.181818182 | D127: 0.169495861 | E127: 0.7950060579 | F127: 0 | G127: 0.2272727273 | H127: 0.3636363636 | I127: 0.4090909091 | J127: =IF(INDIRECT("'PFB-Konstrukte'!A" & (SMALL(IF(NOT(ISERROR(FIND(IF(LEFT(A127,1)="0"," " & MID(A127,2,1) & ",",IF(MID(A127,3,1)=".",LEFT(A127,2),LEFT(A127,3))),'PFB-Konstrukte'!$J$9:$J$40))),ROW($9:$40)),1)+1))="", IF(LEFT(INDIRECT("A"&MAX(IF($B$1:B127="N",ROW($A$1:A127)))-1),3)="nur", IF(RIGHT(INDIRECT("A"&MAX(IF($B$1:B127="N",ROW($A$1:A127)))-1),4)="PTF!", INDEX('PFB-Konstrukte'!$B$9:$J$40,SMALL(IF(NOT(ISERROR(FIND(IF(LEFT(A127,1)="0"," " & MID(A127,2,1) & ",",IF(MID(A127,3,1)=".",LEFT(A127,2),LEFT(A127,3))),'PFB-Konstrukte'!$J$9:$J$40))),ROW($1:$32)),3),1), INDEX('PFB-Konstrukte'!$B$9:$J$40,SMALL(IF(NOT(ISERROR(FIND(IF(LEFT(A127,1)="0"," " & MID(A127,2,1) & ",",IF(MID(A127,3,1)=".",LEFT(A127,2),LEFT(A127,3))),'PFB-Konstrukte'!$J$9:$J$40))),ROW($1:$32)),2),1)), IF(RIGHT(INDEX('PFB-Konstrukte'!$A$9:$J$40,SMALL(IF(NOT(ISERROR(FIND(IF(LEFT(A127,1)="0"," " & MID(A127,2,1) & ",",IF(MID(A127,3,1)=".",LEFT(A127,2),LEFT(A127,3))),'PFB-Konstrukte'!$J$9:$J$40))),ROW($1:$32)),1),1),7)="Führung", INDEX('PFB-Konstrukte'!$A$9:$J$40,SMALL(IF(NOT(ISERROR(FIND(IF(LEFT(A127,1)="0"," " & MID(A127,2,1) & ",",IF(MID(A127,3,1)=".",LEFT(A127,2),LEFT(A127,3))),'PFB-Konstrukte'!$J$9:$J$40))),ROW($1:$32)),1),1) & ", " & INDEX('PFB-Konstrukte'!$B$9:$J$40,SMALL(IF(NOT(ISERROR(FIND(IF(LEFT(A127,1)="0"," " & MID(A127,2,1) & ",",IF(MID(A127,3,1)=".",LEFT(A127,2),LEFT(A127,3))),'PFB-Konstrukte'!$J$9:$J$40))),ROW($1:$32)),2),1), INDEX('PFB-Konstrukte'!$A$9:$J$40,SMALL(IF(NOT(ISERROR(FIND(IF(LEFT(A127,1)="0"," " & MID(A127,2,1) & ",",IF(MID(A127,3,1)=".",LEFT(A127,2),LEFT(A127,3))),'PFB-Konstrukte'!$J$9:$J$40))),ROW($1:$32)),1),1))), INDEX('PFB-Konstrukte'!$A$9:$J$40,SMALL(IF(NOT(ISERROR(FIND(IF(LEFT(A127,1)="0"," " & MID(A127,2,1) & ",",IF(MID(A127,3,1)=".",LEFT(A127,2),LEFT(A127,3))),'PFB-Konstrukte'!$J$9:$J$40))),ROW($1:$32)),1),1)) -> Transformationale Führung, Individuelle Unterstützung und Förderung
A128: 90. Die Schulleitung hilft mir, meine Stärken auszubauen. | B128: 23 | C128: 3.130434783 | D128: 0.144795724 | E128: 0.6944158975 | F128: 0 | G128: 0.1739130435 | H128: 0.5217391304 | I128: 0.3043478261 | J128: =IF(INDIRECT("'PFB-Konstrukte'!A" & (SMALL(IF(NOT(ISERROR(FIND(IF(LEFT(A128,1)="0"," " & MID(A128,2,1) & ",",IF(MID(A128,3,1)=".",LEFT(A128,2),LEFT(A128,3))),'PFB-Konstrukte'!$J$9:$J$40))),ROW($9:$40)),1)+1))="", IF(LEFT(INDIRECT("A"&MAX(IF($B$1:B128="N",ROW($A$1:A128)))-1),3)="nur", IF(RIGHT(INDIRECT("A"&MAX(IF($B$1:B128="N",ROW($A$1:A128)))-1),4)="PTF!", INDEX('PFB-Konstrukte'!$B$9:$J$40,SMALL(IF(NOT(ISERROR(FIND(IF(LEFT(A128,1)="0"," " & MID(A128,2,1) & ",",IF(MID(A128,3,1)=".",LEFT(A128,2),LEFT(A128,3))),'PFB-Konstrukte'!$J$9:$J$40))),ROW($1:$32)),3),1), INDEX('PFB-Konstrukte'!$B$9:$J$40,SMALL(IF(NOT(ISERROR(FIND(IF(LEFT(A128,1)="0"," " & MID(A128,2,1) & ",",IF(MID(A128,3,1)=".",LEFT(A128,2),LEFT(A128,3))),'PFB-Konstrukte'!$J$9:$J$40))),ROW($1:$32)),2),1)), IF(RIGHT(INDEX('PFB-Konstrukte'!$A$9:$J$40,SMALL(IF(NOT(ISERROR(FIND(IF(LEFT(A128,1)="0"," " & MID(A128,2,1) & ",",IF(MID(A128,3,1)=".",LEFT(A128,2),LEFT(A128,3))),'PFB-Konstrukte'!$J$9:$J$40))),ROW($1:$32)),1),1),7)="Führung", INDEX('PFB-Konstrukte'!$A$9:$J$40,SMALL(IF(NOT(ISERROR(FIND(IF(LEFT(A128,1)="0"," " & MID(A128,2,1) & ",",IF(MID(A128,3,1)=".",LEFT(A128,2),LEFT(A128,3))),'PFB-Konstrukte'!$J$9:$J$40))),ROW($1:$32)),1),1) & ", " & INDEX('PFB-Konstrukte'!$B$9:$J$40,SMALL(IF(NOT(ISERROR(FIND(IF(LEFT(A128,1)="0"," " & MID(A128,2,1) & ",",IF(MID(A128,3,1)=".",LEFT(A128,2),LEFT(A128,3))),'PFB-Konstrukte'!$J$9:$J$40))),ROW($1:$32)),2),1), INDEX('PFB-Konstrukte'!$A$9:$J$40,SMALL(IF(NOT(ISERROR(FIND(IF(LEFT(A128,1)="0"," " & MID(A128,2,1) & ",",IF(MID(A128,3,1)=".",LEFT(A128,2),LEFT(A128,3))),'PFB-Konstrukte'!$J$9:$J$40))),ROW($1:$32)),1),1))), INDEX('PFB-Konstrukte'!$A$9:$J$40,SMALL(IF(NOT(ISERROR(FIND(IF(LEFT(A128,1)="0"," " & MID(A128,2,1) & ",",IF(MID(A128,3,1)=".",LEFT(A128,2),LEFT(A128,3))),'PFB-Konstrukte'!$J$9:$J$40))),ROW($1:$32)),1),1)) -> Transformationale Führung, Individuelle Unterstützung und Förderung
A129: 91. Die Schulleitung klärt wichtige Fragen sofort. | B129: 23 | C129: 3.47826087 | D129: 0.1236718407 | E129: 0.5931093121 | F129: 0 | G129: 0.04347826087 | H129: 0.4347826087 | I129: 0.5217391304 | J129: =IF(INDIRECT("'PFB-Konstrukte'!A" & (SMALL(IF(NOT(ISERROR(FIND(IF(LEFT(A129,1)="0"," " & MID(A129,2,1) & ",",IF(MID(A129,3,1)=".",LEFT(A129,2),LEFT(A129,3))),'PFB-Konstrukte'!$J$9:$J$40))),ROW($9:$40)),1)+1))="", IF(LEFT(INDIRECT("A"&MAX(IF($B$1:B129="N",ROW($A$1:A129)))-1),3)="nur", IF(RIGHT(INDIRECT("A"&MAX(IF($B$1:B129="N",ROW($A$1:A129)))-1),4)="PTF!", INDEX('PFB-Konstrukte'!$B$9:$J$40,SMALL(IF(NOT(ISERROR(FIND(IF(LEFT(A129,1)="0"," " & MID(A129,2,1) & ",",IF(MID(A129,3,1)=".",LEFT(A129,2),LEFT(A129,3))),'PFB-Konstrukte'!$J$9:$J$40))),ROW($1:$32)),3),1), INDEX('PFB-Konstrukte'!$B$9:$J$40,SMALL(IF(NOT(ISERROR(FIND(IF(LEFT(A129,1)="0"," " & MID(A129,2,1) & ",",IF(MID(A129,3,1)=".",LEFT(A129,2),LEFT(A129,3))),'PFB-Konstrukte'!$J$9:$J$40))),ROW($1:$32)),2),1)), IF(RIGHT(INDEX('PFB-Konstrukte'!$A$9:$J$40,SMALL(IF(NOT(ISERROR(FIND(IF(LEFT(A129,1)="0"," " & MID(A129,2,1) & ",",IF(MID(A129,3,1)=".",LEFT(A129,2),LEFT(A129,3))),'PFB-Konstrukte'!$J$9:$J$40))),ROW($1:$32)),1),1),7)="Führung", INDEX('PFB-Konstrukte'!$A$9:$J$40,SMALL(IF(NOT(ISERROR(FIND(IF(LEFT(A129,1)="0"," " & MID(A129,2,1) & ",",IF(MID(A129,3,1)=".",LEFT(A129,2),LEFT(A129,3))),'PFB-Konstrukte'!$J$9:$J$40))),ROW($1:$32)),1),1) & ", " & INDEX('PFB-Konstrukte'!$B$9:$J$40,SMALL(IF(NOT(ISERROR(FIND(IF(LEFT(A129,1)="0"," " & MID(A129,2,1) & ",",IF(MID(A129,3,1)=".",LEFT(A129,2),LEFT(A129,3))),'PFB-Konstrukte'!$J$9:$J$40))),ROW($1:$32)),2),1), INDEX('PFB-Konstrukte'!$A$9:$J$40,SMALL(IF(NOT(ISERROR(FIND(IF(LEFT(A129,1)="0"," " & MID(A129,2,1) & ",",IF(MID(A129,3,1)=".",LEFT(A129,2),LEFT(A129,3))),'PFB-Konstrukte'!$J$9:$J$40))),ROW($1:$32)),1),1))), INDEX('PFB-Konstrukte'!$A$9:$J$40,SMALL(IF(NOT(ISERROR(FIND(IF(LEFT(A129,1)="0"," " & MID(A129,2,1) & ",",IF(MID(A129,3,1)=".",LEFT(A129,2),LEFT(A129,3))),'PFB-Konstrukte'!$J$9:$J$40))),ROW($1:$32)),1),1)) -> Aktive Führung
A130: 92. Die Schulleitung zeigt Zufriedenheit, wenn andere die Erwartungen erfüllen. | B130: 18 | C130: 3.388888889 | D130: 0.2003084042 | E130: 0.8498365856 | F130: 0.05555555556 | G130: 0.05555555556 | H130: 0.3333333333 | I130: 0.5555555556 | J130: =IF(INDIRECT("'PFB-Konstrukte'!A" & (SMALL(IF(NOT(ISERROR(FIND(IF(LEFT(A130,1)="0"," " & MID(A130,2,1) & ",",IF(MID(A130,3,1)=".",LEFT(A130,2),LEFT(A130,3))),'PFB-Konstrukte'!$J$9:$J$40))),ROW($9:$40)),1)+1))="", IF(LEFT(INDIRECT("A"&MAX(IF($B$1:B130="N",ROW($A$1:A130)))-1),3)="nur", IF(RIGHT(INDIRECT("A"&MAX(IF($B$1:B130="N",ROW($A$1:A130)))-1),4)="PTF!", INDEX('PFB-Konstrukte'!$B$9:$J$40,SMALL(IF(NOT(ISERROR(FIND(IF(LEFT(A130,1)="0"," " & MID(A130,2,1) & ",",IF(MID(A130,3,1)=".",LEFT(A130,2),LEFT(A130,3))),'PFB-Konstrukte'!$J$9:$J$40))),ROW($1:$32)),3),1), INDEX('PFB-Konstrukte'!$B$9:$J$40,SMALL(IF(NOT(ISERROR(FIND(IF(LEFT(A130,1)="0"," " & MID(A130,2,1) & ",",IF(MID(A130,3,1)=".",LEFT(A130,2),LEFT(A130,3))),'PFB-Konstrukte'!$J$9:$J$40))),ROW($1:$32)),2),1)), IF(RIGHT(INDEX('PFB-Konstrukte'!$A$9:$J$40,SMALL(IF(NOT(ISERROR(FIND(IF(LEFT(A130,1)="0"," " & MID(A130,2,1) & ",",IF(MID(A130,3,1)=".",LEFT(A130,2),LEFT(A130,3))),'PFB-Konstrukte'!$J$9:$J$40))),ROW($1:$32)),1),1),7)="Führung", INDEX('PFB-Konstrukte'!$A$9:$J$40,SMALL(IF(NOT(ISERROR(FIND(IF(LEFT(A130,1)="0"," " & MID(A130,2,1) & ",",IF(MID(A130,3,1)=".",LEFT(A130,2),LEFT(A130,3))),'PFB-Konstrukte'!$J$9:$J$40))),ROW($1:$32)),1),1) & ", " & INDEX('PFB-Konstrukte'!$B$9:$J$40,SMALL(IF(NOT(ISERROR(FIND(IF(LEFT(A130,1)="0"," " & MID(A130,2,1) & ",",IF(MID(A130,3,1)=".",LEFT(A130,2),LEFT(A130,3))),'PFB-Konstrukte'!$J$9:$J$40))),ROW($1:$32)),2),1), INDEX('PFB-Konstrukte'!$A$9:$J$40,SMALL(IF(NOT(ISERROR(FIND(IF(LEFT(A130,1)="0"," " & MID(A130,2,1) & ",",IF(MID(A130,3,1)=".",LEFT(A130,2),LEFT(A130,3))),'PFB-Konstrukte'!$J$9:$J$40))),ROW($1:$32)),1),1))), INDEX('PFB-Konstrukte'!$A$9:$J$40,SMALL(IF(NOT(ISERROR(FIND(IF(LEFT(A130,1)="0"," " & MID(A130,2,1) & ",",IF(MID(A130,3,1)=".",LEFT(A130,2),LEFT(A130,3))),'PFB-Konstrukte'!$J$9:$J$40))),ROW($1:$32)),1),1)) -> Transaktionale Führung
